Workbook

Sheet Age profile chart

Sheet Forecast Ch1

Sheet Age profile summary
A1: Asset calcs | R1: Remaining life | W1: RC ($ millions) | AB1: RC (%)
R2: Very old | S2: Old | T2: moderate | U2: young | V2: new | W2: =R2 -> Very old | X2: =S2 -> Old | Y2: moderate | Z2: young | AA2: new | AB2: Very old | AC2: Old | AD2: moderate | AE2: young | AF2: new
M3: WARL | O3: WAL | Q3: WAA | R3: > | S3: > | T3: > | U3: > | V3: <=0.2 | W3: =R3 -> > | X3: > | Y3: > | Z3: > | AA3: <=0.2 | AB3: > | AC3: > | AD3: > | AE3: > | AF3: <=0.2
F4: Quantity | G4: Unit | H4: RC | I4: prop total | J4: Rank | K4: prop cat | L4: RC / unit | M4: (Rep life) | O4: Rep life | Q4: % Rep life | R4: =W4 -> 0.9 | S4: =X4 -> 0.8 | T4: =Y4 -> 0.4 | U4: =Z4 -> 0.2 | W4: 0.9 | X4: 0.8 | Y4: 0.4 | Z4: 0.2 | AA4: 0 | AB4: 0.9 | AC4: 0.8 | AD4: 0.4 | AE4: 0.2 | AF4: 0 | AG4: Std life | AH4: Std life | AI4: rep life
G5: Cost | H5: $ millions | I5: % | J5: total | K5: % | L5: $ ('000) | AG5: max | AH5: min
A6: 1 | D6: =VLOOKUP(A6,IDtable,2) -> POLES | F6: =SUMIF($A$21:$A$205,$A6,F$21:F$205) -> 76378 | H6: =SUMIF($A$21:$A$205,$A6,H$21:H$205)/1000 -> 635.9033073 | I6: =H6/($H$18) -> 0.1009121693 | J6: =RANK(I6,I$6:I$17) -> 3 | L6: =H6*1000/(F6+0.001) -> 8.325739073 | M6: =SUMIF($A$21:$A$205,$A6,N$21:N$205)/(H6*1000+0.000001) -> 25.63032447 | O6: =SUMIF($A$21:$A$205,$A6,P$21:P$205)/(H6*1000+0.000001) -> 51.72203572 | Q6: =(O6-M6)/(O6+0.000001) -> 0.5044602437 | R6: =$O6-R$4*$O6 -> 5.172203572 | S6: =$O6-S$4*$O6 -> 10.34440714 | T6: =$O6-T$4*$O6 -> 31.03322143 | U6: =$O6-U$4*$O6 -> 41.37762857 | V6: =$O6-V$4*$O6 -> 51.72203572 | W6: =SUMIF($A$21:$A$205,$A6,W$21:W$205)/1000 -> 35.38515097 | X6: 41.73926956 | Y6: 333.1320649 | Z6: 133.0603586 | AA6: 92.58646331 | AB6: =IF($H6=0,0,W6/$H6) -> 0.05564548975 | AC6: =IF($H6=0,0,X6/$H6) -> 0.06563776141 | AD6: =IF($H6=0,0,Y6/$H6) -> 0.5238722005 | AE6: =IF($H6=0,0,Z6/$H6) -> 0.2092462125 | AF6: =IF($H6=0,0,AA6/$H6) -> 0.1455983359 | AG6: =MAX(IF($A$21:$A$205=$A6,$O$21:$O$205)) -> 67.63393483 | AH6: =MIN(IF($A$21:$A$205=$A6,$O$21:$O$205)) -> 23.81489074 | AI6: =IF(H6=0,0,SUMIF($A$21:$A$205,$A6,$AJ$21:$AJ$205)/(H6*1000)) -> 51.72203572
A7: 2 | D7: OVERHEAD CONDUCTORS | F7: =SUMIF($A$21:$A$205,$A7,F$21:F$205) -> 4434.539779 | H7: =SUMIF($A$21:$A$205,$A7,H$21:H$205)/1000 -> 575.6243013 | I7: =H7/($H$18) -> 0.09134643002 | J7: 5 | L7: 129.8047148 | M7: 28.73784992 | O7: 59.07021468 | Q7: 0.5134967667 | R7: =$O7-R$4*$O7 -> 5.907021468 | S7: 11.81404294 | T7: 35.44212881 | U7: 47.25617174 | V7: 59.07021468 | W7: 18.77948296 | X7: 56.79147684 | Y7: 344.1810047 | Z7: 76.44183661 | AA7: 79.43050019 | AB7: =IF($H7=0,0,W7/$H7) -> 0.03262454854 | AC7: =IF($H7=0,0,X7/$H7) -> 0.09866066585 | AD7: =IF($H7=0,0,Y7/$H7) -> 0.5979264668 | AE7: =IF($H7=0,0,Z7/$H7) -> 0.1327981401 | AF7: =IF($H7=0,0,AA7/$H7) -> 0.1379901787 | AG7: =MAX(IF($A$21:$A$205=$A7,$O$21:$O$205)) -> 85.47561938 | AH7: =MIN(IF($A$21:$A$205=$A7,$O$21:$O$205)) -> 49.75285123 | AI7: =IF(H7=0,0,SUMIF($A$21:$A$205,$A7,$AJ$21:$AJ$205)/(H7*1000)) -> 59.07021468
A8: 3 | D8: UNDERGROUND CABLES | F8: 6680.744655 | H8: 1901.389741 | I8: 0.3017335517 | J8: 2 | L8: 284.6074134 | M8: 58.8009687 | O8: 75.06333612 | Q8: 0.216648607 | R8: 7.506333612 | S8: 15.01266722 | T8: 45.03800167 | U8: 60.0506689 | V8: 75.06333612 | W8: 10.83909975 | X8: 4.079071758 | Y8: 166.6700765 | Z8: 789.9926358 | AA8: 929.8088569 | AB8: 0.005700619665 | AC8: 0.002145310701 | AD8: 0.08765697684 | AE8: 0.4154816968 | AF8: 0.489015396 | AG8: =MAX(IF($A$21:$A$205=$A8,$O$21:$O$205)) -> 77.28432079 | AH8: =MIN(IF($A$21:$A$205=$A8,$O$21:$O$205)) -> 70.00173484 | AI8: 75.06333612
A9: 4 | D9: SERVICE LINES | F9: 3280347.269 | H9: 2267.246542 | I9: 0.3597917551 | J9: 1 | L9: 0.6911605254 | M9: 35.39483599 | O9: 63.85463263 | Q9: 0.4456966554 | R9: 6.385463263 | S9: 12.77092653 | T9: 38.31277958 | U9: 51.08370611 | V9: 63.85463263 | W9: 2.672879241 | X9: 162.0952919 | Y9: 1172.231204 | Z9: 204.9762045 | AA9: 725.2709623 | AB9: 0.001178909832 | AC9: 0.07149433854 | AD9: 0.5170285553 | AE9: 0.09040754974 | AF9: 0.3198906465 | AG9: =MAX(IF($A$21:$A$205=$A9,$O$21:$O$205)) -> 64.0056407 | AH9: =MIN(IF($A$21:$A$205=$A9,$O$21:$O$205)) -> 49.41331818 | AI9: 63.85463263
A10: 5 | D10: TRANSFORMERS | F10: 6154 | H10: 586.0795495 | I10: 0.09300558444 | J10: 4 | L10: 95.23553044 | M10: 29.16101324 | O10: 58.20918617 | Q10: 0.499030726 | R10: 5.820918617 | S10: 11.64183723 | T10: 34.9255117 | U10: 46.56734893 | V10: 58.20918617 | W10: 31.42751094 | X10: 28.82018526 | Y10: 309.7329742 | Z10: 87.03330295 | AA10: 129.0655762 | AB10: 0.05362328539 | AC10: 0.04917452807 | AD10: 0.5284828219 | AE10: 0.1485008358 | AF10: 0.2202185288 | AG10: =MAX(IF($A$21:$A$205=$A10,$O$21:$O$205)) -> 63.22889106 | AH10: =MIN(IF($A$21:$A$205=$A10,$O$21:$O$205)) -> 34.79237301 | AI10: 58.20918617
A11: 6 | D11: SWITCHGEAR | F11: 42579 | H11: 335.308805 | I11: 0.05321050939 | J11: 6 | L11: 7.874980556 | M11: 33.16230878 | O11: 52.43664336 | Q11: 0.3675737611 | R11: 5.243664336 | S11: 10.48732867 | T11: 31.46198602 | U11: 41.94931469 | V11: 52.43664336 | W11: 29.08431311 | X11: 15.01442825 | Y11: 88.4684533 | Z11: 66.26485214 | AA11: 136.4767582 | AB11: 0.08673888869 | AC11: 0.04477791226 | AD11: 0.2638417243 | AE11: 0.1976233584 | AF11: 0.4070181163 | AG11: =MAX(IF($A$21:$A$205=$A11,$O$21:$O$205)) -> 58.2241768 | AH11: =MIN(IF($A$21:$A$205=$A11,$O$21:$O$205)) -> 40.01492396 | AI11: 52.43664336
A12: 7 | D12: PUBLIC LIGHTING | F12: 0 | H12: 0 | I12: 0 | J12: 7 | L12: 0 | M12: 0 | O12: 0 | Q12: 0 | R12: 0 | S12: 0 | T12: 0 | U12: 0 | V12: 0 | W12: 0 | X12: 0 | Y12: 0 | Z12: 0 | AA12: 0 | AB12: 0 | AC12: 0 | AD12: 0 | AE12: 0 | AF12: 0 | AG12: =MAX(IF($A$21:$A$205=$A12,$O$21:$O$205)) -> 0 | AH12: =MIN(IF($A$21:$A$205=$A12,$O$21:$O$205)) -> 0 | AI12: 0
A13: 8 | D13: SCADA, NETWORK CONTROL AND PROTECTION | F13: 0 | H13: 0 | I13: 0 | J13: 7 | L13: 0 | M13: 0 | O13: 0 | Q13: 0 | R13: 0 | S13: 0 | T13: 0 | U13: 0 | V13: 0 | W13: 0 | X13: 0 | Y13: 0 | Z13: 0 | AA13: 0 | AB13: 0 | AC13: 0 | AD13: 0 | AE13: 0 | AF13: 0 | AG13: =MAX(IF($A$21:$A$205=$A13,$O$21:$O$205)) -> 0 | AH13: =MIN(IF($A$21:$A$205=$A13,$O$21:$O$205)) -> 0 | AI13: 0
A14: 9 | D14: =VLOOKUP(A14,IDtable,2) -> OTHER | F14: =SUMIF($A$21:$A$205,$A14,F$21:F$205) -> 0 | H14: =SUMIF($A$21:$A$205,$A14,H$21:H$205)/1000 -> 0 | I14: =H14/($H$18) -> 0 | J14: 7 | L14: 0 | M14: 0 | O14: 0 | Q14: 0 | R14: =$O14-R$4*$O14 -> 0 | S14: 0 | T14: 0 | U14: 0 | V14: 0 | W14: 0 | X14: 0 | Y14: 0 | Z14: 0 | AA14: 0 | AB14: 0 | AC14: 0 | AD14: 0 | AE14: 0 | AF14: 0 | AG14: =MAX(IF($A$21:$A$205=$A14,$O$21:$O$205)) -> 0 | AH14: =MIN(IF($A$21:$A$205=$A14,$O$21:$O$205)) -> 0 | AI14: 0
A15: 10 | D15: =VLOOKUP(A15,IDtable,2) -> unused | F15: =SUMIF($A$21:$A$205,$A15,F$21:F$205) -> 0 | H15: =SUMIF($A$21:$A$205,$A15,H$21:H$205)/1000 -> 0 | I15: =H15/($H$18) -> 0 | J15: 7 | L15: 0 | M15: 0 | O15: 0 | Q15: 0 | R15: 0 | S15: 0 | T15: 0 | U15: 0 | V15: 0 | W15: 0 | X15: 0 | Y15: 0 | Z15: 0 | AA15: 0 | AB15: 0 | AC15: 0 | AD15: 0 | AE15: 0 | AF15: 0 | AG15: =MAX(IF($A$21:$A$205=$A15,$O$21:$O$205)) -> 0 | AH15: =MIN(IF($A$21:$A$205=$A15,$O$21:$O$205)) -> 0 | AI15: 0
A16: 11 | D16: =VLOOKUP(A16,IDtable,2) -> unused | F16: =SUMIF($A$21:$A$205,$A16,F$21:F$205) -> 0 | H16: =SUMIF($A$21:$A$205,$A16,H$21:H$205)/1000 -> 0 | I16: =H16/($H$18) -> 0 | J16: 7 | L16: 0 | M16: 0 | O16: 0 | Q16: 0 | R16: 0 | S16: 0 | T16: 0 | U16: 0 | V16: 0 | W16: 0 | X16: 0 | Y16: 0 | Z16: 0 | AA16: 0 | AB16: 0 | AC16: 0 | AD16: 0 | AE16: 0 | AF16: 0 | AG16: =MAX(IF($A$21:$A$205=$A16,$O$21:$O$205)) -> 0 | AH16: =MIN(IF($A$21:$A$205=$A16,$O$21:$O$205)) -> 0 | AI16: 0
A17: 12 | D17: =VLOOKUP(A17,IDtable,2) -> unused | F17: =SUMIF($A$21:$A$205,$A17,F$21:F$205) -> 0 | H17: =SUMIF($A$21:$A$205,$A17,H$21:H$205)/1000 -> 0 | I17: =H17/($H$18) -> 0 | J17: =RANK(I17,I$6:I$17) -> 7 | L17: =H17*1000/(F17+0.001) -> 0 | M17: =SUMIF($A$21:$A$205,$A17,N$21:N$205)/(H17*1000+0.000001) -> 0 | O17: =SUMIF($A$21:$A$205,$A17,P$21:P$205)/(H17*1000+0.000001) -> 0 | Q17: =(O17-M17)/(O17+0.000001) -> 0 | R17: 0 | S17: 0 | T17: 0 | U17: 0 | V17: 0 | W17: 0 | X17: 0 | Y17: 0 | Z17: 0 | AA17: 0 | AB17: 0 | AC17: 0 | AD17: 0 | AE17: 0 | AF17: 0 | AG17: =MAX(IF($A$21:$A$205=$A17,$O$21:$O$205)) -> 0 | AH17: =MIN(IF($A$21:$A$205=$A17,$O$21:$O$205)) -> 0 | AI17: 0
D18: Total | H18: =SUM(H6:H17) -> 6301.552246 | M18: =SUMPRODUCT(M6:M17,$H6:$H17)/$H18 -> 40.16522735 | O18: =SUMPRODUCT(O6:O17,$H6:$H17)/$H18 -> 64.4426933 | Q18: =SUMPRODUCT(Q6:Q17,$H6:$H17)/$H18 -> 0.3895118409 | W18: =SUM(W6:W17) -> 128.188437 | X18: =SUM(X6:X17) -> 308.5397235 | Y18: =SUM(Y6:Y17) -> 2414.415778 | Z18: =SUM(Z6:Z17) -> 1357.769191 | AA18: =SUM(AA6:AA17) -> 2092.639117 | AB18: =W18/$H18 -> 0.02034235883 | AC18: =X18/$H18 -> 0.04896249551 | AD18: =Y18/$H18 -> 0.3831461969 | AE18: =Z18/$H18 -> 0.2154658309 | AF18: =AA18/$H18 -> 0.3320831178
D20: EDB categories
A21: ='Asset data'!A21 -> 1 | B21: ='Asset data'!B21 -> 0 | C21: ='Asset data'!C21 -> 0 | D21: ='Asset data'!E21 -> Staking of a wooden pole | E21: =IF(A21>0,VLOOKUP(A21,IDtable,2),0) -> POLES | F21: =IF(A21>0,SUM('Asset data'!J21:CV21),0) -> 6928 | G21: =IF(A21>0,'Asset data'!F21,0) -> 14.91392671 | H21: =IF(A21>0,SUM('Asset data'!CX21:GJ21),0) -> 103323.6842 | I21: =H21/$H$18/1000 -> 0.01639654488 | J21: =IF(RANK(0,I$21:I$205)=RANK(I21,I$21:I$205),0,RANK(I21,I$21:I$205)) -> 10 | K21: =IF(A21>0,H21/(VLOOKUP(A21,$A$6:$H$17,8)*1000),0) -> 0.1624833257 | L21: =IF($A21>0,H21/F21,0) -> 14.91392671 | M21: =IF($A21>0,SUMPRODUCT('Age profile (years)'!$CT21:$GF21,'Asset data'!$CX21:$GJ21)/H21-0.5,0) -> 16.40588915 | N21: =IF($A21>0,M21*H21,0) -> 1695116.909 | O21: =IF($A21>0,'Asset data'!G21,0) -> 23.81489074 | P21: =IF($A21>0,H21*O21,0) -> 2460642.25 | Q21: =IF($A21>0,(O21-M21)/O21,0) -> 0.3111079397 | R21: =IF($A21>0,$O21-R$4*$O21,0) -> 2.381489074 | S21: 4.762978147 | T21: 14.28893444 | U21: 19.05191259 | W21: =IF($A21>0,SUMIF('Age profile (years)'!$CT21:$GF21,"<" & R21+0.5,'Asset data'!$CX21:$GJ21),0) -> 2878.387854 | X21: =IF($A21>0,SUMIF('Age profile (years)'!$CT21:$GF21,"<" & S21+0.5,'Asset data'!$CX21:$GJ21)-W21,0) -> 4668.059059 | Y21: =IF($A21>0,SUMIF('Age profile (years)'!$CT21:$GF21,"<" & T21+0.5,'Asset data'!$CX21:$GJ21)-X21-W21,0) -> 27426.71121 | Z21: =IF($A21>0,SUMIF('Age profile (years)'!$CT21:$GF21,"<" & U21+0.5,'Asset data'!$CX21:$GJ21)-Y21-X21-W21,0) -> 19581.98576 | AA21: =IF($A21>0,H21-Z21-Y21-X21-W21,0) -> 48768.54033 | AB21: =IF($A21>0,W21/$H21,0) -> 0.02785796767 | AC21: 0.04517898383 | AD21: 0.2654445727 | AE21: 0.1895207852 | AF21: 0.4719976905 | AI21: =IF($A21>0,'RRR hist-forc'!K21,0) -> 23.81489074 | AJ21: =IF($A21>0,AI21*H21,0) -> 2460642.25
A22: ='Asset data'!A22 -> 1 | B22: ='Asset data'!B22 -> 0 | C22: ='Asset data'!C22 -> 0 | D22: ='Asset data'!E22 -> ˂ = 1 kV; Wood | E22: POLES | F22: =IF(A22>0,SUM('Asset data'!J22:CV22),0) -> 25308 | G22: =IF(A22>0,'Asset data'!F22,0) -> 4.100260885 | H22: =IF(A22>0,SUM('Asset data'!CX22:GJ22),0) -> 103769.4025 | I22: 0.01646727638 | J22: 9 | K22: =IF(A22>0,H22/(VLOOKUP(A22,$A$6:$H$17,8)*1000),0) -> 0.1631842472 | L22: =IF($A22>0,H22/F22,0) -> 4.100260885 | M22: =IF($A22>0,SUMPRODUCT('Age profile (years)'!$CT22:$GF22,'Asset data'!$CX22:$GJ22)/H22-0.5,0) -> 16.0224435 | N22: =IF($A22>0,M22*H22,0) -> 1662639.388 | O22: =IF($A22>0,'Asset data'!G22,0) -> 54.12428829 | P22: =IF($A22>0,H22*O22,0) -> 5616445.056 | Q22: =IF($A22>0,(O22-M22)/O22,0) -> 0.7039694377 | R22: 5.412428829 | S22: 10.82485766 | T22: 32.47457298 | U22: 43.29943064 | W22: =IF($A22>0,SUMIF('Age profile (years)'!$CT22:$GF22,"<" & R22+0.5,'Asset data'!$CX22:$GJ22),0) -> 22764.64843 | X22: =IF($A22>0,SUMIF('Age profile (years)'!$CT22:$GF22,"<" & S22+0.5,'Asset data'!$CX22:$GJ22)-W22,0) -> 20972.83443 | Y22: =IF($A22>0,SUMIF('Age profile (years)'!$CT22:$GF22,"<" & T22+0.5,'Asset data'!$CX22:$GJ22)-X22-W22,0) -> 46246.84252 | Z22: =IF($A22>0,SUMIF('Age profile (years)'!$CT22:$GF22,"<" & U22+0.5,'Asset data'!$CX22:$GJ22)-Y22-X22-W22,0) -> 5994.581413 | AA22: =IF($A22>0,H22-Z22-Y22-X22-W22,0) -> 7790.495681 | AB22: 0.219377272 | AC22: 0.2021100047 | AD22: 0.4456693536 | AE22: 0.05776829461 | AF22: 0.07507507508 | AI22: =IF($A22>0,'RRR hist-forc'!K22,0) -> 54.12428829 | AJ22: =IF($A22>0,AI22*H22,0) -> 5616445.056
A23: ='Asset data'!A23 -> 1 | B23: ='Asset data'!B23 -> 0 | C23: ='Asset data'!C23 -> 0 | D23: ='Asset data'!E23 -> > 1 kV & < = 11 kV; Wood | E23: =IF(A23>0,VLOOKUP(A23,IDtable,2),0) -> POLES | F23: =IF(A23>0,SUM('Asset data'!J23:CV23),0) -> 4524 | G23: =IF(A23>0,'Asset data'!F23,0) -> 5.411988217 | H23: =IF(A23>0,SUM('Asset data'!CX23:GJ23),0) -> 24483.83469 | I23: =H23/$H$18/1000 -> 0.003885365659 | J23: =IF(RANK(0,I$21:I$205)=RANK(I23,I$21:I$205),0,RANK(I23,I$21:I$205)) -> 27 | K23: =IF(A23>0,H23/(VLOOKUP(A23,$A$6:$H$17,8)*1000),0) -> 0.03850244906 | L23: =IF($A23>0,H23/F23,0) -> 5.411988217 | M23: =IF($A23>0,SUMPRODUCT('Age profile (years)'!$CT23:$GF23,'Asset data'!$CX23:$GJ23)/H23-0.5,0) -> 30.82824934 | N23: =IF($A23>0,M23*H23,0) -> 754793.7606 | O23: =IF($A23>0,'Asset data'!G23,0) -> 67.63393483 | P23: =IF($A23>0,H23*O23,0) -> 1655938.08 | Q23: =IF($A23>0,(O23-M23)/O23,0) -> 0.5441896229 | R23: 6.763393483 | S23: 13.52678697 | T23: 40.5803609 | U23: 54.10714786 | W23: =IF($A23>0,SUMIF('Age profile (years)'!$CT23:$GF23,"<" & R23+0.5,'Asset data'!$CX23:$GJ23),0) -> 1233.933313 | X23: =IF($A23>0,SUMIF('Age profile (years)'!$CT23:$GF23,"<" & S23+0.5,'Asset data'!$CX23:$GJ23)-W23,0) -> 1796.780088 | Y23: =IF($A23>0,SUMIF('Age profile (years)'!$CT23:$GF23,"<" & T23+0.5,'Asset data'!$CX23:$GJ23)-X23-W23,0) -> 14899.20356 | Z23: =IF($A23>0,SUMIF('Age profile (years)'!$CT23:$GF23,"<" & U23+0.5,'Asset data'!$CX23:$GJ23)-Y23-X23-W23,0) -> 3891.219528 | AA23: =IF($A23>0,H23-Z23-Y23-X23-W23,0) -> 2662.698203 | AB23: =IF($A23>0,W23/$H23,0) -> 0.05039787798 | AC23: =IF($A23>0,X23/$H23,0) -> 0.07338638373 | AD23: =IF($A23>0,Y23/$H23,0) -> 0.6085322723 | AE23: =IF($A23>0,Z23/$H23,0) -> 0.1589301503 | AF23: =IF($A23>0,AA23/$H23,0) -> 0.1087533156 | AI23: =IF($A23>0,'RRR hist-forc'!K23,0) -> 67.63393483 | AJ23: =IF($A23>0,AI23*H23,0) -> 1655938.08
A24: ='Asset data'!A24 -> 1 | B24: ='Asset data'!B24 -> 0 | C24: ='Asset data'!C24 -> 0 | D24: ='Asset data'!E24 -> ˃ 11 kV & < = 22 kV; Wood | E24: POLES | F24: =IF(A24>0,SUM('Asset data'!J24:CV24),0) -> 18437 | G24: =IF(A24>0,'Asset data'!F24,0) -> 4.990264528 | H24: =IF(A24>0,SUM('Asset data'!CX24:GJ24),0) -> 92005.50709 | I24: 0.01460045137 | J24: 12 | K24: 0.1446847438 | L24: 4.990264528 | M24: =IF($A24>0,SUMPRODUCT('Age profile (years)'!$CT24:$GF24,'Asset data'!$CX24:$GJ24)/H24-0.5,0) -> 25.35643 | N24: 2332931.201 | O24: =IF($A24>0,'Asset data'!G24,0) -> 57.34338627 | P24: 5275907.333 | Q24: 0.5578142197 | R24: 5.734338627 | S24: 11.46867725 | T24: 34.40603176 | U24: 45.87470902 | W24: =IF($A24>0,SUMIF('Age profile (years)'!$CT24:$GF24,"<" & R24+0.5,'Asset data'!$CX24:$GJ24),0) -> 7066.214571 | X24: =IF($A24>0,SUMIF('Age profile (years)'!$CT24:$GF24,"<" & S24+0.5,'Asset data'!$CX24:$GJ24)-W24,0) -> 10674.17582 | Y24: =IF($A24>0,SUMIF('Age profile (years)'!$CT24:$GF24,"<" & T24+0.5,'Asset data'!$CX24:$GJ24)-X24-W24,0) -> 51719.10156 | Z24: =IF($A24>0,SUMIF('Age profile (years)'!$CT24:$GF24,"<" & U24+0.5,'Asset data'!$CX24:$GJ24)-Y24-X24-W24,0) -> 9770.937945 | AA24: 12775.07719 | AB24: 0.07680208277 | AC24: 0.1160167055 | AD24: 0.5621304985 | AE24: 0.1061994902 | AF24: 0.1388512231 | AI24: =IF($A24>0,'RRR hist-forc'!K24,0) -> 57.34338627 | AJ24: 5275907.333
A25: ='Asset data'!A25 -> 1 | B25: ='Asset data'!B25 -> 0 | C25: ='Asset data'!C25 -> 0 | D25: ='Asset data'!E25 -> > 22 kV & < = 66 kV; Wood | E25: POLES | F25: =IF(A25>0,SUM('Asset data'!J25:CV25),0) -> 2160 | G25: =IF(A25>0,'Asset data'!F25,0) -> 5.205459908 | H25: =IF(A25>0,SUM('Asset data'!CX25:GJ25),0) -> 11243.7934 | I25: 0.001784289483 | J25: 32 | K25: 0.01768160862 | L25: 5.205459908 | M25: =IF($A25>0,SUMPRODUCT('Age profile (years)'!$CT25:$GF25,'Asset data'!$CX25:$GJ25)/H25-0.5,0) -> 27.76203704 | N25: 312150.6088 | O25: =IF($A25>0,'Asset data'!G25,0) -> 60.42405919 | P25: 679395.638 | Q25: 0.5405466397 | R25: 6.042405919 | S25: 12.08481184 | T25: 36.25443552 | U25: 48.33924735 | W25: =IF($A25>0,SUMIF('Age profile (years)'!$CT25:$GF25,"<" & R25+0.5,'Asset data'!$CX25:$GJ25),0) -> 583.0115097 | X25: =IF($A25>0,SUMIF('Age profile (years)'!$CT25:$GF25,"<" & S25+0.5,'Asset data'!$CX25:$GJ25)-W25,0) -> 2264.37506 | Y25: =IF($A25>0,SUMIF('Age profile (years)'!$CT25:$GF25,"<" & T25+0.5,'Asset data'!$CX25:$GJ25)-X25-W25,0) -> 5392.856465 | Z25: =IF($A25>0,SUMIF('Age profile (years)'!$CT25:$GF25,"<" & U25+0.5,'Asset data'!$CX25:$GJ25)-Y25-X25-W25,0) -> 1415.885095 | AA25: 1587.665272 | AB25: 0.05185185185 | AC25: 0.2013888889 | AD25: 0.4796296296 | AE25: 0.1259259259 | AF25: 0.1412037037 | AI25: =IF($A25>0,'RRR hist-forc'!K25,0) -> 60.42405919 | AJ25: 679395.638
A26: ='Asset data'!A26 -> 0 | B26: ='Asset data'!B26 -> 0 | C26: ='Asset data'!C26 -> 0 | D26: ='Asset data'!E26 -> > 66 kV & < = 132 kV; Wood | E26: 0 | F26: =IF(A26>0,SUM('Asset data'!J26:CV26),0) -> 0 | G26: =IF(A26>0,'Asset data'!F26,0) -> 0 | H26: =IF(A26>0,SUM('Asset data'!CX26:GJ26),0) -> 0 | I26: 0 | J26: 0 | K26: 0 | L26: 0 | M26: =IF($A26>0,SUMPRODUCT('Age profile (years)'!$CT26:$GF26,'Asset data'!$CX26:$GJ26)/H26-0.5,0) -> 0 | N26: 0 | O26: =IF($A26>0,'Asset data'!G26,0) -> 0 | P26: 0 | Q26: 0 | R26: 0 | S26: 0 | T26: 0 | U26: 0 | W26: =IF($A26>0,SUMIF('Age profile (years)'!$CT26:$GF26,"<" & R26+0.5,'Asset data'!$CX26:$GJ26),0) -> 0 | X26: =IF($A26>0,SUMIF('Age profile (years)'!$CT26:$GF26,"<" & S26+0.5,'Asset data'!$CX26:$GJ26)-W26,0) -> 0 | Y26: =IF($A26>0,SUMIF('Age profile (years)'!$CT26:$GF26,"<" & T26+0.5,'Asset data'!$CX26:$GJ26)-X26-W26,0) -> 0 | Z26: =IF($A26>0,SUMIF('Age profile (years)'!$CT26:$GF26,"<" & U26+0.5,'Asset data'!$CX26:$GJ26)-Y26-X26-W26,0) -> 0 | AA26: 0 | AB26: 0 | AC26: 0 | AD26: 0 | AE26: 0 | AF26: 0 | AI26: =IF($A26>0,'RRR hist-forc'!K26,0) -> 0 | AJ26: 0
A27: ='Asset data'!A27 -> 0 | B27: ='Asset data'!B27 -> 0 | C27: ='Asset data'!C27 -> 0 | D27: ='Asset data'!E27 -> > 132 kV; Wood | E27: 0 | F27: =IF(A27>0,SUM('Asset data'!J27:CV27),0) -> 0 | G27: =IF(A27>0,'Asset data'!F27,0) -> 0 | H27: =IF(A27>0,SUM('Asset data'!CX27:GJ27),0) -> 0 | I27: 0 | J27: 0 | K27: 0 | L27: 0 | M27: =IF($A27>0,SUMPRODUCT('Age profile (years)'!$CT27:$GF27,'Asset data'!$CX27:$GJ27)/H27-0.5,0) -> 0 | N27: 0 | O27: =IF($A27>0,'Asset data'!G27,0) -> 0 | P27: 0 | Q27: 0 | R27: 0 | S27: 0 | T27: 0 | U27: 0 | W27: =IF($A27>0,SUMIF('Age profile (years)'!$CT27:$GF27,"<" & R27+0.5,'Asset data'!$CX27:$GJ27),0) -> 0 | X27: =IF($A27>0,SUMIF('Age profile (years)'!$CT27:$GF27,"<" & S27+0.5,'Asset data'!$CX27:$GJ27)-W27,0) -> 0 | Y27: =IF($A27>0,SUMIF('Age profile (years)'!$CT27:$GF27,"<" & T27+0.5,'Asset data'!$CX27:$GJ27)-X27-W27,0) -> 0 | Z27: =IF($A27>0,SUMIF('Age profile (years)'!$CT27:$GF27,"<" & U27+0.5,'Asset data'!$CX27:$GJ27)-Y27-X27-W27,0) -> 0 | AA27: 0 | AB27: 0 | AC27: 0 | AD27: 0 | AE27: 0 | AF27: 0 | AI27: =IF($A27>0,'RRR hist-forc'!K27,0) -> 0 | AJ27: 0
A28: ='Asset data'!A28 -> 1 | B28: ='Asset data'!B28 -> 0 | C28: ='Asset data'!C28 -> 0 | D28: ='Asset data'!E28 -> ˂ = 1 kV; Concrete | E28: POLES | F28: =IF(A28>0,SUM('Asset data'!J28:CV28),0) -> 11063 | G28: =IF(A28>0,'Asset data'!F28,0) -> 14.85532999 | H28: =IF(A28>0,SUM('Asset data'!CX28:GJ28),0) -> 164344.5157 | I28: 0.02608000526 | J28: 6 | K28: 0.2584426183 | L28: 14.85532999 | M28: =IF($A28>0,SUMPRODUCT('Age profile (years)'!$CT28:$GF28,'Asset data'!$CX28:$GJ28)/H28-0.5,0) -> 33.40391395 | N28: 5489750.06 | O28: =IF($A28>0,'Asset data'!G28,0) -> 60.14191664 | P28: 9883994.165 | Q28: 0.444581819 | R28: 6.014191664 | S28: 12.02838333 | T28: 36.08514999 | U28: 48.11353332 | W28: =IF($A28>0,SUMIF('Age profile (years)'!$CT28:$GF28,"<" & R28+0.5,'Asset data'!$CX28:$GJ28),0) -> 267.3959399 | X28: =IF($A28>0,SUMIF('Age profile (years)'!$CT28:$GF28,"<" & S28+0.5,'Asset data'!$CX28:$GJ28)-W28,0) -> 475.3705598 | Y28: =IF($A28>0,SUMIF('Age profile (years)'!$CT28:$GF28,"<" & T28+0.5,'Asset data'!$CX28:$GJ28)-X28-W28,0) -> 102189.815 | Z28: =IF($A28>0,SUMIF('Age profile (years)'!$CT28:$GF28,"<" & U28+0.5,'Asset data'!$CX28:$GJ28)-Y28-X28-W28,0) -> 58752.83012 | AA28: 2659.104069 | AB28: 0.001627045105 | AC28: 0.002892524632 | AD28: 0.6218024044 | AE28: 0.3574979662 | AF28: 0.01618005966 | AI28: =IF($A28>0,'RRR hist-forc'!K28,0) -> 60.14191664 | AJ28: 9883994.165
A29: ='Asset data'!A29 -> 1 | B29: ='Asset data'!B29 -> 0 | C29: ='Asset data'!C29 -> 0 | D29: ='Asset data'!E29 -> > 1 kV & < = 11 kV; Concrete | E29: POLES | F29: =IF(A29>0,SUM('Asset data'!J29:CV29),0) -> 1320 | G29: =IF(A29>0,'Asset data'!F29,0) -> 17.66835162 | H29: =IF(A29>0,SUM('Asset data'!CX29:GJ29),0) -> 23322.22413 | I29: 0.003701028448 | J29: 28 | K29: 0.03667573964 | L29: 17.66835162 | M29: =IF($A29>0,SUMPRODUCT('Age profile (years)'!$CT29:$GF29,'Asset data'!$CX29:$GJ29)/H29-0.5,0) -> 23.51439394 | N29: 548407.9658 | O29: =IF($A29>0,'Asset data'!G29,0) -> 47.75130414 | P29: 1113666.618 | Q29: 0.5075654087 | R29: 4.775130414 | S29: 9.550260828 | T29: 28.65078248 | U29: 38.20104331 | W29: =IF($A29>0,SUMIF('Age profile (years)'!$CT29:$GF29,"<" & R29+0.5,'Asset data'!$CX29:$GJ29),0) -> 88.34175808 | X29: =IF($A29>0,SUMIF('Age profile (years)'!$CT29:$GF29,"<" & S29+0.5,'Asset data'!$CX29:$GJ29)-W29,0) -> 194.3518678 | Y29: =IF($A29>0,SUMIF('Age profile (years)'!$CT29:$GF29,"<" & T29+0.5,'Asset data'!$CX29:$GJ29)-X29-W29,0) -> 16855.60744 | Z29: =IF($A29>0,SUMIF('Age profile (years)'!$CT29:$GF29,"<" & U29+0.5,'Asset data'!$CX29:$GJ29)-Y29-X29-W29,0) -> 3056.624829 | AA29: 3127.298236 | AB29: 0.003787878788 | AC29: 0.008333333333 | AD29: 0.7227272727 | AE29: 0.1310606061 | AF29: 0.1340909091 | AI29: =IF($A29>0,'RRR hist-forc'!K29,0) -> 47.75130414 | AJ29: 1113666.618
A30: ='Asset data'!A30 -> 1 | B30: ='Asset data'!B30 -> 0 | C30: ='Asset data'!C30 -> 0 | D30: ='Asset data'!E30 -> ˃ 11 kV & < = 22 kV; Concrete | E30: POLES | F30: =IF(A30>0,SUM('Asset data'!J30:CV30),0) -> 5377 | G30: =IF(A30>0,'Asset data'!F30,0) -> 18.20277857 | H30: =IF(A30>0,SUM('Asset data'!CX30:GJ30),0) -> 97876.34035 | I30: 0.01553210011 | J30: 11 | K30: 0.1539170173 | L30: 18.20277857 | M30: =IF($A30>0,SUMPRODUCT('Age profile (years)'!$CT30:$GF30,'Asset data'!$CX30:$GJ30)/H30-0.5,0) -> 30.23721406 | N30: 2959507.855 | O30: =IF($A30>0,'Asset data'!G30,0) -> 54.30673467 | P30: 5315344.446 | Q30: 0.4432142856 | R30: 5.430673467 | S30: 10.86134693 | T30: 32.5840408 | U30: 43.44538774 | W30: =IF($A30>0,SUMIF('Age profile (years)'!$CT30:$GF30,"<" & R30+0.5,'Asset data'!$CX30:$GJ30),0) -> 345.8527928 | X30: =IF($A30>0,SUMIF('Age profile (years)'!$CT30:$GF30,"<" & S30+0.5,'Asset data'!$CX30:$GJ30)-W30,0) -> 382.2583499 | Y30: =IF($A30>0,SUMIF('Age profile (years)'!$CT30:$GF30,"<" & T30+0.5,'Asset data'!$CX30:$GJ30)-X30-W30,0) -> 62399.12493 | Z30: =IF($A30>0,SUMIF('Age profile (years)'!$CT30:$GF30,"<" & U30+0.5,'Asset data'!$CX30:$GJ30)-Y30-X30-W30,0) -> 23718.22047 | AA30: 11030.88381 | AB30: 0.003533568905 | AC30: 0.003905523526 | AD30: 0.6375302213 | AE30: 0.2423284359 | AF30: 0.1127022503 | AI30: =IF($A30>0,'RRR hist-forc'!K30,0) -> 54.30673467 | AJ30: 5315344.446
A31: ='Asset data'!A31 -> 1 | B31: ='Asset data'!B31 -> 0 | C31: ='Asset data'!C31 -> 0 | D31: ='Asset data'!E31 -> > 22 kV & < = 66 kV; Concrete | E31: POLES | F31: =IF(A31>0,SUM('Asset data'!J31:CV31),0) -> 470 | G31: =IF(A31>0,'Asset data'!F31,0) -> 17.02420071 | H31: =IF(A31>0,SUM('Asset data'!CX31:GJ31),0) -> 8001.374332 | I31: 0.001269746567 | J31: 34 | K31: 0.01258269023 | L31: 17.02420071 | M31: =IF($A31>0,SUMPRODUCT('Age profile (years)'!$CT31:$GF31,'Asset data'!$CX31:$GJ31)/H31-0.5,0) -> 36.39361702 | N31: 291198.9531 | O31: =IF($A31>0,'Asset data'!G31,0) -> 57.69331394 | P31: 461625.8013 | Q31: 0.3691883073 | R31: 5.769331394 | S31: 11.53866279 | T31: 34.61598836 | U31: 46.15465115 | W31: =IF($A31>0,SUMIF('Age profile (years)'!$CT31:$GF31,"<" & R31+0.5,'Asset data'!$CX31:$GJ31),0) -> 17.02420071 | X31: =IF($A31>0,SUMIF('Age profile (years)'!$CT31:$GF31,"<" & S31+0.5,'Asset data'!$CX31:$GJ31)-W31,0) -> 34.04840141 | Y31: =IF($A31>0,SUMIF('Age profile (years)'!$CT31:$GF31,"<" & T31+0.5,'Asset data'!$CX31:$GJ31)-X31-W31,0) -> 2689.823712 | Z31: =IF($A31>0,SUMIF('Age profile (years)'!$CT31:$GF31,"<" & U31+0.5,'Asset data'!$CX31:$GJ31)-Y31-X31-W31,0) -> 4017.711367 | AA31: 1242.766652 | AB31: 0.002127659574 | AC31: 0.004255319149 | AD31: 0.3361702128 | AE31: 0.5021276596 | AF31: 0.1553191489 | AI31: =IF($A31>0,'RRR hist-forc'!K31,0) -> 57.69331394 | AJ31: 461625.8013
A32: ='Asset data'!A32 -> 0 | B32: ='Asset data'!B32 -> 0 | C32: ='Asset data'!C32 -> 0 | D32: ='Asset data'!E32 -> > 66 kV & < = 132 kV; Concrete | E32: 0 | F32: =IF(A32>0,SUM('Asset data'!J32:CV32),0) -> 0 | G32: =IF(A32>0,'Asset data'!F32,0) -> 0 | H32: =IF(A32>0,SUM('Asset data'!CX32:GJ32),0) -> 0 | I32: 0 | J32: 0 | K32: 0 | L32: 0 | M32: =IF($A32>0,SUMPRODUCT('Age profile (years)'!$CT32:$GF32,'Asset data'!$CX32:$GJ32)/H32-0.5,0) -> 0 | N32: 0 | O32: =IF($A32>0,'Asset data'!G32,0) -> 0 | P32: 0 | Q32: 0 | R32: 0 | S32: 0 | T32: 0 | U32: 0 | W32: =IF($A32>0,SUMIF('Age profile (years)'!$CT32:$GF32,"<" & R32+0.5,'Asset data'!$CX32:$GJ32),0) -> 0 | X32: =IF($A32>0,SUMIF('Age profile (years)'!$CT32:$GF32,"<" & S32+0.5,'Asset data'!$CX32:$GJ32)-W32,0) -> 0 | Y32: =IF($A32>0,SUMIF('Age profile (years)'!$CT32:$GF32,"<" & T32+0.5,'Asset data'!$CX32:$GJ32)-X32-W32,0) -> 0 | Z32: =IF($A32>0,SUMIF('Age profile (years)'!$CT32:$GF32,"<" & U32+0.5,'Asset data'!$CX32:$GJ32)-Y32-X32-W32,0) -> 0 | AA32: 0 | AB32: 0 | AC32: 0 | AD32: 0 | AE32: 0 | AF32: 0 | AI32: =IF($A32>0,'RRR hist-forc'!K32,0) -> 0 | AJ32: 0
A33: ='Asset data'!A33 -> 0 | B33: ='Asset data'!B33 -> 0 | C33: ='Asset data'!C33 -> 0 | D33: ='Asset data'!E33 -> > 132 kV; Concrete | E33: 0 | F33: =IF(A33>0,SUM('Asset data'!J33:CV33),0) -> 0 | G33: =IF(A33>0,'Asset data'!F33,0) -> 0 | H33: =IF(A33>0,SUM('Asset data'!CX33:GJ33),0) -> 0 | I33: 0 | J33: 0 | K33: 0 | L33: 0 | M33: =IF($A33>0,SUMPRODUCT('Age profile (years)'!$CT33:$GF33,'Asset data'!$CX33:$GJ33)/H33-0.5,0) -> 0 | N33: 0 | O33: =IF($A33>0,'Asset data'!G33,0) -> 0 | P33: 0 | Q33: 0 | R33: 0 | S33: 0 | T33: 0 | U33: 0 | W33: =IF($A33>0,SUMIF('Age profile (years)'!$CT33:$GF33,"<" & R33+0.5,'Asset data'!$CX33:$GJ33),0) -> 0 | X33: =IF($A33>0,SUMIF('Age profile (years)'!$CT33:$GF33,"<" & S33+0.5,'Asset data'!$CX33:$GJ33)-W33,0) -> 0 | Y33: =IF($A33>0,SUMIF('Age profile (years)'!$CT33:$GF33,"<" & T33+0.5,'Asset data'!$CX33:$GJ33)-X33-W33,0) -> 0 | Z33: =IF($A33>0,SUMIF('Age profile (years)'!$CT33:$GF33,"<" & U33+0.5,'Asset data'!$CX33:$GJ33)-Y33-X33-W33,0) -> 0 | AA33: 0 | AB33: 0 | AC33: 0 | AD33: 0 | AE33: 0 | AF33: 0 | AI33: =IF($A33>0,'RRR hist-forc'!K33,0) -> 0 | AJ33: 0
A34: ='Asset data'!A34 -> 1 | B34: ='Asset data'!B34 -> 0 | C34: ='Asset data'!C34 -> 0 | D34: ='Asset data'!E34 -> ˂ = 1 kV; Steel | E34: POLES | F34: =IF(A34>0,SUM('Asset data'!J34:CV34),0) -> 763 | G34: =IF(A34>0,'Asset data'!F34,0) -> 9.233864229 | H34: =IF(A34>0,SUM('Asset data'!CX34:GJ34),0) -> 7045.438407 | I34: 0.001118048083 | J34: 37 | K34: 0.01107941778 | L34: 9.233864229 | M34: =IF($A34>0,SUMPRODUCT('Age profile (years)'!$CT34:$GF34,'Asset data'!$CX34:$GJ34)/H34-0.5,0) -> 33.6965924 | N34: 237407.2663 | O34: =IF($A34>0,'Asset data'!G34,0) -> 56.72044646 | P34: 399620.412 | Q34: 0.4059180684 | R34: 5.672044646 | S34: 11.34408929 | T34: 34.03226788 | U34: 45.37635717 | W34: =IF($A34>0,SUMIF('Age profile (years)'!$CT34:$GF34,"<" & R34+0.5,'Asset data'!$CX34:$GJ34),0) -> 120.040235 | X34: =IF($A34>0,SUMIF('Age profile (years)'!$CT34:$GF34,"<" & S34+0.5,'Asset data'!$CX34:$GJ34)-W34,0) -> 277.0159269 | Y34: =IF($A34>0,SUMIF('Age profile (years)'!$CT34:$GF34,"<" & T34+0.5,'Asset data'!$CX34:$GJ34)-X34-W34,0) -> 3001.005875 | Z34: =IF($A34>0,SUMIF('Age profile (years)'!$CT34:$GF34,"<" & U34+0.5,'Asset data'!$CX34:$GJ34)-Y34-X34-W34,0) -> 2797.860861 | AA34: 849.5155091 | AB34: 0.01703800786 | AC34: 0.03931847969 | AD34: 0.4259501966 | AE34: 0.3971166448 | AF34: 0.120576671 | AI34: =IF($A34>0,'RRR hist-forc'!K34,0) -> 56.72044646 | AJ34: 399620.412
A35: ='Asset data'!A35 -> 0 | B35: ='Asset data'!B35 -> 0 | C35: ='Asset data'!C35 -> 0 | D35: ='Asset data'!E35 -> > 1 kV & < = 11 kV; Steel | E35: 0 | F35: =IF(A35>0,SUM('Asset data'!J35:CV35),0) -> 0 | G35: =IF(A35>0,'Asset data'!F35,0) -> 0 | H35: =IF(A35>0,SUM('Asset data'!CX35:GJ35),0) -> 0 | I35: 0 | J35: 0 | K35: 0 | L35: 0 | M35: =IF($A35>0,SUMPRODUCT('Age profile (years)'!$CT35:$GF35,'Asset data'!$CX35:$GJ35)/H35-0.5,0) -> 0 | N35: 0 | O35: =IF($A35>0,'Asset data'!G35,0) -> 0 | P35: 0 | Q35: 0 | R35: 0 | S35: 0 | T35: 0 | U35: 0 | W35: =IF($A35>0,SUMIF('Age profile (years)'!$CT35:$GF35,"<" & R35+0.5,'Asset data'!$CX35:$GJ35),0) -> 0 | X35: =IF($A35>0,SUMIF('Age profile (years)'!$CT35:$GF35,"<" & S35+0.5,'Asset data'!$CX35:$GJ35)-W35,0) -> 0 | Y35: =IF($A35>0,SUMIF('Age profile (years)'!$CT35:$GF35,"<" & T35+0.5,'Asset data'!$CX35:$GJ35)-X35-W35,0) -> 0 | Z35: =IF($A35>0,SUMIF('Age profile (years)'!$CT35:$GF35,"<" & U35+0.5,'Asset data'!$CX35:$GJ35)-Y35-X35-W35,0) -> 0 | AA35: 0 | AB35: 0 | AC35: 0 | AD35: 0 | AE35: 0 | AF35: 0 | AI35: =IF($A35>0,'RRR hist-forc'!K35,0) -> 0 | AJ35: 0
A36: ='Asset data'!A36 -> 1 | B36: ='Asset data'!B36 -> 0 | C36: ='Asset data'!C36 -> 0 | D36: ='Asset data'!E36 -> ˃ 11 kV & < = 22 kV; Steel | E36: POLES | F36: =IF(A36>0,SUM('Asset data'!J36:CV36),0) -> 9 | G36: =IF(A36>0,'Asset data'!F36,0) -> 10.15017952 | H36: =IF(A36>0,SUM('Asset data'!CX36:GJ36),0) -> 91.35161569 | I36: 1.449668465e-05 | J36: 46 | K36: 0.0001436564563 | L36: 10.15017952 | M36: =IF($A36>0,SUMPRODUCT('Age profile (years)'!$CT36:$GF36,'Asset data'!$CX36:$GJ36)/H36-0.5,0) -> 30.94444444 | N36: 2826.824997 | O36: =IF($A36>0,'Asset data'!G36,0) -> 56.72044646 | P36: 5181.504427 | Q36: 0.4544393358 | R36: 5.672044646 | S36: 11.34408929 | T36: 34.03226788 | U36: 45.37635717 | W36: =IF($A36>0,SUMIF('Age profile (years)'!$CT36:$GF36,"<" & R36+0.5,'Asset data'!$CX36:$GJ36),0) -> 20.30035904 | X36: =IF($A36>0,SUMIF('Age profile (years)'!$CT36:$GF36,"<" & S36+0.5,'Asset data'!$CX36:$GJ36)-W36,0) -> 0 | Y36: =IF($A36>0,SUMIF('Age profile (years)'!$CT36:$GF36,"<" & T36+0.5,'Asset data'!$CX36:$GJ36)-X36-W36,0) -> 20.30035904 | Z36: =IF($A36>0,SUMIF('Age profile (years)'!$CT36:$GF36,"<" & U36+0.5,'Asset data'!$CX36:$GJ36)-Y36-X36-W36,0) -> 0 | AA36: 50.75089761 | AB36: 0.2222222222 | AC36: 0 | AD36: 0.2222222222 | AE36: 0 | AF36: 0.5555555556 | AI36: =IF($A36>0,'RRR hist-forc'!K36,0) -> 56.72044646 | AJ36: 5181.504427
A37: ='Asset data'!A37 -> 1 | B37: ='Asset data'!B37 -> 0 | C37: ='Asset data'!C37 -> 0 | D37: ='Asset data'!E37 -> > 22 kV & < = 66 kV; Steel | E37: POLES | F37: =IF(A37>0,SUM('Asset data'!J37:CV37),0) -> 19 | G37: =IF(A37>0,'Asset data'!F37,0) -> 20.83372953 | H37: =IF(A37>0,SUM('Asset data'!CX37:GJ37),0) -> 395.8408611 | I37: 6.28164055e-05 | J37: 41 | K37: 0.0006224859293 | L37: 20.83372953 | M37: =IF($A37>0,SUMPRODUCT('Age profile (years)'!$CT37:$GF37,'Asset data'!$CX37:$GJ37)/H37-0.5,0) -> 29.5 | N37: 11677.3054 | O37: =IF($A37>0,'Asset data'!G37,0) -> 56.72044646 | P37: 22452.27037 | Q37: 0.4799053633 | R37: =IF($A37>0,$O37-R$4*$O37,0) -> 5.672044646 | S37: 11.34408929 | T37: 34.03226788 | U37: 45.37635717 | W37: =IF($A37>0,SUMIF('Age profile (years)'!$CT37:$GF37,"<" & R37+0.5,'Asset data'!$CX37:$GJ37),0) -> 0 | X37: =IF($A37>0,SUMIF('Age profile (years)'!$CT37:$GF37,"<" & S37+0.5,'Asset data'!$CX37:$GJ37)-W37,0) -> 0 | Y37: =IF($A37>0,SUMIF('Age profile (years)'!$CT37:$GF37,"<" & T37+0.5,'Asset data'!$CX37:$GJ37)-X37-W37,0) -> 291.6722135 | Z37: =IF($A37>0,SUMIF('Age profile (years)'!$CT37:$GF37,"<" & U37+0.5,'Asset data'!$CX37:$GJ37)-Y37-X37-W37,0) -> 62.5011886 | AA37: 41.66745907 | AB37: 0 | AC37: 0 | AD37: 0.7368421053 | AE37: 0.1578947368 | AF37: 0.1052631579 | AI37: =IF($A37>0,'RRR hist-forc'!K37,0) -> 56.72044646 | AJ37: 22452.27037
A38: ='Asset data'!A38 -> 0 | B38: ='Asset data'!B38 -> 0 | C38: ='Asset data'!C38 -> 0 | D38: ='Asset data'!E38 -> > 66 kV & < = 132 kV; Steel | E38: 0 | F38: =IF(A38>0,SUM('Asset data'!J38:CV38),0) -> 0 | G38: =IF(A38>0,'Asset data'!F38,0) -> 0 | H38: =IF(A38>0,SUM('Asset data'!CX38:GJ38),0) -> 0 | I38: 0 | J38: 0 | K38: 0 | L38: 0 | M38: =IF($A38>0,SUMPRODUCT('Age profile (years)'!$CT38:$GF38,'Asset data'!$CX38:$GJ38)/H38-0.5,0) -> 0 | N38: 0 | O38: =IF($A38>0,'Asset data'!G38,0) -> 0 | P38: 0 | Q38: 0 | R38: 0 | S38: 0 | T38: 0 | U38: 0 | W38: =IF($A38>0,SUMIF('Age profile (years)'!$CT38:$GF38,"<" & R38+0.5,'Asset data'!$CX38:$GJ38),0) -> 0 | X38: =IF($A38>0,SUMIF('Age profile (years)'!$CT38:$GF38,"<" & S38+0.5,'Asset data'!$CX38:$GJ38)-W38,0) -> 0 | Y38: =IF($A38>0,SUMIF('Age profile (years)'!$CT38:$GF38,"<" & T38+0.5,'Asset data'!$CX38:$GJ38)-X38-W38,0) -> 0 | Z38: =IF($A38>0,SUMIF('Age profile (years)'!$CT38:$GF38,"<" & U38+0.5,'Asset data'!$CX38:$GJ38)-Y38-X38-W38,0) -> 0 | AA38: 0 | AB38: 0 | AC38: 0 | AD38: 0 | AE38: 0 | AF38: 0 | AI38: =IF($A38>0,'RRR hist-forc'!K38,0) -> 0 | AJ38: 0
A39: ='Asset data'!A39 -> 0 | B39: ='Asset data'!B39 -> 0 | C39: ='Asset data'!C39 -> 0 | D39: ='Asset data'!E39 -> > 132 kV; Steel | E39: 0 | F39: =IF(A39>0,SUM('Asset data'!J39:CV39),0) -> 0 | G39: =IF(A39>0,'Asset data'!F39,0) -> 0 | H39: =IF(A39>0,SUM('Asset data'!CX39:GJ39),0) -> 0 | I39: 0 | J39: 0 | K39: 0 | L39: 0 | M39: =IF($A39>0,SUMPRODUCT('Age profile (years)'!$CT39:$GF39,'Asset data'!$CX39:$GJ39)/H39-0.5,0) -> 0 | N39: 0 | O39: =IF($A39>0,'Asset data'!G39,0) -> 0 | P39: 0 | Q39: 0 | R39: 0 | S39: 0 | T39: 0 | U39: 0 | W39: =IF($A39>0,SUMIF('Age profile (years)'!$CT39:$GF39,"<" & R39+0.5,'Asset data'!$CX39:$GJ39),0) -> 0 | X39: =IF($A39>0,SUMIF('Age profile (years)'!$CT39:$GF39,"<" & S39+0.5,'Asset data'!$CX39:$GJ39)-W39,0) -> 0 | Y39: =IF($A39>0,SUMIF('Age profile (years)'!$CT39:$GF39,"<" & T39+0.5,'Asset data'!$CX39:$GJ39)-X39-W39,0) -> 0 | Z39: =IF($A39>0,SUMIF('Age profile (years)'!$CT39:$GF39,"<" & U39+0.5,'Asset data'!$CX39:$GJ39)-Y39-X39-W39,0) -> 0 | AA39: 0 | AB39: 0 | AC39: 0 | AD39: 0 | AE39: 0 | AF39: 0 | AI39: =IF($A39>0,'RRR hist-forc'!K39,0) -> 0 | AJ39: 0
A40: ='Asset data'!A40 -> 0 | B40: ='Asset data'!B40 -> 0 | C40: ='Asset data'!C40 -> 0 | D40: ='Asset data'!E40 -> Other | E40: 0 | F40: =IF(A40>0,SUM('Asset data'!J40:CV40),0) -> 0 | G40: =IF(A40>0,'Asset data'!F40,0) -> 0 | H40: =IF(A40>0,SUM('Asset data'!CX40:GJ40),0) -> 0 | I40: 0 | J40: 0 | K40: 0 | L40: 0 | M40: =IF($A40>0,SUMPRODUCT('Age profile (years)'!$CT40:$GF40,'Asset data'!$CX40:$GJ40)/H40-0.5,0) -> 0 | N40: 0 | O40: =IF($A40>0,'Asset data'!G40,0) -> 0 | P40: 0 | Q40: 0 | R40: 0 | S40: 0 | T40: 0 | U40: 0 | W40: =IF($A40>0,SUMIF('Age profile (years)'!$CT40:$GF40,"<" & R40+0.5,'Asset data'!$CX40:$GJ40),0) -> 0 | X40: =IF($A40>0,SUMIF('Age profile (years)'!$CT40:$GF40,"<" & S40+0.5,'Asset data'!$CX40:$GJ40)-W40,0) -> 0 | Y40: =IF($A40>0,SUMIF('Age profile (years)'!$CT40:$GF40,"<" & T40+0.5,'Asset data'!$CX40:$GJ40)-X40-W40,0) -> 0 | Z40: =IF($A40>0,SUMIF('Age profile (years)'!$CT40:$GF40,"<" & U40+0.5,'Asset data'!$CX40:$GJ40)-Y40-X40-W40,0) -> 0 | AA40: 0 | AB40: 0 | AC40: 0 | AD40: 0 | AE40: 0 | AF40: 0 | AI40: =IF($A40>0,'RRR hist-forc'!K40,0) -> 0 | AJ40: 0
A41: ='Asset data'!A41 -> 2 | B41: ='Asset data'!B41 -> 0 | C41: ='Asset data'!C41 -> 0 | D41: ='Asset data'!E41 -> ˂ = 1 kV | E41: OVERHEAD CONDUCTORS | F41: =IF(A41>0,SUM('Asset data'!J41:CV41),0) -> 2440.55388 | G41: =IF(A41>0,'Asset data'!F41,0) -> 124.700175 | H41: =IF(A41>0,SUM('Asset data'!CX41:GJ41),0) -> 304337.496 | I41: 0.04829563956 | J41: 5 | K41: 0.5287085609 | L41: 124.700175 | M41: =IF($A41>0,SUMPRODUCT('Age profile (years)'!$CT41:$GF41,'Asset data'!$CX41:$GJ41)/H41-0.5,0) -> 30.17145807 | N41: 9182305.998 | O41: =IF($A41>0,'Asset data'!G41,0) -> 59.69332959 | P41: 18166918.45 | Q41: 0.4945589687 | R41: 5.969332959 | S41: 11.93866592 | T41: 35.81599775 | U41: 47.75466367 | W41: =IF($A41>0,SUMIF('Age profile (years)'!$CT41:$GF41,"<" & R41+0.5,'Asset data'!$CX41:$GJ41),0) -> 6267.651076 | X41: =IF($A41>0,SUMIF('Age profile (years)'!$CT41:$GF41,"<" & S41+0.5,'Asset data'!$CX41:$GJ41)-W41,0) -> 23278.06619 | Y41: =IF($A41>0,SUMIF('Age profile (years)'!$CT41:$GF41,"<" & T41+0.5,'Asset data'!$CX41:$GJ41)-X41-W41,0) -> 185453.9511 | Z41: =IF($A41>0,SUMIF('Age profile (years)'!$CT41:$GF41,"<" & U41+0.5,'Asset data'!$CX41:$GJ41)-Y41-X41-W41,0) -> 44826.60702 | AA41: 44511.22054 | AB41: 0.02059440969 | AC41: 0.07648767077 | AD41: 0.6093693797 | AE41: 0.1472924224 | AF41: 0.1462561174 | AI41: =IF($A41>0,'RRR hist-forc'!K41,0) -> 59.69332959 | AJ41: 18166918.45
A42: ='Asset data'!A42 -> 2 | B42: ='Asset data'!B42 -> 0 | C42: ='Asset data'!C42 -> 0 | D42: ='Asset data'!E42 -> > 1 kV & < = 11 kV | E42: OVERHEAD CONDUCTORS | F42: =IF(A42>0,SUM('Asset data'!J42:CV42),0) -> 255.6021331 | G42: =IF(A42>0,'Asset data'!F42,0) -> 95.95970592 | H42: =IF(A42>0,SUM('Asset data'!CX42:GJ42),0) -> 24527.50553 | I42: 0.003892295829 | J42: 26 | K42: 0.04261026762 | L42: 95.95970592 | M42: =IF($A42>0,SUMPRODUCT('Age profile (years)'!$CT42:$GF42,'Asset data'!$CX42:$GJ42)/H42-0.5,0) -> 50.5683432 | N42: 1240315.317 | O42: =IF($A42>0,'Asset data'!G42,0) -> 85.47561938 | P42: 2096503.727 | Q42: 0.4083886894 | R42: 8.547561938 | S42: 17.09512388 | T42: 51.28537163 | U42: 68.3804955 | W42: =IF($A42>0,SUMIF('Age profile (years)'!$CT42:$GF42,"<" & R42+0.5,'Asset data'!$CX42:$GJ42),0) -> 0 | X42: =IF($A42>0,SUMIF('Age profile (years)'!$CT42:$GF42,"<" & S42+0.5,'Asset data'!$CX42:$GJ42)-W42,0) -> 24.54649277 | Y42: =IF($A42>0,SUMIF('Age profile (years)'!$CT42:$GF42,"<" & T42+0.5,'Asset data'!$CX42:$GJ42)-X42-W42,0) -> 13192.22082 | Z42: =IF($A42>0,SUMIF('Age profile (years)'!$CT42:$GF42,"<" & U42+0.5,'Asset data'!$CX42:$GJ42)-Y42-X42-W42,0) -> 9237.785166 | AA42: 2072.953042 | AB42: 0 | AC42: 0.001000774121 | AD42: 0.5378541577 | AE42: 0.3766296233 | AF42: 0.08451544491 | AI42: =IF($A42>0,'RRR hist-forc'!K42,0) -> 85.47561938 | AJ42: 2096503.727
A43: ='Asset data'!A43 -> 0 | B43: ='Asset data'!B43 -> 0 | C43: ='Asset data'!C43 -> 0 | D43: ='Asset data'!E43 -> ˃ 11 kV & < = 22 kV ; SWER | E43: 0 | F43: =IF(A43>0,SUM('Asset data'!J43:CV43),0) -> 0 | G43: =IF(A43>0,'Asset data'!F43,0) -> 0 | H43: =IF(A43>0,SUM('Asset data'!CX43:GJ43),0) -> 0 | I43: 0 | J43: 0 | K43: 0 | L43: 0 | M43: =IF($A43>0,SUMPRODUCT('Age profile (years)'!$CT43:$GF43,'Asset data'!$CX43:$GJ43)/H43-0.5,0) -> 0 | N43: 0 | O43: =IF($A43>0,'Asset data'!G43,0) -> 0 | P43: 0 | Q43: 0 | R43: 0 | S43: 0 | T43: 0 | U43: 0 | W43: =IF($A43>0,SUMIF('Age profile (years)'!$CT43:$GF43,"<" & R43+0.5,'Asset data'!$CX43:$GJ43),0) -> 0 | X43: =IF($A43>0,SUMIF('Age profile (years)'!$CT43:$GF43,"<" & S43+0.5,'Asset data'!$CX43:$GJ43)-W43,0) -> 0 | Y43: =IF($A43>0,SUMIF('Age profile (years)'!$CT43:$GF43,"<" & T43+0.5,'Asset data'!$CX43:$GJ43)-X43-W43,0) -> 0 | Z43: =IF($A43>0,SUMIF('Age profile (years)'!$CT43:$GF43,"<" & U43+0.5,'Asset data'!$CX43:$GJ43)-Y43-X43-W43,0) -> 0 | AA43: 0 | AB43: 0 | AC43: 0 | AD43: 0 | AE43: 0 | AF43: 0 | AI43: =IF($A43>0,'RRR hist-forc'!K43,0) -> 0 | AJ43: 0
A44: ='Asset data'!A44 -> 2 | B44: ='Asset data'!B44 -> 0 | C44: ='Asset data'!C44 -> 0 | D44: ='Asset data'!E44 -> ˃ 11 kV & < = 22 kV ; Single-Phase | E44: OVERHEAD CONDUCTORS | F44: =IF(A44>0,SUM('Asset data'!J44:CV44),0) -> 244.99091 | G44: =IF(A44>0,'Asset data'!F44,0) -> 126.4414744 | H44: =IF(A44>0,SUM('Asset data'!CX44:GJ44),0) -> 30977.01187 | I44: 0.004915774821 | J44: 21 | K44: 0.05381463534 | L44: 126.4414744 | M44: =IF($A44>0,SUMPRODUCT('Age profile (years)'!$CT44:$GF44,'Asset data'!$CX44:$GJ44)/H44-0.5,0) -> 21.94423958 | N44: 679766.97 | O44: =IF($A44>0,'Asset data'!G44,0) -> 49.75285123 | P44: 1541194.663 | Q44: 0.5589350351 | R44: 4.975285123 | S44: 9.950570246 | T44: 29.85171074 | U44: 39.80228099 | W44: =IF($A44>0,SUMIF('Age profile (years)'!$CT44:$GF44,"<" & R44+0.5,'Asset data'!$CX44:$GJ44),0) -> 3229.881713 | X44: =IF($A44>0,SUMIF('Age profile (years)'!$CT44:$GF44,"<" & S44+0.5,'Asset data'!$CX44:$GJ44)-W44,0) -> 3520.04593 | Y44: =IF($A44>0,SUMIF('Age profile (years)'!$CT44:$GF44,"<" & T44+0.5,'Asset data'!$CX44:$GJ44)-X44-W44,0) -> 15549.09606 | Z44: =IF($A44>0,SUMIF('Age profile (years)'!$CT44:$GF44,"<" & U44+0.5,'Asset data'!$CX44:$GJ44)-Y44-X44-W44,0) -> 932.7220883 | AA44: 7745.266079 | AB44: 0.1042670522 | AC44: 0.1136341344 | AD44: 0.5019559705 | AE44: 0.03011013756 | AF44: 0.2500327053 | AI44: =IF($A44>0,'RRR hist-forc'!K44,0) -> 49.75285123 | AJ44: 1541194.663
A45: ='Asset data'!A45 -> 2 | B45: ='Asset data'!B45 -> 0 | C45: ='Asset data'!C45 -> 0 | D45: ='Asset data'!E45 -> ˃ 11 kV & < = 22 kV ; Multiple-Phase | E45: OVERHEAD CONDUCTORS | F45: =IF(A45>0,SUM('Asset data'!J45:CV45),0) -> 1204.769182 | G45: =IF(A45>0,'Asset data'!F45,0) -> 131.3473843 | H45: =IF(A45>0,SUM('Asset data'!CX45:GJ45),0) -> 158243.2808 | I45: 0.02511179382 | J45: 7 | K45: 0.2749072275 | L45: 131.3473843 | M45: =IF($A45>0,SUMPRODUCT('Age profile (years)'!$CT45:$GF45,'Asset data'!$CX45:$GJ45)/H45-0.5,0) -> 24.69083957 | N45: 3907159.457 | O45: =IF($A45>0,'Asset data'!G45,0) -> 55.5395849 | P45: 8788766.127 | Q45: 0.5554370886 | R45: 5.55395849 | S45: 11.10791698 | T45: 33.32375094 | U45: 44.43166792 | W45: =IF($A45>0,SUMIF('Age profile (years)'!$CT45:$GF45,"<" & R45+0.5,'Asset data'!$CX45:$GJ45),0) -> 9281.950167 | X45: =IF($A45>0,SUMIF('Age profile (years)'!$CT45:$GF45,"<" & S45+0.5,'Asset data'!$CX45:$GJ45)-W45,0) -> 14242.31014 | Y45: =IF($A45>0,SUMIF('Age profile (years)'!$CT45:$GF45,"<" & T45+0.5,'Asset data'!$CX45:$GJ45)-X45-W45,0) -> 105573.9989 | Z45: =IF($A45>0,SUMIF('Age profile (years)'!$CT45:$GF45,"<" & U45+0.5,'Asset data'!$CX45:$GJ45)-Y45-X45-W45,0) -> 12798.16233 | AA45: 16346.85924 | AB45: 0.05865620406 | AC45: 0.09000262174 | AD45: 0.6671626016 | AE45: 0.0808764977 | AF45: 0.1033020749 | AI45: =IF($A45>0,'RRR hist-forc'!K45,0) -> 55.5395849 | AJ45: 8788766.127
A46: ='Asset data'!A46 -> 2 | B46: ='Asset data'!B46 -> 0 | C46: ='Asset data'!C46 -> 0 | D46: ='Asset data'!E46 -> > 22 kV & < = 66 kV | E46: OVERHEAD CONDUCTORS | F46: =IF(A46>0,SUM('Asset data'!J46:CV46),0) -> 288.6236741 | G46: =IF(A46>0,'Asset data'!F46,0) -> 199.3565058 | H46: =IF(A46>0,SUM('Asset data'!CX46:GJ46),0) -> 57539.00716 | I46: 0.009130925986 | J46: 17 | K46: 0.09995930858 | L46: 199.3565058 | M46: =IF($A46>0,SUMPRODUCT('Age profile (years)'!$CT46:$GF46,'Asset data'!$CX46:$GJ46)/H46-0.5,0) -> 26.63683496 | N46: 1532657.037 | O46: =IF($A46>0,'Asset data'!G46,0) -> 59.24447169 | P46: 3408868.081 | Q46: 0.5503912146 | R46: 5.924447169 | S46: 11.84889434 | T46: 35.54668302 | U46: 47.39557735 | W46: =IF($A46>0,SUMIF('Age profile (years)'!$CT46:$GF46,"<" & R46+0.5,'Asset data'!$CX46:$GJ46),0) -> 0 | X46: =IF($A46>0,SUMIF('Age profile (years)'!$CT46:$GF46,"<" & S46+0.5,'Asset data'!$CX46:$GJ46)-W46,0) -> 15726.50809 | Y46: =IF($A46>0,SUMIF('Age profile (years)'!$CT46:$GF46,"<" & T46+0.5,'Asset data'!$CX46:$GJ46)-X46-W46,0) -> 24411.73778 | Z46: =IF($A46>0,SUMIF('Age profile (years)'!$CT46:$GF46,"<" & U46+0.5,'Asset data'!$CX46:$GJ46)-Y46-X46-W46,0) -> 8646.560004 | AA46: 8754.201293 | AB46: 0 | AC46: 0.2733190728 | AD46: 0.4242641467 | AE46: 0.1502730136 | AF46: 0.1521437669 | AI46: =IF($A46>0,'RRR hist-forc'!K46,0) -> 59.24447169 | AJ46: 3408868.081
A47: ='Asset data'!A47 -> 0 | B47: ='Asset data'!B47 -> 0 | C47: ='Asset data'!C47 -> 0 | D47: ='Asset data'!E47 -> > 66 kV & < = 132 kV | E47: 0 | F47: =IF(A47>0,SUM('Asset data'!J47:CV47),0) -> 0 | G47: =IF(A47>0,'Asset data'!F47,0) -> 0 | H47: =IF(A47>0,SUM('Asset data'!CX47:GJ47),0) -> 0 | I47: 0 | J47: 0 | K47: 0 | L47: 0 | M47: =IF($A47>0,SUMPRODUCT('Age profile (years)'!$CT47:$GF47,'Asset data'!$CX47:$GJ47)/H47-0.5,0) -> 0 | N47: 0 | O47: =IF($A47>0,'Asset data'!G47,0) -> 0 | P47: 0 | Q47: 0 | R47: 0 | S47: 0 | T47: 0 | U47: 0 | W47: =IF($A47>0,SUMIF('Age profile (years)'!$CT47:$GF47,"<" & R47+0.5,'Asset data'!$CX47:$GJ47),0) -> 0 | X47: =IF($A47>0,SUMIF('Age profile (years)'!$CT47:$GF47,"<" & S47+0.5,'Asset data'!$CX47:$GJ47)-W47,0) -> 0 | Y47: =IF($A47>0,SUMIF('Age profile (years)'!$CT47:$GF47,"<" & T47+0.5,'Asset data'!$CX47:$GJ47)-X47-W47,0) -> 0 | Z47: =IF($A47>0,SUMIF('Age profile (years)'!$CT47:$GF47,"<" & U47+0.5,'Asset data'!$CX47:$GJ47)-Y47-X47-W47,0) -> 0 | AA47: 0 | AB47: 0 | AC47: 0 | AD47: 0 | AE47: 0 | AF47: 0 | AI47: =IF($A47>0,'RRR hist-forc'!K47,0) -> 0 | AJ47: 0
A48: ='Asset data'!A48 -> 0 | B48: ='Asset data'!B48 -> 0 | C48: ='Asset data'!C48 -> 0 | D48: ='Asset data'!E48 -> > 132 kV | E48: 0 | F48: =IF(A48>0,SUM('Asset data'!J48:CV48),0) -> 0 | G48: =IF(A48>0,'Asset data'!F48,0) -> 0 | H48: =IF(A48>0,SUM('Asset data'!CX48:GJ48),0) -> 0 | I48: 0 | J48: 0 | K48: 0 | L48: 0 | M48: =IF($A48>0,SUMPRODUCT('Age profile (years)'!$CT48:$GF48,'Asset data'!$CX48:$GJ48)/H48-0.5,0) -> 0 | N48: 0 | O48: =IF($A48>0,'Asset data'!G48,0) -> 0 | P48: 0 | Q48: 0 | R48: 0 | S48: 0 | T48: 0 | U48: 0 | W48: =IF($A48>0,SUMIF('Age profile (years)'!$CT48:$GF48,"<" & R48+0.5,'Asset data'!$CX48:$GJ48),0) -> 0 | X48: =IF($A48>0,SUMIF('Age profile (years)'!$CT48:$GF48,"<" & S48+0.5,'Asset data'!$CX48:$GJ48)-W48,0) -> 0 | Y48: =IF($A48>0,SUMIF('Age profile (years)'!$CT48:$GF48,"<" & T48+0.5,'Asset data'!$CX48:$GJ48)-X48-W48,0) -> 0 | Z48: =IF($A48>0,SUMIF('Age profile (years)'!$CT48:$GF48,"<" & U48+0.5,'Asset data'!$CX48:$GJ48)-Y48-X48-W48,0) -> 0 | AA48: 0 | AB48: 0 | AC48: 0 | AD48: 0 | AE48: 0 | AF48: 0 | AI48: =IF($A48>0,'RRR hist-forc'!K48,0) -> 0 | AJ48: 0
A49: ='Asset data'!A49 -> 0 | B49: ='Asset data'!B49 -> 0 | C49: ='Asset data'!C49 -> 0 | D49: ='Asset data'!E49 -> Other | E49: 0 | F49: =IF(A49>0,SUM('Asset data'!J49:CV49),0) -> 0 | G49: =IF(A49>0,'Asset data'!F49,0) -> 0 | H49: =IF(A49>0,SUM('Asset data'!CX49:GJ49),0) -> 0 | I49: 0 | J49: 0 | K49: 0 | L49: 0 | M49: =IF($A49>0,SUMPRODUCT('Age profile (years)'!$CT49:$GF49,'Asset data'!$CX49:$GJ49)/H49-0.5,0) -> 0 | N49: 0 | O49: =IF($A49>0,'Asset data'!G49,0) -> 0 | P49: 0 | Q49: 0 | R49: 0 | S49: 0 | T49: 0 | U49: 0 | W49: =IF($A49>0,SUMIF('Age profile (years)'!$CT49:$GF49,"<" & R49+0.5,'Asset data'!$CX49:$GJ49),0) -> 0 | X49: =IF($A49>0,SUMIF('Age profile (years)'!$CT49:$GF49,"<" & S49+0.5,'Asset data'!$CX49:$GJ49)-W49,0) -> 0 | Y49: =IF($A49>0,SUMIF('Age profile (years)'!$CT49:$GF49,"<" & T49+0.5,'Asset data'!$CX49:$GJ49)-X49-W49,0) -> 0 | Z49: =IF($A49>0,SUMIF('Age profile (years)'!$CT49:$GF49,"<" & U49+0.5,'Asset data'!$CX49:$GJ49)-Y49-X49-W49,0) -> 0 | AA49: 0 | AB49: 0 | AC49: 0 | AD49: 0 | AE49: 0 | AF49: 0 | AI49: =IF($A49>0,'RRR hist-forc'!K49,0) -> 0 | AJ49: 0
A50: ='Asset data'!A50 -> 3 | B50: ='Asset data'!B50 -> 0 | C50: ='Asset data'!C50 -> 0 | D50: ='Asset data'!E50 -> ˂ = 1 kV | E50: UNDERGROUND CABLES | F50: =IF(A50>0,SUM('Asset data'!J50:CV50),0) -> 1059.890745 | G50: =IF(A50>0,'Asset data'!F50,0) -> 1198.119997 | H50: =IF(A50>0,SUM('Asset data'!CX50:GJ50),0) -> 1269876.295 | I50: 0.2015180142 | J50: 2 | K50: 0.6678674383 | L50: 1198.119997 | M50: =IF($A50>0,SUMPRODUCT('Age profile (years)'!$CT50:$GF50,'Asset data'!$CX50:$GJ50)/H50-0.5,0) -> 58.52525557 | N50: 74319834.73 | O50: =IF($A50>0,'Asset data'!G50,0) -> 74.45495254 | P50: 94548579.3 | Q50: 0.2139508041 | R50: 7.445495254 | S50: 14.89099051 | T50: 44.67297152 | U50: 59.56396203 | W50: =IF($A50>0,SUMIF('Age profile (years)'!$CT50:$GF50,"<" & R50+0.5,'Asset data'!$CX50:$GJ50),0) -> 1098.849399 | X50: =IF($A50>0,SUMIF('Age profile (years)'!$CT50:$GF50,"<" & S50+0.5,'Asset data'!$CX50:$GJ50)-W50,0) -> 1655.464399 | Y50: =IF($A50>0,SUMIF('Age profile (years)'!$CT50:$GF50,"<" & T50+0.5,'Asset data'!$CX50:$GJ50)-X50-W50,0) -> 97039.01143 | Z50: =IF($A50>0,SUMIF('Age profile (years)'!$CT50:$GF50,"<" & U50+0.5,'Asset data'!$CX50:$GJ50)-Y50-X50-W50,0) -> 578947.0969 | AA50: 591135.8732 | AB50: 0.0008653200337 | AC50: 0.001303642257 | AD50: 0.07641611375 | AE50: 0.4559082637 | AF50: 0.4655066603 | AI50: =IF($A50>0,'RRR hist-forc'!K50,0) -> 74.45495254 | AJ50: 94548579.3
A51: ='Asset data'!A51 -> 3 | B51: ='Asset data'!B51 -> 0 | C51: ='Asset data'!C51 -> 0 | D51: ='Asset data'!E51 -> > 1 kV & < = 11 kV | E51: UNDERGROUND CABLES | F51: =IF(A51>0,SUM('Asset data'!J51:CV51),0) -> 73.41277669 | G51: =IF(A51>0,'Asset data'!F51,0) -> 772.0344805 | H51: =IF(A51>0,SUM('Asset data'!CX51:GJ51),0) -> 56677.19491 | I51: 0.008994164088 | J51: 18 | K51: 0.02980829953 | L51: 772.0344805 | M51: =IF($A51>0,SUMPRODUCT('Age profile (years)'!$CT51:$GF51,'Asset data'!$CX51:$GJ51)/H51-0.5,0) -> 47.54571203 | N51: 2694757.588 | O51: =IF($A51>0,'Asset data'!G51,0) -> 70.00173484 | P51: 3967501.97 | Q51: 0.3207923755 | R51: 7.000173484 | S51: 14.00034697 | T51: 42.00104091 | U51: 56.00138788 | W51: =IF($A51>0,SUMIF('Age profile (years)'!$CT51:$GF51,"<" & R51+0.5,'Asset data'!$CX51:$GJ51),0) -> 2369.833016 | X51: =IF($A51>0,SUMIF('Age profile (years)'!$CT51:$GF51,"<" & S51+0.5,'Asset data'!$CX51:$GJ51)-W51,0) -> 1651.46115 | Y51: =IF($A51>0,SUMIF('Age profile (years)'!$CT51:$GF51,"<" & T51+0.5,'Asset data'!$CX51:$GJ51)-X51-W51,0) -> 14442.08062 | Z51: =IF($A51>0,SUMIF('Age profile (years)'!$CT51:$GF51,"<" & U51+0.5,'Asset data'!$CX51:$GJ51)-Y51-X51-W51,0) -> 9876.518491 | AA51: 28337.30163 | AB51: 0.04181281412 | AC51: 0.02913801844 | AD51: 0.2548129039 | AE51: 0.1742591267 | AF51: 0.4999771368 | AI51: =IF($A51>0,'RRR hist-forc'!K51,0) -> 70.00173484 | AJ51: 3967501.97
A52: ='Asset data'!A52 -> 3 | B52: ='Asset data'!B52 -> 0 | C52: ='Asset data'!C52 -> 0 | D52: ='Asset data'!E52 -> > 11 kV & < = 22 kV | E52: UNDERGROUND CABLES | F52: =IF(A52>0,SUM('Asset data'!J52:CV52),0) -> 583.1277077 | G52: =IF(A52>0,'Asset data'!F52,0) -> 903.8762773 | H52: =IF(A52>0,SUM('Asset data'!CX52:GJ52),0) -> 527075.3016 | I52: 0.08364213785 | J52: 3 | K52: 0.2772052937 | L52: 903.8762773 | M52: =IF($A52>0,SUMPRODUCT('Age profile (years)'!$CT52:$GF52,'Asset data'!$CX52:$GJ52)/H52-0.5,0) -> 60.97862556 | N52: 32140327.46 | O52: =IF($A52>0,'Asset data'!G52,0) -> 77.28432079 | P52: 40734656.69 | Q52: 0.2109832248 | R52: 7.728432079 | S52: 15.45686416 | T52: 46.37059247 | U52: 61.82745663 | W52: =IF($A52>0,SUMIF('Age profile (years)'!$CT52:$GF52,"<" & R52+0.5,'Asset data'!$CX52:$GJ52),0) -> 7046.510992 | X52: =IF($A52>0,SUMIF('Age profile (years)'!$CT52:$GF52,"<" & S52+0.5,'Asset data'!$CX52:$GJ52)-W52,0) -> 587.0568706 | Y52: =IF($A52>0,SUMIF('Age profile (years)'!$CT52:$GF52,"<" & T52+0.5,'Asset data'!$CX52:$GJ52)-X52-W52,0) -> 47510.91729 | Z52: =IF($A52>0,SUMIF('Age profile (years)'!$CT52:$GF52,"<" & U52+0.5,'Asset data'!$CX52:$GJ52)-Y52-X52-W52,0) -> 184155.4154 | AA52: 287775.4011 | AB52: 0.01336907833 | AC52: 0.001113800758 | AD52: 0.09014066329 | AE52: 0.3493910923 | AF52: 0.5459853653 | AI52: =IF($A52>0,'RRR hist-forc'!K52,0) -> 77.28432079 | AJ52: 40734656.69
A53: ='Asset data'!A53 -> 0 | B53: ='Asset data'!B53 -> 0 | C53: ='Asset data'!C53 -> 0 | D53: ='Asset data'!E53 -> > 22 kV & < = 33 kV | E53: 0 | F53: =IF(A53>0,SUM('Asset data'!J53:CV53),0) -> 0 | G53: =IF(A53>0,'Asset data'!F53,0) -> 0 | H53: =IF(A53>0,SUM('Asset data'!CX53:GJ53),0) -> 0 | I53: 0 | J53: 0 | K53: 0 | L53: 0 | M53: =IF($A53>0,SUMPRODUCT('Age profile (years)'!$CT53:$GF53,'Asset data'!$CX53:$GJ53)/H53-0.5,0) -> 0 | N53: 0 | O53: =IF($A53>0,'Asset data'!G53,0) -> 0 | P53: 0 | Q53: 0 | R53: 0 | S53: 0 | T53: 0 | U53: 0 | W53: =IF($A53>0,SUMIF('Age profile (years)'!$CT53:$GF53,"<" & R53+0.5,'Asset data'!$CX53:$GJ53),0) -> 0 | X53: =IF($A53>0,SUMIF('Age profile (years)'!$CT53:$GF53,"<" & S53+0.5,'Asset data'!$CX53:$GJ53)-W53,0) -> 0 | Y53: =IF($A53>0,SUMIF('Age profile (years)'!$CT53:$GF53,"<" & T53+0.5,'Asset data'!$CX53:$GJ53)-X53-W53,0) -> 0 | Z53: =IF($A53>0,SUMIF('Age profile (years)'!$CT53:$GF53,"<" & U53+0.5,'Asset data'!$CX53:$GJ53)-Y53-X53-W53,0) -> 0 | AA53: 0 | AB53: 0 | AC53: 0 | AD53: 0 | AE53: 0 | AF53: 0 | AI53: =IF($A53>0,'RRR hist-forc'!K53,0) -> 0 | AJ53: 0
A54: ='Asset data'!A54 -> 3 | B54: ='Asset data'!B54 -> 0 | C54: ='Asset data'!C54 -> 0 | D54: ='Asset data'!E54 -> > 33 kV & < = 66 kV | E54: UNDERGROUND CABLES | F54: =IF(A54>0,SUM('Asset data'!J54:CV54),0) -> 12.31342601 | G54: =IF(A54>0,'Asset data'!F54,0) -> 156.9692204 | H54: =IF(A54>0,SUM('Asset data'!CX54:GJ54),0) -> 1932.828882 | I54: 0.0003067226623 | J54: 40 | K54: 0.001016534822 | L54: 156.9692204 | M54: =IF($A54>0,SUMPRODUCT('Age profile (years)'!$CT54:$GF54,'Asset data'!$CX54:$GJ54)/H54-0.5,0) -> 48.41250508 | N54: 93573.08805 | O54: =IF($A54>0,'Asset data'!G54,0) -> 75.37516785 | P54: 145687.3014 | Q54: 0.3577128056 | R54: 7.537516785 | S54: 15.07503357 | T54: 45.22510071 | U54: 60.30013428 | W54: =IF($A54>0,SUMIF('Age profile (years)'!$CT54:$GF54,"<" & R54+0.5,'Asset data'!$CX54:$GJ54),0) -> 0 | X54: =IF($A54>0,SUMIF('Age profile (years)'!$CT54:$GF54,"<" & S54+0.5,'Asset data'!$CX54:$GJ54)-W54,0) -> 0 | Y54: =IF($A54>0,SUMIF('Age profile (years)'!$CT54:$GF54,"<" & T54+0.5,'Asset data'!$CX54:$GJ54)-X54-W54,0) -> 950.0697079 | Z54: =IF($A54>0,SUMIF('Age profile (years)'!$CT54:$GF54,"<" & U54+0.5,'Asset data'!$CX54:$GJ54)-Y54-X54-W54,0) -> 114.9485601 | AA54: 867.8106135 | AB54: 0 | AC54: 0 | AD54: 0.4915436214 | AE54: 0.05947166931 | AF54: 0.4489847093 | AI54: =IF($A54>0,'RRR hist-forc'!K54,0) -> 75.37516785 | AJ54: 145687.3014
A55: ='Asset data'!A55 -> 0 | B55: ='Asset data'!B55 -> 0 | C55: ='Asset data'!C55 -> 0 | D55: ='Asset data'!E55 -> > 66 kV & < = 132 kV | E55: 0 | F55: =IF(A55>0,SUM('Asset data'!J55:CV55),0) -> 0 | G55: =IF(A55>0,'Asset data'!F55,0) -> 0 | H55: =IF(A55>0,SUM('Asset data'!CX55:GJ55),0) -> 0 | I55: 0 | J55: 0 | K55: 0 | L55: 0 | M55: =IF($A55>0,SUMPRODUCT('Age profile (years)'!$CT55:$GF55,'Asset data'!$CX55:$GJ55)/H55-0.5,0) -> 0 | N55: 0 | O55: =IF($A55>0,'Asset data'!G55,0) -> 0 | P55: 0 | Q55: 0 | R55: 0 | S55: 0 | T55: 0 | U55: 0 | W55: =IF($A55>0,SUMIF('Age profile (years)'!$CT55:$GF55,"<" & R55+0.5,'Asset data'!$CX55:$GJ55),0) -> 0 | X55: =IF($A55>0,SUMIF('Age profile (years)'!$CT55:$GF55,"<" & S55+0.5,'Asset data'!$CX55:$GJ55)-W55,0) -> 0 | Y55: =IF($A55>0,SUMIF('Age profile (years)'!$CT55:$GF55,"<" & T55+0.5,'Asset data'!$CX55:$GJ55)-X55-W55,0) -> 0 | Z55: =IF($A55>0,SUMIF('Age profile (years)'!$CT55:$GF55,"<" & U55+0.5,'Asset data'!$CX55:$GJ55)-Y55-X55-W55,0) -> 0 | AA55: 0 | AB55: 0 | AC55: 0 | AD55: 0 | AE55: 0 | AF55: 0 | AI55: =IF($A55>0,'RRR hist-forc'!K55,0) -> 0 | AJ55: 0
A56: ='Asset data'!A56 -> 0 | B56: ='Asset data'!B56 -> 0 | C56: ='Asset data'!C56 -> 0 | D56: ='Asset data'!E56 -> > 132 kV | E56: 0 | F56: =IF(A56>0,SUM('Asset data'!J56:CV56),0) -> 0 | G56: =IF(A56>0,'Asset data'!F56,0) -> 0 | H56: =IF(A56>0,SUM('Asset data'!CX56:GJ56),0) -> 0 | I56: 0 | J56: 0 | K56: 0 | L56: 0 | M56: =IF($A56>0,SUMPRODUCT('Age profile (years)'!$CT56:$GF56,'Asset data'!$CX56:$GJ56)/H56-0.5,0) -> 0 | N56: 0 | O56: =IF($A56>0,'Asset data'!G56,0) -> 0 | P56: 0 | Q56: 0 | R56: 0 | S56: 0 | T56: 0 | U56: 0 | W56: =IF($A56>0,SUMIF('Age profile (years)'!$CT56:$GF56,"<" & R56+0.5,'Asset data'!$CX56:$GJ56),0) -> 0 | X56: =IF($A56>0,SUMIF('Age profile (years)'!$CT56:$GF56,"<" & S56+0.5,'Asset data'!$CX56:$GJ56)-W56,0) -> 0 | Y56: =IF($A56>0,SUMIF('Age profile (years)'!$CT56:$GF56,"<" & T56+0.5,'Asset data'!$CX56:$GJ56)-X56-W56,0) -> 0 | Z56: =IF($A56>0,SUMIF('Age profile (years)'!$CT56:$GF56,"<" & U56+0.5,'Asset data'!$CX56:$GJ56)-Y56-X56-W56,0) -> 0 | AA56: 0 | AB56: 0 | AC56: 0 | AD56: 0 | AE56: 0 | AF56: 0 | AI56: =IF($A56>0,'RRR hist-forc'!K56,0) -> 0 | AJ56: 0
A57: ='Asset data'!A57 -> 0 | B57: ='Asset data'!B57 -> 0 | C57: ='Asset data'!C57 -> 0 | D57: ='Asset data'!E57 -> Other | E57: 0 | F57: =IF(A57>0,SUM('Asset data'!J57:CV57),0) -> 0 | G57: =IF(A57>0,'Asset data'!F57,0) -> 0 | H57: =IF(A57>0,SUM('Asset data'!CX57:GJ57),0) -> 0 | I57: 0 | J57: 0 | K57: 0 | L57: 0 | M57: =IF($A57>0,SUMPRODUCT('Age profile (years)'!$CT57:$GF57,'Asset data'!$CX57:$GJ57)/H57-0.5,0) -> 0 | N57: 0 | O57: =IF($A57>0,'Asset data'!G57,0) -> 0 | P57: 0 | Q57: 0 | R57: 0 | S57: 0 | T57: 0 | U57: 0 | W57: =IF($A57>0,SUMIF('Age profile (years)'!$CT57:$GF57,"<" & R57+0.5,'Asset data'!$CX57:$GJ57),0) -> 0 | X57: =IF($A57>0,SUMIF('Age profile (years)'!$CT57:$GF57,"<" & S57+0.5,'Asset data'!$CX57:$GJ57)-W57,0) -> 0 | Y57: =IF($A57>0,SUMIF('Age profile (years)'!$CT57:$GF57,"<" & T57+0.5,'Asset data'!$CX57:$GJ57)-X57-W57,0) -> 0 | Z57: =IF($A57>0,SUMIF('Age profile (years)'!$CT57:$GF57,"<" & U57+0.5,'Asset data'!$CX57:$GJ57)-Y57-X57-W57,0) -> 0 | AA57: 0 | AB57: 0 | AC57: 0 | AD57: 0 | AE57: 0 | AF57: 0 | AI57: =IF($A57>0,'RRR hist-forc'!K57,0) -> 0 | AJ57: 0
A58: ='Asset data'!A58 -> 4 | B58: ='Asset data'!B58 -> 0 | C58: ='Asset data'!C58 -> 0 | D58: ='Asset data'!E58 -> ˂ = 11 kV ; Residential ; Simple Type | E58: SERVICE LINES | F58: =IF(A58>0,SUM('Asset data'!J58:CV58),0) -> 3157355.268 | G58: =IF(A58>0,'Asset data'!F58,0) -> 0.6887728476 | H58: =IF(A58>0,SUM('Asset data'!CX58:GJ58),0) -> 2174700.579 | I58: 0.3451055381 | J58: 1 | K58: 0.959181341 | L58: 0.6887728476 | M58: =IF($A58>0,SUMPRODUCT('Age profile (years)'!$CT58:$GF58,'Asset data'!$CX58:$GJ58)/H58-0.5,0) -> 35.32897464 | N58: 76829941.6 | O58: =IF($A58>0,'Asset data'!G58,0) -> 64.0056407 | P58: 139193103.9 | Q58: 0.4480334193 | R58: 6.40056407 | S58: 12.80112814 | T58: 38.40338442 | U58: 51.20451256 | W58: =IF($A58>0,SUMIF('Age profile (years)'!$CT58:$GF58,"<" & R58+0.5,'Asset data'!$CX58:$GJ58),0) -> 2541.897835 | X58: =IF($A58>0,SUMIF('Age profile (years)'!$CT58:$GF58,"<" & S58+0.5,'Asset data'!$CX58:$GJ58)-W58,0) -> 155054.6806 | Y58: =IF($A58>0,SUMIF('Age profile (years)'!$CT58:$GF58,"<" & T58+0.5,'Asset data'!$CX58:$GJ58)-X58-W58,0) -> 1136061.267 | Z58: =IF($A58>0,SUMIF('Age profile (years)'!$CT58:$GF58,"<" & U58+0.5,'Asset data'!$CX58:$GJ58)-Y58-X58-W58,0) -> 187882.0672 | AA58: 693160.6658 | AB58: 0.001168849569 | AC58: 0.07129932374 | AD58: 0.5223989355 | AE58: 0.08639445311 | AF58: 0.3187384381 | AI58: =IF($A58>0,'RRR hist-forc'!K58,0) -> 64.0056407 | AJ58: 139193103.9
A59: ='Asset data'!A59 -> 4 | B59: ='Asset data'!B59 -> 0 | C59: ='Asset data'!C59 -> 0 | D59: ='Asset data'!E59 -> ˂ = 11 kV ; Commercial & Industrial ; Simple Type | E59: SERVICE LINES | F59: =IF(A59>0,SUM('Asset data'!J59:CV59),0) -> 121700.0008 | G59: =IF(A59>0,'Asset data'!F59,0) -> 0.7213299623 | H59: =IF(A59>0,SUM('Asset data'!CX59:GJ59),0) -> 87785.85701 | I59: 0.01393083062 | J59: 13 | K59: 0.03871914914 | L59: 0.7213299623 | M59: =IF($A59>0,SUMPRODUCT('Age profile (years)'!$CT59:$GF59,'Asset data'!$CX59:$GJ59)/H59-0.5,0) -> 37.47396926 | N59: 3289684.507 | O59: =IF($A59>0,'Asset data'!G59,0) -> 60.89680849 | P59: 5345878.522 | Q59: 0.3846316386 | R59: 6.089680849 | S59: 12.1793617 | T59: 36.5380851 | U59: 48.71744679 | W59: =IF($A59>0,SUMIF('Age profile (years)'!$CT59:$GF59,"<" & R59+0.5,'Asset data'!$CX59:$GJ59),0) -> 130.9814057 | X59: =IF($A59>0,SUMIF('Age profile (years)'!$CT59:$GF59,"<" & S59+0.5,'Asset data'!$CX59:$GJ59)-W59,0) -> 6782.710738 | Y59: =IF($A59>0,SUMIF('Age profile (years)'!$CT59:$GF59,"<" & T59+0.5,'Asset data'!$CX59:$GJ59)-X59-W59,0) -> 33531.98326 | Z59: =IF($A59>0,SUMIF('Age profile (years)'!$CT59:$GF59,"<" & U59+0.5,'Asset data'!$CX59:$GJ59)-Y59-X59-W59,0) -> 15487.78562 | AA59: 31852.39599 | AB59: 0.001492055898 | AC59: 0.07726427661 | AD59: 0.3819747782 | AE59: 0.1764268886 | AF59: 0.3628420007 | AI59: =IF($A59>0,'RRR hist-forc'!K59,0) -> 60.89680849 | AJ59: 5345878.522
A60: ='Asset data'!A60 -> 0 | B60: ='Asset data'!B60 -> 0 | C60: ='Asset data'!C60 -> 0 | D60: ='Asset data'!E60 -> ˂ = 11 kV ; Residential ; Complex Type | E60: 0 | F60: =IF(A60>0,SUM('Asset data'!J60:CV60),0) -> 0 | G60: =IF(A60>0,'Asset data'!F60,0) -> 0 | H60: =IF(A60>0,SUM('Asset data'!CX60:GJ60),0) -> 0 | I60: 0 | J60: 0 | K60: 0 | L60: 0 | M60: =IF($A60>0,SUMPRODUCT('Age profile (years)'!$CT60:$GF60,'Asset data'!$CX60:$GJ60)/H60-0.5,0) -> 0 | N60: 0 | O60: =IF($A60>0,'Asset data'!G60,0) -> 0 | P60: 0 | Q60: 0 | R60: 0 | S60: 0 | T60: 0 | U60: 0 | W60: =IF($A60>0,SUMIF('Age profile (years)'!$CT60:$GF60,"<" & R60+0.5,'Asset data'!$CX60:$GJ60),0) -> 0 | X60: =IF($A60>0,SUMIF('Age profile (years)'!$CT60:$GF60,"<" & S60+0.5,'Asset data'!$CX60:$GJ60)-W60,0) -> 0 | Y60: =IF($A60>0,SUMIF('Age profile (years)'!$CT60:$GF60,"<" & T60+0.5,'Asset data'!$CX60:$GJ60)-X60-W60,0) -> 0 | Z60: =IF($A60>0,SUMIF('Age profile (years)'!$CT60:$GF60,"<" & U60+0.5,'Asset data'!$CX60:$GJ60)-Y60-X60-W60,0) -> 0 | AA60: 0 | AB60: 0 | AC60: 0 | AD60: 0 | AE60: 0 | AF60: 0 | AI60: =IF($A60>0,'RRR hist-forc'!K60,0) -> 0 | AJ60: 0
A61: ='Asset data'!A61 -> 0 | B61: ='Asset data'!B61 -> 0 | C61: ='Asset data'!C61 -> 0 | D61: ='Asset data'!E61 -> ˂ = 11 kV ; Commercial & Industrial ; Complex Type | E61: 0 | F61: =IF(A61>0,SUM('Asset data'!J61:CV61),0) -> 0 | G61: =IF(A61>0,'Asset data'!F61,0) -> 0 | H61: =IF(A61>0,SUM('Asset data'!CX61:GJ61),0) -> 0 | I61: 0 | J61: 0 | K61: 0 | L61: 0 | M61: =IF($A61>0,SUMPRODUCT('Age profile (years)'!$CT61:$GF61,'Asset data'!$CX61:$GJ61)/H61-0.5,0) -> 0 | N61: 0 | O61: =IF($A61>0,'Asset data'!G61,0) -> 0 | P61: 0 | Q61: 0 | R61: 0 | S61: 0 | T61: 0 | U61: 0 | W61: =IF($A61>0,SUMIF('Age profile (years)'!$CT61:$GF61,"<" & R61+0.5,'Asset data'!$CX61:$GJ61),0) -> 0 | X61: =IF($A61>0,SUMIF('Age profile (years)'!$CT61:$GF61,"<" & S61+0.5,'Asset data'!$CX61:$GJ61)-W61,0) -> 0 | Y61: =IF($A61>0,SUMIF('Age profile (years)'!$CT61:$GF61,"<" & T61+0.5,'Asset data'!$CX61:$GJ61)-X61-W61,0) -> 0 | Z61: =IF($A61>0,SUMIF('Age profile (years)'!$CT61:$GF61,"<" & U61+0.5,'Asset data'!$CX61:$GJ61)-Y61-X61-W61,0) -> 0 | AA61: 0 | AB61: 0 | AC61: 0 | AD61: 0 | AE61: 0 | AF61: 0 | AI61: =IF($A61>0,'RRR hist-forc'!K61,0) -> 0 | AJ61: 0
A62: ='Asset data'!A62 -> 0 | B62: ='Asset data'!B62 -> 0 | C62: ='Asset data'!C62 -> 0 | D62: ='Asset data'!E62 -> ˂ = 11 kV ; Subdivision ; Complex Type | E62: 0 | F62: =IF(A62>0,SUM('Asset data'!J62:CV62),0) -> 0 | G62: =IF(A62>0,'Asset data'!F62,0) -> 0 | H62: =IF(A62>0,SUM('Asset data'!CX62:GJ62),0) -> 0 | I62: 0 | J62: 0 | K62: 0 | L62: 0 | M62: =IF($A62>0,SUMPRODUCT('Age profile (years)'!$CT62:$GF62,'Asset data'!$CX62:$GJ62)/H62-0.5,0) -> 0 | N62: 0 | O62: =IF($A62>0,'Asset data'!G62,0) -> 0 | P62: 0 | Q62: 0 | R62: 0 | S62: 0 | T62: 0 | U62: 0 | W62: =IF($A62>0,SUMIF('Age profile (years)'!$CT62:$GF62,"<" & R62+0.5,'Asset data'!$CX62:$GJ62),0) -> 0 | X62: =IF($A62>0,SUMIF('Age profile (years)'!$CT62:$GF62,"<" & S62+0.5,'Asset data'!$CX62:$GJ62)-W62,0) -> 0 | Y62: =IF($A62>0,SUMIF('Age profile (years)'!$CT62:$GF62,"<" & T62+0.5,'Asset data'!$CX62:$GJ62)-X62-W62,0) -> 0 | Z62: =IF($A62>0,SUMIF('Age profile (years)'!$CT62:$GF62,"<" & U62+0.5,'Asset data'!$CX62:$GJ62)-Y62-X62-W62,0) -> 0 | AA62: 0 | AB62: 0 | AC62: 0 | AD62: 0 | AE62: 0 | AF62: 0 | AI62: =IF($A62>0,'RRR hist-forc'!K62,0) -> 0 | AJ62: 0
A63: ='Asset data'!A63 -> 0 | B63: ='Asset data'!B63 -> 0 | C63: ='Asset data'!C63 -> 0 | D63: ='Asset data'!E63 -> > 11 kV & < = 22 kV ; Commercial & Industrial | E63: 0 | F63: =IF(A63>0,SUM('Asset data'!J63:CV63),0) -> 0 | G63: =IF(A63>0,'Asset data'!F63,0) -> 0 | H63: =IF(A63>0,SUM('Asset data'!CX63:GJ63),0) -> 0 | I63: 0 | J63: 0 | K63: 0 | L63: 0 | M63: =IF($A63>0,SUMPRODUCT('Age profile (years)'!$CT63:$GF63,'Asset data'!$CX63:$GJ63)/H63-0.5,0) -> 0 | N63: 0 | O63: =IF($A63>0,'Asset data'!G63,0) -> 0 | P63: 0 | Q63: 0 | R63: 0 | S63: 0 | T63: 0 | U63: 0 | W63: =IF($A63>0,SUMIF('Age profile (years)'!$CT63:$GF63,"<" & R63+0.5,'Asset data'!$CX63:$GJ63),0) -> 0 | X63: =IF($A63>0,SUMIF('Age profile (years)'!$CT63:$GF63,"<" & S63+0.5,'Asset data'!$CX63:$GJ63)-W63,0) -> 0 | Y63: =IF($A63>0,SUMIF('Age profile (years)'!$CT63:$GF63,"<" & T63+0.5,'Asset data'!$CX63:$GJ63)-X63-W63,0) -> 0 | Z63: =IF($A63>0,SUMIF('Age profile (years)'!$CT63:$GF63,"<" & U63+0.5,'Asset data'!$CX63:$GJ63)-Y63-X63-W63,0) -> 0 | AA63: 0 | AB63: 0 | AC63: 0 | AD63: 0 | AE63: 0 | AF63: 0 | AI63: =IF($A63>0,'RRR hist-forc'!K63,0) -> 0 | AJ63: 0
A64: ='Asset data'!A64 -> 0 | B64: ='Asset data'!B64 -> 0 | C64: ='Asset data'!C64 -> 0 | D64: ='Asset data'!E64 -> > 11 kV & < = 22 kV ; Subdivision | E64: 0 | F64: =IF(A64>0,SUM('Asset data'!J64:CV64),0) -> 0 | G64: =IF(A64>0,'Asset data'!F64,0) -> 0 | H64: =IF(A64>0,SUM('Asset data'!CX64:GJ64),0) -> 0 | I64: 0 | J64: 0 | K64: 0 | L64: 0 | M64: =IF($A64>0,SUMPRODUCT('Age profile (years)'!$CT64:$GF64,'Asset data'!$CX64:$GJ64)/H64-0.5,0) -> 0 | N64: 0 | O64: =IF($A64>0,'Asset data'!G64,0) -> 0 | P64: 0 | Q64: 0 | R64: 0 | S64: 0 | T64: 0 | U64: 0 | W64: =IF($A64>0,SUMIF('Age profile (years)'!$CT64:$GF64,"<" & R64+0.5,'Asset data'!$CX64:$GJ64),0) -> 0 | X64: =IF($A64>0,SUMIF('Age profile (years)'!$CT64:$GF64,"<" & S64+0.5,'Asset data'!$CX64:$GJ64)-W64,0) -> 0 | Y64: =IF($A64>0,SUMIF('Age profile (years)'!$CT64:$GF64,"<" & T64+0.5,'Asset data'!$CX64:$GJ64)-X64-W64,0) -> 0 | Z64: =IF($A64>0,SUMIF('Age profile (years)'!$CT64:$GF64,"<" & U64+0.5,'Asset data'!$CX64:$GJ64)-Y64-X64-W64,0) -> 0 | AA64: 0 | AB64: 0 | AC64: 0 | AD64: 0 | AE64: 0 | AF64: 0 | AI64: =IF($A64>0,'RRR hist-forc'!K64,0) -> 0 | AJ64: 0
A65: ='Asset data'!A65 -> 0 | B65: ='Asset data'!B65 -> 0 | C65: ='Asset data'!C65 -> 0 | D65: ='Asset data'!E65 -> > 22 kV & < = 33 kV ; Commercial & Industrial | E65: 0 | F65: =IF(A65>0,SUM('Asset data'!J65:CV65),0) -> 0 | G65: =IF(A65>0,'Asset data'!F65,0) -> 0 | H65: =IF(A65>0,SUM('Asset data'!CX65:GJ65),0) -> 0 | I65: 0 | J65: 0 | K65: 0 | L65: 0 | M65: =IF($A65>0,SUMPRODUCT('Age profile (years)'!$CT65:$GF65,'Asset data'!$CX65:$GJ65)/H65-0.5,0) -> 0 | N65: 0 | O65: =IF($A65>0,'Asset data'!G65,0) -> 0 | P65: 0 | Q65: 0 | R65: 0 | S65: 0 | T65: 0 | U65: 0 | W65: =IF($A65>0,SUMIF('Age profile (years)'!$CT65:$GF65,"<" & R65+0.5,'Asset data'!$CX65:$GJ65),0) -> 0 | X65: =IF($A65>0,SUMIF('Age profile (years)'!$CT65:$GF65,"<" & S65+0.5,'Asset data'!$CX65:$GJ65)-W65,0) -> 0 | Y65: =IF($A65>0,SUMIF('Age profile (years)'!$CT65:$GF65,"<" & T65+0.5,'Asset data'!$CX65:$GJ65)-X65-W65,0) -> 0 | Z65: =IF($A65>0,SUMIF('Age profile (years)'!$CT65:$GF65,"<" & U65+0.5,'Asset data'!$CX65:$GJ65)-Y65-X65-W65,0) -> 0 | AA65: 0 | AB65: 0 | AC65: 0 | AD65: 0 | AE65: 0 | AF65: 0 | AI65: =IF($A65>0,'RRR hist-forc'!K65,0) -> 0 | AJ65: 0
A66: ='Asset data'!A66 -> 0 | B66: ='Asset data'!B66 -> 0 | C66: ='Asset data'!C66 -> 0 | D66: ='Asset data'!E66 -> > 22 kV & < = 33 kV ; Subdivision | E66: 0 | F66: =IF(A66>0,SUM('Asset data'!J66:CV66),0) -> 0 | G66: =IF(A66>0,'Asset data'!F66,0) -> 0 | H66: =IF(A66>0,SUM('Asset data'!CX66:GJ66),0) -> 0 | I66: 0 | J66: 0 | K66: 0 | L66: 0 | M66: =IF($A66>0,SUMPRODUCT('Age profile (years)'!$CT66:$GF66,'Asset data'!$CX66:$GJ66)/H66-0.5,0) -> 0 | N66: 0 | O66: =IF($A66>0,'Asset data'!G66,0) -> 0 | P66: 0 | Q66: 0 | R66: 0 | S66: 0 | T66: 0 | U66: 0 | W66: =IF($A66>0,SUMIF('Age profile (years)'!$CT66:$GF66,"<" & R66+0.5,'Asset data'!$CX66:$GJ66),0) -> 0 | X66: =IF($A66>0,SUMIF('Age profile (years)'!$CT66:$GF66,"<" & S66+0.5,'Asset data'!$CX66:$GJ66)-W66,0) -> 0 | Y66: =IF($A66>0,SUMIF('Age profile (years)'!$CT66:$GF66,"<" & T66+0.5,'Asset data'!$CX66:$GJ66)-X66-W66,0) -> 0 | Z66: =IF($A66>0,SUMIF('Age profile (years)'!$CT66:$GF66,"<" & U66+0.5,'Asset data'!$CX66:$GJ66)-Y66-X66-W66,0) -> 0 | AA66: 0 | AB66: 0 | AC66: 0 | AD66: 0 | AE66: 0 | AF66: 0 | AI66: =IF($A66>0,'RRR hist-forc'!K66,0) -> 0 | AJ66: 0
A67: ='Asset data'!A67 -> 0 | B67: ='Asset data'!B67 -> 0 | C67: ='Asset data'!C67 -> 0 | D67: ='Asset data'!E67 -> > 33 kV & < = 66 kV ; Commercial & Industrial | E67: 0 | F67: =IF(A67>0,SUM('Asset data'!J67:CV67),0) -> 0 | G67: =IF(A67>0,'Asset data'!F67,0) -> 0 | H67: =IF(A67>0,SUM('Asset data'!CX67:GJ67),0) -> 0 | I67: 0 | J67: 0 | K67: 0 | L67: 0 | M67: =IF($A67>0,SUMPRODUCT('Age profile (years)'!$CT67:$GF67,'Asset data'!$CX67:$GJ67)/H67-0.5,0) -> 0 | N67: 0 | O67: =IF($A67>0,'Asset data'!G67,0) -> 0 | P67: 0 | Q67: 0 | R67: 0 | S67: 0 | T67: 0 | U67: 0 | W67: =IF($A67>0,SUMIF('Age profile (years)'!$CT67:$GF67,"<" & R67+0.5,'Asset data'!$CX67:$GJ67),0) -> 0 | X67: =IF($A67>0,SUMIF('Age profile (years)'!$CT67:$GF67,"<" & S67+0.5,'Asset data'!$CX67:$GJ67)-W67,0) -> 0 | Y67: =IF($A67>0,SUMIF('Age profile (years)'!$CT67:$GF67,"<" & T67+0.5,'Asset data'!$CX67:$GJ67)-X67-W67,0) -> 0 | Z67: =IF($A67>0,SUMIF('Age profile (years)'!$CT67:$GF67,"<" & U67+0.5,'Asset data'!$CX67:$GJ67)-Y67-X67-W67,0) -> 0 | AA67: 0 | AB67: 0 | AC67: 0 | AD67: 0 | AE67: 0 | AF67: 0 | AI67: =IF($A67>0,'RRR hist-forc'!K67,0) -> 0 | AJ67: 0
A68: ='Asset data'!A68 -> 0 | B68: ='Asset data'!B68 -> 0 | C68: ='Asset data'!C68 -> 0 | D68: ='Asset data'!E68 -> > 33 kV & < = 66 kV ; Subdivision | E68: 0 | F68: =IF(A68>0,SUM('Asset data'!J68:CV68),0) -> 0 | G68: =IF(A68>0,'Asset data'!F68,0) -> 0 | H68: =IF(A68>0,SUM('Asset data'!CX68:GJ68),0) -> 0 | I68: 0 | J68: 0 | K68: 0 | L68: 0 | M68: =IF($A68>0,SUMPRODUCT('Age profile (years)'!$CT68:$GF68,'Asset data'!$CX68:$GJ68)/H68-0.5,0) -> 0 | N68: 0 | O68: =IF($A68>0,'Asset data'!G68,0) -> 0 | P68: 0 | Q68: 0 | R68: 0 | S68: 0 | T68: 0 | U68: 0 | W68: =IF($A68>0,SUMIF('Age profile (years)'!$CT68:$GF68,"<" & R68+0.5,'Asset data'!$CX68:$GJ68),0) -> 0 | X68: =IF($A68>0,SUMIF('Age profile (years)'!$CT68:$GF68,"<" & S68+0.5,'Asset data'!$CX68:$GJ68)-W68,0) -> 0 | Y68: =IF($A68>0,SUMIF('Age profile (years)'!$CT68:$GF68,"<" & T68+0.5,'Asset data'!$CX68:$GJ68)-X68-W68,0) -> 0 | Z68: =IF($A68>0,SUMIF('Age profile (years)'!$CT68:$GF68,"<" & U68+0.5,'Asset data'!$CX68:$GJ68)-Y68-X68-W68,0) -> 0 | AA68: 0 | AB68: 0 | AC68: 0 | AD68: 0 | AE68: 0 | AF68: 0 | AI68: =IF($A68>0,'RRR hist-forc'!K68,0) -> 0 | AJ68: 0
A69: ='Asset data'!A69 -> 0 | B69: ='Asset data'!B69 -> 0 | C69: ='Asset data'!C69 -> 0 | D69: ='Asset data'!E69 -> > 66 kV & < = 132 kV ; Commercial & Industrial | E69: 0 | F69: =IF(A69>0,SUM('Asset data'!J69:CV69),0) -> 0 | G69: =IF(A69>0,'Asset data'!F69,0) -> 0 | H69: =IF(A69>0,SUM('Asset data'!CX69:GJ69),0) -> 0 | I69: 0 | J69: 0 | K69: 0 | L69: 0 | M69: =IF($A69>0,SUMPRODUCT('Age profile (years)'!$CT69:$GF69,'Asset data'!$CX69:$GJ69)/H69-0.5,0) -> 0 | N69: 0 | O69: =IF($A69>0,'Asset data'!G69,0) -> 0 | P69: 0 | Q69: 0 | R69: 0 | S69: 0 | T69: 0 | U69: 0 | W69: =IF($A69>0,SUMIF('Age profile (years)'!$CT69:$GF69,"<" & R69+0.5,'Asset data'!$CX69:$GJ69),0) -> 0 | X69: =IF($A69>0,SUMIF('Age profile (years)'!$CT69:$GF69,"<" & S69+0.5,'Asset data'!$CX69:$GJ69)-W69,0) -> 0 | Y69: =IF($A69>0,SUMIF('Age profile (years)'!$CT69:$GF69,"<" & T69+0.5,'Asset data'!$CX69:$GJ69)-X69-W69,0) -> 0 | Z69: =IF($A69>0,SUMIF('Age profile (years)'!$CT69:$GF69,"<" & U69+0.5,'Asset data'!$CX69:$GJ69)-Y69-X69-W69,0) -> 0 | AA69: 0 | AB69: 0 | AC69: 0 | AD69: 0 | AE69: 0 | AF69: 0 | AI69: =IF($A69>0,'RRR hist-forc'!K69,0) -> 0 | AJ69: 0
A70: ='Asset data'!A70 -> 0 | B70: ='Asset data'!B70 -> 0 | C70: ='Asset data'!C70 -> 0 | D70: ='Asset data'!E70 -> > 66 kV & < = 132 kV ; Subdivision | E70: 0 | F70: =IF(A70>0,SUM('Asset data'!J70:CV70),0) -> 0 | G70: =IF(A70>0,'Asset data'!F70,0) -> 0 | H70: =IF(A70>0,SUM('Asset data'!CX70:GJ70),0) -> 0 | I70: 0 | J70: 0 | K70: 0 | L70: 0 | M70: =IF($A70>0,SUMPRODUCT('Age profile (years)'!$CT70:$GF70,'Asset data'!$CX70:$GJ70)/H70-0.5,0) -> 0 | N70: 0 | O70: =IF($A70>0,'Asset data'!G70,0) -> 0 | P70: 0 | Q70: 0 | R70: 0 | S70: 0 | T70: 0 | U70: 0 | W70: =IF($A70>0,SUMIF('Age profile (years)'!$CT70:$GF70,"<" & R70+0.5,'Asset data'!$CX70:$GJ70),0) -> 0 | X70: =IF($A70>0,SUMIF('Age profile (years)'!$CT70:$GF70,"<" & S70+0.5,'Asset data'!$CX70:$GJ70)-W70,0) -> 0 | Y70: =IF($A70>0,SUMIF('Age profile (years)'!$CT70:$GF70,"<" & T70+0.5,'Asset data'!$CX70:$GJ70)-X70-W70,0) -> 0 | Z70: =IF($A70>0,SUMIF('Age profile (years)'!$CT70:$GF70,"<" & U70+0.5,'Asset data'!$CX70:$GJ70)-Y70-X70-W70,0) -> 0 | AA70: 0 | AB70: 0 | AC70: 0 | AD70: 0 | AE70: 0 | AF70: 0 | AI70: =IF($A70>0,'RRR hist-forc'!K70,0) -> 0 | AJ70: 0
A71: ='Asset data'!A71 -> 0 | B71: ='Asset data'!B71 -> 0 | C71: ='Asset data'!C71 -> 0 | D71: ='Asset data'!E71 -> > 132 kV ; Commercial & Industrial | E71: 0 | F71: =IF(A71>0,SUM('Asset data'!J71:CV71),0) -> 0 | G71: =IF(A71>0,'Asset data'!F71,0) -> 0 | H71: =IF(A71>0,SUM('Asset data'!CX71:GJ71),0) -> 0 | I71: 0 | J71: 0 | K71: 0 | L71: 0 | M71: =IF($A71>0,SUMPRODUCT('Age profile (years)'!$CT71:$GF71,'Asset data'!$CX71:$GJ71)/H71-0.5,0) -> 0 | N71: 0 | O71: =IF($A71>0,'Asset data'!G71,0) -> 0 | P71: 0 | Q71: 0 | R71: 0 | S71: 0 | T71: 0 | U71: 0 | W71: =IF($A71>0,SUMIF('Age profile (years)'!$CT71:$GF71,"<" & R71+0.5,'Asset data'!$CX71:$GJ71),0) -> 0 | X71: =IF($A71>0,SUMIF('Age profile (years)'!$CT71:$GF71,"<" & S71+0.5,'Asset data'!$CX71:$GJ71)-W71,0) -> 0 | Y71: =IF($A71>0,SUMIF('Age profile (years)'!$CT71:$GF71,"<" & T71+0.5,'Asset data'!$CX71:$GJ71)-X71-W71,0) -> 0 | Z71: =IF($A71>0,SUMIF('Age profile (years)'!$CT71:$GF71,"<" & U71+0.5,'Asset data'!$CX71:$GJ71)-Y71-X71-W71,0) -> 0 | AA71: 0 | AB71: 0 | AC71: 0 | AD71: 0 | AE71: 0 | AF71: 0 | AI71: =IF($A71>0,'RRR hist-forc'!K71,0) -> 0 | AJ71: 0
A72: ='Asset data'!A72 -> 0 | B72: ='Asset data'!B72 -> 0 | C72: ='Asset data'!C72 -> 0 | D72: ='Asset data'!E72 -> > 132 kV ; Subdivision | E72: 0 | F72: =IF(A72>0,SUM('Asset data'!J72:CV72),0) -> 0 | G72: =IF(A72>0,'Asset data'!F72,0) -> 0 | H72: =IF(A72>0,SUM('Asset data'!CX72:GJ72),0) -> 0 | I72: 0 | J72: 0 | K72: 0 | L72: 0 | M72: =IF($A72>0,SUMPRODUCT('Age profile (years)'!$CT72:$GF72,'Asset data'!$CX72:$GJ72)/H72-0.5,0) -> 0 | N72: 0 | O72: =IF($A72>0,'Asset data'!G72,0) -> 0 | P72: 0 | Q72: 0 | R72: 0 | S72: 0 | T72: 0 | U72: 0 | W72: =IF($A72>0,SUMIF('Age profile (years)'!$CT72:$GF72,"<" & R72+0.5,'Asset data'!$CX72:$GJ72),0) -> 0 | X72: =IF($A72>0,SUMIF('Age profile (years)'!$CT72:$GF72,"<" & S72+0.5,'Asset data'!$CX72:$GJ72)-W72,0) -> 0 | Y72: =IF($A72>0,SUMIF('Age profile (years)'!$CT72:$GF72,"<" & T72+0.5,'Asset data'!$CX72:$GJ72)-X72-W72,0) -> 0 | Z72: =IF($A72>0,SUMIF('Age profile (years)'!$CT72:$GF72,"<" & U72+0.5,'Asset data'!$CX72:$GJ72)-Y72-X72-W72,0) -> 0 | AA72: 0 | AB72: 0 | AC72: 0 | AD72: 0 | AE72: 0 | AF72: 0 | AI72: =IF($A72>0,'RRR hist-forc'!K72,0) -> 0 | AJ72: 0
A73: ='Asset data'!A73 -> 0 | B73: ='Asset data'!B73 -> 0 | C73: ='Asset data'!C73 -> 0 | D73: ='Asset data'!E73 -> Other | E73: 0 | F73: =IF(A73>0,SUM('Asset data'!J73:CV73),0) -> 0 | G73: =IF(A73>0,'Asset data'!F73,0) -> 0 | H73: =IF(A73>0,SUM('Asset data'!CX73:GJ73),0) -> 0 | I73: 0 | J73: 0 | K73: 0 | L73: 0 | M73: =IF($A73>0,SUMPRODUCT('Age profile (years)'!$CT73:$GF73,'Asset data'!$CX73:$GJ73)/H73-0.5,0) -> 0 | N73: 0 | O73: =IF($A73>0,'Asset data'!G73,0) -> 0 | P73: 0 | Q73: 0 | R73: 0 | S73: 0 | T73: 0 | U73: 0 | W73: =IF($A73>0,SUMIF('Age profile (years)'!$CT73:$GF73,"<" & R73+0.5,'Asset data'!$CX73:$GJ73),0) -> 0 | X73: =IF($A73>0,SUMIF('Age profile (years)'!$CT73:$GF73,"<" & S73+0.5,'Asset data'!$CX73:$GJ73)-W73,0) -> 0 | Y73: =IF($A73>0,SUMIF('Age profile (years)'!$CT73:$GF73,"<" & T73+0.5,'Asset data'!$CX73:$GJ73)-X73-W73,0) -> 0 | Z73: =IF($A73>0,SUMIF('Age profile (years)'!$CT73:$GF73,"<" & U73+0.5,'Asset data'!$CX73:$GJ73)-Y73-X73-W73,0) -> 0 | AA73: 0 | AB73: 0 | AC73: 0 | AD73: 0 | AE73: 0 | AF73: 0 | AI73: =IF($A73>0,'RRR hist-forc'!K73,0) -> 0 | AJ73: 0
A74: ='Asset data'!A74 -> 5 | B74: ='Asset data'!B74 -> 0 | C74: ='Asset data'!C74 -> 0 | D74: ='Asset data'!E74 -> Pole Mounted ; < = 22kV ; < = 60 kVA ; Single Phase | E74: TRANSFORMERS | F74: =IF(A74>0,SUM('Asset data'!J74:CV74),0) -> 837 | G74: =IF(A74>0,'Asset data'!F74,0) -> 36.95991079 | H74: =IF(A74>0,SUM('Asset data'!CX74:GJ74),0) -> 30935.44533 | I74: 0.004909178584 | J74: 22 | K74: 0.05278369695 | L74: 36.95991079 | M74: =IF($A74>0,SUMPRODUCT('Age profile (years)'!$CT74:$GF74,'Asset data'!$CX74:$GJ74)/H74-0.5,0) -> 19.79988053 | N74: 612518.1216 | O74: =IF($A74>0,'Asset data'!G74,0) -> 47.95589779 | P74: 1483537.054 | Q74: 0.5871231394 | R74: 4.795589779 | S74: 9.591179558 | T74: 28.77353867 | U74: 38.36471823 | W74: =IF($A74>0,SUMIF('Age profile (years)'!$CT74:$GF74,"<" & R74+0.5,'Asset data'!$CX74:$GJ74),0) -> 1330.556789 | X74: =IF($A74>0,SUMIF('Age profile (years)'!$CT74:$GF74,"<" & S74+0.5,'Asset data'!$CX74:$GJ74)-W74,0) -> 2032.795094 | Y74: =IF($A74>0,SUMIF('Age profile (years)'!$CT74:$GF74,"<" & T74+0.5,'Asset data'!$CX74:$GJ74)-X74-W74,0) -> 23099.94425 | Z74: =IF($A74>0,SUMIF('Age profile (years)'!$CT74:$GF74,"<" & U74+0.5,'Asset data'!$CX74:$GJ74)-Y74-X74-W74,0) -> 2735.033399 | AA74: 1737.115807 | AB74: 0.04301075269 | AC74: 0.06571087216 | AD74: 0.7467144564 | AE74: 0.08841099164 | AF74: 0.05615292712 | AI74: =IF($A74>0,'RRR hist-forc'!K74,0) -> 47.95589779 | AJ74: 1483537.054
A75: ='Asset data'!A75 -> 5 | B75: ='Asset data'!B75 -> 0 | C75: ='Asset data'!C75 -> 0 | D75: ='Asset data'!E75 -> Pole Mounted ; < = 22kV ; > 60 kVA and < = 600 kVA ; Single Phase | E75: TRANSFORMERS | F75: =IF(A75>0,SUM('Asset data'!J75:CV75),0) -> 15 | G75: =IF(A75>0,'Asset data'!F75,0) -> 19.86916228 | H75: =IF(A75>0,SUM('Asset data'!CX75:GJ75),0) -> 298.0374342 | I75: 4.729587609e-05 | J75: 43 | K75: 0.0005085272715 | L75: 19.86916228 | M75: =IF($A75>0,SUMPRODUCT('Age profile (years)'!$CT75:$GF75,'Asset data'!$CX75:$GJ75)/H75-0.5,0) -> 37.23333333 | N75: 11096.92713 | O75: =IF($A75>0,'Asset data'!G75,0) -> 56.49690261 | P75: 16838.1919 | Q75: 0.3409668209 | R75: 5.649690261 | S75: 11.29938052 | T75: 33.89814157 | U75: 45.19752209 | W75: =IF($A75>0,SUMIF('Age profile (years)'!$CT75:$GF75,"<" & R75+0.5,'Asset data'!$CX75:$GJ75),0) -> 0 | X75: =IF($A75>0,SUMIF('Age profile (years)'!$CT75:$GF75,"<" & S75+0.5,'Asset data'!$CX75:$GJ75)-W75,0) -> 0 | Y75: =IF($A75>0,SUMIF('Age profile (years)'!$CT75:$GF75,"<" & T75+0.5,'Asset data'!$CX75:$GJ75)-X75-W75,0) -> 119.2149737 | Z75: =IF($A75>0,SUMIF('Age profile (years)'!$CT75:$GF75,"<" & U75+0.5,'Asset data'!$CX75:$GJ75)-Y75-X75-W75,0) -> 119.2149737 | AA75: 59.60748684 | AB75: 0 | AC75: 0 | AD75: 0.4 | AE75: 0.4 | AF75: 0.2 | AI75: =IF($A75>0,'RRR hist-forc'!K75,0) -> 56.49690261 | AJ75: 16838.1919
A76: ='Asset data'!A76 -> 0 | B76: ='Asset data'!B76 -> 0 | C76: ='Asset data'!C76 -> 0 | D76: ='Asset data'!E76 -> Pole Mounted ; < = 22kV ; > 600 kVA ; Single Phase | E76: 0 | F76: =IF(A76>0,SUM('Asset data'!J76:CV76),0) -> 0 | G76: =IF(A76>0,'Asset data'!F76,0) -> 0 | H76: =IF(A76>0,SUM('Asset data'!CX76:GJ76),0) -> 0 | I76: 0 | J76: 0 | K76: 0 | L76: 0 | M76: =IF($A76>0,SUMPRODUCT('Age profile (years)'!$CT76:$GF76,'Asset data'!$CX76:$GJ76)/H76-0.5,0) -> 0 | N76: 0 | O76: =IF($A76>0,'Asset data'!G76,0) -> 0 | P76: 0 | Q76: 0 | R76: 0 | S76: 0 | T76: 0 | U76: 0 | W76: =IF($A76>0,SUMIF('Age profile (years)'!$CT76:$GF76,"<" & R76+0.5,'Asset data'!$CX76:$GJ76),0) -> 0 | X76: =IF($A76>0,SUMIF('Age profile (years)'!$CT76:$GF76,"<" & S76+0.5,'Asset data'!$CX76:$GJ76)-W76,0) -> 0 | Y76: =IF($A76>0,SUMIF('Age profile (years)'!$CT76:$GF76,"<" & T76+0.5,'Asset data'!$CX76:$GJ76)-X76-W76,0) -> 0 | Z76: =IF($A76>0,SUMIF('Age profile (years)'!$CT76:$GF76,"<" & U76+0.5,'Asset data'!$CX76:$GJ76)-Y76-X76-W76,0) -> 0 | AA76: 0 | AB76: 0 | AC76: 0 | AD76: 0 | AE76: 0 | AF76: 0 | AI76: =IF($A76>0,'RRR hist-forc'!K76,0) -> 0 | AJ76: 0
A77: ='Asset data'!A77 -> 5 | B77: ='Asset data'!B77 -> 0 | C77: ='Asset data'!C77 -> 0 | D77: ='Asset data'!E77 -> Pole Mounted ; < = 22kV ; < = 60 kVA ; Multiple Phase | E77: TRANSFORMERS | F77: =IF(A77>0,SUM('Asset data'!J77:CV77),0) -> 290 | G77: =IF(A77>0,'Asset data'!F77,0) -> 25.31310563 | H77: =IF(A77>0,SUM('Asset data'!CX77:GJ77),0) -> 7340.800631 | I77: 0.001164919427 | J77: 36 | K77: 0.01252526323 | L77: 25.31310563 | M77: =IF($A77>0,SUMPRODUCT('Age profile (years)'!$CT77:$GF77,'Asset data'!$CX77:$GJ77)/H77-0.5,0) -> 35.24482759 | N77: 258725.2526 | O77: =IF($A77>0,'Asset data'!G77,0) -> 57.78903523 | P77: 424217.7863 | Q77: 0.3901121996 | R77: 5.778903523 | S77: 11.55780705 | T77: 34.67342114 | U77: 46.23122819 | W77: =IF($A77>0,SUMIF('Age profile (years)'!$CT77:$GF77,"<" & R77+0.5,'Asset data'!$CX77:$GJ77),0) -> 126.5655281 | X77: =IF($A77>0,SUMIF('Age profile (years)'!$CT77:$GF77,"<" & S77+0.5,'Asset data'!$CX77:$GJ77)-W77,0) -> 151.8786338 | Y77: =IF($A77>0,SUMIF('Age profile (years)'!$CT77:$GF77,"<" & T77+0.5,'Asset data'!$CX77:$GJ77)-X77-W77,0) -> 3341.329943 | Z77: =IF($A77>0,SUMIF('Age profile (years)'!$CT77:$GF77,"<" & U77+0.5,'Asset data'!$CX77:$GJ77)-Y77-X77-W77,0) -> 2556.623668 | AA77: 1164.402859 | AB77: 0.01724137931 | AC77: 0.02068965517 | AD77: 0.4551724138 | AE77: 0.3482758621 | AF77: 0.1586206897 | AI77: =IF($A77>0,'RRR hist-forc'!K77,0) -> 57.78903523 | AJ77: 424217.7863
A78: ='Asset data'!A78 -> 5 | B78: ='Asset data'!B78 -> 0 | C78: ='Asset data'!C78 -> 0 | D78: ='Asset data'!E78 -> Pole Mounted ; < = 22kV ; > 60 kVA and < = 600 kVA ; Multiple Phase | E78: TRANSFORMERS | F78: =IF(A78>0,SUM('Asset data'!J78:CV78),0) -> 2833 | G78: =IF(A78>0,'Asset data'!F78,0) -> 42.36727289 | H78: =IF(A78>0,SUM('Asset data'!CX78:GJ78),0) -> 120026.4841 | I78: 0.01904712988 | J78: 8 | K78: 0.2047955507 | L78: 42.36727289 | M78: =IF($A78>0,SUMPRODUCT('Age profile (years)'!$CT78:$GF78,'Asset data'!$CX78:$GJ78)/H78-0.5,0) -> 30.38739852 | N78: 3647292.605 | O78: =IF($A78>0,'Asset data'!G78,0) -> 53.92974913 | P78: 6472998.176 | Q78: 0.4365373656 | R78: 5.392974913 | S78: 10.78594983 | T78: 32.35784948 | U78: 43.1437993 | W78: =IF($A78>0,SUMIF('Age profile (years)'!$CT78:$GF78,"<" & R78+0.5,'Asset data'!$CX78:$GJ78),0) -> 4660.400018 | X78: =IF($A78>0,SUMIF('Age profile (years)'!$CT78:$GF78,"<" & S78+0.5,'Asset data'!$CX78:$GJ78)-W78,0) -> 8431.087306 | Y78: =IF($A78>0,SUMIF('Age profile (years)'!$CT78:$GF78,"<" & T78+0.5,'Asset data'!$CX78:$GJ78)-X78-W78,0) -> 53679.33476 | Z78: =IF($A78>0,SUMIF('Age profile (years)'!$CT78:$GF78,"<" & U78+0.5,'Asset data'!$CX78:$GJ78)-Y78-X78-W78,0) -> 22666.491 | AA78: 30589.17103 | AB78: 0.03882809742 | AC78: 0.07024355807 | AD78: 0.4472290858 | AE78: 0.1888457466 | AF78: 0.2548535122 | AI78: =IF($A78>0,'RRR hist-forc'!K78,0) -> 53.92974913 | AJ78: 6472998.176
A79: ='Asset data'!A79 -> 5 | B79: ='Asset data'!B79 -> 0 | C79: ='Asset data'!C79 -> 0 | D79: ='Asset data'!E79 -> Pole Mounted ; < = 22kV ; > 600 kVA ; Multiple Phase | E79: TRANSFORMERS | F79: =IF(A79>0,SUM('Asset data'!J79:CV79),0) -> 3 | G79: =IF(A79>0,'Asset data'!F79,0) -> 27.48029753 | H79: =IF(A79>0,SUM('Asset data'!CX79:GJ79),0) -> 82.4408926 | I79: 1.308263256e-05 | J79: 47 | K79: 0.0001406650218 | L79: 27.48029753 | M79: =IF($A79>0,SUMPRODUCT('Age profile (years)'!$CT79:$GF79,'Asset data'!$CX79:$GJ79)/H79-0.5,0) -> 9.5 | N79: 783.1884797 | O79: =IF($A79>0,'Asset data'!G79,0) -> 49.52074903 | P79: 4082.534752 | Q79: 0.8081612216 | R79: 4.952074903 | S79: 9.904149806 | T79: 29.71244942 | U79: 39.61659922 | W79: =IF($A79>0,SUMIF('Age profile (years)'!$CT79:$GF79,"<" & R79+0.5,'Asset data'!$CX79:$GJ79),0) -> 27.48029753 | X79: =IF($A79>0,SUMIF('Age profile (years)'!$CT79:$GF79,"<" & S79+0.5,'Asset data'!$CX79:$GJ79)-W79,0) -> 27.48029753 | Y79: =IF($A79>0,SUMIF('Age profile (years)'!$CT79:$GF79,"<" & T79+0.5,'Asset data'!$CX79:$GJ79)-X79-W79,0) -> 27.48029753 | Z79: =IF($A79>0,SUMIF('Age profile (years)'!$CT79:$GF79,"<" & U79+0.5,'Asset data'!$CX79:$GJ79)-Y79-X79-W79,0) -> -7.105427358e-15 | AA79: 7.105427358e-15 | AB79: 0.3333333333 | AC79: 0.3333333333 | AD79: 0.3333333333 | AE79: -8.618814199e-17 | AF79: 8.618814199e-17 | AI79: =IF($A79>0,'RRR hist-forc'!K79,0) -> 49.52074903 | AJ79: 4082.534752
A80: ='Asset data'!A80 -> 5 | B80: ='Asset data'!B80 -> 0 | C80: ='Asset data'!C80 -> 0 | D80: ='Asset data'!E80 -> Kiosk Mounted ; < = 22kV ; < = 60 kVA ; Single Phase | E80: TRANSFORMERS | F80: =IF(A80>0,SUM('Asset data'!J80:CV80),0) -> 5 | G80: =IF(A80>0,'Asset data'!F80,0) -> 30.08150727 | H80: =IF(A80>0,SUM('Asset data'!CX80:GJ80),0) -> 150.4075363 | I80: 2.386833124e-05 | J80: 45 | K80: 0.0002566333128 | L80: 30.08150727 | M80: =IF($A80>0,SUMPRODUCT('Age profile (years)'!$CT80:$GF80,'Asset data'!$CX80:$GJ80)/H80-0.5,0) -> 37.7 | N80: 5670.36412 | O80: =IF($A80>0,'Asset data'!G80,0) -> 56.49690261 | P80: 8497.559932 | Q80: 0.3327067811 | R80: 5.649690261 | S80: 11.29938052 | T80: 33.89814157 | U80: 45.19752209 | W80: =IF($A80>0,SUMIF('Age profile (years)'!$CT80:$GF80,"<" & R80+0.5,'Asset data'!$CX80:$GJ80),0) -> 0 | X80: =IF($A80>0,SUMIF('Age profile (years)'!$CT80:$GF80,"<" & S80+0.5,'Asset data'!$CX80:$GJ80)-W80,0) -> 0 | Y80: =IF($A80>0,SUMIF('Age profile (years)'!$CT80:$GF80,"<" & T80+0.5,'Asset data'!$CX80:$GJ80)-X80-W80,0) -> 0 | Z80: =IF($A80>0,SUMIF('Age profile (years)'!$CT80:$GF80,"<" & U80+0.5,'Asset data'!$CX80:$GJ80)-Y80-X80-W80,0) -> 150.4075363 | AA80: 0 | AB80: 0 | AC80: 0 | AD80: 0 | AE80: 1 | AF80: 0 | AI80: =IF($A80>0,'RRR hist-forc'!K80,0) -> 56.49690261 | AJ80: 8497.559932
A81: ='Asset data'!A81 -> 5 | B81: ='Asset data'!B81 -> 0 | C81: ='Asset data'!C81 -> 0 | D81: ='Asset data'!E81 -> Kiosk Mounted ; < = 22kV ; > 60 kVA and < = 600 kVA ; Single Phase | E81: TRANSFORMERS | F81: =IF(A81>0,SUM('Asset data'!J81:CV81),0) -> 3 | G81: =IF(A81>0,'Asset data'!F81,0) -> 110.3371094 | H81: =IF(A81>0,SUM('Asset data'!CX81:GJ81),0) -> 331.0113282 | I81: 5.252853825e-05 | J81: 42 | K81: 0.0005647890777 | L81: 110.3371094 | M81: =IF($A81>0,SUMPRODUCT('Age profile (years)'!$CT81:$GF81,'Asset data'!$CX81:$GJ81)/H81-0.5,0) -> 54.5 | N81: 18040.11739 | O81: =IF($A81>0,'Asset data'!G81,0) -> 56.49690261 | P81: 18701.11477 | Q81: 0.03534534668 | R81: 5.649690261 | S81: 11.29938052 | T81: 33.89814157 | U81: 45.19752209 | W81: =IF($A81>0,SUMIF('Age profile (years)'!$CT81:$GF81,"<" & R81+0.5,'Asset data'!$CX81:$GJ81),0) -> 0 | X81: =IF($A81>0,SUMIF('Age profile (years)'!$CT81:$GF81,"<" & S81+0.5,'Asset data'!$CX81:$GJ81)-W81,0) -> 0 | Y81: =IF($A81>0,SUMIF('Age profile (years)'!$CT81:$GF81,"<" & T81+0.5,'Asset data'!$CX81:$GJ81)-X81-W81,0) -> 0 | Z81: =IF($A81>0,SUMIF('Age profile (years)'!$CT81:$GF81,"<" & U81+0.5,'Asset data'!$CX81:$GJ81)-Y81-X81-W81,0) -> 0 | AA81: 331.0113282 | AB81: 0 | AC81: 0 | AD81: 0 | AE81: 0 | AF81: 1 | AI81: =IF($A81>0,'RRR hist-forc'!K81,0) -> 56.49690261 | AJ81: 18701.11477
A82: ='Asset data'!A82 -> 0 | B82: ='Asset data'!B82 -> 0 | C82: ='Asset data'!C82 -> 0 | D82: ='Asset data'!E82 -> Kiosk Mounted ; < = 22kV ; > 600 kVA ; Single Phase | E82: 0 | F82: =IF(A82>0,SUM('Asset data'!J82:CV82),0) -> 0 | G82: =IF(A82>0,'Asset data'!F82,0) -> 0 | H82: =IF(A82>0,SUM('Asset data'!CX82:GJ82),0) -> 0 | I82: 0 | J82: 0 | K82: 0 | L82: 0 | M82: =IF($A82>0,SUMPRODUCT('Age profile (years)'!$CT82:$GF82,'Asset data'!$CX82:$GJ82)/H82-0.5,0) -> 0 | N82: 0 | O82: =IF($A82>0,'Asset data'!G82,0) -> 0 | P82: 0 | Q82: 0 | R82: 0 | S82: 0 | T82: 0 | U82: 0 | W82: =IF($A82>0,SUMIF('Age profile (years)'!$CT82:$GF82,"<" & R82+0.5,'Asset data'!$CX82:$GJ82),0) -> 0 | X82: =IF($A82>0,SUMIF('Age profile (years)'!$CT82:$GF82,"<" & S82+0.5,'Asset data'!$CX82:$GJ82)-W82,0) -> 0 | Y82: =IF($A82>0,SUMIF('Age profile (years)'!$CT82:$GF82,"<" & T82+0.5,'Asset data'!$CX82:$GJ82)-X82-W82,0) -> 0 | Z82: =IF($A82>0,SUMIF('Age profile (years)'!$CT82:$GF82,"<" & U82+0.5,'Asset data'!$CX82:$GJ82)-Y82-X82-W82,0) -> 0 | AA82: 0 | AB82: 0 | AC82: 0 | AD82: 0 | AE82: 0 | AF82: 0 | AI82: =IF($A82>0,'RRR hist-forc'!K82,0) -> 0 | AJ82: 0
A83: ='Asset data'!A83 -> 5 | B83: ='Asset data'!B83 -> 0 | C83: ='Asset data'!C83 -> 0 | D83: ='Asset data'!E83 -> Kiosk Mounted ; < = 22kV ; < = 60 kVA ; Multiple Phase | E83: TRANSFORMERS | F83: =IF(A83>0,SUM('Asset data'!J83:CV83),0) -> 4 | G83: =IF(A83>0,'Asset data'!F83,0) -> 61.27796189 | H83: =IF(A83>0,SUM('Asset data'!CX83:GJ83),0) -> 245.1118476 | I83: 3.889705869e-05 | J83: 44 | K83: 0.0004182228296 | L83: 61.27796189 | M83: =IF($A83>0,SUMPRODUCT('Age profile (years)'!$CT83:$GF83,'Asset data'!$CX83:$GJ83)/H83-0.5,0) -> 42.75 | N83: 10478.53148 | O83: =IF($A83>0,'Asset data'!G83,0) -> 56.49690261 | P83: 13848.06018 | Q83: 0.2433213499 | R83: 5.649690261 | S83: 11.29938052 | T83: 33.89814157 | U83: 45.19752209 | W83: =IF($A83>0,SUMIF('Age profile (years)'!$CT83:$GF83,"<" & R83+0.5,'Asset data'!$CX83:$GJ83),0) -> 0 | X83: =IF($A83>0,SUMIF('Age profile (years)'!$CT83:$GF83,"<" & S83+0.5,'Asset data'!$CX83:$GJ83)-W83,0) -> 0 | Y83: =IF($A83>0,SUMIF('Age profile (years)'!$CT83:$GF83,"<" & T83+0.5,'Asset data'!$CX83:$GJ83)-X83-W83,0) -> 0 | Z83: =IF($A83>0,SUMIF('Age profile (years)'!$CT83:$GF83,"<" & U83+0.5,'Asset data'!$CX83:$GJ83)-Y83-X83-W83,0) -> 245.1118476 | AA83: 0 | AB83: 0 | AC83: 0 | AD83: 0 | AE83: 1 | AF83: 0 | AI83: =IF($A83>0,'RRR hist-forc'!K83,0) -> 56.49690261 | AJ83: 13848.06018
A84: ='Asset data'!A84 -> 5 | B84: ='Asset data'!B84 -> 0 | C84: ='Asset data'!C84 -> 0 | D84: ='Asset data'!E84 -> Kiosk Mounted ; < = 22kV ; > 60 kVA and < = 600 kVA ; Multiple Phase | E84: TRANSFORMERS | F84: =IF(A84>0,SUM('Asset data'!J84:CV84),0) -> 918 | G84: =IF(A84>0,'Asset data'!F84,0) -> 24.99050254 | H84: =IF(A84>0,SUM('Asset data'!CX84:GJ84),0) -> 22941.28134 | I84: 0.003640576233 | J84: 29 | K84: 0.03914363051 | L84: 24.99050254 | M84: =IF($A84>0,SUMPRODUCT('Age profile (years)'!$CT84:$GF84,'Asset data'!$CX84:$GJ84)/H84-0.5,0) -> 21.5751634 | N84: 494961.8934 | O84: =IF($A84>0,'Asset data'!G84,0) -> 34.79237301 | P84: 798181.6177 | Q84: 0.3798881327 | R84: 3.479237301 | S84: 6.958474603 | T84: 20.87542381 | U84: 27.83389841 | W84: =IF($A84>0,SUMIF('Age profile (years)'!$CT84:$GF84,"<" & R84+0.5,'Asset data'!$CX84:$GJ84),0) -> 649.7530662 | X84: =IF($A84>0,SUMIF('Age profile (years)'!$CT84:$GF84,"<" & S84+0.5,'Asset data'!$CX84:$GJ84)-W84,0) -> 699.7340713 | Y84: =IF($A84>0,SUMIF('Age profile (years)'!$CT84:$GF84,"<" & T84+0.5,'Asset data'!$CX84:$GJ84)-X84-W84,0) -> 8846.637901 | Z84: =IF($A84>0,SUMIF('Age profile (years)'!$CT84:$GF84,"<" & U84+0.5,'Asset data'!$CX84:$GJ84)-Y84-X84-W84,0) -> 6147.663626 | AA84: 6597.492672 | AB84: 0.02832244009 | AC84: 0.03050108932 | AD84: 0.385620915 | AE84: 0.2679738562 | AF84: 0.2875816993 | AI84: =IF($A84>0,'RRR hist-forc'!K84,0) -> 34.79237301 | AJ84: 798181.6177
A85: ='Asset data'!A85 -> 5 | B85: ='Asset data'!B85 -> 0 | C85: ='Asset data'!C85 -> 0 | D85: ='Asset data'!E85 -> Kiosk Mounted ; < = 22kV ; > 600 kVA ; Multiple Phase | E85: TRANSFORMERS | F85: =IF(A85>0,SUM('Asset data'!J85:CV85),0) -> 404 | G85: =IF(A85>0,'Asset data'!F85,0) -> 44.37636545 | H85: =IF(A85>0,SUM('Asset data'!CX85:GJ85),0) -> 17928.05164 | I85: 0.002845021503 | J85: 30 | K85: 0.03058979222 | L85: 44.37636545 | M85: =IF($A85>0,SUMPRODUCT('Age profile (years)'!$CT85:$GF85,'Asset data'!$CX85:$GJ85)/H85-0.5,0) -> 31.20049505 | N85: 559364.0865 | O85: =IF($A85>0,'Asset data'!G85,0) -> 41.28474413 | P85: 740155.0248 | Q85: 0.2442609078 | R85: 4.128474413 | S85: 8.256948826 | T85: 24.77084648 | U85: 33.0277953 | W85: =IF($A85>0,SUMIF('Age profile (years)'!$CT85:$GF85,"<" & R85+0.5,'Asset data'!$CX85:$GJ85),0) -> 88.7527309 | X85: =IF($A85>0,SUMIF('Age profile (years)'!$CT85:$GF85,"<" & S85+0.5,'Asset data'!$CX85:$GJ85)-W85,0) -> 133.1290964 | Y85: =IF($A85>0,SUMIF('Age profile (years)'!$CT85:$GF85,"<" & T85+0.5,'Asset data'!$CX85:$GJ85)-X85-W85,0) -> 3195.098313 | Z85: =IF($A85>0,SUMIF('Age profile (years)'!$CT85:$GF85,"<" & U85+0.5,'Asset data'!$CX85:$GJ85)-Y85-X85-W85,0) -> 5502.669316 | AA85: 9008.402187 | AB85: 0.00495049505 | AC85: 0.007425742574 | AD85: 0.1782178218 | AE85: 0.3069306931 | AF85: 0.5024752475 | AI85: =IF($A85>0,'RRR hist-forc'!K85,0) -> 41.28474413 | AJ85: 740155.0248
A86: ='Asset data'!A86 -> 0 | B86: ='Asset data'!B86 -> 0 | C86: ='Asset data'!C86 -> 0 | D86: ='Asset data'!E86 -> Ground Outdoor / Indoor Chamber Mounted; ˂ 22 kV ; < = 60 kVA ; Single Phase | E86: 0 | F86: =IF(A86>0,SUM('Asset data'!J86:CV86),0) -> 0 | G86: =IF(A86>0,'Asset data'!F86,0) -> 0 | H86: =IF(A86>0,SUM('Asset data'!CX86:GJ86),0) -> 0 | I86: 0 | J86: 0 | K86: 0 | L86: 0 | M86: =IF($A86>0,SUMPRODUCT('Age profile (years)'!$CT86:$GF86,'Asset data'!$CX86:$GJ86)/H86-0.5,0) -> 0 | N86: 0 | O86: =IF($A86>0,'Asset data'!G86,0) -> 0 | P86: 0 | Q86: 0 | R86: 0 | S86: 0 | T86: 0 | U86: 0 | W86: =IF($A86>0,SUMIF('Age profile (years)'!$CT86:$GF86,"<" & R86+0.5,'Asset data'!$CX86:$GJ86),0) -> 0 | X86: =IF($A86>0,SUMIF('Age profile (years)'!$CT86:$GF86,"<" & S86+0.5,'Asset data'!$CX86:$GJ86)-W86,0) -> 0 | Y86: =IF($A86>0,SUMIF('Age profile (years)'!$CT86:$GF86,"<" & T86+0.5,'Asset data'!$CX86:$GJ86)-X86-W86,0) -> 0 | Z86: =IF($A86>0,SUMIF('Age profile (years)'!$CT86:$GF86,"<" & U86+0.5,'Asset data'!$CX86:$GJ86)-Y86-X86-W86,0) -> 0 | AA86: 0 | AB86: 0 | AC86: 0 | AD86: 0 | AE86: 0 | AF86: 0 | AI86: =IF($A86>0,'RRR hist-forc'!K86,0) -> 0 | AJ86: 0
A87: ='Asset data'!A87 -> 0 | B87: ='Asset data'!B87 -> 0 | C87: ='Asset data'!C87 -> 0 | D87: ='Asset data'!E87 -> Ground Outdoor / Indoor Chamber Mounted; ˂ 22 kV ; > 60 kVA and < = 600 kVA ; Single Phase | E87: =IF(A87>0,VLOOKUP(A87,IDtable,2),0) -> 0 | F87: =IF(A87>0,SUM('Asset data'!J87:CV87),0) -> 0 | G87: =IF(A87>0,'Asset data'!F87,0) -> 0 | H87: =IF(A87>0,SUM('Asset data'!CX87:GJ87),0) -> 0 | I87: =H87/$H$18/1000 -> 0 | J87: =IF(RANK(0,I$21:I$205)=RANK(I87,I$21:I$205),0,RANK(I87,I$21:I$205)) -> 0 | K87: =IF(A87>0,H87/(VLOOKUP(A87,$A$6:$H$17,8)*1000),0) -> 0 | L87: =IF($A87>0,H87/F87,0) -> 0 | M87: =IF($A87>0,SUMPRODUCT('Age profile (years)'!$CT87:$GF87,'Asset data'!$CX87:$GJ87)/H87-0.5,0) -> 0 | N87: =IF($A87>0,M87*H87,0) -> 0 | O87: =IF($A87>0,'Asset data'!G87,0) -> 0 | P87: =IF($A87>0,H87*O87,0) -> 0 | Q87: =IF($A87>0,(O87-M87)/O87,0) -> 0 | R87: 0 | S87: 0 | T87: 0 | U87: 0 | W87: =IF($A87>0,SUMIF('Age profile (years)'!$CT87:$GF87,"<" & R87+0.5,'Asset data'!$CX87:$GJ87),0) -> 0 | X87: =IF($A87>0,SUMIF('Age profile (years)'!$CT87:$GF87,"<" & S87+0.5,'Asset data'!$CX87:$GJ87)-W87,0) -> 0 | Y87: =IF($A87>0,SUMIF('Age profile (years)'!$CT87:$GF87,"<" & T87+0.5,'Asset data'!$CX87:$GJ87)-X87-W87,0) -> 0 | Z87: =IF($A87>0,SUMIF('Age profile (years)'!$CT87:$GF87,"<" & U87+0.5,'Asset data'!$CX87:$GJ87)-Y87-X87-W87,0) -> 0 | AA87: =IF($A87>0,H87-Z87-Y87-X87-W87,0) -> 0 | AB87: =IF($A87>0,W87/$H87,0) -> 0 | AC87: =IF($A87>0,X87/$H87,0) -> 0 | AD87: =IF($A87>0,Y87/$H87,0) -> 0 | AE87: =IF($A87>0,Z87/$H87,0) -> 0 | AF87: =IF($A87>0,AA87/$H87,0) -> 0 | AI87: =IF($A87>0,'RRR hist-forc'!K87,0) -> 0 | AJ87: =IF($A87>0,AI87*H87,0) -> 0
A88: ='Asset data'!A88 -> 0 | B88: ='Asset data'!B88 -> 0 | C88: ='Asset data'!C88 -> 0 | D88: ='Asset data'!E88 -> Ground Outdoor / Indoor Chamber Mounted; ˂ 22 kV ; > 600 kVA ; Single Phase | E88: 0 | F88: =IF(A88>0,SUM('Asset data'!J88:CV88),0) -> 0 | G88: =IF(A88>0,'Asset data'!F88,0) -> 0 | H88: =IF(A88>0,SUM('Asset data'!CX88:GJ88),0) -> 0 | I88: 0 | J88: 0 | K88: 0 | L88: 0 | M88: =IF($A88>0,SUMPRODUCT('Age profile (years)'!$CT88:$GF88,'Asset data'!$CX88:$GJ88)/H88-0.5,0) -> 0 | N88: 0 | O88: =IF($A88>0,'Asset data'!G88,0) -> 0 | P88: 0 | Q88: 0 | R88: 0 | S88: 0 | T88: 0 | U88: 0 | W88: =IF($A88>0,SUMIF('Age profile (years)'!$CT88:$GF88,"<" & R88+0.5,'Asset data'!$CX88:$GJ88),0) -> 0 | X88: =IF($A88>0,SUMIF('Age profile (years)'!$CT88:$GF88,"<" & S88+0.5,'Asset data'!$CX88:$GJ88)-W88,0) -> 0 | Y88: =IF($A88>0,SUMIF('Age profile (years)'!$CT88:$GF88,"<" & T88+0.5,'Asset data'!$CX88:$GJ88)-X88-W88,0) -> 0 | Z88: =IF($A88>0,SUMIF('Age profile (years)'!$CT88:$GF88,"<" & U88+0.5,'Asset data'!$CX88:$GJ88)-Y88-X88-W88,0) -> 0 | AA88: 0 | AB88: 0 | AC88: 0 | AD88: 0 | AE88: 0 | AF88: 0 | AI88: =IF($A88>0,'RRR hist-forc'!K88,0) -> 0 | AJ88: 0
A89: ='Asset data'!A89 -> 0 | B89: ='Asset data'!B89 -> 0 | C89: ='Asset data'!C89 -> 0 | D89: ='Asset data'!E89 -> Ground Outdoor / Indoor Chamber Mounted; ˂ 22 kV ; < = 60 kVA ; Multiple Phase | E89: 0 | F89: =IF(A89>0,SUM('Asset data'!J89:CV89),0) -> 0 | G89: =IF(A89>0,'Asset data'!F89,0) -> 0 | H89: =IF(A89>0,SUM('Asset data'!CX89:GJ89),0) -> 0 | I89: 0 | J89: 0 | K89: 0 | L89: 0 | M89: =IF($A89>0,SUMPRODUCT('Age profile (years)'!$CT89:$GF89,'Asset data'!$CX89:$GJ89)/H89-0.5,0) -> 0 | N89: 0 | O89: =IF($A89>0,'Asset data'!G89,0) -> 0 | P89: 0 | Q89: 0 | R89: 0 | S89: 0 | T89: 0 | U89: 0 | W89: =IF($A89>0,SUMIF('Age profile (years)'!$CT89:$GF89,"<" & R89+0.5,'Asset data'!$CX89:$GJ89),0) -> 0 | X89: =IF($A89>0,SUMIF('Age profile (years)'!$CT89:$GF89,"<" & S89+0.5,'Asset data'!$CX89:$GJ89)-W89,0) -> 0 | Y89: =IF($A89>0,SUMIF('Age profile (years)'!$CT89:$GF89,"<" & T89+0.5,'Asset data'!$CX89:$GJ89)-X89-W89,0) -> 0 | Z89: =IF($A89>0,SUMIF('Age profile (years)'!$CT89:$GF89,"<" & U89+0.5,'Asset data'!$CX89:$GJ89)-Y89-X89-W89,0) -> 0 | AA89: 0 | AB89: 0 | AC89: 0 | AD89: 0 | AE89: 0 | AF89: 0 | AI89: =IF($A89>0,'RRR hist-forc'!K89,0) -> 0 | AJ89: 0
A90: ='Asset data'!A90 -> 5 | B90: ='Asset data'!B90 -> 0 | C90: ='Asset data'!C90 -> 0 | D90: ='Asset data'!E90 -> Ground Outdoor / Indoor Chamber Mounted; ˂ 22 kV ; > 60 kVA and < = 600 kVA ; Multiple Phase | E90: TRANSFORMERS | F90: =IF(A90>0,SUM('Asset data'!J90:CV90),0) -> 107 | G90: =IF(A90>0,'Asset data'!F90,0) -> 69.10119907 | H90: =IF(A90>0,SUM('Asset data'!CX90:GJ90),0) -> 7393.8283 | I90: 0.001173334444 | J90: 35 | K90: 0.01261574185 | L90: 69.10119907 | M90: =IF($A90>0,SUMPRODUCT('Age profile (years)'!$CT90:$GF90,'Asset data'!$CX90:$GJ90)/H90-0.5,0) -> 21.51869159 | N90: 159105.5109 | O90: =IF($A90>0,'Asset data'!G90,0) -> 56.49690261 | P90: 417728.3974 | Q90: 0.6191173216 | R90: 5.649690261 | S90: 11.29938052 | T90: 33.89814157 | U90: 45.19752209 | W90: =IF($A90>0,SUMIF('Age profile (years)'!$CT90:$GF90,"<" & R90+0.5,'Asset data'!$CX90:$GJ90),0) -> 414.6071944 | X90: =IF($A90>0,SUMIF('Age profile (years)'!$CT90:$GF90,"<" & S90+0.5,'Asset data'!$CX90:$GJ90)-W90,0) -> 967.4167869 | Y90: =IF($A90>0,SUMIF('Age profile (years)'!$CT90:$GF90,"<" & T90+0.5,'Asset data'!$CX90:$GJ90)-X90-W90,0) -> 4906.185134 | Z90: =IF($A90>0,SUMIF('Age profile (years)'!$CT90:$GF90,"<" & U90+0.5,'Asset data'!$CX90:$GJ90)-Y90-X90-W90,0) -> 691.0119907 | AA90: 414.6071944 | AB90: 0.05607476636 | AC90: 0.1308411215 | AD90: 0.6635514019 | AE90: 0.09345794393 | AF90: 0.05607476636 | AI90: =IF($A90>0,'RRR hist-forc'!K90,0) -> 56.49690261 | AJ90: 417728.3974
A91: ='Asset data'!A91 -> 5 | B91: ='Asset data'!B91 -> 0 | C91: ='Asset data'!C91 -> 0 | D91: ='Asset data'!E91 -> Ground Outdoor / Indoor Chamber Mounted; ˂ 22 kV ; > 600 kVA ; Multiple Phase | E91: TRANSFORMERS | F91: =IF(A91>0,SUM('Asset data'!J91:CV91),0) -> 108 | G91: =IF(A91>0,'Asset data'!F91,0) -> 45.10869811 | H91: =IF(A91>0,SUM('Asset data'!CX91:GJ91),0) -> 4871.739396 | I91: 0.0007731014845 | J91: 38 | K91: 0.008312420046 | L91: 45.10869811 | M91: =IF($A91>0,SUMPRODUCT('Age profile (years)'!$CT91:$GF91,'Asset data'!$CX91:$GJ91)/H91-0.5,0) -> 30.62962963 | N91: 149219.5734 | O91: =IF($A91>0,'Asset data'!G91,0) -> 58.22424828 | P91: 283653.3642 | Q91: 0.4739368814 | R91: 5.822424828 | S91: 11.64484966 | T91: 34.93454897 | U91: 46.57939863 | W91: =IF($A91>0,SUMIF('Age profile (years)'!$CT91:$GF91,"<" & R91+0.5,'Asset data'!$CX91:$GJ91),0) -> 451.0869811 | X91: =IF($A91>0,SUMIF('Age profile (years)'!$CT91:$GF91,"<" & S91+0.5,'Asset data'!$CX91:$GJ91)-W91,0) -> 451.0869811 | Y91: =IF($A91>0,SUMIF('Age profile (years)'!$CT91:$GF91,"<" & T91+0.5,'Asset data'!$CX91:$GJ91)-X91-W91,0) -> 1939.674019 | Z91: =IF($A91>0,SUMIF('Age profile (years)'!$CT91:$GF91,"<" & U91+0.5,'Asset data'!$CX91:$GJ91)-Y91-X91-W91,0) -> 1172.826151 | AA91: 857.0652642 | AB91: 0.09259259259 | AC91: 0.09259259259 | AD91: 0.3981481481 | AE91: 0.2407407407 | AF91: 0.1759259259 | AI91: =IF($A91>0,'RRR hist-forc'!K91,0) -> 58.22424828 | AJ91: 283653.3642
A92: ='Asset data'!A92 -> 5 | B92: ='Asset data'!B92 -> 0 | C92: ='Asset data'!C92 -> 0 | D92: ='Asset data'!E92 -> Ground Outdoor / Indoor Chamber Mounted; > = 22 kV & < = 33 kV ; < = 15 MVA | E92: TRANSFORMERS | F92: =IF(A92>0,SUM('Asset data'!J92:CV92),0) -> 571 | G92: =IF(A92>0,'Asset data'!F92,0) -> 47.3249053 | H92: =IF(A92>0,SUM('Asset data'!CX92:GJ92),0) -> 27022.52093 | I92: 0.004288232466 | J92: 25 | K92: 0.04610725788 | L92: 47.3249053 | M92: =IF($A92>0,SUMPRODUCT('Age profile (years)'!$CT92:$GF92,'Asset data'!$CX92:$GJ92)/H92-0.5,0) -> 30.95183888 | N92: 836396.7139 | O92: =IF($A92>0,'Asset data'!G92,0) -> 58.52296076 | P92: 1581437.932 | Q92: 0.4711163195 | R92: 5.852296076 | S92: 11.70459215 | T92: 35.11377645 | U92: 46.8183686 | W92: =IF($A92>0,SUMIF('Age profile (years)'!$CT92:$GF92,"<" & R92+0.5,'Asset data'!$CX92:$GJ92),0) -> 520.5739583 | X92: =IF($A92>0,SUMIF('Age profile (years)'!$CT92:$GF92,"<" & S92+0.5,'Asset data'!$CX92:$GJ92)-W92,0) -> 899.1732007 | Y92: =IF($A92>0,SUMIF('Age profile (years)'!$CT92:$GF92,"<" & T92+0.5,'Asset data'!$CX92:$GJ92)-X92-W92,0) -> 16279.76742 | Z92: =IF($A92>0,SUMIF('Age profile (years)'!$CT92:$GF92,"<" & U92+0.5,'Asset data'!$CX92:$GJ92)-Y92-X92-W92,0) -> 6862.111269 | AA92: 2460.895076 | AB92: 0.01926444834 | AC92: 0.03327495622 | AD92: 0.6024518389 | AE92: 0.2539404553 | AF92: 0.09106830123 | AI92: =IF($A92>0,'RRR hist-forc'!K92,0) -> 58.52296076 | AJ92: 1581437.932
A93: ='Asset data'!A93 -> 0 | B93: ='Asset data'!B93 -> 0 | C93: ='Asset data'!C93 -> 0 | D93: ='Asset data'!E93 -> Ground Outdoor / Indoor Chamber Mounted; > = 22 kV & < = 33 kV ; > 15 MVA and < = 40 MVA | E93: 0 | F93: =IF(A93>0,SUM('Asset data'!J93:CV93),0) -> 0 | G93: =IF(A93>0,'Asset data'!F93,0) -> 0 | H93: =IF(A93>0,SUM('Asset data'!CX93:GJ93),0) -> 0 | I93: 0 | J93: 0 | K93: 0 | L93: 0 | M93: =IF($A93>0,SUMPRODUCT('Age profile (years)'!$CT93:$GF93,'Asset data'!$CX93:$GJ93)/H93-0.5,0) -> 0 | N93: 0 | O93: =IF($A93>0,'Asset data'!G93,0) -> 0 | P93: 0 | Q93: 0 | R93: 0 | S93: 0 | T93: 0 | U93: 0 | W93: =IF($A93>0,SUMIF('Age profile (years)'!$CT93:$GF93,"<" & R93+0.5,'Asset data'!$CX93:$GJ93),0) -> 0 | X93: =IF($A93>0,SUMIF('Age profile (years)'!$CT93:$GF93,"<" & S93+0.5,'Asset data'!$CX93:$GJ93)-W93,0) -> 0 | Y93: =IF($A93>0,SUMIF('Age profile (years)'!$CT93:$GF93,"<" & T93+0.5,'Asset data'!$CX93:$GJ93)-X93-W93,0) -> 0 | Z93: =IF($A93>0,SUMIF('Age profile (years)'!$CT93:$GF93,"<" & U93+0.5,'Asset data'!$CX93:$GJ93)-Y93-X93-W93,0) -> 0 | AA93: 0 | AB93: 0 | AC93: 0 | AD93: 0 | AE93: 0 | AF93: 0 | AI93: =IF($A93>0,'RRR hist-forc'!K93,0) -> 0 | AJ93: 0
A94: ='Asset data'!A94 -> 0 | B94: ='Asset data'!B94 -> 0 | C94: ='Asset data'!C94 -> 0 | D94: ='Asset data'!E94 -> Ground Outdoor / Indoor Chamber Mounted; > = 22 kV & < = 33 kV ; > 40 MVA | E94: 0 | F94: =IF(A94>0,SUM('Asset data'!J94:CV94),0) -> 0 | G94: =IF(A94>0,'Asset data'!F94,0) -> 0 | H94: =IF(A94>0,SUM('Asset data'!CX94:GJ94),0) -> 0 | I94: 0 | J94: 0 | K94: 0 | L94: 0 | M94: =IF($A94>0,SUMPRODUCT('Age profile (years)'!$CT94:$GF94,'Asset data'!$CX94:$GJ94)/H94-0.5,0) -> 0 | N94: 0 | O94: =IF($A94>0,'Asset data'!G94,0) -> 0 | P94: 0 | Q94: 0 | R94: 0 | S94: 0 | T94: 0 | U94: 0 | W94: =IF($A94>0,SUMIF('Age profile (years)'!$CT94:$GF94,"<" & R94+0.5,'Asset data'!$CX94:$GJ94),0) -> 0 | X94: =IF($A94>0,SUMIF('Age profile (years)'!$CT94:$GF94,"<" & S94+0.5,'Asset data'!$CX94:$GJ94)-W94,0) -> 0 | Y94: =IF($A94>0,SUMIF('Age profile (years)'!$CT94:$GF94,"<" & T94+0.5,'Asset data'!$CX94:$GJ94)-X94-W94,0) -> 0 | Z94: =IF($A94>0,SUMIF('Age profile (years)'!$CT94:$GF94,"<" & U94+0.5,'Asset data'!$CX94:$GJ94)-Y94-X94-W94,0) -> 0 | AA94: 0 | AB94: 0 | AC94: 0 | AD94: 0 | AE94: 0 | AF94: 0 | AI94: =IF($A94>0,'RRR hist-forc'!K94,0) -> 0 | AJ94: 0
A95: ='Asset data'!A95 -> 5 | B95: ='Asset data'!B95 -> 0 | C95: ='Asset data'!C95 -> 0 | D95: ='Asset data'!E95 -> Ground Outdoor / Indoor Chamber Mounted; > 33 kV & < = 66 kV ; < = 15 MVA | E95: TRANSFORMERS | F95: =IF(A95>0,SUM('Asset data'!J95:CV95),0) -> 7 | G95: =IF(A95>0,'Asset data'!F95,0) -> 1236.257379 | H95: =IF(A95>0,SUM('Asset data'!CX95:GJ95),0) -> 8653.801651 | I95: 0.001373280949 | J95: 33 | K95: 0.01476557518 | L95: 1236.257379 | M95: =IF($A95>0,SUMPRODUCT('Age profile (years)'!$CT95:$GF95,'Asset data'!$CX95:$GJ95)/H95-0.5,0) -> 22.5 | N95: 194710.5371 | O95: =IF($A95>0,'Asset data'!G95,0) -> 56.49690261 | P95: 488912.9891 | Q95: 0.6017480789 | R95: 5.649690261 | S95: 11.29938052 | T95: 33.89814157 | U95: 45.19752209 | W95: =IF($A95>0,SUMIF('Age profile (years)'!$CT95:$GF95,"<" & R95+0.5,'Asset data'!$CX95:$GJ95),0) -> 2472.514757 | X95: =IF($A95>0,SUMIF('Age profile (years)'!$CT95:$GF95,"<" & S95+0.5,'Asset data'!$CX95:$GJ95)-W95,0) -> 1236.257379 | Y95: =IF($A95>0,SUMIF('Age profile (years)'!$CT95:$GF95,"<" & T95+0.5,'Asset data'!$CX95:$GJ95)-X95-W95,0) -> 1236.257379 | Z95: =IF($A95>0,SUMIF('Age profile (years)'!$CT95:$GF95,"<" & U95+0.5,'Asset data'!$CX95:$GJ95)-Y95-X95-W95,0) -> 3708.772136 | AA95: 0 | AB95: 0.2857142857 | AC95: 0.1428571429 | AD95: 0.1428571429 | AE95: 0.4285714286 | AF95: 0 | AI95: =IF($A95>0,'RRR hist-forc'!K95,0) -> 56.49690261 | AJ95: 488912.9891
A96: ='Asset data'!A96 -> 5 | B96: ='Asset data'!B96 -> 0 | C96: ='Asset data'!C96 -> 0 | D96: ='Asset data'!E96 -> Ground Outdoor / Indoor Chamber Mounted; > 33 kV & < = 66 kV ; > 15 MVA and < = 40 MVA | E96: TRANSFORMERS | F96: =IF(A96>0,SUM('Asset data'!J96:CV96),0) -> 49 | G96: =IF(A96>0,'Asset data'!F96,0) -> 6895.073208 | H96: =IF(A96>0,SUM('Asset data'!CX96:GJ96),0) -> 337858.5872 | I96: 0.05361513703 | J96: 4 | K96: 0.5764722339 | L96: 6895.073208 | M96: =IF($A96>0,SUMPRODUCT('Age profile (years)'!$CT96:$GF96,'Asset data'!$CX96:$GJ96)/H96-0.5,0) -> 29.98979592 | N96: 10132310.08 | O96: =IF($A96>0,'Asset data'!G96,0) -> 63.22889106 | P96: 21362423.8 | Q96: 0.5256947352 | R96: 6.322889106 | S96: 12.64577821 | T96: 37.93733464 | U96: 50.58311285 | W96: =IF($A96>0,SUMIF('Age profile (years)'!$CT96:$GF96,"<" & R96+0.5,'Asset data'!$CX96:$GJ96),0) -> 20685.21962 | X96: =IF($A96>0,SUMIF('Age profile (years)'!$CT96:$GF96,"<" & S96+0.5,'Asset data'!$CX96:$GJ96)-W96,0) -> 13790.14642 | Y96: =IF($A96>0,SUMIF('Age profile (years)'!$CT96:$GF96,"<" & T96+0.5,'Asset data'!$CX96:$GJ96)-X96-W96,0) -> 193062.0498 | Z96: =IF($A96>0,SUMIF('Age profile (years)'!$CT96:$GF96,"<" & U96+0.5,'Asset data'!$CX96:$GJ96)-Y96-X96-W96,0) -> 34475.36604 | AA96: 75845.80528 | AB96: 0.0612244898 | AC96: 0.04081632653 | AD96: 0.5714285714 | AE96: 0.1020408163 | AF96: 0.2244897959 | AI96: =IF($A96>0,'RRR hist-forc'!K96,0) -> 63.22889106 | AJ96: 21362423.8
A97: ='Asset data'!A97 -> 0 | B97: ='Asset data'!B97 -> 0 | C97: ='Asset data'!C97 -> 0 | D97: ='Asset data'!E97 -> Ground Outdoor / Indoor Chamber Mounted; > 33 kV & < = 66 kV ; > 40 MVA | E97: 0 | F97: =IF(A97>0,SUM('Asset data'!J97:CV97),0) -> 0 | G97: =IF(A97>0,'Asset data'!F97,0) -> 0 | H97: =IF(A97>0,SUM('Asset data'!CX97:GJ97),0) -> 0 | I97: 0 | J97: 0 | K97: 0 | L97: 0 | M97: =IF($A97>0,SUMPRODUCT('Age profile (years)'!$CT97:$GF97,'Asset data'!$CX97:$GJ97)/H97-0.5,0) -> 0 | N97: 0 | O97: =IF($A97>0,'Asset data'!G97,0) -> 0 | P97: 0 | Q97: 0 | R97: 0 | S97: 0 | T97: 0 | U97: 0 | W97: =IF($A97>0,SUMIF('Age profile (years)'!$CT97:$GF97,"<" & R97+0.5,'Asset data'!$CX97:$GJ97),0) -> 0 | X97: =IF($A97>0,SUMIF('Age profile (years)'!$CT97:$GF97,"<" & S97+0.5,'Asset data'!$CX97:$GJ97)-W97,0) -> 0 | Y97: =IF($A97>0,SUMIF('Age profile (years)'!$CT97:$GF97,"<" & T97+0.5,'Asset data'!$CX97:$GJ97)-X97-W97,0) -> 0 | Z97: =IF($A97>0,SUMIF('Age profile (years)'!$CT97:$GF97,"<" & U97+0.5,'Asset data'!$CX97:$GJ97)-Y97-X97-W97,0) -> 0 | AA97: 0 | AB97: 0 | AC97: 0 | AD97: 0 | AE97: 0 | AF97: 0 | AI97: =IF($A97>0,'RRR hist-forc'!K97,0) -> 0 | AJ97: 0
A98: ='Asset data'!A98 -> 0 | B98: ='Asset data'!B98 -> 0 | C98: ='Asset data'!C98 -> 0 | D98: ='Asset data'!E98 -> Ground Outdoor / Indoor Chamber Mounted; > 66 kV & < = 132 kV ; < = 100 MVA | E98: 0 | F98: =IF(A98>0,SUM('Asset data'!J98:CV98),0) -> 0 | G98: =IF(A98>0,'Asset data'!F98,0) -> 0 | H98: =IF(A98>0,SUM('Asset data'!CX98:GJ98),0) -> 0 | I98: 0 | J98: 0 | K98: 0 | L98: 0 | M98: =IF($A98>0,SUMPRODUCT('Age profile (years)'!$CT98:$GF98,'Asset data'!$CX98:$GJ98)/H98-0.5,0) -> 0 | N98: 0 | O98: =IF($A98>0,'Asset data'!G98,0) -> 0 | P98: 0 | Q98: 0 | R98: 0 | S98: 0 | T98: 0 | U98: 0 | W98: =IF($A98>0,SUMIF('Age profile (years)'!$CT98:$GF98,"<" & R98+0.5,'Asset data'!$CX98:$GJ98),0) -> 0 | X98: =IF($A98>0,SUMIF('Age profile (years)'!$CT98:$GF98,"<" & S98+0.5,'Asset data'!$CX98:$GJ98)-W98,0) -> 0 | Y98: =IF($A98>0,SUMIF('Age profile (years)'!$CT98:$GF98,"<" & T98+0.5,'Asset data'!$CX98:$GJ98)-X98-W98,0) -> 0 | Z98: =IF($A98>0,SUMIF('Age profile (years)'!$CT98:$GF98,"<" & U98+0.5,'Asset data'!$CX98:$GJ98)-Y98-X98-W98,0) -> 0 | AA98: 0 | AB98: 0 | AC98: 0 | AD98: 0 | AE98: 0 | AF98: 0 | AI98: =IF($A98>0,'RRR hist-forc'!K98,0) -> 0 | AJ98: 0
A99: ='Asset data'!A99 -> 0 | B99: ='Asset data'!B99 -> 0 | C99: ='Asset data'!C99 -> 0 | D99: ='Asset data'!E99 -> Ground Outdoor / Indoor Chamber Mounted; > 66 kV & < = 132 kV ; > 100 MVA | E99: 0 | F99: =IF(A99>0,SUM('Asset data'!J99:CV99),0) -> 0 | G99: =IF(A99>0,'Asset data'!F99,0) -> 0 | H99: =IF(A99>0,SUM('Asset data'!CX99:GJ99),0) -> 0 | I99: 0 | J99: 0 | K99: 0 | L99: 0 | M99: =IF($A99>0,SUMPRODUCT('Age profile (years)'!$CT99:$GF99,'Asset data'!$CX99:$GJ99)/H99-0.5,0) -> 0 | N99: 0 | O99: =IF($A99>0,'Asset data'!G99,0) -> 0 | P99: 0 | Q99: 0 | R99: 0 | S99: 0 | T99: 0 | U99: 0 | W99: =IF($A99>0,SUMIF('Age profile (years)'!$CT99:$GF99,"<" & R99+0.5,'Asset data'!$CX99:$GJ99),0) -> 0 | X99: =IF($A99>0,SUMIF('Age profile (years)'!$CT99:$GF99,"<" & S99+0.5,'Asset data'!$CX99:$GJ99)-W99,0) -> 0 | Y99: =IF($A99>0,SUMIF('Age profile (years)'!$CT99:$GF99,"<" & T99+0.5,'Asset data'!$CX99:$GJ99)-X99-W99,0) -> 0 | Z99: =IF($A99>0,SUMIF('Age profile (years)'!$CT99:$GF99,"<" & U99+0.5,'Asset data'!$CX99:$GJ99)-Y99-X99-W99,0) -> 0 | AA99: 0 | AB99: 0 | AC99: 0 | AD99: 0 | AE99: 0 | AF99: 0 | AI99: =IF($A99>0,'RRR hist-forc'!K99,0) -> 0 | AJ99: 0
A100: ='Asset data'!A100 -> 0 | B100: ='Asset data'!B100 -> 0 | C100: ='Asset data'!C100 -> 0 | D100: ='Asset data'!E100 -> Ground Outdoor / Indoor Chamber Mounted; > 132 kV ; < = 100 MVA | E100: 0 | F100: =IF(A100>0,SUM('Asset data'!J100:CV100),0) -> 0 | G100: =IF(A100>0,'Asset data'!F100,0) -> 0 | H100: =IF(A100>0,SUM('Asset data'!CX100:GJ100),0) -> 0 | I100: 0 | J100: 0 | K100: 0 | L100: 0 | M100: =IF($A100>0,SUMPRODUCT('Age profile (years)'!$CT100:$GF100,'Asset data'!$CX100:$GJ100)/H100-0.5,0) -> 0 | N100: 0 | O100: =IF($A100>0,'Asset data'!G100,0) -> 0 | P100: 0 | Q100: 0 | R100: 0 | S100: 0 | T100: 0 | U100: =IF($A100>0,$O100-U$4*$O100,0) -> 0 | W100: =IF($A100>0,SUMIF('Age profile (years)'!$CT100:$GF100,"<" & R100+0.5,'Asset data'!$CX100:$GJ100),0) -> 0 | X100: =IF($A100>0,SUMIF('Age profile (years)'!$CT100:$GF100,"<" & S100+0.5,'Asset data'!$CX100:$GJ100)-W100,0) -> 0 | Y100: =IF($A100>0,SUMIF('Age profile (years)'!$CT100:$GF100,"<" & T100+0.5,'Asset data'!$CX100:$GJ100)-X100-W100,0) -> 0 | Z100: =IF($A100>0,SUMIF('Age profile (years)'!$CT100:$GF100,"<" & U100+0.5,'Asset data'!$CX100:$GJ100)-Y100-X100-W100,0) -> 0 | AA100: 0 | AB100: 0 | AC100: 0 | AD100: 0 | AE100: 0 | AF100: 0 | AI100: =IF($A100>0,'RRR hist-forc'!K100,0) -> 0 | AJ100: 0
A101: ='Asset data'!A101 -> 0 | B101: ='Asset data'!B101 -> 0 | C101: ='Asset data'!C101 -> 0 | D101: ='Asset data'!E101 -> Ground Outdoor / Indoor Chamber Mounted; > 132 kV ; > 100 MVA | E101: 0 | F101: =IF(A101>0,SUM('Asset data'!J101:CV101),0) -> 0 | G101: =IF(A101>0,'Asset data'!F101,0) -> 0 | H101: =IF(A101>0,SUM('Asset data'!CX101:GJ101),0) -> 0 | I101: 0 | J101: 0 | K101: 0 | L101: 0 | M101: =IF($A101>0,SUMPRODUCT('Age profile (years)'!$CT101:$GF101,'Asset data'!$CX101:$GJ101)/H101-0.5,0) -> 0 | N101: 0 | O101: =IF($A101>0,'Asset data'!G101,0) -> 0 | P101: 0 | Q101: 0 | R101: 0 | S101: 0 | T101: 0 | U101: 0 | W101: =IF($A101>0,SUMIF('Age profile (years)'!$CT101:$GF101,"<" & R101+0.5,'Asset data'!$CX101:$GJ101),0) -> 0 | X101: =IF($A101>0,SUMIF('Age profile (years)'!$CT101:$GF101,"<" & S101+0.5,'Asset data'!$CX101:$GJ101)-W101,0) -> 0 | Y101: =IF($A101>0,SUMIF('Age profile (years)'!$CT101:$GF101,"<" & T101+0.5,'Asset data'!$CX101:$GJ101)-X101-W101,0) -> 0 | Z101: =IF($A101>0,SUMIF('Age profile (years)'!$CT101:$GF101,"<" & U101+0.5,'Asset data'!$CX101:$GJ101)-Y101-X101-W101,0) -> 0 | AA101: 0 | AB101: 0 | AC101: 0 | AD101: 0 | AE101: 0 | AF101: 0 | AI101: =IF($A101>0,'RRR hist-forc'!K101,0) -> 0 | AJ101: 0
A102: ='Asset data'!A102 -> 0 | B102: ='Asset data'!B102 -> 0 | C102: ='Asset data'!C102 -> 0 | D102: ='Asset data'!E102 -> Other | E102: 0 | F102: =IF(A102>0,SUM('Asset data'!J102:CV102),0) -> 0 | G102: =IF(A102>0,'Asset data'!F102,0) -> 0 | H102: =IF(A102>0,SUM('Asset data'!CX102:GJ102),0) -> 0 | I102: 0 | J102: 0 | K102: 0 | L102: 0 | M102: =IF($A102>0,SUMPRODUCT('Age profile (years)'!$CT102:$GF102,'Asset data'!$CX102:$GJ102)/H102-0.5,0) -> 0 | N102: 0 | O102: =IF($A102>0,'Asset data'!G102,0) -> 0 | P102: 0 | Q102: 0 | R102: 0 | S102: 0 | T102: 0 | U102: 0 | W102: =IF($A102>0,SUMIF('Age profile (years)'!$CT102:$GF102,"<" & R102+0.5,'Asset data'!$CX102:$GJ102),0) -> 0 | X102: =IF($A102>0,SUMIF('Age profile (years)'!$CT102:$GF102,"<" & S102+0.5,'Asset data'!$CX102:$GJ102)-W102,0) -> 0 | Y102: =IF($A102>0,SUMIF('Age profile (years)'!$CT102:$GF102,"<" & T102+0.5,'Asset data'!$CX102:$GJ102)-X102-W102,0) -> 0 | Z102: =IF($A102>0,SUMIF('Age profile (years)'!$CT102:$GF102,"<" & U102+0.5,'Asset data'!$CX102:$GJ102)-Y102-X102-W102,0) -> 0 | AA102: 0 | AB102: 0 | AC102: 0 | AD102: 0 | AE102: 0 | AF102: 0 | AI102: =IF($A102>0,'RRR hist-forc'!K102,0) -> 0 | AJ102: 0
A103: ='Asset data'!A103 -> 6 | B103: ='Asset data'!B103 -> 0 | C103: ='Asset data'!C103 -> 0 | D103: ='Asset data'!E103 -> ˂ = 11 kV ; Fuse | E103: SWITCHGEAR | F103: =IF(A103>0,SUM('Asset data'!J103:CV103),0) -> 12006 | G103: =IF(A103>0,'Asset data'!F103,0) -> 5.42384307 | H103: =IF(A103>0,SUM('Asset data'!CX103:GJ103),0) -> 65118.65989 | I103: 0.01033374911 | J103: 15 | K103: 0.19420504 | L103: 5.42384307 | M103: =IF($A103>0,SUMPRODUCT('Age profile (years)'!$CT103:$GF103,'Asset data'!$CX103:$GJ103)/H103-0.5,0) -> 41.00849575 | N103: 2670418.288 | O103: =IF($A103>0,'Asset data'!G103,0) -> 56.78504017 | P103: 3697765.718 | Q103: 0.2778292377 | R103: 5.678504017 | S103: 11.35700803 | T103: 34.0710241 | U103: 45.42803214 | W103: =IF($A103>0,SUMIF('Age profile (years)'!$CT103:$GF103,"<" & R103+0.5,'Asset data'!$CX103:$GJ103),0) -> 461.0266609 | X103: =IF($A103>0,SUMIF('Age profile (years)'!$CT103:$GF103,"<" & S103+0.5,'Asset data'!$CX103:$GJ103)-W103,0) -> 1057.649399 | Y103: =IF($A103>0,SUMIF('Age profile (years)'!$CT103:$GF103,"<" & T103+0.5,'Asset data'!$CX103:$GJ103)-X103-W103,0) -> 17448.50315 | Z103: =IF($A103>0,SUMIF('Age profile (years)'!$CT103:$GF103,"<" & U103+0.5,'Asset data'!$CX103:$GJ103)-Y103-X103-W103,0) -> 14769.12468 | AA103: 31382.356 | AB103: 0.007079793437 | AC103: 0.01624187906 | AD103: 0.2679493587 | AE103: 0.226803265 | AF103: 0.4819257038 | AI103: =IF($A103>0,'RRR hist-forc'!K103,0) -> 56.78504017 | AJ103: 3697765.718
A104: ='Asset data'!A104 -> 6 | B104: ='Asset data'!B104 -> 0 | C104: ='Asset data'!C104 -> 0 | D104: ='Asset data'!E104 -> ˂ = 11 kV ; Switch | E104: SWITCHGEAR | F104: =IF(A104>0,SUM('Asset data'!J104:CV104),0) -> 17218 | G104: =IF(A104>0,'Asset data'!F104,0) -> 4.7992211 | H104: =IF(A104>0,SUM('Asset data'!CX104:GJ104),0) -> 82632.9889 | I104: 0.01311311653 | J104: 14 | K104: 0.2464384701 | L104: 4.7992211 | M104: =IF($A104>0,SUMPRODUCT('Age profile (years)'!$CT104:$GF104,'Asset data'!$CX104:$GJ104)/H104-0.5,0) -> 39.38343594 | N104: 3254371.025 | O104: =IF($A104>0,'Asset data'!G104,0) -> 58.2241768 | P104: 4811237.755 | Q104: 0.3235896477 | R104: 5.82241768 | S104: 11.64483536 | T104: 34.93450608 | U104: 46.57934144 | W104: =IF($A104>0,SUMIF('Age profile (years)'!$CT104:$GF104,"<" & R104+0.5,'Asset data'!$CX104:$GJ104),0) -> 969.4426622 | X104: =IF($A104>0,SUMIF('Age profile (years)'!$CT104:$GF104,"<" & S104+0.5,'Asset data'!$CX104:$GJ104)-W104,0) -> 2529.18952 | Y104: =IF($A104>0,SUMIF('Age profile (years)'!$CT104:$GF104,"<" & T104+0.5,'Asset data'!$CX104:$GJ104)-X104-W104,0) -> 27715.50185 | Z104: =IF($A104>0,SUMIF('Age profile (years)'!$CT104:$GF104,"<" & U104+0.5,'Asset data'!$CX104:$GJ104)-Y104-X104-W104,0) -> 18366.61915 | AA104: 33052.23571 | AB104: 0.01173190847 | AC104: 0.03060750378 | AD104: 0.3354048089 | AE104: 0.2222673946 | AF104: 0.3999883842 | AI104: =IF($A104>0,'RRR hist-forc'!K104,0) -> 58.2241768 | AJ104: 4811237.755
A105: ='Asset data'!A105 -> 6 | B105: ='Asset data'!B105 -> 0 | C105: ='Asset data'!C105 -> 0 | D105: ='Asset data'!E105 -> ˂ = 11 kV ; Circuit Breaker | E105: SWITCHGEAR | F105: =IF(A105>0,SUM('Asset data'!J105:CV105),0) -> 157 | G105: =IF(A105>0,'Asset data'!F105,0) -> 190.0452883 | H105: =IF(A105>0,SUM('Asset data'!CX105:GJ105),0) -> 29837.11026 | I105: 0.004734882629 | J105: 23 | K105: 0.08898397484 | L105: 190.0452883 | M105: =IF($A105>0,SUMPRODUCT('Age profile (years)'!$CT105:$GF105,'Asset data'!$CX105:$GJ105)/H105-0.5,0) -> 23.09235669 | N105: 689009.1928 | O105: =IF($A105>0,'Asset data'!G105,0) -> 50.35358102 | P105: 1502405.349 | Q105: 0.5413959401 | R105: 5.035358102 | S105: 10.0707162 | T105: 30.21214861 | U105: 40.28286482 | W105: =IF($A105>0,SUMIF('Age profile (years)'!$CT105:$GF105,"<" & R105+0.5,'Asset data'!$CX105:$GJ105),0) -> 9312.219127 | X105: =IF($A105>0,SUMIF('Age profile (years)'!$CT105:$GF105,"<" & S105+0.5,'Asset data'!$CX105:$GJ105)-W105,0) -> 4561.086919 | Y105: =IF($A105>0,SUMIF('Age profile (years)'!$CT105:$GF105,"<" & T105+0.5,'Asset data'!$CX105:$GJ105)-X105-W105,0) -> 1140.27173 | Z105: =IF($A105>0,SUMIF('Age profile (years)'!$CT105:$GF105,"<" & U105+0.5,'Asset data'!$CX105:$GJ105)-Y105-X105-W105,0) -> 190.0452883 | AA105: 14633.4872 | AB105: 0.3121019108 | AC105: 0.152866242 | AD105: 0.03821656051 | AE105: 0.006369426752 | AF105: 0.4904458599 | AI105: =IF($A105>0,'RRR hist-forc'!K105,0) -> 50.35358102 | AJ105: 1502405.349
A106: ='Asset data'!A106 -> 6 | B106: ='Asset data'!B106 -> 0 | C106: ='Asset data'!C106 -> 0 | D106: ='Asset data'!E106 -> > 11 kV & < = 22 kV ; Switch | E106: SWITCHGEAR | F106: =IF(A106>0,SUM('Asset data'!J106:CV106),0) -> 12425 | G106: =IF(A106>0,'Asset data'!F106,0) -> 5.061124873 | H106: =IF(A106>0,SUM('Asset data'!CX106:GJ106),0) -> 62884.47654 | I106: 0.009979204184 | J106: 16 | K106: 0.187541978 | L106: 5.061124873 | M106: =IF($A106>0,SUMPRODUCT('Age profile (years)'!$CT106:$GF106,'Asset data'!$CX106:$GJ106)/H106-0.5,0) -> 29.02877264 | N106: 1825459.172 | O106: =IF($A106>0,'Asset data'!G106,0) -> 46.55892481 | P106: 2927833.615 | Q106: 0.3765153994 | R106: 4.655892481 | S106: 9.311784961 | T106: 27.93535488 | U106: 37.24713984 | W106: =IF($A106>0,SUMIF('Age profile (years)'!$CT106:$GF106,"<" & R106+0.5,'Asset data'!$CX106:$GJ106),0) -> 4610.684759 | X106: =IF($A106>0,SUMIF('Age profile (years)'!$CT106:$GF106,"<" & S106+0.5,'Asset data'!$CX106:$GJ106)-W106,0) -> 2196.528195 | Y106: =IF($A106>0,SUMIF('Age profile (years)'!$CT106:$GF106,"<" & T106+0.5,'Asset data'!$CX106:$GJ106)-X106-W106,0) -> 18387.06666 | Z106: =IF($A106>0,SUMIF('Age profile (years)'!$CT106:$GF106,"<" & U106+0.5,'Asset data'!$CX106:$GJ106)-Y106-X106-W106,0) -> 13331.00291 | AA106: 24359.19401 | AB106: 0.07331991952 | AC106: 0.03492957746 | AD106: 0.2923943662 | AE106: 0.2119919517 | AF106: 0.3873641851 | AI106: =IF($A106>0,'RRR hist-forc'!K106,0) -> 46.55892481 | AJ106: 2927833.615
A107: ='Asset data'!A107 -> 6 | B107: ='Asset data'!B107 -> 0 | C107: ='Asset data'!C107 -> 0 | D107: ='Asset data'!E107 -> > 11 kV & < = 22 kV ; Circuit Breaker | E107: SWITCHGEAR | F107: =IF(A107>0,SUM('Asset data'!J107:CV107),0) -> 321 | G107: =IF(A107>0,'Asset data'!F107,0) -> 152.20975 | H107: =IF(A107>0,SUM('Asset data'!CX107:GJ107),0) -> 48859.32975 | I107: 0.007753538785 | J107: 19 | K107: 0.1457144251 | L107: 152.20975 | M107: =IF($A107>0,SUMPRODUCT('Age profile (years)'!$CT107:$GF107,'Asset data'!$CX107:$GJ107)/H107-0.5,0) -> 29.84579439 | N107: 1458245.51 | O107: =IF($A107>0,'Asset data'!G107,0) -> 51.4581083 | P107: 2514208.681 | Q107: 0.4199982203 | R107: 5.14581083 | S107: 10.29162166 | T107: 30.87486498 | U107: 41.16648664 | W107: =IF($A107>0,SUMIF('Age profile (years)'!$CT107:$GF107,"<" & R107+0.5,'Asset data'!$CX107:$GJ107),0) -> 8219.326499 | X107: =IF($A107>0,SUMIF('Age profile (years)'!$CT107:$GF107,"<" & S107+0.5,'Asset data'!$CX107:$GJ107)-W107,0) -> 1826.517 | Y107: =IF($A107>0,SUMIF('Age profile (years)'!$CT107:$GF107,"<" & T107+0.5,'Asset data'!$CX107:$GJ107)-X107-W107,0) -> 10350.263 | Z107: =IF($A107>0,SUMIF('Age profile (years)'!$CT107:$GF107,"<" & U107+0.5,'Asset data'!$CX107:$GJ107)-Y107-X107-W107,0) -> 9589.214249 | AA107: 18874.009 | AB107: 0.1682242991 | AC107: 0.03738317757 | AD107: 0.2118380062 | AE107: 0.1962616822 | AF107: 0.3862928349 | AI107: =IF($A107>0,'RRR hist-forc'!K107,0) -> 51.4581083 | AJ107: 2514208.681
A108: ='Asset data'!A108 -> 0 | B108: ='Asset data'!B108 -> 0 | C108: ='Asset data'!C108 -> 0 | D108: ='Asset data'!E108 -> > 22 kV & < = 33 kV ; Switch | E108: 0 | F108: =IF(A108>0,SUM('Asset data'!J108:CV108),0) -> 0 | G108: =IF(A108>0,'Asset data'!F108,0) -> 0 | H108: =IF(A108>0,SUM('Asset data'!CX108:GJ108),0) -> 0 | I108: 0 | J108: 0 | K108: 0 | L108: 0 | M108: =IF($A108>0,SUMPRODUCT('Age profile (years)'!$CT108:$GF108,'Asset data'!$CX108:$GJ108)/H108-0.5,0) -> 0 | N108: 0 | O108: =IF($A108>0,'Asset data'!G108,0) -> 0 | P108: 0 | Q108: 0 | R108: 0 | S108: 0 | T108: 0 | U108: 0 | W108: =IF($A108>0,SUMIF('Age profile (years)'!$CT108:$GF108,"<" & R108+0.5,'Asset data'!$CX108:$GJ108),0) -> 0 | X108: =IF($A108>0,SUMIF('Age profile (years)'!$CT108:$GF108,"<" & S108+0.5,'Asset data'!$CX108:$GJ108)-W108,0) -> 0 | Y108: =IF($A108>0,SUMIF('Age profile (years)'!$CT108:$GF108,"<" & T108+0.5,'Asset data'!$CX108:$GJ108)-X108-W108,0) -> 0 | Z108: =IF($A108>0,SUMIF('Age profile (years)'!$CT108:$GF108,"<" & U108+0.5,'Asset data'!$CX108:$GJ108)-Y108-X108-W108,0) -> 0 | AA108: 0 | AB108: 0 | AC108: 0 | AD108: 0 | AE108: 0 | AF108: 0 | AI108: =IF($A108>0,'RRR hist-forc'!K108,0) -> 0 | AJ108: 0
A109: ='Asset data'!A109 -> 0 | B109: ='Asset data'!B109 -> 0 | C109: ='Asset data'!C109 -> 0 | D109: ='Asset data'!E109 -> > 22 kV & < = 33 kV ; Circuit Breaker | E109: 0 | F109: =IF(A109>0,SUM('Asset data'!J109:CV109),0) -> 0 | G109: =IF(A109>0,'Asset data'!F109,0) -> 0 | H109: =IF(A109>0,SUM('Asset data'!CX109:GJ109),0) -> 0 | I109: 0 | J109: 0 | K109: 0 | L109: 0 | M109: =IF($A109>0,SUMPRODUCT('Age profile (years)'!$CT109:$GF109,'Asset data'!$CX109:$GJ109)/H109-0.5,0) -> 0 | N109: 0 | O109: =IF($A109>0,'Asset data'!G109,0) -> 0 | P109: 0 | Q109: 0 | R109: 0 | S109: 0 | T109: 0 | U109: 0 | W109: =IF($A109>0,SUMIF('Age profile (years)'!$CT109:$GF109,"<" & R109+0.5,'Asset data'!$CX109:$GJ109),0) -> 0 | X109: =IF($A109>0,SUMIF('Age profile (years)'!$CT109:$GF109,"<" & S109+0.5,'Asset data'!$CX109:$GJ109)-W109,0) -> 0 | Y109: =IF($A109>0,SUMIF('Age profile (years)'!$CT109:$GF109,"<" & T109+0.5,'Asset data'!$CX109:$GJ109)-X109-W109,0) -> 0 | Z109: =IF($A109>0,SUMIF('Age profile (years)'!$CT109:$GF109,"<" & U109+0.5,'Asset data'!$CX109:$GJ109)-Y109-X109-W109,0) -> 0 | AA109: 0 | AB109: 0 | AC109: 0 | AD109: 0 | AE109: 0 | AF109: 0 | AI109: =IF($A109>0,'RRR hist-forc'!K109,0) -> 0 | AJ109: 0
A110: ='Asset data'!A110 -> 6 | B110: ='Asset data'!B110 -> 0 | C110: ='Asset data'!C110 -> 0 | D110: ='Asset data'!E110 -> > 33 kV & < = 66 kV ; Switch | E110: SWITCHGEAR | F110: =IF(A110>0,SUM('Asset data'!J110:CV110),0) -> 397 | G110: =IF(A110>0,'Asset data'!F110,0) -> 71.66604134 | H110: =IF(A110>0,SUM('Asset data'!CX110:GJ110),0) -> 28451.41841 | I110: 0.004514985721 | J110: 24 | K110: 0.08485139069 | L110: 71.66604134 | M110: =IF($A110>0,SUMPRODUCT('Age profile (years)'!$CT110:$GF110,'Asset data'!$CX110:$GJ110)/H110-0.5,0) -> 30.61838791 | N110: 871136.5655 | O110: =IF($A110>0,'Asset data'!G110,0) -> 50.18247934 | P110: 1427762.717 | Q110: 0.3898590043 | R110: 5.018247934 | S110: 10.03649587 | T110: 30.1094876 | U110: 40.14598347 | W110: =IF($A110>0,SUMIF('Age profile (years)'!$CT110:$GF110,"<" & R110+0.5,'Asset data'!$CX110:$GJ110),0) -> 2006.649158 | X110: =IF($A110>0,SUMIF('Age profile (years)'!$CT110:$GF110,"<" & S110+0.5,'Asset data'!$CX110:$GJ110)-W110,0) -> 931.6585375 | Y110: =IF($A110>0,SUMIF('Age profile (years)'!$CT110:$GF110,"<" & T110+0.5,'Asset data'!$CX110:$GJ110)-X110-W110,0) -> 9603.24954 | Z110: =IF($A110>0,SUMIF('Age profile (years)'!$CT110:$GF110,"<" & U110+0.5,'Asset data'!$CX110:$GJ110)-Y110-X110-W110,0) -> 5876.61539 | AA110: 10033.24579 | AB110: 0.07052896725 | AC110: 0.03274559194 | AD110: 0.3375314861 | AE110: 0.2065491184 | AF110: 0.3526448363 | AI110: =IF($A110>0,'RRR hist-forc'!K110,0) -> 50.18247934 | AJ110: 1427762.717
A111: ='Asset data'!A111 -> 6 | B111: ='Asset data'!B111 -> 0 | C111: ='Asset data'!C111 -> 0 | D111: ='Asset data'!E111 -> > 33 kV & < = 66 kV ; Circuit Breaker | E111: SWITCHGEAR | F111: =IF(A111>0,SUM('Asset data'!J111:CV111),0) -> 55 | G111: =IF(A111>0,'Asset data'!F111,0) -> 318.6331131 | H111: =IF(A111>0,SUM('Asset data'!CX111:GJ111),0) -> 17524.82122 | I111: 0.002781032441 | J111: 31 | K111: 0.05226472124 | L111: 318.6331131 | M111: =IF($A111>0,SUMPRODUCT('Age profile (years)'!$CT111:$GF111,'Asset data'!$CX111:$GJ111)/H111-0.5,0) -> 20.02727273 | N111: 350974.3741 | O111: =IF($A111>0,'Asset data'!G111,0) -> 40.01492396 | P111: 701254.3886 | Q111: 0.4995049161 | R111: 4.001492396 | S111: 8.002984792 | T111: 24.00895438 | U111: 32.01193917 | W111: =IF($A111>0,SUMIF('Age profile (years)'!$CT111:$GF111,"<" & R111+0.5,'Asset data'!$CX111:$GJ111),0) -> 3504.964244 | X111: =IF($A111>0,SUMIF('Age profile (years)'!$CT111:$GF111,"<" & S111+0.5,'Asset data'!$CX111:$GJ111)-W111,0) -> 1911.798679 | Y111: =IF($A111>0,SUMIF('Age profile (years)'!$CT111:$GF111,"<" & T111+0.5,'Asset data'!$CX111:$GJ111)-X111-W111,0) -> 3823.597358 | Z111: =IF($A111>0,SUMIF('Age profile (years)'!$CT111:$GF111,"<" & U111+0.5,'Asset data'!$CX111:$GJ111)-Y111-X111-W111,0) -> 4142.230471 | AA111: 4142.230471 | AB111: 0.2 | AC111: 0.1090909091 | AD111: 0.2181818182 | AE111: 0.2363636364 | AF111: 0.2363636364 | AI111: =IF($A111>0,'RRR hist-forc'!K111,0) -> 40.01492396 | AJ111: 701254.3886
A112: ='Asset data'!A112 -> 0 | B112: ='Asset data'!B112 -> 0 | C112: ='Asset data'!C112 -> 0 | D112: ='Asset data'!E112 -> > 66 kV & < = 132 kV ; Switch | E112: 0 | F112: =IF(A112>0,SUM('Asset data'!J112:CV112),0) -> 0 | G112: =IF(A112>0,'Asset data'!F112,0) -> 0 | H112: =IF(A112>0,SUM('Asset data'!CX112:GJ112),0) -> 0 | I112: 0 | J112: 0 | K112: 0 | L112: 0 | M112: =IF($A112>0,SUMPRODUCT('Age profile (years)'!$CT112:$GF112,'Asset data'!$CX112:$GJ112)/H112-0.5,0) -> 0 | N112: 0 | O112: =IF($A112>0,'Asset data'!G112,0) -> 0 | P112: 0 | Q112: 0 | R112: 0 | S112: 0 | T112: 0 | U112: 0 | W112: =IF($A112>0,SUMIF('Age profile (years)'!$CT112:$GF112,"<" & R112+0.5,'Asset data'!$CX112:$GJ112),0) -> 0 | X112: =IF($A112>0,SUMIF('Age profile (years)'!$CT112:$GF112,"<" & S112+0.5,'Asset data'!$CX112:$GJ112)-W112,0) -> 0 | Y112: =IF($A112>0,SUMIF('Age profile (years)'!$CT112:$GF112,"<" & T112+0.5,'Asset data'!$CX112:$GJ112)-X112-W112,0) -> 0 | Z112: =IF($A112>0,SUMIF('Age profile (years)'!$CT112:$GF112,"<" & U112+0.5,'Asset data'!$CX112:$GJ112)-Y112-X112-W112,0) -> 0 | AA112: 0 | AB112: 0 | AC112: 0 | AD112: 0 | AE112: 0 | AF112: 0 | AI112: =IF($A112>0,'RRR hist-forc'!K112,0) -> 0 | AJ112: 0
A113: ='Asset data'!A113 -> 0 | B113: ='Asset data'!B113 -> 0 | C113: ='Asset data'!C113 -> 0 | D113: ='Asset data'!E113 -> > 66 kV & < = 132 kV ; Circuit Breaker | E113: 0 | F113: =IF(A113>0,SUM('Asset data'!J113:CV113),0) -> 0 | G113: =IF(A113>0,'Asset data'!F113,0) -> 0 | H113: =IF(A113>0,SUM('Asset data'!CX113:GJ113),0) -> 0 | I113: 0 | J113: 0 | K113: 0 | L113: 0 | M113: =IF($A113>0,SUMPRODUCT('Age profile (years)'!$CT113:$GF113,'Asset data'!$CX113:$GJ113)/H113-0.5,0) -> 0 | N113: 0 | O113: =IF($A113>0,'Asset data'!G113,0) -> 0 | P113: 0 | Q113: 0 | R113: 0 | S113: 0 | T113: 0 | U113: 0 | W113: =IF($A113>0,SUMIF('Age profile (years)'!$CT113:$GF113,"<" & R113+0.5,'Asset data'!$CX113:$GJ113),0) -> 0 | X113: =IF($A113>0,SUMIF('Age profile (years)'!$CT113:$GF113,"<" & S113+0.5,'Asset data'!$CX113:$GJ113)-W113,0) -> 0 | Y113: =IF($A113>0,SUMIF('Age profile (years)'!$CT113:$GF113,"<" & T113+0.5,'Asset data'!$CX113:$GJ113)-X113-W113,0) -> 0 | Z113: =IF($A113>0,SUMIF('Age profile (years)'!$CT113:$GF113,"<" & U113+0.5,'Asset data'!$CX113:$GJ113)-Y113-X113-W113,0) -> 0 | AA113: 0 | AB113: 0 | AC113: 0 | AD113: 0 | AE113: 0 | AF113: 0 | AI113: =IF($A113>0,'RRR hist-forc'!K113,0) -> 0 | AJ113: 0
A114: ='Asset data'!A114 -> 0 | B114: ='Asset data'!B114 -> 0 | C114: ='Asset data'!C114 -> 0 | D114: ='Asset data'!E114 -> > 132 kV ; Switch | E114: 0 | F114: =IF(A114>0,SUM('Asset data'!J114:CV114),0) -> 0 | G114: =IF(A114>0,'Asset data'!F114,0) -> 0 | H114: =IF(A114>0,SUM('Asset data'!CX114:GJ114),0) -> 0 | I114: 0 | J114: 0 | K114: 0 | L114: 0 | M114: =IF($A114>0,SUMPRODUCT('Age profile (years)'!$CT114:$GF114,'Asset data'!$CX114:$GJ114)/H114-0.5,0) -> 0 | N114: 0 | O114: =IF($A114>0,'Asset data'!G114,0) -> 0 | P114: 0 | Q114: 0 | R114: 0 | S114: 0 | T114: 0 | U114: 0 | W114: =IF($A114>0,SUMIF('Age profile (years)'!$CT114:$GF114,"<" & R114+0.5,'Asset data'!$CX114:$GJ114),0) -> 0 | X114: =IF($A114>0,SUMIF('Age profile (years)'!$CT114:$GF114,"<" & S114+0.5,'Asset data'!$CX114:$GJ114)-W114,0) -> 0 | Y114: =IF($A114>0,SUMIF('Age profile (years)'!$CT114:$GF114,"<" & T114+0.5,'Asset data'!$CX114:$GJ114)-X114-W114,0) -> 0 | Z114: =IF($A114>0,SUMIF('Age profile (years)'!$CT114:$GF114,"<" & U114+0.5,'Asset data'!$CX114:$GJ114)-Y114-X114-W114,0) -> 0 | AA114: 0 | AB114: 0 | AC114: 0 | AD114: 0 | AE114: 0 | AF114: 0 | AI114: =IF($A114>0,'RRR hist-forc'!K114,0) -> 0 | AJ114: 0
A115: ='Asset data'!A115 -> 0 | B115: ='Asset data'!B115 -> 0 | C115: ='Asset data'!C115 -> 0 | D115: ='Asset data'!E115 -> > 132 kV ; Circuit Breaker | E115: 0 | F115: =IF(A115>0,SUM('Asset data'!J115:CV115),0) -> 0 | G115: =IF(A115>0,'Asset data'!F115,0) -> 0 | H115: =IF(A115>0,SUM('Asset data'!CX115:GJ115),0) -> 0 | I115: 0 | J115: 0 | K115: 0 | L115: 0 | M115: =IF($A115>0,SUMPRODUCT('Age profile (years)'!$CT115:$GF115,'Asset data'!$CX115:$GJ115)/H115-0.5,0) -> 0 | N115: 0 | O115: =IF($A115>0,'Asset data'!G115,0) -> 0 | P115: 0 | Q115: 0 | R115: 0 | S115: 0 | T115: 0 | U115: 0 | W115: =IF($A115>0,SUMIF('Age profile (years)'!$CT115:$GF115,"<" & R115+0.5,'Asset data'!$CX115:$GJ115),0) -> 0 | X115: =IF($A115>0,SUMIF('Age profile (years)'!$CT115:$GF115,"<" & S115+0.5,'Asset data'!$CX115:$GJ115)-W115,0) -> 0 | Y115: =IF($A115>0,SUMIF('Age profile (years)'!$CT115:$GF115,"<" & T115+0.5,'Asset data'!$CX115:$GJ115)-X115-W115,0) -> 0 | Z115: =IF($A115>0,SUMIF('Age profile (years)'!$CT115:$GF115,"<" & U115+0.5,'Asset data'!$CX115:$GJ115)-Y115-X115-W115,0) -> 0 | AA115: 0 | AB115: 0 | AC115: 0 | AD115: 0 | AE115: 0 | AF115: 0 | AI115: =IF($A115>0,'RRR hist-forc'!K115,0) -> 0 | AJ115: 0
A116: ='Asset data'!A116 -> 0 | B116: ='Asset data'!B116 -> 0 | C116: ='Asset data'!C116 -> 0 | D116: ='Asset data'!E116 -> Other | E116: 0 | F116: =IF(A116>0,SUM('Asset data'!J116:CV116),0) -> 0 | G116: =IF(A116>0,'Asset data'!F116,0) -> 0 | H116: =IF(A116>0,SUM('Asset data'!CX116:GJ116),0) -> 0 | I116: 0 | J116: 0 | K116: 0 | L116: 0 | M116: =IF($A116>0,SUMPRODUCT('Age profile (years)'!$CT116:$GF116,'Asset data'!$CX116:$GJ116)/H116-0.5,0) -> 0 | N116: 0 | O116: =IF($A116>0,'Asset data'!G116,0) -> 0 | P116: 0 | Q116: 0 | R116: 0 | S116: 0 | T116: 0 | U116: 0 | W116: =IF($A116>0,SUMIF('Age profile (years)'!$CT116:$GF116,"<" & R116+0.5,'Asset data'!$CX116:$GJ116),0) -> 0 | X116: =IF($A116>0,SUMIF('Age profile (years)'!$CT116:$GF116,"<" & S116+0.5,'Asset data'!$CX116:$GJ116)-W116,0) -> 0 | Y116: =IF($A116>0,SUMIF('Age profile (years)'!$CT116:$GF116,"<" & T116+0.5,'Asset data'!$CX116:$GJ116)-X116-W116,0) -> 0 | Z116: =IF($A116>0,SUMIF('Age profile (years)'!$CT116:$GF116,"<" & U116+0.5,'Asset data'!$CX116:$GJ116)-Y116-X116-W116,0) -> 0 | AA116: 0 | AB116: 0 | AC116: 0 | AD116: 0 | AE116: 0 | AF116: 0 | AI116: =IF($A116>0,'RRR hist-forc'!K116,0) -> 0 | AJ116: 0
A117: ='Asset data'!A117 -> 0 | B117: ='Asset data'!B117 -> 0 | C117: ='Asset data'!C117 -> 0 | D117: ='Asset data'!E117 -> Luminaires ; Major Road | E117: 0 | F117: =IF(A117>0,SUM('Asset data'!J117:CV117),0) -> 0 | G117: =IF(A117>0,'Asset data'!F117,0) -> 0 | H117: =IF(A117>0,SUM('Asset data'!CX117:GJ117),0) -> 0 | I117: 0 | J117: 0 | K117: 0 | L117: 0 | M117: =IF($A117>0,SUMPRODUCT('Age profile (years)'!$CT117:$GF117,'Asset data'!$CX117:$GJ117)/H117-0.5,0) -> 0 | N117: 0 | O117: =IF($A117>0,'Asset data'!G117,0) -> 0 | P117: 0 | Q117: 0 | R117: 0 | S117: 0 | T117: 0 | U117: 0 | W117: =IF($A117>0,SUMIF('Age profile (years)'!$CT117:$GF117,"<" & R117+0.5,'Asset data'!$CX117:$GJ117),0) -> 0 | X117: =IF($A117>0,SUMIF('Age profile (years)'!$CT117:$GF117,"<" & S117+0.5,'Asset data'!$CX117:$GJ117)-W117,0) -> 0 | Y117: =IF($A117>0,SUMIF('Age profile (years)'!$CT117:$GF117,"<" & T117+0.5,'Asset data'!$CX117:$GJ117)-X117-W117,0) -> 0 | Z117: =IF($A117>0,SUMIF('Age profile (years)'!$CT117:$GF117,"<" & U117+0.5,'Asset data'!$CX117:$GJ117)-Y117-X117-W117,0) -> 0 | AA117: 0 | AB117: 0 | AC117: 0 | AD117: 0 | AE117: 0 | AF117: 0 | AI117: =IF($A117>0,'RRR hist-forc'!K117,0) -> 0 | AJ117: 0
A118: ='Asset data'!A118 -> 0 | B118: ='Asset data'!B118 -> 0 | C118: ='Asset data'!C118 -> 0 | D118: ='Asset data'!E118 -> Luminaires ; Minor Road | E118: 0 | F118: =IF(A118>0,SUM('Asset data'!J118:CV118),0) -> 0 | G118: =IF(A118>0,'Asset data'!F118,0) -> 0 | H118: =IF(A118>0,SUM('Asset data'!CX118:GJ118),0) -> 0 | I118: 0 | J118: 0 | K118: 0 | L118: 0 | M118: =IF($A118>0,SUMPRODUCT('Age profile (years)'!$CT118:$GF118,'Asset data'!$CX118:$GJ118)/H118-0.5,0) -> 0 | N118: 0 | O118: =IF($A118>0,'Asset data'!G118,0) -> 0 | P118: 0 | Q118: 0 | R118: 0 | S118: 0 | T118: 0 | U118: 0 | W118: =IF($A118>0,SUMIF('Age profile (years)'!$CT118:$GF118,"<" & R118+0.5,'Asset data'!$CX118:$GJ118),0) -> 0 | X118: =IF($A118>0,SUMIF('Age profile (years)'!$CT118:$GF118,"<" & S118+0.5,'Asset data'!$CX118:$GJ118)-W118,0) -> 0 | Y118: =IF($A118>0,SUMIF('Age profile (years)'!$CT118:$GF118,"<" & T118+0.5,'Asset data'!$CX118:$GJ118)-X118-W118,0) -> 0 | Z118: =IF($A118>0,SUMIF('Age profile (years)'!$CT118:$GF118,"<" & U118+0.5,'Asset data'!$CX118:$GJ118)-Y118-X118-W118,0) -> 0 | AA118: 0 | AB118: 0 | AC118: 0 | AD118: 0 | AE118: 0 | AF118: 0 | AI118: =IF($A118>0,'RRR hist-forc'!K118,0) -> 0 | AJ118: 0
A119: ='Asset data'!A119 -> 0 | B119: ='Asset data'!B119 -> 0 | C119: ='Asset data'!C119 -> 0 | D119: ='Asset data'!E119 -> Brackets ; Major Road | E119: 0 | F119: =IF(A119>0,SUM('Asset data'!J119:CV119),0) -> 0 | G119: =IF(A119>0,'Asset data'!F119,0) -> 0 | H119: =IF(A119>0,SUM('Asset data'!CX119:GJ119),0) -> 0 | I119: 0 | J119: 0 | K119: 0 | L119: 0 | M119: =IF($A119>0,SUMPRODUCT('Age profile (years)'!$CT119:$GF119,'Asset data'!$CX119:$GJ119)/H119-0.5,0) -> 0 | N119: 0 | O119: =IF($A119>0,'Asset data'!G119,0) -> 0 | P119: 0 | Q119: 0 | R119: 0 | S119: 0 | T119: 0 | U119: 0 | W119: =IF($A119>0,SUMIF('Age profile (years)'!$CT119:$GF119,"<" & R119+0.5,'Asset data'!$CX119:$GJ119),0) -> 0 | X119: =IF($A119>0,SUMIF('Age profile (years)'!$CT119:$GF119,"<" & S119+0.5,'Asset data'!$CX119:$GJ119)-W119,0) -> 0 | Y119: =IF($A119>0,SUMIF('Age profile (years)'!$CT119:$GF119,"<" & T119+0.5,'Asset data'!$CX119:$GJ119)-X119-W119,0) -> 0 | Z119: =IF($A119>0,SUMIF('Age profile (years)'!$CT119:$GF119,"<" & U119+0.5,'Asset data'!$CX119:$GJ119)-Y119-X119-W119,0) -> 0 | AA119: 0 | AB119: 0 | AC119: 0 | AD119: 0 | AE119: 0 | AF119: 0 | AI119: =IF($A119>0,'RRR hist-forc'!K119,0) -> 0 | AJ119: 0
A120: ='Asset data'!A120 -> 0 | B120: ='Asset data'!B120 -> 0 | C120: ='Asset data'!C120 -> 0 | D120: ='Asset data'!E120 -> Brackets ; Minor Road | E120: 0 | F120: =IF(A120>0,SUM('Asset data'!J120:CV120),0) -> 0 | G120: =IF(A120>0,'Asset data'!F120,0) -> 0 | H120: =IF(A120>0,SUM('Asset data'!CX120:GJ120),0) -> 0 | I120: 0 | J120: 0 | K120: 0 | L120: 0 | M120: =IF($A120>0,SUMPRODUCT('Age profile (years)'!$CT120:$GF120,'Asset data'!$CX120:$GJ120)/H120-0.5,0) -> 0 | N120: 0 | O120: =IF($A120>0,'Asset data'!G120,0) -> 0 | P120: 0 | Q120: 0 | R120: 0 | S120: 0 | T120: 0 | U120: 0 | W120: =IF($A120>0,SUMIF('Age profile (years)'!$CT120:$GF120,"<" & R120+0.5,'Asset data'!$CX120:$GJ120),0) -> 0 | X120: =IF($A120>0,SUMIF('Age profile (years)'!$CT120:$GF120,"<" & S120+0.5,'Asset data'!$CX120:$GJ120)-W120,0) -> 0 | Y120: =IF($A120>0,SUMIF('Age profile (years)'!$CT120:$GF120,"<" & T120+0.5,'Asset data'!$CX120:$GJ120)-X120-W120,0) -> 0 | Z120: =IF($A120>0,SUMIF('Age profile (years)'!$CT120:$GF120,"<" & U120+0.5,'Asset data'!$CX120:$GJ120)-Y120-X120-W120,0) -> 0 | AA120: 0 | AB120: 0 | AC120: 0 | AD120: 0 | AE120: 0 | AF120: 0 | AI120: =IF($A120>0,'RRR hist-forc'!K120,0) -> 0 | AJ120: 0
A121: ='Asset data'!A121 -> 0 | B121: ='Asset data'!B121 -> 0 | C121: ='Asset data'!C121 -> 0 | D121: ='Asset data'!E121 -> Lamps ; Major Road | E121: 0 | F121: =IF(A121>0,SUM('Asset data'!J121:CV121),0) -> 0 | G121: =IF(A121>0,'Asset data'!F121,0) -> 0 | H121: =IF(A121>0,SUM('Asset data'!CX121:GJ121),0) -> 0 | I121: 0 | J121: 0 | K121: 0 | L121: 0 | M121: =IF($A121>0,SUMPRODUCT('Age profile (years)'!$CT121:$GF121,'Asset data'!$CX121:$GJ121)/H121-0.5,0) -> 0 | N121: 0 | O121: =IF($A121>0,'Asset data'!G121,0) -> 0 | P121: 0 | Q121: 0 | R121: 0 | S121: 0 | T121: 0 | U121: 0 | W121: =IF($A121>0,SUMIF('Age profile (years)'!$CT121:$GF121,"<" & R121+0.5,'Asset data'!$CX121:$GJ121),0) -> 0 | X121: =IF($A121>0,SUMIF('Age profile (years)'!$CT121:$GF121,"<" & S121+0.5,'Asset data'!$CX121:$GJ121)-W121,0) -> 0 | Y121: =IF($A121>0,SUMIF('Age profile (years)'!$CT121:$GF121,"<" & T121+0.5,'Asset data'!$CX121:$GJ121)-X121-W121,0) -> 0 | Z121: =IF($A121>0,SUMIF('Age profile (years)'!$CT121:$GF121,"<" & U121+0.5,'Asset data'!$CX121:$GJ121)-Y121-X121-W121,0) -> 0 | AA121: 0 | AB121: 0 | AC121: 0 | AD121: 0 | AE121: 0 | AF121: 0 | AI121: =IF($A121>0,'RRR hist-forc'!K121,0) -> 0 | AJ121: 0
A122: ='Asset data'!A122 -> 0 | B122: ='Asset data'!B122 -> 0 | C122: ='Asset data'!C122 -> 0 | D122: ='Asset data'!E122 -> Lamps ; Minor Road | E122: 0 | F122: =IF(A122>0,SUM('Asset data'!J122:CV122),0) -> 0 | G122: =IF(A122>0,'Asset data'!F122,0) -> 0 | H122: =IF(A122>0,SUM('Asset data'!CX122:GJ122),0) -> 0 | I122: 0 | J122: 0 | K122: 0 | L122: 0 | M122: =IF($A122>0,SUMPRODUCT('Age profile (years)'!$CT122:$GF122,'Asset data'!$CX122:$GJ122)/H122-0.5,0) -> 0 | N122: 0 | O122: =IF($A122>0,'Asset data'!G122,0) -> 0 | P122: 0 | Q122: 0 | R122: 0 | S122: 0 | T122: 0 | U122: 0 | W122: =IF($A122>0,SUMIF('Age profile (years)'!$CT122:$GF122,"<" & R122+0.5,'Asset data'!$CX122:$GJ122),0) -> 0 | X122: =IF($A122>0,SUMIF('Age profile (years)'!$CT122:$GF122,"<" & S122+0.5,'Asset data'!$CX122:$GJ122)-W122,0) -> 0 | Y122: =IF($A122>0,SUMIF('Age profile (years)'!$CT122:$GF122,"<" & T122+0.5,'Asset data'!$CX122:$GJ122)-X122-W122,0) -> 0 | Z122: =IF($A122>0,SUMIF('Age profile (years)'!$CT122:$GF122,"<" & U122+0.5,'Asset data'!$CX122:$GJ122)-Y122-X122-W122,0) -> 0 | AA122: 0 | AB122: 0 | AC122: 0 | AD122: 0 | AE122: 0 | AF122: 0 | AI122: =IF($A122>0,'RRR hist-forc'!K122,0) -> 0 | AJ122: 0
A123: ='Asset data'!A123 -> 0 | B123: ='Asset data'!B123 -> 0 | C123: ='Asset data'!C123 -> 0 | D123: ='Asset data'!E123 -> Poles / Columns ; Major Road | E123: 0 | F123: =IF(A123>0,SUM('Asset data'!J123:CV123),0) -> 0 | G123: =IF(A123>0,'Asset data'!F123,0) -> 0 | H123: =IF(A123>0,SUM('Asset data'!CX123:GJ123),0) -> 0 | I123: 0 | J123: 0 | K123: 0 | L123: 0 | M123: =IF($A123>0,SUMPRODUCT('Age profile (years)'!$CT123:$GF123,'Asset data'!$CX123:$GJ123)/H123-0.5,0) -> 0 | N123: 0 | O123: =IF($A123>0,'Asset data'!G123,0) -> 0 | P123: 0 | Q123: 0 | R123: 0 | S123: 0 | T123: 0 | U123: 0 | W123: =IF($A123>0,SUMIF('Age profile (years)'!$CT123:$GF123,"<" & R123+0.5,'Asset data'!$CX123:$GJ123),0) -> 0 | X123: =IF($A123>0,SUMIF('Age profile (years)'!$CT123:$GF123,"<" & S123+0.5,'Asset data'!$CX123:$GJ123)-W123,0) -> 0 | Y123: =IF($A123>0,SUMIF('Age profile (years)'!$CT123:$GF123,"<" & T123+0.5,'Asset data'!$CX123:$GJ123)-X123-W123,0) -> 0 | Z123: =IF($A123>0,SUMIF('Age profile (years)'!$CT123:$GF123,"<" & U123+0.5,'Asset data'!$CX123:$GJ123)-Y123-X123-W123,0) -> 0 | AA123: 0 | AB123: 0 | AC123: 0 | AD123: 0 | AE123: 0 | AF123: 0 | AI123: =IF($A123>0,'RRR hist-forc'!K123,0) -> 0 | AJ123: 0
A124: ='Asset data'!A124 -> 0 | B124: ='Asset data'!B124 -> 0 | C124: ='Asset data'!C124 -> 0 | D124: ='Asset data'!E124 -> Poles / Columns ; Minor Road | E124: 0 | F124: =IF(A124>0,SUM('Asset data'!J124:CV124),0) -> 0 | G124: =IF(A124>0,'Asset data'!F124,0) -> 0 | H124: =IF(A124>0,SUM('Asset data'!CX124:GJ124),0) -> 0 | I124: 0 | J124: 0 | K124: 0 | L124: 0 | M124: =IF($A124>0,SUMPRODUCT('Age profile (years)'!$CT124:$GF124,'Asset data'!$CX124:$GJ124)/H124-0.5,0) -> 0 | N124: 0 | O124: =IF($A124>0,'Asset data'!G124,0) -> 0 | P124: 0 | Q124: 0 | R124: 0 | S124: 0 | T124: 0 | U124: 0 | W124: =IF($A124>0,SUMIF('Age profile (years)'!$CT124:$GF124,"<" & R124+0.5,'Asset data'!$CX124:$GJ124),0) -> 0 | X124: =IF($A124>0,SUMIF('Age profile (years)'!$CT124:$GF124,"<" & S124+0.5,'Asset data'!$CX124:$GJ124)-W124,0) -> 0 | Y124: =IF($A124>0,SUMIF('Age profile (years)'!$CT124:$GF124,"<" & T124+0.5,'Asset data'!$CX124:$GJ124)-X124-W124,0) -> 0 | Z124: =IF($A124>0,SUMIF('Age profile (years)'!$CT124:$GF124,"<" & U124+0.5,'Asset data'!$CX124:$GJ124)-Y124-X124-W124,0) -> 0 | AA124: 0 | AB124: 0 | AC124: 0 | AD124: 0 | AE124: 0 | AF124: 0 | AI124: =IF($A124>0,'RRR hist-forc'!K124,0) -> 0 | AJ124: 0
A125: ='Asset data'!A125 -> 0 | B125: ='Asset data'!B125 -> 0 | C125: ='Asset data'!C125 -> 0 | D125: ='Asset data'!E125 -> Other | E125: 0 | F125: =IF(A125>0,SUM('Asset data'!J125:CV125),0) -> 0 | G125: =IF(A125>0,'Asset data'!F125,0) -> 0 | H125: =IF(A125>0,SUM('Asset data'!CX125:GJ125),0) -> 0 | I125: 0 | J125: 0 | K125: 0 | L125: 0 | M125: =IF($A125>0,SUMPRODUCT('Age profile (years)'!$CT125:$GF125,'Asset data'!$CX125:$GJ125)/H125-0.5,0) -> 0 | N125: 0 | O125: =IF($A125>0,'Asset data'!G125,0) -> 0 | P125: 0 | Q125: 0 | R125: 0 | S125: 0 | T125: 0 | U125: 0 | W125: =IF($A125>0,SUMIF('Age profile (years)'!$CT125:$GF125,"<" & R125+0.5,'Asset data'!$CX125:$GJ125),0) -> 0 | X125: =IF($A125>0,SUMIF('Age profile (years)'!$CT125:$GF125,"<" & S125+0.5,'Asset data'!$CX125:$GJ125)-W125,0) -> 0 | Y125: =IF($A125>0,SUMIF('Age profile (years)'!$CT125:$GF125,"<" & T125+0.5,'Asset data'!$CX125:$GJ125)-X125-W125,0) -> 0 | Z125: =IF($A125>0,SUMIF('Age profile (years)'!$CT125:$GF125,"<" & U125+0.5,'Asset data'!$CX125:$GJ125)-Y125-X125-W125,0) -> 0 | AA125: 0 | AB125: 0 | AC125: 0 | AD125: 0 | AE125: 0 | AF125: 0 | AI125: =IF($A125>0,'RRR hist-forc'!K125,0) -> 0 | AJ125: 0
A126: ='Asset data'!A126 -> 0 | B126: ='Asset data'!B126 -> 0 | C126: ='Asset data'!C126 -> 0 | D126: ='Asset data'!E126 -> Field Devices | E126: 0 | F126: =IF(A126>0,SUM('Asset data'!J126:CV126),0) -> 0 | G126: =IF(A126>0,'Asset data'!F126,0) -> 0 | H126: =IF(A126>0,SUM('Asset data'!CX126:GJ126),0) -> 0 | I126: 0 | J126: 0 | K126: 0 | L126: 0 | M126: =IF($A126>0,SUMPRODUCT('Age profile (years)'!$CT126:$GF126,'Asset data'!$CX126:$GJ126)/H126-0.5,0) -> 0 | N126: 0 | O126: =IF($A126>0,'Asset data'!G126,0) -> 0 | P126: 0 | Q126: 0 | R126: 0 | S126: 0 | T126: 0 | U126: 0 | W126: =IF($A126>0,SUMIF('Age profile (years)'!$CT126:$GF126,"<" & R126+0.5,'Asset data'!$CX126:$GJ126),0) -> 0 | X126: =IF($A126>0,SUMIF('Age profile (years)'!$CT126:$GF126,"<" & S126+0.5,'Asset data'!$CX126:$GJ126)-W126,0) -> 0 | Y126: =IF($A126>0,SUMIF('Age profile (years)'!$CT126:$GF126,"<" & T126+0.5,'Asset data'!$CX126:$GJ126)-X126-W126,0) -> 0 | Z126: =IF($A126>0,SUMIF('Age profile (years)'!$CT126:$GF126,"<" & U126+0.5,'Asset data'!$CX126:$GJ126)-Y126-X126-W126,0) -> 0 | AA126: 0 | AB126: 0 | AC126: 0 | AD126: 0 | AE126: 0 | AF126: 0 | AI126: =IF($A126>0,'RRR hist-forc'!K126,0) -> 0 | AJ126: 0
A127: ='Asset data'!A127 -> 0 | B127: ='Asset data'!B127 -> 0 | C127: ='Asset data'!C127 -> 0 | D127: ='Asset data'!E127 -> Local Network Wiring Assets | E127: 0 | F127: =IF(A127>0,SUM('Asset data'!J127:CV127),0) -> 0 | G127: =IF(A127>0,'Asset data'!F127,0) -> 0 | H127: =IF(A127>0,SUM('Asset data'!CX127:GJ127),0) -> 0 | I127: 0 | J127: 0 | K127: 0 | L127: 0 | M127: =IF($A127>0,SUMPRODUCT('Age profile (years)'!$CT127:$GF127,'Asset data'!$CX127:$GJ127)/H127-0.5,0) -> 0 | N127: 0 | O127: =IF($A127>0,'Asset data'!G127,0) -> 0 | P127: 0 | Q127: 0 | R127: 0 | S127: 0 | T127: 0 | U127: 0 | W127: =IF($A127>0,SUMIF('Age profile (years)'!$CT127:$GF127,"<" & R127+0.5,'Asset data'!$CX127:$GJ127),0) -> 0 | X127: =IF($A127>0,SUMIF('Age profile (years)'!$CT127:$GF127,"<" & S127+0.5,'Asset data'!$CX127:$GJ127)-W127,0) -> 0 | Y127: =IF($A127>0,SUMIF('Age profile (years)'!$CT127:$GF127,"<" & T127+0.5,'Asset data'!$CX127:$GJ127)-X127-W127,0) -> 0 | Z127: =IF($A127>0,SUMIF('Age profile (years)'!$CT127:$GF127,"<" & U127+0.5,'Asset data'!$CX127:$GJ127)-Y127-X127-W127,0) -> 0 | AA127: 0 | AB127: 0 | AC127: 0 | AD127: 0 | AE127: 0 | AF127: 0 | AI127: =IF($A127>0,'RRR hist-forc'!K127,0) -> 0 | AJ127: 0
A128: ='Asset data'!A128 -> 0 | B128: ='Asset data'!B128 -> 0 | C128: ='Asset data'!C128 -> 0 | D128: ='Asset data'!E128 -> Communications Network Assets | E128: 0 | F128: =IF(A128>0,SUM('Asset data'!J128:CV128),0) -> 0 | G128: =IF(A128>0,'Asset data'!F128,0) -> 0 | H128: =IF(A128>0,SUM('Asset data'!CX128:GJ128),0) -> 0 | I128: 0 | J128: 0 | K128: 0 | L128: 0 | M128: =IF($A128>0,SUMPRODUCT('Age profile (years)'!$CT128:$GF128,'Asset data'!$CX128:$GJ128)/H128-0.5,0) -> 0 | N128: 0 | O128: =IF($A128>0,'Asset data'!G128,0) -> 0 | P128: 0 | Q128: 0 | R128: 0 | S128: 0 | T128: 0 | U128: 0 | W128: =IF($A128>0,SUMIF('Age profile (years)'!$CT128:$GF128,"<" & R128+0.5,'Asset data'!$CX128:$GJ128),0) -> 0 | X128: =IF($A128>0,SUMIF('Age profile (years)'!$CT128:$GF128,"<" & S128+0.5,'Asset data'!$CX128:$GJ128)-W128,0) -> 0 | Y128: =IF($A128>0,SUMIF('Age profile (years)'!$CT128:$GF128,"<" & T128+0.5,'Asset data'!$CX128:$GJ128)-X128-W128,0) -> 0 | Z128: =IF($A128>0,SUMIF('Age profile (years)'!$CT128:$GF128,"<" & U128+0.5,'Asset data'!$CX128:$GJ128)-Y128-X128-W128,0) -> 0 | AA128: 0 | AB128: 0 | AC128: 0 | AD128: 0 | AE128: 0 | AF128: 0 | AI128: =IF($A128>0,'RRR hist-forc'!K128,0) -> 0 | AJ128: 0
A129: ='Asset data'!A129 -> 0 | B129: ='Asset data'!B129 -> 0 | C129: ='Asset data'!C129 -> 0 | D129: ='Asset data'!E129 -> Master Station Assets | E129: 0 | F129: =IF(A129>0,SUM('Asset data'!J129:CV129),0) -> 0 | G129: =IF(A129>0,'Asset data'!F129,0) -> 0 | H129: =IF(A129>0,SUM('Asset data'!CX129:GJ129),0) -> 0 | I129: 0 | J129: 0 | K129: 0 | L129: 0 | M129: =IF($A129>0,SUMPRODUCT('Age profile (years)'!$CT129:$GF129,'Asset data'!$CX129:$GJ129)/H129-0.5,0) -> 0 | N129: 0 | O129: =IF($A129>0,'Asset data'!G129,0) -> 0 | P129: 0 | Q129: 0 | R129: 0 | S129: 0 | T129: 0 | U129: 0 | W129: =IF($A129>0,SUMIF('Age profile (years)'!$CT129:$GF129,"<" & R129+0.5,'Asset data'!$CX129:$GJ129),0) -> 0 | X129: =IF($A129>0,SUMIF('Age profile (years)'!$CT129:$GF129,"<" & S129+0.5,'Asset data'!$CX129:$GJ129)-W129,0) -> 0 | Y129: =IF($A129>0,SUMIF('Age profile (years)'!$CT129:$GF129,"<" & T129+0.5,'Asset data'!$CX129:$GJ129)-X129-W129,0) -> 0 | Z129: =IF($A129>0,SUMIF('Age profile (years)'!$CT129:$GF129,"<" & U129+0.5,'Asset data'!$CX129:$GJ129)-Y129-X129-W129,0) -> 0 | AA129: 0 | AB129: 0 | AC129: 0 | AD129: 0 | AE129: 0 | AF129: 0 | AI129: =IF($A129>0,'RRR hist-forc'!K129,0) -> 0 | AJ129: 0
A130: ='Asset data'!A130 -> 0 | B130: ='Asset data'!B130 -> 0 | C130: ='Asset data'!C130 -> 0 | D130: ='Asset data'!E130 -> Communications Site Infrastructure | E130: 0 | F130: =IF(A130>0,SUM('Asset data'!J130:CV130),0) -> 0 | G130: =IF(A130>0,'Asset data'!F130,0) -> 0 | H130: =IF(A130>0,SUM('Asset data'!CX130:GJ130),0) -> 0 | I130: 0 | J130: 0 | K130: 0 | L130: 0 | M130: =IF($A130>0,SUMPRODUCT('Age profile (years)'!$CT130:$GF130,'Asset data'!$CX130:$GJ130)/H130-0.5,0) -> 0 | N130: 0 | O130: =IF($A130>0,'Asset data'!G130,0) -> 0 | P130: 0 | Q130: 0 | R130: 0 | S130: 0 | T130: 0 | U130: 0 | W130: =IF($A130>0,SUMIF('Age profile (years)'!$CT130:$GF130,"<" & R130+0.5,'Asset data'!$CX130:$GJ130),0) -> 0 | X130: =IF($A130>0,SUMIF('Age profile (years)'!$CT130:$GF130,"<" & S130+0.5,'Asset data'!$CX130:$GJ130)-W130,0) -> 0 | Y130: =IF($A130>0,SUMIF('Age profile (years)'!$CT130:$GF130,"<" & T130+0.5,'Asset data'!$CX130:$GJ130)-X130-W130,0) -> 0 | Z130: =IF($A130>0,SUMIF('Age profile (years)'!$CT130:$GF130,"<" & U130+0.5,'Asset data'!$CX130:$GJ130)-Y130-X130-W130,0) -> 0 | AA130: 0 | AB130: 0 | AC130: 0 | AD130: 0 | AE130: 0 | AF130: 0 | AI130: =IF($A130>0,'RRR hist-forc'!K130,0) -> 0 | AJ130: 0
A131: ='Asset data'!A131 -> 0 | B131: ='Asset data'!B131 -> 0 | C131: ='Asset data'!C131 -> 0 | D131: ='Asset data'!E131 -> Communications Linear Assets | E131: 0 | F131: =IF(A131>0,SUM('Asset data'!J131:CV131),0) -> 0 | G131: =IF(A131>0,'Asset data'!F131,0) -> 0 | H131: =IF(A131>0,SUM('Asset data'!CX131:GJ131),0) -> 0 | I131: 0 | J131: 0 | K131: 0 | L131: 0 | M131: =IF($A131>0,SUMPRODUCT('Age profile (years)'!$CT131:$GF131,'Asset data'!$CX131:$GJ131)/H131-0.5,0) -> 0 | N131: 0 | O131: =IF($A131>0,'Asset data'!G131,0) -> 0 | P131: 0 | Q131: 0 | R131: 0 | S131: 0 | T131: 0 | U131: 0 | W131: =IF($A131>0,SUMIF('Age profile (years)'!$CT131:$GF131,"<" & R131+0.5,'Asset data'!$CX131:$GJ131),0) -> 0 | X131: =IF($A131>0,SUMIF('Age profile (years)'!$CT131:$GF131,"<" & S131+0.5,'Asset data'!$CX131:$GJ131)-W131,0) -> 0 | Y131: =IF($A131>0,SUMIF('Age profile (years)'!$CT131:$GF131,"<" & T131+0.5,'Asset data'!$CX131:$GJ131)-X131-W131,0) -> 0 | Z131: =IF($A131>0,SUMIF('Age profile (years)'!$CT131:$GF131,"<" & U131+0.5,'Asset data'!$CX131:$GJ131)-Y131-X131-W131,0) -> 0 | AA131: 0 | AB131: 0 | AC131: 0 | AD131: 0 | AE131: 0 | AF131: 0 | AI131: =IF($A131>0,'RRR hist-forc'!K131,0) -> 0 | AJ131: 0
A132: ='Asset data'!A132 -> 0 | B132: ='Asset data'!B132 -> 0 | C132: ='Asset data'!C132 -> 0 | D132: ='Asset data'!E132 -> AFLC | E132: 0 | F132: =IF(A132>0,SUM('Asset data'!J132:CV132),0) -> 0 | G132: =IF(A132>0,'Asset data'!F132,0) -> 0 | H132: =IF(A132>0,SUM('Asset data'!CX132:GJ132),0) -> 0 | I132: 0 | J132: 0 | K132: 0 | L132: 0 | M132: =IF($A132>0,SUMPRODUCT('Age profile (years)'!$CT132:$GF132,'Asset data'!$CX132:$GJ132)/H132-0.5,0) -> 0 | N132: 0 | O132: =IF($A132>0,'Asset data'!G132,0) -> 0 | P132: 0 | Q132: 0 | R132: 0 | S132: 0 | T132: 0 | U132: 0 | W132: =IF($A132>0,SUMIF('Age profile (years)'!$CT132:$GF132,"<" & R132+0.5,'Asset data'!$CX132:$GJ132),0) -> 0 | X132: =IF($A132>0,SUMIF('Age profile (years)'!$CT132:$GF132,"<" & S132+0.5,'Asset data'!$CX132:$GJ132)-W132,0) -> 0 | Y132: =IF($A132>0,SUMIF('Age profile (years)'!$CT132:$GF132,"<" & T132+0.5,'Asset data'!$CX132:$GJ132)-X132-W132,0) -> 0 | Z132: =IF($A132>0,SUMIF('Age profile (years)'!$CT132:$GF132,"<" & U132+0.5,'Asset data'!$CX132:$GJ132)-Y132-X132-W132,0) -> 0 | AA132: 0 | AB132: 0 | AC132: 0 | AD132: 0 | AE132: 0 | AF132: 0 | AI132: =IF($A132>0,'RRR hist-forc'!K132,0) -> 0 | AJ132: 0
A133: ='Asset data'!A133 -> 0 | B133: ='Asset data'!B133 -> 0 | C133: ='Asset data'!C133 -> 0 | D133: ='Asset data'!E133 -> Other | E133: 0 | F133: =IF(A133>0,SUM('Asset data'!J133:CV133),0) -> 0 | G133: =IF(A133>0,'Asset data'!F133,0) -> 0 | H133: =IF(A133>0,SUM('Asset data'!CX133:GJ133),0) -> 0 | I133: 0 | J133: 0 | K133: 0 | L133: 0 | M133: =IF($A133>0,SUMPRODUCT('Age profile (years)'!$CT133:$GF133,'Asset data'!$CX133:$GJ133)/H133-0.5,0) -> 0 | N133: 0 | O133: =IF($A133>0,'Asset data'!G133,0) -> 0 | P133: 0 | Q133: 0 | R133: 0 | S133: 0 | T133: 0 | U133: 0 | W133: =IF($A133>0,SUMIF('Age profile (years)'!$CT133:$GF133,"<" & R133+0.5,'Asset data'!$CX133:$GJ133),0) -> 0 | X133: =IF($A133>0,SUMIF('Age profile (years)'!$CT133:$GF133,"<" & S133+0.5,'Asset data'!$CX133:$GJ133)-W133,0) -> 0 | Y133: =IF($A133>0,SUMIF('Age profile (years)'!$CT133:$GF133,"<" & T133+0.5,'Asset data'!$CX133:$GJ133)-X133-W133,0) -> 0 | Z133: =IF($A133>0,SUMIF('Age profile (years)'!$CT133:$GF133,"<" & U133+0.5,'Asset data'!$CX133:$GJ133)-Y133-X133-W133,0) -> 0 | AA133: 0 | AB133: 0 | AC133: 0 | AD133: 0 | AE133: 0 | AF133: 0 | AI133: =IF($A133>0,'RRR hist-forc'!K133,0) -> 0 | AJ133: 0
A134: ='Asset data'!A134 -> 0 | B134: ='Asset data'!B134 -> 0 | C134: ='Asset data'!C134 -> 0 | D134: ='Asset data'!E134 -> DNSP defined | E134: 0 | F134: =IF(A134>0,SUM('Asset data'!J134:CV134),0) -> 0 | G134: =IF(A134>0,'Asset data'!F134,0) -> 0 | H134: =IF(A134>0,SUM('Asset data'!CX134:GJ134),0) -> 0 | I134: 0 | J134: 0 | K134: 0 | L134: 0 | M134: =IF($A134>0,SUMPRODUCT('Age profile (years)'!$CT134:$GF134,'Asset data'!$CX134:$GJ134)/H134-0.5,0) -> 0 | N134: 0 | O134: =IF($A134>0,'Asset data'!G134,0) -> 0 | P134: 0 | Q134: 0 | R134: 0 | S134: 0 | T134: 0 | U134: 0 | W134: =IF($A134>0,SUMIF('Age profile (years)'!$CT134:$GF134,"<" & R134+0.5,'Asset data'!$CX134:$GJ134),0) -> 0 | X134: =IF($A134>0,SUMIF('Age profile (years)'!$CT134:$GF134,"<" & S134+0.5,'Asset data'!$CX134:$GJ134)-W134,0) -> 0 | Y134: =IF($A134>0,SUMIF('Age profile (years)'!$CT134:$GF134,"<" & T134+0.5,'Asset data'!$CX134:$GJ134)-X134-W134,0) -> 0 | Z134: =IF($A134>0,SUMIF('Age profile (years)'!$CT134:$GF134,"<" & U134+0.5,'Asset data'!$CX134:$GJ134)-Y134-X134-W134,0) -> 0 | AA134: 0 | AB134: 0 | AC134: 0 | AD134: 0 | AE134: 0 | AF134: 0 | AI134: =IF($A134>0,'RRR hist-forc'!K134,0) -> 0 | AJ134: 0
A135: ='Asset data'!A135 -> 3 | B135: ='Asset data'!B135 -> 0 | C135: ='Asset data'!C135 -> 0 | D135: ='Asset data'!E135 -> LV and HV Underground Cable Termination | E135: UNDERGROUND CABLES | F135: =IF(A135>0,SUM('Asset data'!J135:CV135),0) -> 4952 | G135: =IF(A135>0,'Asset data'!F135,0) -> 9.254466883 | H135: =IF(A135>0,SUM('Asset data'!CX135:GJ135),0) -> 45828.12001 | I135: 0.007272512901 | J135: 20 | K135: 0.02410243362 | L135: 9.254466883 | M135: =IF($A135>0,SUMPRODUCT('Age profile (years)'!$CT135:$GF135,'Asset data'!$CX135:$GJ135)/H135-0.5,0) -> 55.75323102 | N135: 2555065.762 | O135: =IF($A135>0,'Asset data'!G135,0) -> 72.62423049 | P135: 3328231.95 | Q135: 0.2323053802 | R135: 7.262423049 | S135: 14.5248461 | T135: 43.5745383 | U135: 58.09938439 | W135: =IF($A135>0,SUMIF('Age profile (years)'!$CT135:$GF135,"<" & R135+0.5,'Asset data'!$CX135:$GJ135),0) -> 323.9063409 | X135: =IF($A135>0,SUMIF('Age profile (years)'!$CT135:$GF135,"<" & S135+0.5,'Asset data'!$CX135:$GJ135)-W135,0) -> 185.0893377 | Y135: =IF($A135>0,SUMIF('Age profile (years)'!$CT135:$GF135,"<" & T135+0.5,'Asset data'!$CX135:$GJ135)-X135-W135,0) -> 6727.997424 | Z135: =IF($A135>0,SUMIF('Age profile (years)'!$CT135:$GF135,"<" & U135+0.5,'Asset data'!$CX135:$GJ135)-Y135-X135-W135,0) -> 16898.65653 | AA135: 21692.47037 | AB135: 0.007067851373 | AC135: 0.004038772213 | AD135: 0.14680937 | AE135: 0.3687399031 | AF135: 0.4733441034 | AI135: =IF($A135>0,'RRR hist-forc'!K135,0) -> 72.62423049 | AJ135: 3328231.95
A136: ='Asset data'!A136 -> 4 | B136: ='Asset data'!B136 -> 0 | C136: ='Asset data'!C136 -> 0 | D136: ='Asset data'!E136 -> Pillar to Pillar | E136: SERVICE LINES | F136: =IF(A136>0,SUM('Asset data'!J136:CV136),0) -> 1292 | G136: =IF(A136>0,'Asset data'!F136,0) -> 3.684293023 | H136: =IF(A136>0,SUM('Asset data'!CX136:GJ136),0) -> 4760.106586 | I136: 0.0007553863556 | J136: 39 | K136: 0.002099509911 | L136: 3.684293023 | M136: =IF($A136>0,SUMPRODUCT('Age profile (years)'!$CT136:$GF136,'Asset data'!$CX136:$GJ136)/H136-0.5,0) -> 27.14086687 | N136: 129193.4191 | O136: =IF($A136>0,'Asset data'!G136,0) -> 49.41331818 | P136: 235212.6613 | Q136: 0.4507378198 | R136: 4.941331818 | S136: 9.882663636 | T136: 29.64799091 | U136: 39.53065455 | W136: =IF($A136>0,SUMIF('Age profile (years)'!$CT136:$GF136,"<" & R136+0.5,'Asset data'!$CX136:$GJ136),0) -> 0 | X136: =IF($A136>0,SUMIF('Age profile (years)'!$CT136:$GF136,"<" & S136+0.5,'Asset data'!$CX136:$GJ136)-W136,0) -> 257.9005116 | Y136: =IF($A136>0,SUMIF('Age profile (years)'!$CT136:$GF136,"<" & T136+0.5,'Asset data'!$CX136:$GJ136)-X136-W136,0) -> 2637.953805 | Z136: =IF($A136>0,SUMIF('Age profile (years)'!$CT136:$GF136,"<" & U136+0.5,'Asset data'!$CX136:$GJ136)-Y136-X136-W136,0) -> 1606.351758 | AA136: 257.9005116 | AB136: 0 | AC136: 0.05417956656 | AD136: 0.5541795666 | AE136: 0.3374613003 | AF136: 0.05417956656 | AI136: =IF($A136>0,'RRR hist-forc'!K136,0) -> 49.41331818 | AJ136: 235212.6613
A137: ='Asset data'!A137 -> 0 | B137: ='Asset data'!B137 -> 0 | C137: ='Asset data'!C137 -> 0 | D137: ='Asset data'!E137 -> 0 | E137: 0 | F137: =IF(A137>0,SUM('Asset data'!J137:CV137),0) -> 0 | G137: =IF(A137>0,'Asset data'!F137,0) -> 0 | H137: =IF(A137>0,SUM('Asset data'!CX137:GJ137),0) -> 0 | I137: 0 | J137: 0 | K137: 0 | L137: 0 | M137: =IF($A137>0,SUMPRODUCT('Age profile (years)'!$CT137:$GF137,'Asset data'!$CX137:$GJ137)/H137-0.5,0) -> 0 | N137: 0 | O137: =IF($A137>0,'Asset data'!G137,0) -> 0 | P137: 0 | Q137: 0 | R137: 0 | S137: 0 | T137: 0 | U137: 0 | W137: =IF($A137>0,SUMIF('Age profile (years)'!$CT137:$GF137,"<" & R137+0.5,'Asset data'!$CX137:$GJ137),0) -> 0 | X137: =IF($A137>0,SUMIF('Age profile (years)'!$CT137:$GF137,"<" & S137+0.5,'Asset data'!$CX137:$GJ137)-W137,0) -> 0 | Y137: =IF($A137>0,SUMIF('Age profile (years)'!$CT137:$GF137,"<" & T137+0.5,'Asset data'!$CX137:$GJ137)-X137-W137,0) -> 0 | Z137: =IF($A137>0,SUMIF('Age profile (years)'!$CT137:$GF137,"<" & U137+0.5,'Asset data'!$CX137:$GJ137)-Y137-X137-W137,0) -> 0 | AA137: 0 | AB137: 0 | AC137: 0 | AD137: 0 | AE137: 0 | AF137: 0 | AI137: =IF($A137>0,'RRR hist-forc'!K137,0) -> 0 | AJ137: 0
A138: ='Asset data'!A138 -> 0 | B138: ='Asset data'!B138 -> 0 | C138: ='Asset data'!C138 -> 0 | D138: ='Asset data'!E138 -> 0 | E138: 0 | F138: =IF(A138>0,SUM('Asset data'!J138:CV138),0) -> 0 | G138: =IF(A138>0,'Asset data'!F138,0) -> 0 | H138: =IF(A138>0,SUM('Asset data'!CX138:GJ138),0) -> 0 | I138: 0 | J138: 0 | K138: 0 | L138: 0 | M138: =IF($A138>0,SUMPRODUCT('Age profile (years)'!$CT138:$GF138,'Asset data'!$CX138:$GJ138)/H138-0.5,0) -> 0 | N138: 0 | O138: =IF($A138>0,'Asset data'!G138,0) -> 0 | P138: 0 | Q138: 0 | R138: 0 | S138: 0 | T138: 0 | U138: 0 | W138: =IF($A138>0,SUMIF('Age profile (years)'!$CT138:$GF138,"<" & R138+0.5,'Asset data'!$CX138:$GJ138),0) -> 0 | X138: =IF($A138>0,SUMIF('Age profile (years)'!$CT138:$GF138,"<" & S138+0.5,'Asset data'!$CX138:$GJ138)-W138,0) -> 0 | Y138: =IF($A138>0,SUMIF('Age profile (years)'!$CT138:$GF138,"<" & T138+0.5,'Asset data'!$CX138:$GJ138)-X138-W138,0) -> 0 | Z138: =IF($A138>0,SUMIF('Age profile (years)'!$CT138:$GF138,"<" & U138+0.5,'Asset data'!$CX138:$GJ138)-Y138-X138-W138,0) -> 0 | AA138: 0 | AB138: 0 | AC138: 0 | AD138: 0 | AE138: 0 | AF138: 0 | AI138: =IF($A138>0,'RRR hist-forc'!K138,0) -> 0 | AJ138: 0
A139: ='Asset data'!A139 -> 0 | B139: ='Asset data'!B139 -> 0 | C139: ='Asset data'!C139 -> 0 | D139: ='Asset data'!E139 -> 0 | E139: 0 | F139: =IF(A139>0,SUM('Asset data'!J139:CV139),0) -> 0 | G139: =IF(A139>0,'Asset data'!F139,0) -> 0 | H139: =IF(A139>0,SUM('Asset data'!CX139:GJ139),0) -> 0 | I139: 0 | J139: 0 | K139: 0 | L139: 0 | M139: =IF($A139>0,SUMPRODUCT('Age profile (years)'!$CT139:$GF139,'Asset data'!$CX139:$GJ139)/H139-0.5,0) -> 0 | N139: 0 | O139: =IF($A139>0,'Asset data'!G139,0) -> 0 | P139: 0 | Q139: 0 | R139: 0 | S139: 0 | T139: 0 | U139: 0 | W139: =IF($A139>0,SUMIF('Age profile (years)'!$CT139:$GF139,"<" & R139+0.5,'Asset data'!$CX139:$GJ139),0) -> 0 | X139: =IF($A139>0,SUMIF('Age profile (years)'!$CT139:$GF139,"<" & S139+0.5,'Asset data'!$CX139:$GJ139)-W139,0) -> 0 | Y139: =IF($A139>0,SUMIF('Age profile (years)'!$CT139:$GF139,"<" & T139+0.5,'Asset data'!$CX139:$GJ139)-X139-W139,0) -> 0 | Z139: =IF($A139>0,SUMIF('Age profile (years)'!$CT139:$GF139,"<" & U139+0.5,'Asset data'!$CX139:$GJ139)-Y139-X139-W139,0) -> 0 | AA139: 0 | AB139: 0 | AC139: 0 | AD139: 0 | AE139: 0 | AF139: 0 | AI139: =IF($A139>0,'RRR hist-forc'!K139,0) -> 0 | AJ139: 0
A140: ='Asset data'!A140 -> 0 | B140: ='Asset data'!B140 -> 0 | C140: ='Asset data'!C140 -> 0 | D140: ='Asset data'!E140 -> 0 | E140: 0 | F140: =IF(A140>0,SUM('Asset data'!J140:CV140),0) -> 0 | G140: =IF(A140>0,'Asset data'!F140,0) -> 0 | H140: =IF(A140>0,SUM('Asset data'!CX140:GJ140),0) -> 0 | I140: 0 | J140: 0 | K140: 0 | L140: 0 | M140: =IF($A140>0,SUMPRODUCT('Age profile (years)'!$CT140:$GF140,'Asset data'!$CX140:$GJ140)/H140-0.5,0) -> 0 | N140: 0 | O140: =IF($A140>0,'Asset data'!G140,0) -> 0 | P140: 0 | Q140: 0 | R140: 0 | S140: 0 | T140: 0 | U140: 0 | W140: =IF($A140>0,SUMIF('Age profile (years)'!$CT140:$GF140,"<" & R140+0.5,'Asset data'!$CX140:$GJ140),0) -> 0 | X140: =IF($A140>0,SUMIF('Age profile (years)'!$CT140:$GF140,"<" & S140+0.5,'Asset data'!$CX140:$GJ140)-W140,0) -> 0 | Y140: =IF($A140>0,SUMIF('Age profile (years)'!$CT140:$GF140,"<" & T140+0.5,'Asset data'!$CX140:$GJ140)-X140-W140,0) -> 0 | Z140: =IF($A140>0,SUMIF('Age profile (years)'!$CT140:$GF140,"<" & U140+0.5,'Asset data'!$CX140:$GJ140)-Y140-X140-W140,0) -> 0 | AA140: 0 | AB140: 0 | AC140: 0 | AD140: 0 | AE140: 0 | AF140: 0 | AI140: =IF($A140>0,'RRR hist-forc'!K140,0) -> 0 | AJ140: 0
A141: ='Asset data'!A141 -> 0 | B141: ='Asset data'!B141 -> 0 | C141: ='Asset data'!C141 -> 0 | D141: ='Asset data'!E141 -> 0 | E141: 0 | F141: =IF(A141>0,SUM('Asset data'!J141:CV141),0) -> 0 | G141: =IF(A141>0,'Asset data'!F141,0) -> 0 | H141: =IF(A141>0,SUM('Asset data'!CX141:GJ141),0) -> 0 | I141: 0 | J141: 0 | K141: 0 | L141: 0 | M141: =IF($A141>0,SUMPRODUCT('Age profile (years)'!$CT141:$GF141,'Asset data'!$CX141:$GJ141)/H141-0.5,0) -> 0 | N141: 0 | O141: =IF($A141>0,'Asset data'!G141,0) -> 0 | P141: 0 | Q141: 0 | R141: 0 | S141: 0 | T141: 0 | U141: 0 | W141: =IF($A141>0,SUMIF('Age profile (years)'!$CT141:$GF141,"<" & R141+0.5,'Asset data'!$CX141:$GJ141),0) -> 0 | X141: =IF($A141>0,SUMIF('Age profile (years)'!$CT141:$GF141,"<" & S141+0.5,'Asset data'!$CX141:$GJ141)-W141,0) -> 0 | Y141: =IF($A141>0,SUMIF('Age profile (years)'!$CT141:$GF141,"<" & T141+0.5,'Asset data'!$CX141:$GJ141)-X141-W141,0) -> 0 | Z141: =IF($A141>0,SUMIF('Age profile (years)'!$CT141:$GF141,"<" & U141+0.5,'Asset data'!$CX141:$GJ141)-Y141-X141-W141,0) -> 0 | AA141: 0 | AB141: 0 | AC141: 0 | AD141: 0 | AE141: 0 | AF141: 0 | AI141: =IF($A141>0,'RRR hist-forc'!K141,0) -> 0 | AJ141: 0
A142: ='Asset data'!A142 -> 0 | B142: ='Asset data'!B142 -> 0 | C142: ='Asset data'!C142 -> 0 | D142: ='Asset data'!E142 -> 0 | E142: 0 | F142: =IF(A142>0,SUM('Asset data'!J142:CV142),0) -> 0 | G142: =IF(A142>0,'Asset data'!F142,0) -> 0 | H142: =IF(A142>0,SUM('Asset data'!CX142:GJ142),0) -> 0 | I142: 0 | J142: 0 | K142: 0 | L142: 0 | M142: =IF($A142>0,SUMPRODUCT('Age profile (years)'!$CT142:$GF142,'Asset data'!$CX142:$GJ142)/H142-0.5,0) -> 0 | N142: 0 | O142: =IF($A142>0,'Asset data'!G142,0) -> 0 | P142: 0 | Q142: 0 | R142: 0 | S142: 0 | T142: 0 | U142: 0 | W142: =IF($A142>0,SUMIF('Age profile (years)'!$CT142:$GF142,"<" & R142+0.5,'Asset data'!$CX142:$GJ142),0) -> 0 | X142: =IF($A142>0,SUMIF('Age profile (years)'!$CT142:$GF142,"<" & S142+0.5,'Asset data'!$CX142:$GJ142)-W142,0) -> 0 | Y142: =IF($A142>0,SUMIF('Age profile (years)'!$CT142:$GF142,"<" & T142+0.5,'Asset data'!$CX142:$GJ142)-X142-W142,0) -> 0 | Z142: =IF($A142>0,SUMIF('Age profile (years)'!$CT142:$GF142,"<" & U142+0.5,'Asset data'!$CX142:$GJ142)-Y142-X142-W142,0) -> 0 | AA142: 0 | AB142: 0 | AC142: 0 | AD142: 0 | AE142: 0 | AF142: 0 | AI142: =IF($A142>0,'RRR hist-forc'!K142,0) -> 0 | AJ142: 0
AI206: =IF($A206>0,'RRR hist-forc'!K206,0) -> 0 | AJ206: =IF($A206>0,AI206*H206,0) -> 0

Sheet Asset data
A1: Meth all | D1: 3 | E1: =IF(D1=2,"all normal",IF(D1=1,"all deterministic","individual")) -> individual | L1: Profile type: | M1: 3 | N1: =VLOOKUP(APtype,IDtable,4) -> Installation date
F3: Unit | J3: Quantities | CX3: Replacement Cost (NOT depreciated)
F4: Cost | G4: Replacement life | I4: Rep | J4: =VLOOKUP(APtype,IDtable,4) -> Installation date | CX4: =VLOOKUP(APtype,IDtable,4) -> Installation date
A5: ID | B5: ID | C5: ID | D5: Asset category | E5: Asset ID | F5: $ ('000) | G5: mean | H5: SD | I5: Meth | J5: =IF(OR(APtype=1,APtype=2),0,IF(APtype=3,Now,9999)) -> 2014 | K5: =IF(OR(APtype=1,APtype=2),J5+1,IF(APtype=3,J5-1,9999)) -> 2013 | L5: 2012 | M5: 2011 | N5: 2010 | O5: 2009 | P5: 2008 | Q5: 2007 | R5: 2006 | S5: 2005 | T5: 2004 | U5: 2003 | V5: 2002 | W5: 2001 | X5: 2000 | Y5: 1999 | Z5: 1998 | AA5: 1997 | AB5: 1996 | AC5: 1995 | AD5: 1994 | AE5: 1993 | AF5: 1992 | AG5: 1991 | AH5: 1990 | AI5: 1989 | AJ5: 1988 | AK5: 1987 | AL5: 1986 | AM5: 1985 | AN5: 1984 | AO5: 1983 | AP5: 1982 | AQ5: =IF(OR(APtype=1,APtype=2),AP5+1,IF(APtype=3,AP5-1,9999)) -> 1981 | AR5: 1980 | AS5: 1979 | AT5: 1978 | AU5: 1977 | AV5: 1976 | AW5: 1975 | AX5: 1974 | AY5: 1973 | AZ5: 1972 | BA5: 1971 | BB5: 1970 | BC5: 1969 | BD5: 1968 | BE5: 1967 | BF5: 1966 | BG5: 1965 | BH5: 1964 | BI5: 1963 | BJ5: 1962 | BK5: 1961 | BL5: 1960 | BM5: 1959 | BN5: 1958 | BO5: 1957 | BP5: 1956 | BQ5: 1955 | BR5: 1954 | BS5: 1953 | BT5: 1952 | BU5: 1951 | BV5: 1950 | BW5: =IF(OR(APtype=1,APtype=2),BV5+1,IF(APtype=3,BV5-1,9999)) -> 1949 | BX5: 1948 | BY5: 1947 | BZ5: 1946 | CA5: 1945 | CB5: 1944 | CC5: 1943 | CD5: 1942 | CE5: 1941 | CF5: 1940 | CG5: 1939 | CH5: 1938 | CI5: 1937 | CJ5: 1936 | CK5: 1935 | CL5: 1934 | CM5: 1933 | CN5: 1932 | CO5: 1931 | CP5: 1930 | CQ5: 1929 | CR5: 1928 | CS5: 1927 | CT5: 1926 | CU5: 1925 | CV5: 1924 | CX5: =J5 -> 2014 | CY5: =K5 -> 2013 | CZ5: 2012 | DA5: 2011 | DB5: 2010 | DC5: 2009 | DD5: 2008 | DE5: 2007 | DF5: 2006 | DG5: 2005 | DH5: 2004 | DI5: 2003 | DJ5: 2002 | DK5: 2001 | DL5: 2000 | DM5: 1999 | DN5: 1998 | DO5: 1997 | DP5: 1996 | DQ5: 1995 | DR5: 1994 | DS5: 1993 | DT5: 1992 | DU5: 1991 | DV5: 1990 | DW5: 1989 | DX5: 1988 | DY5: 1987 | DZ5: 1986 | EA5: 1985 | EB5: 1984 | EC5: 1983 | ED5: 1982 | EE5: 1981 | EF5: 1980 | EG5: 1979 | EH5: 1978 | EI5: 1977 | EJ5: 1976 | EK5: 1975 | EL5: 1974 | EM5: 1973 | EN5: 1972 | EO5: 1971 | EP5: 1970 | EQ5: 1969 | ER5: 1968 | ES5: 1967 | ET5: 1966 | EU5: 1965 | EV5: 1964 | EW5: 1963 | EX5: 1962 | EY5: 1961 | EZ5: 1960 | FA5: 1959 | FB5: 1958 | FC5: 1957 | FD5: 1956 | FE5: 1955 | FF5: 1954 | FG5: 1953 | FH5: 1952 | FI5: 1951 | FJ5: 1950 | FK5: =BW5 -> 1949 | FL5: 1948 | FM5: 1947 | FN5: 1946 | FO5: 1945 | FP5: 1944 | FQ5: 1943 | FR5: 1942 | FS5: 1941 | FT5: 1940 | FU5: 1939 | FV5: 1938 | FW5: 1937 | FX5: 1936 | FY5: 1935 | FZ5: 1934 | GA5: 1933 | GB5: 1932 | GC5: 1931 | GD5: 1930 | GE5: 1929 | GF5: 1928 | GG5: 1927 | GH5: 1926 | GI5: 1925 | GJ5: 1924
A21: 1 | D21: POLES | E21: Staking of a wooden pole | F21: 14.91392671 | G21: 23.81489074 | H21: 4.88005028 | I21: 2 | J21: 1284 | K21: 895 | L21: 318 | M21: 542 | N21: 231 | O21: 299 | P21: 211 | Q21: 126 | R21: 205 | S21: 472 | T21: 450 | U21: 290 | V21: 134 | W21: 105 | X21: 68 | Y21: 119 | Z21: 192 | AA21: 271 | AB21: 210 | AC21: 241 | AD21: 60 | AE21: 12 | AF21: 46 | AG21: 79 | AH21: 50 | AI21: 0 | AJ21: 2 | AK21: 2 | AL21: 8 | AM21: 0 | AN21: 0 | AO21: 0 | AP21: 0 | AQ21: 1 | AR21: 0 | AS21: 0 | AT21: 0 | AU21: 0 | AV21: 0 | AW21: 0 | AX21: 0 | AY21: 0 | AZ21: 0 | BA21: 0 | BB21: 2 | BC21: 1 | BD21: 0 | BE21: 1 | BF21: 0 | BG21: 0 | BH21: 0 | BI21: 0 | BJ21: 0 | BK21: 0 | BL21: 0 | BM21: 0 | BN21: 0 | BO21: 0 | BP21: 0 | BQ21: 0 | BR21: 0 | BS21: 0 | BT21: 0 | BU21: 0 | BV21: 0 | BW21: 0 | BX21: 0 | BY21: 0 | BZ21: 0 | CA21: 0 | CB21: 0 | CC21: 0 | CD21: 0 | CE21: 0 | CF21: 1 | CG21: 0 | CH21: 0 | CI21: 0 | CJ21: 0 | CK21: 0 | CL21: 0 | CM21: 0 | CN21: 0 | CO21: 0 | CP21: 0 | CQ21: 0 | CR21: 0 | CS21: 0 | CT21: 0 | CU21: 0 | CV21: 0 | CX21: =$F21*J21 -> 19149.48189 | CY21: =$F21*K21 -> 13347.9644 | CZ21: 4742.628692 | DA21: 8083.348274 | DB21: 3445.117069 | DC21: 4459.264085 | DD21: 3146.838535 | DE21: 1879.154765 | DF21: 3057.354975 | DG21: 7039.373405 | DH21: 6711.267017 | DI21: 4325.038745 | DJ21: 1998.466178 | DK21: 1565.962304 | DL21: 1014.147016 | DM21: 1774.757278 | DN21: 2863.473927 | DO21: 4041.674137 | DP21: 3131.924608 | DQ21: 3594.256336 | DR21: 894.8356023 | DS21: 178.9671205 | DT21: 686.0406284 | DU21: 1178.20021 | DV21: 745.6963353 | DW21: 0 | DX21: 29.82785341 | DY21: 29.82785341 | DZ21: 119.3114136 | EA21: 0 | EB21: 0 | EC21: 0 | ED21: 0 | EE21: 14.91392671 | EF21: 0 | EG21: 0 | EH21: 0 | EI21: 0 | EJ21: 0 | EK21: 0 | EL21: 0 | EM21: 0 | EN21: 0 | EO21: 0 | EP21: 29.82785341 | EQ21: 14.91392671 | ER21: 0 | ES21: 14.91392671 | ET21: 0 | EU21: 0 | EV21: 0 | EW21: 0 | EX21: 0 | EY21: 0 | EZ21: 0 | FA21: 0 | FB21: 0 | FC21: 0 | FD21: 0 | FE21: 0 | FF21: 0 | FG21: 0 | FH21: 0 | FI21: 0 | FJ21: 0 | FK21: =$F21*BW21 -> 0 | FL21: 0 | FM21: 0 | FN21: 0 | FO21: 0 | FP21: 0 | FQ21: 0 | FR21: 0 | FS21: 0 | FT21: 14.91392671 | FU21: 0 | FV21: 0 | FW21: 0 | FX21: 0 | FY21: 0 | FZ21: 0 | GA21: 0 | GB21: 0 | GC21: 0 | GD21: 0 | GE21: 0 | GF21: 0 | GG21: 0 | GH21: 0 | GI21: 0 | GJ21: 0
A22: 1 | D22: POLES | E22: ˂ = 1 kV; Wood | F22: 4.100260885 | G22: 54.12428829 | H22: 7.356921115 | I22: 2 | J22: 163 | K22: 335 | L22: 280 | M22: 127 | N22: 148 | O22: 161 | P22: 182 | Q22: 129 | R22: 137 | S22: 112 | T22: 126 | U22: 186 | V22: 171 | W22: 285 | X22: 188 | Y22: 149 | Z22: 64 | AA22: 108 | AB22: 76 | AC22: 60 | AD22: 83 | AE22: 92 | AF22: 184 | AG22: 149 | AH22: 348 | AI22: 339 | AJ22: 525 | AK22: 348 | AL22: 769 | AM22: 599 | AN22: 471 | AO22: 608 | AP22: 392 | AQ22: 355 | AR22: 482 | AS22: 528 | AT22: 580 | AU22: 420 | AV22: 818 | AW22: 671 | AX22: 747 | AY22: 750 | AZ22: 1196 | BA22: 1178 | BB22: 531 | BC22: 826 | BD22: 976 | BE22: 968 | BF22: 636 | BG22: 895 | BH22: 734 | BI22: 549 | BJ22: 592 | BK22: 636 | BL22: 408 | BM22: 301 | BN22: 253 | BO22: 205 | BP22: 88 | BQ22: 103 | BR22: 56 | BS22: 102 | BT22: 18 | BU22: 26 | BV22: 75 | BW22: 9 | BX22: 13 | BY22: 22 | BZ22: 4 | CA22: 4 | CB22: 4 | CC22: 23 | CD22: 49 | CE22: 53 | CF22: 98 | CG22: 52 | CH22: 58 | CI22: 34 | CJ22: 28 | CK22: 15 | CL22: 15 | CM22: 10 | CN22: 11 | CO22: 2 | CP22: 2 | CQ22: 0 | CR22: 0 | CS22: 0 | CT22: 0 | CU22: 0 | CV22: 5 | CX22: =$F22*J22 -> 668.3425242 | CY22: =$F22*K22 -> 1373.587396 | CZ22: =$F22*L22 -> 1148.073048 | DA22: =$F22*M22 -> 520.7331324 | DB22: =$F22*N22 -> 606.8386109 | DC22: =$F22*O22 -> 660.1420024 | DD22: =$F22*P22 -> 746.247481 | DE22: =$F22*Q22 -> 528.9336541 | DF22: =$F22*R22 -> 561.7357412 | DG22: =$F22*S22 -> 459.2292191 | DH22: =$F22*T22 -> 516.6328715 | DI22: =$F22*U22 -> 762.6485246 | DJ22: =$F22*V22 -> 701.1446113 | DK22: =$F22*W22 -> 1168.574352 | DL22: =$F22*X22 -> 770.8490463 | DM22: =$F22*Y22 -> 610.9388718 | DN22: =$F22*Z22 -> 262.4166966 | DO22: =$F22*AA22 -> 442.8281756 | DP22: =$F22*AB22 -> 311.6198272 | DQ22: =$F22*AC22 -> 246.0156531 | DR22: =$F22*AD22 -> 340.3216534 | DS22: =$F22*AE22 -> 377.2240014 | DT22: =$F22*AF22 -> 754.4480028 | DU22: =$F22*AG22 -> 610.9388718 | DV22: =$F22*AH22 -> 1426.890788 | DW22: =$F22*AI22 -> 1389.98844 | DX22: =$F22*AJ22 -> 2152.636964 | DY22: =$F22*AK22 -> 1426.890788 | DZ22: =$F22*AL22 -> 3153.10062 | EA22: =$F22*AM22 -> 2456.05627 | EB22: =$F22*AN22 -> 1931.222877 | EC22: =$F22*AO22 -> 2492.958618 | ED22: =$F22*AP22 -> 1607.302267 | EE22: =$F22*AQ22 -> 1455.592614 | EF22: =$F22*AR22 -> 1976.325746 | EG22: =$F22*AS22 -> 2164.937747 | EH22: =$F22*AT22 -> 2378.151313 | EI22: =$F22*AU22 -> 1722.109572 | EJ22: =$F22*AV22 -> 3354.013404 | EK22: =$F22*AW22 -> 2751.275054 | EL22: =$F22*AX22 -> 3062.894881 | EM22: =$F22*AY22 -> 3075.195664 | EN22: =$F22*AZ22 -> 4903.912018 | EO22: =$F22*BA22 -> 4830.107322 | EP22: =$F22*BB22 -> 2177.23853 | EQ22: =$F22*BC22 -> 3386.815491 | ER22: =$F22*BD22 -> 4001.854624 | ES22: =$F22*BE22 -> 3969.052536 | ET22: =$F22*BF22 -> 2607.765923 | EU22: =$F22*BG22 -> 3669.733492 | EV22: =$F22*BH22 -> 3009.591489 | EW22: =$F22*BI22 -> 2251.043226 | EX22: =$F22*BJ22 -> 2427.354444 | EY22: =$F22*BK22 -> 2607.765923 | EZ22: =$F22*BL22 -> 1672.906441 | FA22: =$F22*BM22 -> 1234.178526 | FB22: =$F22*BN22 -> 1037.366004 | FC22: =$F22*BO22 -> 840.5534814 | FD22: =$F22*BP22 -> 360.8229579 | FE22: =$F22*BQ22 -> 422.3268711 | FF22: =$F22*BR22 -> 229.6146095 | FG22: =$F22*BS22 -> 418.2266102 | FH22: =$F22*BT22 -> 73.80469593 | FI22: =$F22*BU22 -> 106.606783 | FJ22: =$F22*BV22 -> 307.5195664 | FK22: =$F22*BW22 -> 36.90234796 | FL22: =$F22*BX22 -> 53.3033915 | FM22: =$F22*BY22 -> 90.20573946 | FN22: =$F22*BZ22 -> 16.40104354 | FO22: =$F22*CA22 -> 16.40104354 | FP22: =$F22*CB22 -> 16.40104354 | FQ22: =$F22*CC22 -> 94.30600035 | FR22: =$F22*CD22 -> 200.9127834 | FS22: =$F22*CE22 -> 217.3138269 | FT22: =$F22*CF22 -> 401.8255667 | FU22: =$F22*CG22 -> 213.213566 | FV22: =$F22*CH22 -> 237.8151313 | FW22: =$F22*CI22 -> 139.4088701 | FX22: =$F22*CJ22 -> 114.8073048 | FY22: =$F22*CK22 -> 61.50391327 | FZ22: =$F22*CL22 -> 61.50391327 | GA22: =$F22*CM22 -> 41.00260885 | GB22: =$F22*CN22 -> 45.10286973 | GC22: =$F22*CO22 -> 8.200521769 | GD22: =$F22*CP22 -> 8.200521769 | GE22: =$F22*CQ22 -> 0 | GF22: =$F22*CR22 -> 0 | GG22: =$F22*CS22 -> 0 | GH22: =$F22*CT22 -> 0 | GI22: =$F22*CU22 -> 0 | GJ22: =$F22*CV22 -> 20.50130442
A23: 1 | D23: POLES | E23: > 1 kV & < = 11 kV; Wood | F23: 5.411988217 | G23: 67.63393483 | H23: 8.223985337 | I23: 2 | J23: 31 | K23: 43 | L23: 51 | M23: 45 | N23: 34 | O23: 53 | P23: 49 | Q23: 39 | R23: 18 | S23: 14 | T23: 16 | U23: 33 | V23: 30 | W23: 36 | X23: 30 | Y23: 9 | Z23: 27 | AA23: 28 | AB23: 32 | AC23: 17 | AD23: 24 | AE23: 39 | AF23: 41 | AG23: 83 | AH23: 125 | AI23: 91 | AJ23: 173 | AK23: 120 | AL23: 173 | AM23: 116 | AN23: 53 | AO23: 39 | AP23: 91 | AQ23: 123 | AR23: 81 | AS23: 79 | AT23: 50 | AU23: 89 | AV23: 99 | AW23: 92 | AX23: 90 | AY23: 90 | AZ23: 83 | BA23: 81 | BB23: 44 | BC23: 95 | BD23: 176 | BE23: 152 | BF23: 97 | BG23: 175 | BH23: 144 | BI23: 84 | BJ23: 102 | BK23: 135 | BL23: 84 | BM23: 96 | BN23: 50 | BO23: 41 | BP23: 12 | BQ23: 23 | BR23: 26 | BS23: 26 | BT23: 5 | BU23: 16 | BV23: 11 | BW23: 10 | BX23: 0 | BY23: 5 | BZ23: 2 | CA23: 1 | CB23: 0 | CC23: 7 | CD23: 48 | CE23: 16 | CF23: 19 | CG23: 10 | CH23: 9 | CI23: 7 | CJ23: 16 | CK23: 4 | CL23: 7 | CM23: 5 | CN23: 3 | CO23: 0 | CP23: 0 | CQ23: 0 | CR23: 1 | CS23: 0 | CT23: 0 | CU23: 0 | CV23: 0 | CX23: 167.7716347 | CY23: 232.7154933 | CZ23: 276.0113991 | DA23: 243.5394698 | DB23: 184.0075994 | DC23: 286.8353755 | DD23: 265.1874226 | DE23: 211.0675405 | DF23: 97.4157879 | DG23: 75.76783504 | DH23: 86.59181147 | DI23: 178.5956112 | DJ23: 162.3596465 | DK23: 194.8315758 | DL23: 162.3596465 | DM23: 48.70789395 | DN23: 146.1236819 | DO23: 151.5356701 | DP23: 173.1836229 | DQ23: 92.00379969 | DR23: 129.8877172 | DS23: 211.0675405 | DT23: 221.8915169 | DU23: 449.195022 | DV23: 676.4985271 | DW23: 492.4909277 | DX23: 936.2739615 | DY23: 649.438586 | DZ23: 936.2739615 | EA23: 627.7906332 | EB23: 286.8353755 | EC23: 211.0675405 | ED23: 492.4909277 | EE23: 665.6745507 | EF23: 438.3710456 | EG23: 427.5470691 | EH23: 270.5994108 | EI23: 481.6669513 | EJ23: 535.7868335 | EK23: 497.902916 | EL23: 487.0789395 | EM23: 487.0789395 | EN23: 449.195022 | EO23: 438.3710456 | EP23: 238.1274815 | EQ23: 514.1388806 | ER23: 952.5099262 | ES23: 822.622209 | ET23: 524.962857 | EU23: 947.0979379 | EV23: 779.3263032 | EW23: 454.6070102 | EX23: 552.0227981 | EY23: 730.6184093 | EZ23: 454.6070102 | FA23: 519.5508688 | FB23: 270.5994108 | FC23: 221.8915169 | FD23: 64.9438586 | FE23: 124.475729 | FF23: 140.7116936 | FG23: 140.7116936 | FH23: 27.05994108 | FI23: 86.59181147 | FJ23: 59.53187039 | FK23: 54.11988217 | FL23: 0 | FM23: 27.05994108 | FN23: 10.82397643 | FO23: 5.411988217 | FP23: 0 | FQ23: 37.88391752 | FR23: 259.7754344 | FS23: 86.59181147 | FT23: 102.8277761 | FU23: 54.11988217 | FV23: 48.70789395 | FW23: 37.88391752 | FX23: 86.59181147 | FY23: 21.64795287 | FZ23: 37.88391752 | GA23: 27.05994108 | GB23: 16.23596465 | GC23: 0 | GD23: 0 | GE23: 0 | GF23: 5.411988217 | GG23: 0 | GH23: 0 | GI23: 0 | GJ23: 0
A24: 1 | D24: POLES | E24: ˃ 11 kV & < = 22 kV; Wood | F24: 4.990264528 | G24: 57.34338627 | H24: 7.572541599 | I24: 2 | J24: 230 | K24: 353 | L24: 315 | M24: 227 | N24: 255 | O24: 290 | P24: 227 | Q24: 186 | R24: 152 | S24: 174 | T24: 151 | U24: 281 | V24: 171 | W24: 249 | X24: 221 | Y24: 141 | Z24: 126 | AA24: 108 | AB24: 127 | AC24: 58 | AD24: 111 | AE24: 164 | AF24: 201 | AG24: 273 | AH24: 711 | AI24: 568 | AJ24: 515 | AK24: 395 | AL24: 710 | AM24: 456 | AN24: 394 | AO24: 489 | AP24: 352 | AQ24: 372 | AR24: 285 | AS24: 361 | AT24: 417 | AU24: 466 | AV24: 483 | AW24: 408 | AX24: 498 | AY24: 467 | AZ24: 493 | BA24: 519 | BB24: 308 | BC24: 424 | BD24: 450 | BE24: 456 | BF24: 353 | BG24: 592 | BH24: 288 | BI24: 203 | BJ24: 178 | BK24: 233 | BL24: 176 | BM24: 129 | BN24: 76 | BO24: 52 | BP24: 14 | BQ24: 24 | BR24: 37 | BS24: 16 | BT24: 32 | BU24: 21 | BV24: 11 | BW24: 15 | BX24: 2 | BY24: 0 | BZ24: 1 | CA24: 4 | CB24: 5 | CC24: 4 | CD24: 31 | CE24: 49 | CF24: 25 | CG24: 28 | CH24: 23 | CI24: 2 | CJ24: 18 | CK24: 6 | CL24: 0 | CM24: 1 | CN24: 0 | CO24: 0 | CP24: 0 | CQ24: 0 | CR24: 0 | CS24: 0 | CT24: 0 | CU24: 0 | CV24: 0 | CX24: 1147.760841 | CY24: 1761.563378 | CZ24: 1571.933326 | DA24: 1132.790048 | DB24: 1272.517455 | DC24: 1447.176713 | DD24: 1132.790048 | DE24: 928.1892021 | DF24: 758.5202082 | DG24: 868.3060278 | DH24: 753.5299437 | DI24: 1402.264332 | DJ24: 853.3352342 | DK24: 1242.575867 | DL24: 1102.848461 | DM24: 703.6272984 | DN24: 628.7733305 | DO24: 538.948569 | DP24: 633.763595 | DQ24: 289.4353426 | DR24: 553.9193626 | DS24: 818.4033825 | DT24: 1003.04317 | DU24: 1362.342216 | DV24: 3548.078079 | DW24: 2834.470252 | DX24: 2569.986232 | DY24: 1971.154488 | DZ24: 3543.087815 | EA24: 2275.560625 | EB24: 1966.164224 | EC24: 2440.239354 | ED24: 1756.573114 | EE24: 1856.378404 | EF24: 1422.22539 | EG24: 1801.485494 | EH24: 2080.940308 | EI24: 2325.46327 | EJ24: 2410.297767 | EK24: 2036.027927 | EL24: 2485.151735 | EM24: 2330.453534 | EN24: 2460.200412 | EO24: 2589.94729 | EP24: 1537.001474 | EQ24: 2115.87216 | ER24: 2245.619037 | ES24: 2275.560625 | ET24: 1761.563378 | EU24: 2954.2366 | EV24: 1437.196184 | EW24: 1013.023699 | EX24: 888.2670859 | EY24: 1162.731635 | EZ24: 878.2865568 | FA24: 643.744124 | FB24: 379.2601041 | FC24: 259.4937554 | FD24: 69.86370339 | FE24: 119.7663487 | FF24: 184.6397875 | FG24: 79.84423244 | FH24: 159.6884649 | FI24: 104.7955551 | FJ24: 54.8929098 | FK24: 74.85396791 | FL24: 9.980529055 | FM24: 0 | FN24: 4.990264528 | FO24: 19.96105811 | FP24: 24.95132264 | FQ24: 19.96105811 | FR24: 154.6982004 | FS24: 244.5229618 | FT24: 124.7566132 | FU24: 139.7274068 | FV24: 114.7760841 | FW24: 9.980529055 | FX24: 89.8247615 | FY24: 29.94158717 | FZ24: 0 | GA24: 4.990264528 | GB24: 0 | GC24: 0 | GD24: 0 | GE24: 0 | GF24: 0 | GG24: 0 | GH24: 0 | GI24: 0 | GJ24: 0
A25: 1 | D25: POLES | E25: > 22 kV & < = 66 kV; Wood | F25: 5.205459908 | G25: 60.42405919 | H25: 7.7732914 | I25: 2 | J25: 6 | K25: 14 | L25: 33 | M25: 9 | N25: 10 | O25: 52 | P25: 12 | Q25: 20 | R25: 14 | S25: 119 | T25: 12 | U25: 4 | V25: 101 | W25: 40 | X25: 22 | Y25: 12 | Z25: 12 | AA25: 11 | AB25: 3 | AC25: 4 | AD25: 11 | AE25: 26 | AF25: 10 | AG25: 20 | AH25: 61 | AI25: 40 | AJ25: 37 | AK25: 37 | AL25: 206 | AM25: 116 | AN25: 72 | AO25: 48 | AP25: 37 | AQ25: 29 | AR25: 9 | AS25: 16 | AT25: 17 | AU25: 10 | AV25: 18 | AW25: 70 | AX25: 32 | AY25: 19 | AZ25: 15 | BA25: 14 | BB25: 35 | BC25: 46 | BD25: 22 | BE25: 30 | BF25: 118 | BG25: 106 | BH25: 149 | BI25: 47 | BJ25: 9 | BK25: 6 | BL25: 13 | BM25: 19 | BN25: 10 | BO25: 13 | BP25: 0 | BQ25: 5 | BR25: 1 | BS25: 0 | BT25: 6 | BU25: 4 | BV25: 5 | BW25: 1 | BX25: 0 | BY25: 1 | BZ25: 0 | CA25: 0 | CB25: 2 | CC25: 0 | CD25: 11 | CE25: 0 | CF25: 5 | CG25: 6 | CH25: 10 | CI25: 0 | CJ25: 0 | CK25: 0 | CL25: 0 | CM25: 0 | CN25: 0 | CO25: 0 | CP25: 0 | CQ25: 0 | CR25: 0 | CS25: 0 | CT25: 0 | CU25: 0 | CV25: 0 | CX25: 31.23275945 | CY25: 72.87643871 | CZ25: 171.780177 | DA25: 46.84913917 | DB25: 52.05459908 | DC25: 270.6839152 | DD25: 62.4655189 | DE25: 104.1091982 | DF25: 72.87643871 | DG25: 619.449729 | DH25: 62.4655189 | DI25: 20.82183963 | DJ25: 525.7514507 | DK25: 208.2183963 | DL25: 114.520118 | DM25: 62.4655189 | DN25: 62.4655189 | DO25: 57.26005899 | DP25: 15.61637972 | DQ25: 20.82183963 | DR25: 57.26005899 | DS25: 135.3419576 | DT25: 52.05459908 | DU25: 104.1091982 | DV25: 317.5330544 | DW25: 208.2183963 | DX25: 192.6020166 | DY25: 192.6020166 | DZ25: 1072.324741 | EA25: 603.8333493 | EB25: 374.7931134 | EC25: 249.8620756 | ED25: 192.6020166 | EE25: 150.9583373 | EF25: 46.84913917 | EG25: 83.28735853 | EH25: 88.49281844 | EI25: 52.05459908 | EJ25: 93.69827834 | EK25: 364.3821936 | EL25: 166.5747171 | EM25: 98.90373825 | EN25: 78.08189862 | EO25: 72.87643871 | EP25: 182.1910968 | EQ25: 239.4511558 | ER25: 114.520118 | ES25: 156.1637972 | ET25: 614.2442691 | EU25: 551.7787502 | EV25: 775.6135263 | EW25: 244.6566157 | EX25: 46.84913917 | EY25: 31.23275945 | EZ25: 67.6709788 | FA25: 98.90373825 | FB25: 52.05459908 | FC25: 67.6709788 | FD25: 0 | FE25: 26.02729954 | FF25: 5.205459908 | FG25: 0 | FH25: 31.23275945 | FI25: 20.82183963 | FJ25: 26.02729954 | FK25: 5.205459908 | FL25: 0 | FM25: 5.205459908 | FN25: 0 | FO25: 0 | FP25: 10.41091982 | FQ25: 0 | FR25: 57.26005899 | FS25: 0 | FT25: 26.02729954 | FU25: 31.23275945 | FV25: 52.05459908 | FW25: 0 | FX25: 0 | FY25: 0 | FZ25: 0 | GA25: 0 | GB25: 0 | GC25: 0 | GD25: 0 | GE25: 0 | GF25: 0 | GG25: 0 | GH25: 0 | GI25: 0 | GJ25: 0
E26: > 66 kV & < = 132 kV; Wood | F26: 6.34915249 | G26: 44.31989317 | H26: 6.657318768 | I26: 2
E27: > 132 kV; Wood | F27: 0.0001 | G27: 23.1446123 | H27: 4.810884773 | I27: 2
A28: 1 | D28: POLES | E28: ˂ = 1 kV; Concrete | F28: 14.85532999 | G28: 60.14191664 | H28: 7.755121962 | I28: 2 | J28: 11 | K28: 9 | L28: 23 | M28: 9 | N28: 17 | O28: 8 | P28: 15 | Q28: 20 | R28: 15 | S28: 15 | T28: 11 | U28: 26 | V28: 19 | W28: 22 | X28: 49 | Y28: 135 | Z28: 336 | AA28: 414 | AB28: 274 | AC28: 216 | AD28: 531 | AE28: 751 | AF28: 520 | AG28: 688 | AH28: 900 | AI28: 320 | AJ28: 750 | AK28: 562 | AL28: 588 | AM28: 557 | AN28: 476 | AO28: 417 | AP28: 194 | AQ28: 225 | AR28: 667 | AS28: 33 | AT28: 589 | AU28: 187 | AV28: 124 | AW28: 23 | AX28: 13 | AY28: 107 | AZ28: 87 | BA28: 17 | BB28: 10 | BC28: 8 | BD28: 13 | BE28: 12 | BF28: 10 | BG28: 4 | BH28: 5 | BI28: 3 | BJ28: 6 | BK28: 4 | BL28: 1 | BM28: 0 | BN28: 3 | BO28: 0 | BP28: 2 | BQ28: 2 | BR28: 1 | BS28: 2 | BT28: 0 | BU28: 0 | BV28: 2 | BW28: 0 | BX28: 0 | BY28: 0 | BZ28: 0 | CA28: 0 | CB28: 0 | CC28: 0 | CD28: 0 | CE28: 1 | CF28: 2 | CG28: 0 | CH28: 0 | CI28: 0 | CJ28: 1 | CK28: 0 | CL28: 0 | CM28: 0 | CN28: 1 | CO28: 0 | CP28: 0 | CQ28: 0 | CR28: 0 | CS28: 0 | CT28: 0 | CU28: 0 | CV28: 0 | CX28: 163.4086299 | CY28: 133.6979699 | CZ28: 341.6725898 | DA28: 133.6979699 | DB28: 252.5406099 | DC28: 118.8426399 | DD28: 222.8299499 | DE28: 297.1065998 | DF28: 222.8299499 | DG28: 222.8299499 | DH28: 163.4086299 | DI28: 386.2385798 | DJ28: 282.2512699 | DK28: 326.8172598 | DL28: 727.9111696 | DM28: 2005.469549 | DN28: 4991.390877 | DO28: 6150.106617 | DP28: 4070.360418 | DQ28: 3208.751278 | DR28: 7888.180226 | DS28: 11156.35282 | DT28: 7724.771596 | DU28: 10220.46703 | DV28: 13369.79699 | DW28: 4753.705598 | DX28: 11141.49749 | DY28: 8348.695456 | DZ28: 8734.934036 | EA28: 8274.418806 | EB28: 7071.137076 | EC28: 6194.672607 | ED28: 2881.934019 | EE28: 3342.449248 | EF28: 9908.505105 | EG28: 490.2258898 | EH28: 8749.789366 | EI28: 2777.946709 | EJ28: 1842.060919 | EK28: 341.6725898 | EL28: 193.1192899 | EM28: 1589.520309 | EN28: 1292.413709 | EO28: 252.5406099 | EP28: 148.5532999 | EQ28: 118.8426399 | ER28: 193.1192899 | ES28: 178.2639599 | ET28: 148.5532999 | EU28: 59.42131997 | EV28: 74.27664996 | EW28: 44.56598998 | EX28: 89.13197995 | EY28: 59.42131997 | EZ28: 14.85532999 | FA28: 0 | FB28: 44.56598998 | FC28: 0 | FD28: 29.71065998 | FE28: 29.71065998 | FF28: 14.85532999 | FG28: 29.71065998 | FH28: 0 | FI28: 0 | FJ28: 29.71065998 | FK28: 0 | FL28: 0 | FM28: 0 | FN28: 0 | FO28: 0 | FP28: 0 | FQ28: 0 | FR28: 0 | FS28: 14.85532999 | FT28: 29.71065998 | FU28: 0 | FV28: 0 | FW28: 0 | FX28: 14.85532999 | FY28: 0 | FZ28: 0 | GA28: 0 | GB28: 14.85532999 | GC28: 0 | GD28: 0 | GE28: 0 | GF28: 0 | GG28: 0 | GH28: 0 | GI28: 0 | GJ28: 0
A29: 1 | D29: POLES | E29: > 1 kV & < = 11 kV; Concrete | F29: 17.66835162 | G29: 47.75130414 | H29: 6.910231844 | I29: 2 | J29: 21 | K29: 24 | L29: 16 | M29: 15 | N29: 20 | O29: 24 | P29: 18 | Q29: 13 | R29: 17 | S29: 9 | T29: 7 | U29: 9 | V29: 9 | W29: 10 | X29: 14 | Y29: 16 | Z29: 51 | AA29: 34 | AB29: 23 | AC29: 26 | AD29: 37 | AE29: 28 | AF29: 50 | AG29: 39 | AH29: 37 | AI29: 17 | AJ29: 94 | AK29: 40 | AL29: 50 | AM29: 54 | AN29: 105 | AO29: 44 | AP29: 20 | AQ29: 80 | AR29: 117 | AS29: 7 | AT29: 73 | AU29: 36 | AV29: 5 | AW29: 1 | AX29: 0 | AY29: 3 | AZ29: 2 | BA29: 0 | BB29: 0 | BC29: 0 | BD29: 0 | BE29: 0 | BF29: 1 | BG29: 1 | BH29: 0 | BI29: 1 | BJ29: 0 | BK29: 1 | BL29: 0 | BM29: 0 | BN29: 0 | BO29: 1 | BP29: 0 | BQ29: 0 | BR29: 0 | BS29: 0 | BT29: 0 | BU29: 0 | BV29: 0 | BW29: 0 | BX29: 0 | BY29: 0 | BZ29: 0 | CA29: 0 | CB29: 0 | CC29: 0 | CD29: 0 | CE29: 0 | CF29: 0 | CG29: 0 | CH29: 0 | CI29: 0 | CJ29: 0 | CK29: 0 | CL29: 0 | CM29: 0 | CN29: 0 | CO29: 0 | CP29: 0 | CQ29: 0 | CR29: 0 | CS29: 0 | CT29: 0 | CU29: 0 | CV29: 0 | CX29: 371.0353839 | CY29: 424.0404388 | CZ29: 282.6936258 | DA29: 265.0252742 | DB29: 353.3670323 | DC29: 424.0404388 | DD29: 318.0303291 | DE29: 229.688571 | DF29: 300.3619775 | DG29: 159.0151645 | DH29: 123.6784613 | DI29: 159.0151645 | DJ29: 159.0151645 | DK29: 176.6835162 | DL29: 247.3569226 | DM29: 282.6936258 | DN29: 901.0859324 | DO29: 600.7239549 | DP29: 406.3720871 | DQ29: 459.377142 | DR29: 653.7290098 | DS29: 494.7138452 | DT29: 883.4175808 | DU29: 689.065713 | DV29: 653.7290098 | DW29: 300.3619775 | DX29: 1660.825052 | DY29: 706.7340646 | DZ29: 883.4175808 | EA29: 954.0909872 | EB29: 1855.17692 | EC29: 777.4074711 | ED29: 353.3670323 | EE29: 1413.468129 | EF29: 2067.197139 | EG29: 123.6784613 | EH29: 1289.789668 | EI29: 636.0606581 | EJ29: 88.34175808 | EK29: 17.66835162 | EL29: 0 | EM29: 53.00505485 | EN29: 35.33670323 | EO29: 0 | EP29: 0 | EQ29: 0 | ER29: 0 | ES29: 0 | ET29: 17.66835162 | EU29: 17.66835162 | EV29: 0 | EW29: 17.66835162 | EX29: 0 | EY29: 17.66835162 | EZ29: 0 | FA29: 0 | FB29: 0 | FC29: 17.66835162 | FD29: 0 | FE29: 0 | FF29: 0 | FG29: 0 | FH29: 0 | FI29: 0 | FJ29: 0 | FK29: 0 | FL29: 0 | FM29: 0 | FN29: 0 | FO29: 0 | FP29: 0 | FQ29: 0 | FR29: 0 | FS29: 0 | FT29: 0 | FU29: 0 | FV29: 0 | FW29: 0 | FX29: 0 | FY29: 0 | FZ29: 0 | GA29: 0 | GB29: 0 | GC29: 0 | GD29: 0 | GE29: 0 | GF29: 0 | GG29: 0 | GH29: 0 | GI29: 0 | GJ29: 0
A30: 1 | D30: POLES | E30: ˃ 11 kV & < = 22 kV; Concrete | F30: 18.20277857 | G30: 54.30673467 | H30: 7.369310325 | I30: 2 | J30: 62 | K30: 57 | L30: 53 | M30: 65 | N30: 56 | O30: 55 | P30: 53 | Q30: 59 | R30: 55 | S30: 43 | T30: 48 | U30: 41 | V30: 57 | W30: 59 | X30: 87 | Y30: 105 | Z30: 273 | AA30: 191 | AB30: 148 | AC30: 97 | AD30: 245 | AE30: 295 | AF30: 231 | AG30: 127 | AH30: 196 | AI30: 105 | AJ30: 305 | AK30: 175 | AL30: 177 | AM30: 273 | AN30: 321 | AO30: 168 | AP30: 69 | AQ30: 259 | AR30: 295 | AS30: 14 | AT30: 268 | AU30: 90 | AV30: 38 | AW30: 2 | AX30: 3 | AY30: 11 | AZ30: 6 | BA30: 10 | BB30: 2 | BC30: 1 | BD30: 1 | BE30: 5 | BF30: 2 | BG30: 5 | BH30: 2 | BI30: 2 | BJ30: 0 | BK30: 2 | BL30: 3 | BM30: 1 | BN30: 0 | BO30: 0 | BP30: 0 | BQ30: 1 | BR30: 1 | BS30: 0 | BT30: 0 | BU30: 0 | BV30: 0 | BW30: 0 | BX30: 0 | BY30: 0 | BZ30: 0 | CA30: 0 | CB30: 0 | CC30: 0 | CD30: 1 | CE30: 0 | CF30: 0 | CG30: 0 | CH30: 0 | CI30: 0 | CJ30: 0 | CK30: 0 | CL30: 1 | CM30: 0 | CN30: 0 | CO30: 0 | CP30: 0 | CQ30: 0 | CR30: 0 | CS30: 0 | CT30: 0 | CU30: 0 | CV30: 0 | CX30: 1128.572271 | CY30: 1037.558378 | CZ30: 964.747264 | DA30: 1183.180607 | DB30: 1019.3556 | DC30: 1001.152821 | DD30: 964.747264 | DE30: 1073.963935 | DF30: 1001.152821 | DG30: 782.7194784 | DH30: 873.7333712 | DI30: 746.3139212 | DJ30: 1037.558378 | DK30: 1073.963935 | DL30: 1583.641735 | DM30: 1911.29175 | DN30: 4969.358549 | DO30: 3476.730706 | DP30: 2694.011228 | DQ30: 1765.669521 | DR30: 4459.680749 | DS30: 5369.819677 | DT30: 4204.841849 | DU30: 2311.752878 | DV30: 3567.744599 | DW30: 1911.29175 | DX30: 5551.847463 | DY30: 3185.486249 | DZ30: 3221.891806 | EA30: 4969.358549 | EB30: 5843.09192 | EC30: 3058.066799 | ED30: 1255.991721 | EE30: 4714.519649 | EF30: 5369.819677 | EG30: 254.8388999 | EH30: 4878.344656 | EI30: 1638.250071 | EJ30: 691.7055855 | EK30: 36.40555713 | EL30: 54.6083357 | EM30: 200.2305642 | EN30: 109.2166714 | EO30: 182.0277857 | EP30: 36.40555713 | EQ30: 18.20277857 | ER30: 18.20277857 | ES30: 91.01389283 | ET30: 36.40555713 | EU30: 91.01389283 | EV30: 36.40555713 | EW30: 36.40555713 | EX30: 0 | EY30: 36.40555713 | EZ30: 54.6083357 | FA30: 18.20277857 | FB30: 0 | FC30: 0 | FD30: 0 | FE30: 18.20277857 | FF30: 18.20277857 | FG30: 0 | FH30: 0 | FI30: 0 | FJ30: 0 | FK30: 0 | FL30: 0 | FM30: 0 | FN30: 0 | FO30: 0 | FP30: 0 | FQ30: 0 | FR30: 18.20277857 | FS30: 0 | FT30: 0 | FU30: 0 | FV30: 0 | FW30: 0 | FX30: 0 | FY30: 0 | FZ30: 18.20277857 | GA30: 0 | GB30: 0 | GC30: 0 | GD30: 0 | GE30: 0 | GF30: 0 | GG30: 0 | GH30: 0 | GI30: 0 | GJ30: 0
A31: 1 | D31: POLES | E31: > 22 kV & < = 66 kV; Concrete | F31: 17.02420071 | G31: 57.69331394 | H31: 7.595611492 | I31: 2 | J31: 0 | K31: 3 | L31: 4 | M31: 7 | N31: 0 | O31: 9 | P31: 7 | Q31: 2 | R31: 2 | S31: 31 | T31: 2 | U31: 6 | V31: 9 | W31: 7 | X31: 8 | Y31: 11 | Z31: 41 | AA31: 30 | AB31: 20 | AC31: 68 | AD31: 28 | AE31: 9 | AF31: 5 | AG31: 2 | AH31: 4 | AI31: 3 | AJ31: 11 | AK31: 7 | AL31: 3 | AM31: 18 | AN31: 27 | AO31: 17 | AP31: 4 | AQ31: 14 | AR31: 7 | AS31: 1 | AT31: 12 | AU31: 2 | AV31: 2 | AW31: 0 | AX31: 1 | AY31: 7 | AZ31: 16 | BA31: 0 | BB31: 0 | BC31: 0 | BD31: 0 | BE31: 0 | BF31: 1 | BG31: 0 | BH31: 1 | BI31: 0 | BJ31: 0 | BK31: 0 | BL31: 0 | BM31: 0 | BN31: 0 | BO31: 0 | BP31: 0 | BQ31: 0 | BR31: 0 | BS31: 0 | BT31: 0 | BU31: 0 | BV31: 0 | BW31: 0 | BX31: 0 | BY31: 0 | BZ31: 0 | CA31: 0 | CB31: 0 | CC31: 0 | CD31: 0 | CE31: 0 | CF31: 0 | CG31: 0 | CH31: 1 | CI31: 0 | CJ31: 0 | CK31: 0 | CL31: 0 | CM31: 0 | CN31: 0 | CO31: 0 | CP31: 0 | CQ31: 0 | CR31: 0 | CS31: 0 | CT31: 0 | CU31: 0 | CV31: 0 | CX31: 0 | CY31: 51.07260212 | CZ31: 68.09680283 | DA31: 119.1694049 | DB31: 0 | DC31: 153.2178064 | DD31: 119.1694049 | DE31: 34.04840141 | DF31: 34.04840141 | DG31: 527.7502219 | DH31: 34.04840141 | DI31: 102.1452042 | DJ31: 153.2178064 | DK31: 119.1694049 | DL31: 136.1936057 | DM31: 187.2662078 | DN31: 697.992229 | DO31: 510.7260212 | DP31: 340.4840141 | DQ31: 1157.645648 | DR31: 476.6776198 | DS31: 153.2178064 | DT31: 85.12100353 | DU31: 34.04840141 | DV31: 68.09680283 | DW31: 51.07260212 | DX31: 187.2662078 | DY31: 119.1694049 | DZ31: 51.07260212 | EA31: 306.4356127 | EB31: 459.6534191 | EC31: 289.411412 | ED31: 68.09680283 | EE31: 238.3388099 | EF31: 119.1694049 | EG31: 17.02420071 | EH31: 204.2904085 | EI31: 34.04840141 | EJ31: 34.04840141 | EK31: 0 | EL31: 17.02420071 | EM31: 119.1694049 | EN31: 272.3872113 | EO31: 0 | EP31: 0 | EQ31: 0 | ER31: 0 | ES31: 0 | ET31: 17.02420071 | EU31: 0 | EV31: 17.02420071 | EW31: 0 | EX31: 0 | EY31: 0 | EZ31: 0 | FA31: 0 | FB31: 0 | FC31: 0 | FD31: 0 | FE31: 0 | FF31: 0 | FG31: 0 | FH31: 0 | FI31: 0 | FJ31: 0 | FK31: 0 | FL31: 0 | FM31: 0 | FN31: 0 | FO31: 0 | FP31: 0 | FQ31: 0 | FR31: 0 | FS31: 0 | FT31: 0 | FU31: 0 | FV31: 17.02420071 | FW31: 0 | FX31: 0 | FY31: 0 | FZ31: 0 | GA31: 0 | GB31: 0 | GC31: 0 | GD31: 0 | GE31: 0 | GF31: 0 | GG31: 0 | GH31: 0 | GI31: 0 | GJ31: 0
E32: > 66 kV & < = 132 kV; Concrete | F32: 21.21201926 | G32: 0 | H32: 0 | I32: 2
E33: > 132 kV; Concrete | F33: 1151.461797 | G33: 0 | H33: 0 | I33: 2
A34: 1 | D34: POLES | E34: ˂ = 1 kV; Steel | F34: 9.233864229 | G34: 56.72044646 | H34: 7.531297794 | I34: 2 | J34: 15 | K34: 8 | L34: 14 | M34: 0 | N34: 4 | O34: 8 | P34: 7 | Q34: 6 | R34: 13 | S34: 9 | T34: 1 | U34: 7 | V34: 13 | W34: 32 | X34: 58 | Y34: 24 | Z34: 51 | AA34: 27 | AB34: 5 | AC34: 17 | AD34: 25 | AE34: 24 | AF34: 27 | AG34: 23 | AH34: 22 | AI34: 51 | AJ34: 42 | AK34: 23 | AL34: 16 | AM34: 15 | AN34: 23 | AO34: 7 | AP34: 7 | AQ34: 8 | AR34: 14 | AS34: 9 | AT34: 8 | AU34: 2 | AV34: 9 | AW34: 8 | AX34: 8 | AY34: 3 | AZ34: 4 | BA34: 4 | BB34: 11 | BC34: 8 | BD34: 4 | BE34: 5 | BF34: 7 | BG34: 10 | BH34: 4 | BI34: 1 | BJ34: 7 | BK34: 1 | BL34: 0 | BM34: 0 | BN34: 0 | BO34: 0 | BP34: 3 | BQ34: 0 | BR34: 0 | BS34: 0 | BT34: 0 | BU34: 0 | BV34: 0 | BW34: 0 | BX34: 0 | BY34: 0 | BZ34: 0 | CA34: 0 | CB34: 0 | CC34: 0 | CD34: 0 | CE34: 0 | CF34: 0 | CG34: 0 | CH34: 0 | CI34: 1 | CJ34: 0 | CK34: 0 | CL34: 0 | CM34: 0 | CN34: 0 | CO34: 0 | CP34: 0 | CQ34: 0 | CR34: 0 | CS34: 0 | CT34: 0 | CU34: 0 | CV34: 0 | CX34: 138.5079634 | CY34: 73.87091383 | CZ34: 129.2740992 | DA34: 0 | DB34: 36.93545692 | DC34: 73.87091383 | DD34: 64.63704961 | DE34: 55.40318538 | DF34: 120.040235 | DG34: 83.10477806 | DH34: 9.233864229 | DI34: 64.63704961 | DJ34: 120.040235 | DK34: 295.4836553 | DL34: 535.5641253 | DM34: 221.6127415 | DN34: 470.9270757 | DO34: 249.3143342 | DP34: 46.16932115 | DQ34: 156.9756919 | DR34: 230.8466057 | DS34: 221.6127415 | DT34: 249.3143342 | DU34: 212.3788773 | DV34: 203.145013 | DW34: 470.9270757 | DX34: 387.8222976 | DY34: 212.3788773 | DZ34: 147.7418277 | EA34: 138.5079634 | EB34: 212.3788773 | EC34: 64.63704961 | ED34: 64.63704961 | EE34: 73.87091383 | EF34: 129.2740992 | EG34: 83.10477806 | EH34: 73.87091383 | EI34: 18.46772846 | EJ34: 83.10477806 | EK34: 73.87091383 | EL34: 73.87091383 | EM34: 27.70159269 | EN34: 36.93545692 | EO34: 36.93545692 | EP34: 101.5725065 | EQ34: 73.87091383 | ER34: 36.93545692 | ES34: 46.16932115 | ET34: 64.63704961 | EU34: 92.33864229 | EV34: 36.93545692 | EW34: 9.233864229 | EX34: 64.63704961 | EY34: 9.233864229 | EZ34: 0 | FA34: 0 | FB34: 0 | FC34: 0 | FD34: 27.70159269 | FE34: 0 | FF34: 0 | FG34: 0 | FH34: 0 | FI34: 0 | FJ34: 0 | FK34: 0 | FL34: 0 | FM34: 0 | FN34: 0 | FO34: 0 | FP34: 0 | FQ34: 0 | FR34: 0 | FS34: 0 | FT34: 0 | FU34: 0 | FV34: 0 | FW34: 9.233864229 | FX34: 0 | FY34: 0 | FZ34: 0 | GA34: 0 | GB34: 0 | GC34: 0 | GD34: 0 | GE34: 0 | GF34: 0 | GG34: 0 | GH34: 0 | GI34: 0 | GJ34: 0
E35: > 1 kV & < = 11 kV; Steel | F35: 9.221057903 | G35: 0 | H35: 0 | I35: 2
A36: 1 | D36: POLES | E36: ˃ 11 kV & < = 22 kV; Steel | F36: 10.15017952 | G36: 56.72044646 | H36: 7.531297794 | I36: 2 | J36: 0 | K36: 0 | L36: 0 | M36: 0 | N36: 0 | O36: 0 | P36: 0 | Q36: 0 | R36: 0 | S36: 4 | T36: 0 | U36: 1 | V36: 0 | W36: 0 | X36: 0 | Y36: 0 | Z36: 0 | AA36: 0 | AB36: 0 | AC36: 0 | AD36: 0 | AE36: 0 | AF36: 0 | AG36: 0 | AH36: 0 | AI36: 0 | AJ36: 0 | AK36: 0 | AL36: 0 | AM36: 0 | AN36: 0 | AO36: 1 | AP36: 0 | AQ36: 0 | AR36: 0 | AS36: 0 | AT36: 0 | AU36: 0 | AV36: 0 | AW36: 0 | AX36: 0 | AY36: 0 | AZ36: 1 | BA36: 0 | BB36: 0 | BC36: 0 | BD36: 0 | BE36: 0 | BF36: 0 | BG36: 0 | BH36: 0 | BI36: 0 | BJ36: 0 | BK36: 0 | BL36: 0 | BM36: 2 | BN36: 0 | BO36: 0 | BP36: 0 | BQ36: 0 | BR36: 0 | BS36: 0 | BT36: 0 | BU36: 0 | BV36: 0 | BW36: 0 | BX36: 0 | BY36: 0 | BZ36: 0 | CA36: 0 | CB36: 0 | CC36: 0 | CD36: 0 | CE36: 0 | CF36: 0 | CG36: 0 | CH36: 0 | CI36: 0 | CJ36: 0 | CK36: 0 | CL36: 0 | CM36: 0 | CN36: 0 | CO36: 0 | CP36: 0 | CQ36: 0 | CR36: 0 | CS36: 0 | CT36: 0 | CU36: 0 | CV36: 0 | CX36: 0 | CY36: 0 | CZ36: 0 | DA36: 0 | DB36: 0 | DC36: 0 | DD36: 0 | DE36: 0 | DF36: 0 | DG36: 40.60071808 | DH36: 0 | DI36: 10.15017952 | DJ36: 0 | DK36: 0 | DL36: 0 | DM36: 0 | DN36: 0 | DO36: 0 | DP36: 0 | DQ36: 0 | DR36: 0 | DS36: 0 | DT36: 0 | DU36: 0 | DV36: 0 | DW36: 0 | DX36: 0 | DY36: 0 | DZ36: 0 | EA36: 0 | EB36: 0 | EC36: 10.15017952 | ED36: 0 | EE36: 0 | EF36: 0 | EG36: 0 | EH36: 0 | EI36: 0 | EJ36: 0 | EK36: 0 | EL36: 0 | EM36: 0 | EN36: 10.15017952 | EO36: 0 | EP36: 0 | EQ36: 0 | ER36: 0 | ES36: 0 | ET36: 0 | EU36: 0 | EV36: 0 | EW36: 0 | EX36: 0 | EY36: 0 | EZ36: 0 | FA36: 20.30035904 | FB36: 0 | FC36: 0 | FD36: 0 | FE36: 0 | FF36: 0 | FG36: 0 | FH36: 0 | FI36: 0 | FJ36: 0 | FK36: 0 | FL36: 0 | FM36: 0 | FN36: 0 | FO36: 0 | FP36: 0 | FQ36: 0 | FR36: 0 | FS36: 0 | FT36: 0 | FU36: 0 | FV36: 0 | FW36: 0 | FX36: 0 | FY36: 0 | FZ36: 0 | GA36: 0 | GB36: 0 | GC36: 0 | GD36: 0 | GE36: 0 | GF36: 0 | GG36: 0 | GH36: 0 | GI36: 0 | GJ36: 0
A37: 1 | D37: POLES | E37: > 22 kV & < = 66 kV; Steel | F37: 20.83372953 | G37: 56.72044646 | H37: 7.531297794 | I37: 2 | J37: 0 | K37: 2 | L37: 0 | M37: 0 | N37: 0 | O37: 0 | P37: 0 | Q37: 0 | R37: 0 | S37: 0 | T37: 0 | U37: 0 | V37: 0 | W37: 2 | X37: 0 | Y37: 0 | Z37: 0 | AA37: 1 | AB37: 0 | AC37: 0 | AD37: 0 | AE37: 0 | AF37: 0 | AG37: 0 | AH37: 0 | AI37: 0 | AJ37: 2 | AK37: 1 | AL37: 3 | AM37: 0 | AN37: 2 | AO37: 0 | AP37: 1 | AQ37: 0 | AR37: 0 | AS37: 0 | AT37: 0 | AU37: 0 | AV37: 0 | AW37: 0 | AX37: 2 | AY37: 0 | AZ37: 0 | BA37: 1 | BB37: 0 | BC37: 2 | BD37: 0 | BE37: 0 | BF37: 0 | BG37: 0 | BH37: 0 | BI37: 0 | BJ37: 0 | BK37: 0 | BL37: 0 | BM37: 0 | BN37: 0 | BO37: 0 | BP37: 0 | BQ37: 0 | BR37: 0 | BS37: 0 | BT37: 0 | BU37: 0 | BV37: 0 | BW37: 0 | BX37: 0 | BY37: 0 | BZ37: 0 | CA37: 0 | CB37: 0 | CC37: 0 | CD37: 0 | CE37: 0 | CF37: 0 | CG37: 0 | CH37: 0 | CI37: 0 | CJ37: 0 | CK37: 0 | CL37: 0 | CM37: 0 | CN37: 0 | CO37: 0 | CP37: 0 | CQ37: 0 | CR37: 0 | CS37: 0 | CT37: 0 | CU37: 0 | CV37: 0 | CX37: 0 | CY37: 41.66745907 | CZ37: 0 | DA37: 0 | DB37: 0 | DC37: 0 | DD37: 0 | DE37: 0 | DF37: 0 | DG37: 0 | DH37: 0 | DI37: 0 | DJ37: 0 | DK37: 41.66745907 | DL37: 0 | DM37: 0 | DN37: 0 | DO37: 20.83372953 | DP37: 0 | DQ37: 0 | DR37: 0 | DS37: 0 | DT37: 0 | DU37: 0 | DV37: 0 | DW37: 0 | DX37: 41.66745907 | DY37: 20.83372953 | DZ37: 62.5011886 | EA37: 0 | EB37: 41.66745907 | EC37: 0 | ED37: 20.83372953 | EE37: 0 | EF37: 0 | EG37: 0 | EH37: 0 | EI37: 0 | EJ37: 0 | EK37: 0 | EL37: 41.66745907 | EM37: 0 | EN37: 0 | EO37: 20.83372953 | EP37: 0 | EQ37: 41.66745907 | ER37: 0 | ES37: 0 | ET37: 0 | EU37: 0 | EV37: 0 | EW37: 0 | EX37: 0 | EY37: 0 | EZ37: 0 | FA37: 0 | FB37: 0 | FC37: 0 | FD37: 0 | FE37: 0 | FF37: 0 | FG37: 0 | FH37: 0 | FI37: 0 | FJ37: 0 | FK37: 0 | FL37: 0 | FM37: 0 | FN37: 0 | FO37: 0 | FP37: 0 | FQ37: 0 | FR37: 0 | FS37: 0 | FT37: 0 | FU37: 0 | FV37: 0 | FW37: 0 | FX37: 0 | FY37: 0 | FZ37: 0 | GA37: 0 | GB37: 0 | GC37: 0 | GD37: 0 | GE37: 0 | GF37: 0 | GG37: 0 | GH37: 0 | GI37: 0 | GJ37: 0
E38: > 66 kV & < = 132 kV; Steel | F38: 17.14329826 | G38: 0 | H38: 0 | I38: 2
E39: > 132 kV; Steel | F39: 0.0001 | G39: 0 | H39: 0 | I39: 2
E40: Other | F40: 0.0001 | G40: 0 | H40: 0 | I40: 2
A41: 2 | D41: OVERHEAD CONDUCTORS | E41: ˂ = 1 kV | F41: 124.700175 | G41: 59.69332959 | H41: 7.726145843 | I41: 2 | J41: 25.7339108 | K41: 38.8353452 | L41: 38.43931749 | M41: 35.31346902 | N41: 31.40308808 | O41: 38.69462752 | P41: 29.37589473 | Q41: 26.15907316 | R41: 21.50140002 | S41: 19.39770337 | T41: 30.25335531 | U41: 21.83875001 | V41: 21.17197114 | W41: 40.81768188 | X41: 21.80993654 | Y41: 37.95719265 | Z41: 36.23380601 | AA41: 34.30128175 | AB41: 25.45050707 | AC41: 16.38776161 | AD41: 18.88875395 | AE41: 18.12364283 | AF41: 54.1425325 | AG41: 34.19002509 | AH41: 75.19343084 | AI41: 67.92846517 | AJ41: 80.61719679 | AK41: 65.58340631 | AL41: 113.3504253 | AM41: 97.87371866 | AN41: 59.10782748 | AO41: 63.19052215 | AP41: 45.51320876 | AQ41: 42.31451188 | AR41: 49.01025129 | AS41: 46.77756341 | AT41: 81.40556952 | AU41: 48.82327958 | AV41: 49.24450168 | AW41: 40.24163571 | AX41: 72.40714247 | AY41: 55.84540444 | AZ41: 82.49448194 | BA41: 69.26823682 | BB41: 23.30032826 | BC41: 48.45333545 | BD41: 62.76672801 | BE41: 46.48763189 | BF41: 44.67344044 | BG41: 60.75418527 | BH41: 24.62385364 | BI41: 11.35128623 | BJ41: 20.26847507 | BK41: 25.00104098 | BL41: 16.10680064 | BM41: 12.58837943 | BN41: 10.07670927 | BO41: 4.166143079 | BP41: 1.730600368 | BQ41: 5.325239196 | BR41: 0.0056682 | BS41: 0 | BT41: 0.1935 | BU41: 0.030448284 | BV41: 0 | BW41: 0 | BX41: 0 | BY41: 0.038278 | BZ41: 0 | CA41: 0 | CB41: 0 | CC41: 0 | CD41: 0 | CE41: 0 | CF41: 0 | CG41: 0 | CH41: 0 | CI41: 0 | CJ41: 0 | CK41: 0 | CL41: 0 | CM41: 0 | CN41: 0 | CO41: 0 | CP41: 0 | CQ41: 0 | CR41: 0 | CS41: 0 | CT41: 0 | CU41: 0 | CV41: 0 | CX41: 3209.023181 | CY41: 4842.774344 | CZ41: 4793.389619 | DA41: 4403.595767 | DB41: 3915.97058 | DC41: 4825.226825 | DD41: 3663.179215 | DE41: 3262.041001 | DF41: 2681.228346 | DG41: 2418.897006 | DH41: 3772.598702 | DI41: 2723.295949 | DJ41: 2640.148507 | DK41: 5089.972075 | DL41: 2719.702905 | DM41: 4733.268568 | DN41: 4518.361951 | DO41: 4277.375838 | DP41: 3173.682687 | DQ41: 2043.556741 | DR41: 2355.430924 | DS41: 2260.021433 | DT41: 6751.583279 | DU41: 4263.502113 | DV41: 9376.633987 | DW41: 8470.691497 | DX41: 10052.97855 | DY41: 8178.262246 | DZ41: 14134.81787 | EA41: 12204.86985 | EB41: 7370.756433 | EC41: 7879.869173 | ED41: 5675.505099 | EE41: 5276.627038 | EF41: 6111.586915 | EG41: 5833.170345 | EH41: 10151.28877 | EI41: 6088.27151 | EJ41: 6140.797979 | EK41: 5018.139017 | EL41: 9029.183339 | EM41: 6963.931709 | EN41: 10287.07634 | EO41: 8637.761256 | EP41: 2905.555012 | EQ41: 6042.139412 | ER41: 7827.02197 | ES41: 5797.015833 | ET41: 5570.785842 | EU41: 7576.057537 | EV41: 3070.598859 | EW41: 1415.50738 | EX41: 2527.482389 | EY41: 3117.634186 | EZ41: 2008.520859 | FA41: 1569.773119 | FB41: 1256.56741 | FC41: 519.5187712 | FD41: 215.8061688 | FE41: 664.0582598 | FF41: 0.7068255321 | FG41: 0 | FH41: 24.12948387 | FI41: 3.796906344 | FJ41: 0 | FK41: 0 | FL41: 0 | FM41: 4.7732733 | FN41: 0 | FO41: 0 | FP41: 0 | FQ41: 0 | FR41: 0 | FS41: 0 | FT41: 0 | FU41: 0 | FV41: 0 | FW41: 0 | FX41: 0 | FY41: 0 | FZ41: 0 | GA41: 0 | GB41: 0 | GC41: 0 | GD41: 0 | GE41: 0 | GF41: 0 | GG41: 0 | GH41: 0 | GI41: 0 | GJ41: 0
A42: 2 | D42: OVERHEAD CONDUCTORS | E42: > 1 kV & < = 11 kV | F42: 95.95970592 | G42: 85.47561938 | H42: 9.245302557 | I42: 2 | J42: 0.65204 | K42: 3.01961 | L42: 0.61342 | M42: 0.68756 | N42: 1.56514 | O42: 4.473832 | P42: 1.164018 | Q42: 1.094073 | R42: 2.2151 | S42: 0.15191 | T42: 0.47938 | U42: 0.66614 | V42: 0.31717 | W42: 0.106212 | X42: 2.000535 | Y42: 1.147568 | Z42: 1.24862 | AA42: 1.358403 | AB42: 0 | AC42: 0.8494 | AD42: 0.89123 | AE42: 1.28239 | AF42: 2.42681 | AG42: 1.79746 | AH42: 9.06679 | AI42: 2.25246 | AJ42: 16.111889 | AK42: 7.7383 | AL42: 13.116515 | AM42: 15.04412 | AN42: 5.527254 | AO42: 0.85769 | AP42: 5.63804 | AQ42: 12.3085841 | AR42: 5.498137 | AS42: 13.00593 | AT42: 9.137166 | AU42: 6.96751 | AV42: 15.703935 | AW42: 7.753565 | AX42: 7.716872 | AY42: 3.09452 | AZ42: 4.847631 | BA42: 3.18767 | BB42: 1.46439 | BC42: 3.25111 | BD42: 12.24816 | BE42: 1.961245 | BF42: 12.85696 | BG42: 12.28974 | BH42: 7.717987 | BI42: 2.28585 | BJ42: 1.73774 | BK42: 2.287652 | BL42: 0.80079 | BM42: 1.20936 | BN42: 0 | BO42: 0 | BP42: 0.06695 | BQ42: 0.3858 | BR42: 0 | BS42: 0 | BT42: 0 | BU42: 0 | BV42: 0 | BW42: 0 | BX42: 0 | BY42: 0 | BZ42: 0 | CA42: 0 | CB42: 0 | CC42: 0 | CD42: 0.2558 | CE42: 0 | CF42: 0 | CG42: 0 | CH42: 0 | CI42: 0 | CJ42: 0 | CK42: 0 | CL42: 0 | CM42: 0 | CN42: 0 | CO42: 0 | CP42: 0 | CQ42: 0 | CR42: 0 | CS42: 0 | CT42: 0 | CU42: 0 | CV42: 0 | CX42: 62.56956665 | CY42: 289.7608876 | CZ42: 58.86360281 | DA42: 65.9780554 | DB42: 150.1903741 | DC42: 429.3076031 | DD42: 111.698825 | DE42: 104.9869233 | DF42: 212.5603446 | DG42: 14.57723893 | DH42: 46.00116382 | DI42: 63.9225985 | DJ42: 30.43553993 | DK42: 10.19207229 | DL42: 191.9707503 | DM42: 110.1202878 | DN42: 119.817208 | DO42: 130.3519524 | DP42: 0 | DQ42: 81.50817421 | DR42: 85.52216871 | DS42: 123.0577673 | DT42: 232.8759739 | DU42: 172.483733 | DV42: 870.0465021 | DW42: 216.1453992 | DX42: 1546.09213 | DY42: 742.5649923 | DZ42: 1258.656922 | EA42: 1443.629331 | EB42: 530.3936684 | EC42: 82.30368017 | ED42: 541.0246604 | EE42: 1181.128111 | EF42: 527.5996096 | EG42: 1248.045218 | EH42: 876.7997623 | EI42: 668.6002106 | EJ42: 1506.944984 | EK42: 744.0298172 | EL42: 740.5087678 | EM42: 296.9492292 | EN42: 465.1772452 | EO42: 305.8878758 | EP42: 140.5224338 | EQ42: 311.9755595 | ER42: 1175.329832 | ES42: 188.2004934 | ET42: 1233.750101 | EU42: 1179.319836 | EV42: 740.6157628 | EW42: 219.3494938 | EX42: 166.7530194 | EY42: 219.5224132 | EZ42: 76.84357291 | FA42: 116.04983 | FB42: 0 | FC42: 0 | FD42: 6.424502311 | FE42: 37.02125454 | FF42: 0 | FG42: 0 | FH42: 0 | FI42: 0 | FJ42: 0 | FK42: 0 | FL42: 0 | FM42: 0 | FN42: 0 | FO42: 0 | FP42: 0 | FQ42: 0 | FR42: 24.54649277 | FS42: 0 | FT42: 0 | FU42: 0 | FV42: 0 | FW42: 0 | FX42: 0 | FY42: 0 | FZ42: 0 | GA42: 0 | GB42: 0 | GC42: 0 | GD42: 0 | GE42: 0 | GF42: 0 | GG42: 0 | GH42: 0 | GI42: 0 | GJ42: 0
E43: ˃ 11 kV & < = 22 kV ; SWER | F43: 54.14117106 | G43: 0 | H43: 0 | I43: 2
A44: 2 | D44: OVERHEAD CONDUCTORS | E44: ˃ 11 kV & < = 22 kV ; Single-Phase | F44: 126.4414744 | G44: 49.75285123 | H44: 7.053570105 | I44: 2 | J44: 0 | K44: 6.72897 | L44: 10.66224 | M44: 21.35217 | N44: 15.47368 | O44: 2.024 | P44: 0.4261 | Q44: 0.4377 | R44: 4.08984 | S44: 0.06104 | T44: 1.5991 | U44: 0.2016 | V44: 1.49357 | W44: 0.9198 | X44: 2.8357 | Y44: 0.2445 | Z44: 0 | AA44: 0.08244 | AB44: 0 | AC44: 0 | AD44: 0.5074 | AE44: 0 | AF44: 0.8524 | AG44: 0.3094 | AH44: 0.8805 | AI44: 1.5914 | AJ44: 4.2559 | AK44: 2.3354 | AL44: 1.2076 | AM44: 10.57973 | AN44: 11.57281 | AO44: 24.0809 | AP44: 9.69929 | AQ44: 6.52545 | AR44: 5.97669 | AS44: 4.42222 | AT44: 5.55035 | AU44: 15.75578 | AV44: 12.26823 | AW44: 4.6032 | AX44: 5.81503 | AY44: 5.39222 | AZ44: 7.9449 | BA44: 8.19038 | BB44: 0.4968 | BC44: 0.2965 | BD44: 2.07174 | BE44: 8.0468 | BF44: 0.29059 | BG44: 1.92779 | BH44: 0.7295 | BI44: 3.27578 | BJ44: 4.33381 | BK44: 0 | BL44: 0 | BM44: 3.71067 | BN44: 0.8613 | BO44: 0 | BP44: 0 | BQ44: 0 | BR44: 0 | BS44: 0 | BT44: 0 | BU44: 0 | BV44: 0 | BW44: 0 | BX44: 0 | BY44: 0 | BZ44: 0 | CA44: 0 | CB44: 0 | CC44: 0 | CD44: 0 | CE44: 0 | CF44: 0 | CG44: 0 | CH44: 0 | CI44: 0 | CJ44: 0 | CK44: 0 | CL44: 0 | CM44: 0 | CN44: 0 | CO44: 0 | CP44: 0 | CQ44: 0 | CR44: 0 | CS44: 0 | CT44: 0 | CU44: 0 | CV44: 0 | CX44: 0 | CY44: 850.8208877 | CZ44: 1348.149346 | DA44: 2699.799856 | DB44: 1956.514913 | DC44: 255.9175441 | DD44: 53.87671223 | DE44: 55.34343333 | DF44: 517.1253995 | DG44: 7.717987595 | DH44: 202.1925617 | DI44: 25.49060123 | DJ44: 188.8491929 | DK44: 116.3008681 | DL44: 358.5500888 | DM44: 30.91494048 | DN44: 0 | DO44: 10.42383515 | DP44: 0 | DQ44: 0 | DR44: 64.15640409 | DS44: 0 | DT44: 107.7787127 | DU44: 39.12099217 | DV44: 111.3317182 | DW44: 201.2189623 | DX44: 538.1222707 | DY44: 295.2914192 | DZ44: 152.6907244 | EA44: 1337.71666 | EB44: 1463.283159 | EC44: 3044.8245 | ED44: 1226.392528 | EE44: 825.0875189 | EF44: 755.7014954 | EG44: 559.1520168 | EH44: 701.7944372 | EI44: 1992.184053 | EJ44: 1551.213089 | EK44: 582.0353948 | EL44: 735.2609667 | EM44: 681.8002469 | EN44: 1004.56487 | EO44: 1035.603723 | EP44: 62.81612446 | EQ44: 37.48989715 | ER44: 261.9538601 | ES44: 1017.449256 | ET44: 36.74262803 | EU44: 243.7526099 | EV44: 92.23905555 | EW44: 414.1944529 | EX44: 547.973326 | EY44: 0 | EZ44: 0 | FA44: 469.1825857 | FB44: 108.9040419 | FC44: 0 | FD44: 0 | FE44: 0 | FF44: 0 | FG44: 0 | FH44: 0 | FI44: 0 | FJ44: 0 | FK44: 0 | FL44: 0 | FM44: 0 | FN44: 0 | FO44: 0 | FP44: 0 | FQ44: 0 | FR44: 0 | FS44: 0 | FT44: 0 | FU44: 0 | FV44: 0 | FW44: 0 | FX44: 0 | FY44: 0 | FZ44: 0 | GA44: 0 | GB44: 0 | GC44: 0 | GD44: 0 | GE44: 0 | GF44: 0 | GG44: 0 | GH44: 0 | GI44: 0 | GJ44: 0
A45: 2 | D45: OVERHEAD CONDUCTORS | E45: ˃ 11 kV & < = 22 kV ; Multiple-Phase | F45: 131.3473843 | G45: 55.5395849 | H45: 7.452488504 | I45: 2 | J45: 6.0643064 | K45: 15.863761 | L45: 11.86999 | M45: 18.563518 | N45: 5.956602 | O45: 17.19444 | P45: 9.625327 | Q45: 8.44848 | R45: 10.241756 | S45: 4.082546 | T45: 4.36507 | U45: 12.1793599 | V45: 5.83061 | W45: 4.54712 | X45: 19.964888 | Y45: 1.93668 | Z45: 13.864666 | AA45: 18.730275 | AB45: 1.380609 | AC45: 8.416079 | AD45: 5.61762 | AE45: 2.046645 | AF45: 15.10232 | AG45: 11.863145 | AH45: 49.83312 | AI45: 43.314096 | AJ45: 34.079758 | AK45: 55.66890054 | AL45: 48.0486958 | AM45: 32.3568617 | AN45: 36.431709 | AO45: 49.499534 | AP45: 63.8016521 | AQ45: 33.00094 | AR45: 54.4404627 | AS45: 31.656517 | AT45: 59.719365 | AU45: 50.451229 | AV45: 50.175391 | AW45: 36.447221 | AX45: 24.156184 | AY45: 8.1702772 | AZ45: 16.343849 | BA45: 10.038054 | BB45: 4.27998 | BC45: 41.061463 | BD45: 13.89971 | BE45: 23.229617 | BF45: 13.545407 | BG45: 16.696188 | BH45: 0.39083 | BI45: 9.906914 | BJ45: 3.18341 | BK45: 11.58336 | BL45: 9.37594 | BM45: 16.81539 | BN45: 3.245201 | BO45: 7.011222 | BP45: 1.09392 | BQ45: 1.3888 | BR45: 2.51609 | BS45: 0 | BT45: 0 | BU45: 0.8499 | BV45: 0 | BW45: 0 | BX45: 0 | BY45: 0 | BZ45: 0 | CA45: 0 | CB45: 0 | CC45: 0 | CD45: 0 | CE45: 3.23439 | CF45: 0 | CG45: 0 | CH45: 0.07182 | CI45: 0 | CJ45: 0 | CK45: 0 | CL45: 0 | CM45: 0 | CN45: 0 | CO45: 0 | CP45: 0 | CQ45: 0 | CR45: 0 | CS45: 0 | CT45: 0 | CU45: 0 | CV45: 0 | CX45: 796.5307831 | CY45: 2083.663512 | CZ45: 1559.092138 | DA45: 2438.269532 | DB45: 782.3840919 | DC45: 2258.444718 | DD45: 1264.261524 | DE45: 1109.685749 | DF45: 1345.227861 | DG45: 536.2317383 | DH45: 573.3405267 | DI45: 1599.727065 | DJ45: 765.8353722 | DK45: 597.252318 | DL45: 2622.335816 | DM45: 254.3778522 | DN45: 1821.087613 | DO45: 2460.172628 | DP45: 181.3393809 | DQ45: 1105.429963 | DR45: 737.8596929 | DS45: 268.8214673 | DT45: 1983.650228 | DU45: 1558.193065 | DV45: 6545.449962 | DW45: 5689.193212 | DX45: 4476.28707 | DY45: 7311.964472 | DZ45: 6311.070511 | EA45: 4249.989148 | EB45: 4785.209682 | EC45: 6501.634314 | ED45: 8380.180116 | EE45: 4334.587148 | EF45: 7150.612374 | EG45: 4158.000703 | EH45: 7843.982383 | EI45: 6626.636963 | EJ45: 6590.406363 | EK45: 4787.247142 | EL45: 3172.851582 | EM45: 1073.144539 | EN45: 2146.721815 | EO45: 1318.472136 | EP45: 562.1641778 | EQ45: 5393.31576 | ER45: 1825.690551 | ES45: 3051.149431 | ET45: 1779.153778 | EU45: 2193.000621 | EV45: 51.3344982 | EW45: 1301.24724 | EX45: 418.1325766 | EY45: 1521.444037 | EZ45: 1231.505194 | FA45: 2208.657492 | FB45: 426.2486628 | FC45: 920.9056703 | FD45: 143.6835306 | FE45: 182.4152473 | FF45: 330.4818401 | FG45: 0 | FH45: 0 | FI45: 111.6321419 | FJ45: 0 | FK45: 0 | FL45: 0 | FM45: 0 | FN45: 0 | FO45: 0 | FP45: 0 | FQ45: 0 | FR45: 0 | FS45: 424.8286662 | FT45: 0 | FU45: 0 | FV45: 9.433369139 | FW45: 0 | FX45: 0 | FY45: 0 | FZ45: 0 | GA45: 0 | GB45: 0 | GC45: 0 | GD45: 0 | GE45: 0 | GF45: 0 | GG45: 0 | GH45: 0 | GI45: 0 | GJ45: 0
A46: 2 | D46: OVERHEAD CONDUCTORS | E46: > 22 kV & < = 66 kV | F46: 199.3565058 | G46: 59.24447169 | H46: 7.697043049 | I46: 2 | J46: 0.94626 | K46: 2.2323 | L46: 4.818033 | M46: 1.17166 | N46: 0 | O46: 1.1157 | P46: 0.41421 | Q46: 1.26077 | R46: 7.29069 | S46: 24.66267 | T46: 0 | U46: 0 | V46: 6.75056 | W46: 0.4679 | X46: 18.09754 | Y46: 0 | Z46: 6.0036 | AA46: 2.15251 | AB46: 0 | AC46: 0 | AD46: 0.242202 | AE46: 2.33506 | AF46: 7.3229773 | AG46: 0 | AH46: 1.11617 | AI46: 0 | AJ46: 0 | AK46: 0 | AL46: 3.78516 | AM46: 0 | AN46: 14.88012 | AO46: 3.42019 | AP46: 34.08315 | AQ46: 0 | AR46: 10.05293 | AS46: 15.352985 | AT46: 0 | AU46: 0 | AV46: 0 | AW46: 3.70019 | AX46: 0 | AY46: 13.10815 | AZ46: 0 | BA46: 0 | BB46: 1.785098825 | BC46: 21.168533 | BD46: 0 | BE46: 8.34968 | BF46: 45.672441 | BG46: 0 | BH46: 24.864234 | BI46: 0 | BJ46: 0 | BK46: 0 | BL46: 0 | BM46: 0 | BN46: 0 | BO46: 0 | BP46: 0 | BQ46: 0 | BR46: 0 | BS46: 0 | BT46: 0 | BU46: 0 | BV46: 0 | BW46: 0 | BX46: 0 | BY46: 0 | BZ46: 0 | CA46: 0 | CB46: 0 | CC46: 0 | CD46: 0 | CE46: 0 | CF46: 0 | CG46: 0 | CH46: 0 | CI46: 0 | CJ46: 0 | CK46: 0 | CL46: 0 | CM46: 0 | CN46: 0 | CO46: 0 | CP46: 0 | CQ46: 0 | CR46: 0 | CS46: 0 | CT46: 0 | CU46: 0 | CV46: 0 | CX46: 188.6430872 | CY46: 445.0235279 | CZ46: 960.5062236 | DA46: 233.5780436 | DB46: 0 | DC46: 222.4220535 | DD46: 82.57545826 | DE46: 251.3427018 | DF46: 1453.446483 | DG46: 4916.663714 | DH46: 0 | DI46: 0 | DJ46: 1345.768054 | DK46: 93.27890905 | DL46: 3607.862338 | DM46: 0 | DN46: 1196.856718 | DO46: 429.1168723 | DP46: 0 | DQ46: 0 | DR46: 48.28454441 | DS46: 465.5094024 | DT46: 1459.883166 | DU46: 0 | DV46: 222.5157511 | DW46: 0 | DX46: 0 | DY46: 0 | DZ46: 754.5962714 | EA46: 0 | EB46: 2966.448729 | EC46: 681.8371275 | ED46: 6794.69769 | EE46: 0 | EF46: 2004.116998 | EG46: 3060.717443 | EH46: 0 | EI46: 0 | EJ46: 0 | EK46: 737.6569491 | EL46: 0 | EM46: 2613.194981 | EN46: 0 | EO46: 0 | EP46: 355.8710643 | EQ46: 4220.084771 | ER46: 0 | ES46: 1664.563029 | ET46: 9105.098248 | EU46: 0 | EV46: 4956.846809 | EW46: 0 | EX46: 0 | EY46: 0 | EZ46: 0 | FA46: 0 | FB46: 0 | FC46: 0 | FD46: 0 | FE46: 0 | FF46: 0 | FG46: 0 | FH46: 0 | FI46: 0 | FJ46: 0 | FK46: 0 | FL46: 0 | FM46: 0 | FN46: 0 | FO46: 0 | FP46: 0 | FQ46: 0 | FR46: 0 | FS46: 0 | FT46: 0 | FU46: 0 | FV46: 0 | FW46: 0 | FX46: 0 | FY46: 0 | FZ46: 0 | GA46: 0 | GB46: 0 | GC46: 0 | GD46: 0 | GE46: 0 | GF46: 0 | GG46: 0 | GH46: 0 | GI46: 0 | GJ46: 0
E47: > 66 kV & < = 132 kV | F47: 292.3861714 | G47: 0 | H47: 0 | I47: 2
E48: > 132 kV | F48: 911.106186 | G48: 0 | H48: 0 | I48: 2
E49: Other | F49: 5.579378537 | G49: 0 | H49: 0 | I49: 2
A50: 3 | D50: UNDERGROUND CABLES | E50: ˂ = 1 kV | F50: 1198.119997 | G50: 74.45495254 | H50: 8.628728327 | I50: 2 | J50: 26.7388486 | K50: 27.7160919 | L50: 27.5072527 | M50: 40.50956353 | N50: 32.05600071 | O50: 27.31367011 | P50: 24.37235049 | Q50: 36.54760736 | R50: 33.38211697 | S50: 37.81490162 | T50: 40.76102099 | U50: 51.12171852 | V50: 52.39273278 | W50: 35.15232447 | X50: 54.75038691 | Y50: 70.63032329 | Z50: 45.71005624 | AA50: 30.33896846 | AB50: 27.46593636 | AC50: 38.86405726 | AD50: 32.5015587 | AE50: 35.89758619 | AF50: 26.51715538 | AG50: 39.25224364 | AH50: 26.22992074 | AI50: 17.56632755 | AJ50: 18.88593515 | AK50: 9.191261451 | AL50: 9.411231707 | AM50: 8.821483837 | AN50: 7.199277539 | AO50: 3.58797906 | AP50: 5.871705446 | AQ50: 3.401506178 | AR50: 9.133297671 | AS50: 5.116548703 | AT50: 1.509980022 | AU50: 4.443180447 | AV50: 5.968656169 | AW50: 6.311941894 | AX50: 9.051430266 | AY50: 1.267933314 | AZ50: 1.54028668 | BA50: 0.398586586 | BB50: 1.148787442 | BC50: 3.89010393 | BD50: 0.03981411 | BE50: 0.35246621 | BF50: 0.02689359 | BG50: 0.239985873 | BH50: 0.3243548022 | BI50: 0.075672 | BJ50: 0.033097466 | BK50: 0.08657998 | BL50: 0.094372235 | BM50: 0.130855375 | BN50: 0.5953490528 | BO50: 0.03924 | BP50: 0.291365813 | BQ50: 0.1478 | BR50: 0 | BS50: 0 | BT50: 0 | BU50: 0.2501198827 | BV50: 0.066274224 | BW50: 0.152839 | BX50: 0.7646852552 | BY50: 0.146562 | BZ50: 0.05734407 | CA50: 0.08271 | CB50: 0 | CC50: 0.08976 | CD50: 0 | CE50: 0 | CF50: 0 | CG50: 0 | CH50: 0 | CI50: 0.0279990326 | CJ50: 0 | CK50: 0 | CL50: 0 | CM50: 0 | CN50: 0.0867 | CO50: 0 | CP50: 0 | CQ50: 0.2046 | CR50: 0 | CS50: 0 | CT50: 0 | CU50: 0 | CV50: 0.2214695922 | CX50: 32036.3492 | CY50: 33207.20394 | CZ50: 32956.98951 | DA50: 48535.31812 | DB50: 38406.93547 | DC50: 32725.05434 | DD50: 29201.00049 | DE50: 43788.41921 | DF50: 39995.78188 | DG50: 45306.78981 | DH50: 48836.59433 | DI50: 61249.95323 | DJ50: 62772.78082 | DK50: 42116.70288 | DL50: 65597.53338 | DM50: 84623.6027 | DN50: 54766.13244 | DO50: 36349.72479 | DP50: 32907.48758 | DQ50: 46563.80415 | DR50: 38940.7674 | DS50: 43009.61585 | DT50: 31770.73412 | DU50: 47028.89802 | DV50: 31426.59255 | DW50: 21046.5683 | DX50: 22627.61656 | DY50: 11012.23414 | DZ50: 11275.7849 | EA50: 10569.19619 | EB50: 8625.598381 | EC50: 4298.82946 | ED50: 7035.007709 | EE50: 4075.41257 | EF50: 10942.78658 | EG50: 6130.239315 | EH50: 1809.137259 | EI50: 5323.463343 | EJ50: 7151.166309 | EK50: 7562.463801 | EL50: 10844.6996 | EM50: 1519.136258 | EN50: 1845.448271 | EO50: 477.5545591 | EP50: 1376.385206 | EQ50: 4660.811308 | ER50: 47.70208134 | ES50: 422.2968144 | ET50: 32.22174796 | EU50: 287.5318734 | EV50: 388.6159745 | EW50: 90.66413639 | EX50: 39.65473585 | EY50: 103.7332054 | EZ50: 113.0692619 | FA50: 156.7804415 | FB50: 713.2996052 | FC50: 47.01422867 | FD50: 349.0912069 | FE50: 177.0821355 | FF50: 0 | FG50: 0 | FH50: 0 | FI50: 299.673633 | FJ50: 79.40447304 | FK50: 183.1194622 | FL50: 916.1846954 | FM50: 175.598863 | FN50: 68.70507696 | FO50: 99.09650493 | FP50: 0 | FQ50: 107.5432509 | FR50: 0 | FS50: 0 | FT50: 0 | FU50: 0 | FV50: 0 | FW50: 33.54620085 | FX50: 0 | FY50: 0 | FZ50: 0 | GA50: 0 | GB50: 103.8770037 | GC50: 0 | GD50: 0 | GE50: 245.1353513 | GF50: 0 | GG50: 0 | GH50: 0 | GI50: 0 | GJ50: 265.3471471
A51: 3 | D51: UNDERGROUND CABLES | E51: > 1 kV & < = 11 kV | F51: 772.0344805 | G51: 70.00173484 | H51: 8.366703941 | I51: 2 | J51: 1.582509 | K51: 3.459468 | L51: 1.694248 | M51: 2.922708 | N51: 2.960447548 | O51: 4.377678901 | P51: 2.703081893 | Q51: 4.125802839 | R51: 3.481917275 | S51: 1.758138115 | T51: 1.590751697 | U51: 1.010104441 | V51: 2.690881124 | W51: 2.34697306 | X51: 1.975347051 | Y51: 0.8967676876 | Z51: 0.749980052 | AA51: 0.1521484995 | AB51: 2.260499823 | AC51: 0.877559578 | AD51: 1.171417793 | AE51: 0.526986989 | AF51: 0.4294726386 | AG51: 1.112 | AH51: 0.28232 | AI51: 1.033247 | AJ51: 0.789962234 | AK51: 0.535137011 | AL51: 0.370008141 | AM51: 0.290116374 | AN51: 0.324326681 | AO51: 0.782942619 | AP51: 0.2554750486 | AQ51: 0.294564 | AR51: 0.3170068024 | AS51: 0.370920036 | AT51: 0.621284952 | AU51: 0.26949507 | AV51: 1.226107927 | AW51: 1.560881952 | AX51: 0.548175897 | AY51: 0.507656 | AZ51: 1.71502835 | BA51: 0.231962212 | BB51: 0.8166979589 | BC51: 1.973641471 | BD51: 0.167055507 | BE51: 1.288725255 | BF51: 0.2268265111 | BG51: 2.160040043 | BH51: 0.600943 | BI51: 1.071937925 | BJ51: 0.033405119 | BK51: 0.553729818 | BL51: 0.069832985 | BM51: 0.057735156 | BN51: 0.373464221 | BO51: 0 | BP51: 0.3269867854 | BQ51: 0.681722 | BR51: 0.4126398345 | BS51: 0.34429 | BT51: 0 | BU51: 0 | BV51: 0.042655284 | BW51: 0.10256993 | BX51: 1.574211421 | BY51: 0 | BZ51: 0.032157977 | CA51: 0.086975 | CB51: 0 | CC51: 0.7759067695 | CD51: 0 | CE51: 0 | CF51: 0 | CG51: 0 | CH51: 0 | CI51: 0 | CJ51: 0 | CK51: 0 | CL51: 0 | CM51: 0 | CN51: 0 | CO51: 0 | CP51: 0 | CQ51: 0.248642744 | CR51: 0 | CS51: 0 | CT51: 0 | CU51: 0 | CV51: 0.20647566 | CX51: 1221.751514 | CY51: 2670.82858 | CZ51: 1308.017874 | DA51: 2256.431352 | DB51: 2285.567585 | DC51: 3379.719056 | DD51: 2086.872425 | DE51: 3185.262052 | DF51: 2688.160194 | DG51: 1357.343246 | DH51: 1228.11516 | DI51: 779.8354573 | DJ51: 2077.453011 | DK51: 1811.944127 | DL51: 1525.036034 | DM51: 692.3355758 | DN51: 579.0104598 | DO51: 117.4638878 | DP51: 1745.183806 | DQ51: 677.5062529 | DR51: 904.3749273 | DS51: 406.8521263 | DT51: 331.5676854 | DU51: 858.5023423 | DV51: 217.9607745 | DW51: 797.7023109 | DX51: 609.8780829 | DY51: 413.1442243 | DZ51: 285.6590429 | EA51: 223.9798441 | EB51: 250.3913807 | EC51: 604.4586981 | ED51: 197.2355464 | EE51: 227.4135647 | EF51: 244.740182 | EG51: 286.3630573 | EH51: 479.6534052 | EI51: 208.0594864 | EJ51: 946.5975964 | EK51: 1205.054687 | EL51: 423.2106939 | EM51: 391.9279362 | EN51: 1324.061022 | EO51: 179.0828258 | EP51: 630.5189844 | EQ51: 1523.719267 | ER51: 128.9726116 | ES51: 994.9403324 | ET51: 175.1178877 | EU51: 1667.625392 | EV51: 463.9487168 | EW51: 827.5730393 | EX51: 25.78990369 | EY51: 427.4985124 | EZ51: 53.9134723 | FA51: 44.57353117 | FB51: 288.3272558 | FC51: 0 | FD51: 252.445073 | FE51: 526.3128901 | FF51: 318.5721803 | FG51: 265.8037513 | FH51: 0 | FI51: 0 | FJ51: 32.93135002 | FK51: 79.18752262 | FL51: 1215.345497 | FM51: 0 | FN51: 24.82706707 | FO51: 67.14769894 | FP51: 0 | FQ51: 599.0267797 | FR51: 0 | FS51: 0 | FT51: 0 | FU51: 0 | FV51: 0 | FW51: 0 | FX51: 0 | FY51: 0 | FZ51: 0 | GA51: 0 | GB51: 0 | GC51: 0 | GD51: 0 | GE51: 191.9607717 | GF51: 0 | GG51: 0 | GH51: 0 | GI51: 0 | GJ51: 159.4063289
A52: 3 | D52: UNDERGROUND CABLES | E52: > 11 kV & < = 22 kV | F52: 903.8762773 | G52: 77.28432079 | H52: 8.79115014 | I52: 2 | J52: 13.792175 | K52: 24.346121 | L52: 20.929139 | M52: 24.248595 | N52: 17.1782162 | O52: 18.74879146 | P52: 21.84825219 | Q52: 27.17090343 | R52: 16.08473552 | S52: 20.86506733 | T52: 15.25802064 | U52: 23.64026776 | V52: 22.39936333 | W52: 25.89173287 | X52: 25.97781378 | Y52: 35.55418867 | Z52: 29.46193576 | AA52: 18.77138995 | AB52: 16.1757924 | AC52: 12.1283281 | AD52: 13.51271703 | AE52: 13.09777666 | AF52: 12.56726395 | AG52: 14.24370832 | AH52: 9.102619142 | AI52: 7.061699973 | AJ52: 10.2421191 | AK52: 3.617495533 | AL52: 4.246361325 | AM52: 1.480825247 | AN52: 2.475405585 | AO52: 3.369505511 | AP52: 2.665316238 | AQ52: 3.068586134 | AR52: 5.395496257 | AS52: 1.780793663 | AT52: 5.652209482 | AU52: 2.569668917 | AV52: 2.566801151 | AW52: 0.892096982 | AX52: 2.92484925 | AY52: 3.01478615 | AZ52: 0.383411334 | BA52: 0.947832916 | BB52: 1.589374653 | BC52: 3.882315396 | BD52: 0.826596604 | BE52: 3.660750251 | BF52: 3.780823139 | BG52: 0.221243841 | BH52: 0.839173 | BI52: 0 | BJ52: 0.135525359 | BK52: 1.83918 | BL52: 0.449692053 | BM52: 0.025780073 | BN52: 0.08171 | BO52: 0 | BP52: 0 | BQ52: 0 | BR52: 0 | BS52: 0 | BT52: 0 | BU52: 0 | BV52: 0.271212513 | BW52: 0.37827557 | BX52: 0 | BY52: 0 | BZ52: 0 | CA52: 0 | CB52: 0 | CC52: 0 | CD52: 0 | CE52: 0 | CF52: 0 | CG52: 0 | CH52: 0 | CI52: 6.60353 | CJ52: 0.5379 | CK52: 0 | CL52: 0 | CM52: 0 | CN52: 0 | CO52: 0 | CP52: 0 | CQ52: 0 | CR52: 0 | CS52: 0 | CT52: 0 | CU52: 0 | CV52: 0.65445 | CX52: 12466.41979 | CY52: 22005.88122 | CZ52: 18917.35225 | DA52: 21917.72978 | DB52: 15526.98211 | DC52: 16946.58783 | DD52: 19748.11686 | DE52: 24559.13504 | DF52: 14538.61087 | DG52: 18859.43938 | DH52: 13791.3629 | DI52: 21367.87721 | DJ52: 20246.25314 | DK52: 23402.92312 | DL52: 23480.72961 | DM52: 32136.5877 | DN52: 26629.94482 | DO52: 16967.01407 | DP52: 14620.91502 | DQ52: 10962.50805 | DR52: 12213.82437 | DS52: 11838.7696 | DT52: 11359.25176 | DU52: 12874.55005 | DV52: 8227.641504 | DW52: 6382.903082 | DX52: 9257.608486 | DY52: 3269.768395 | DZ52: 3838.185266 | EA52: 1338.482812 | EB52: 2237.460385 | EC52: 3045.616098 | ED52: 2409.116119 | EE52: 2773.622212 | EF52: 4876.861071 | EG52: 1609.617147 | EH52: 5108.898065 | EI52: 2322.662775 | EJ52: 2320.070669 | EK52: 806.3452991 | EL52: 2643.701852 | EM52: 2724.993682 | EN52: 346.5564092 | EO52: 856.7236876 | EP52: 1436.598044 | EQ52: 3509.132787 | ER52: 747.1410612 | ES52: 3308.865309 | ET52: 3417.396344 | EU52: 199.9770594 | EV52: 758.5085672 | EW52: 0 | EX52: 122.498157 | EY52: 1662.391172 | EZ52: 406.4659788 | FA52: 23.30199641 | FB52: 73.85573062 | FC52: 0 | FD52: 0 | FE52: 0 | FF52: 0 | FG52: 0 | FH52: 0 | FI52: 0 | FJ52: 245.1425566 | FK52: 341.914314 | FL52: 0 | FM52: 0 | FN52: 0 | FO52: 0 | FP52: 0 | FQ52: 0 | FR52: 0 | FS52: 0 | FT52: 0 | FU52: 0 | FV52: 0 | FW52: 5968.774113 | FX52: 486.1950495 | FY52: 0 | FZ52: 0 | GA52: 0 | GB52: 0 | GC52: 0 | GD52: 0 | GE52: 0 | GF52: 0 | GG52: 0 | GH52: 0 | GI52: 0 | GJ52: 591.5418297
E53: > 22 kV & < = 33 kV | F53: 1082.58162 | G53: 0 | H53: 0 | I53: 2
A54: 3 | D54: UNDERGROUND CABLES | E54: > 33 kV & < = 66 kV | F54: 156.9692204 | G54: 75.37516785 | H54: 8.681887344 | I54: 2 | J54: 0 | K54: 0 | L54: 0.18439 | M54: 0.5026 | N54: 0.3234 | O54: 0 | P54: 0 | Q54: 0 | R54: 0 | S54: 3.7596 | T54: 0 | U54: 0.7269 | V54: 0.03165 | W54: 0 | X54: 0 | Y54: 0 | Z54: 0 | AA54: 0 | AB54: 0.6115 | AC54: 0 | AD54: 0 | AE54: 0 | AF54: 0 | AG54: 0 | AH54: 0 | AI54: 0 | AJ54: 0 | AK54: 0 | AL54: 0.1208 | AM54: 0 | AN54: 0 | AO54: 0 | AP54: 0 | AQ54: 0 | AR54: 0 | AS54: 0 | AT54: 0 | AU54: 0 | AV54: 0.970256015 | AW54: 0 | AX54: 0.20674 | AY54: 0.9946 | AZ54: 0 | BA54: 0 | BB54: 0 | BC54: 3.1375 | BD54: 0.5947 | BE54: 0.14879 | BF54: 0 | BG54: 0 | BH54: 0 | BI54: 0 | BJ54: 0 | BK54: 0 | BL54: 0 | BM54: 0 | BN54: 0 | BO54: 0 | BP54: 0 | BQ54: 0 | BR54: 0 | BS54: 0 | BT54: 0 | BU54: 0 | BV54: 0 | BW54: 0 | BX54: 0 | BY54: 0 | BZ54: 0 | CA54: 0 | CB54: 0 | CC54: 0 | CD54: 0 | CE54: 0 | CF54: 0 | CG54: 0 | CH54: 0 | CI54: 0 | CJ54: 0 | CK54: 0 | CL54: 0 | CM54: 0 | CN54: 0 | CO54: 0 | CP54: 0 | CQ54: 0 | CR54: 0 | CS54: 0 | CT54: 0 | CU54: 0 | CV54: 0 | CX54: 0 | CY54: 0 | CZ54: 28.94355454 | DA54: 78.89273015 | DB54: 50.76384586 | DC54: 0 | DD54: 0 | DE54: 0 | DF54: 0 | DG54: 590.1414809 | DH54: 0 | DI54: 114.1009263 | DJ54: 4.968075824 | DK54: 0 | DL54: 0 | DM54: 0 | DN54: 0 | DO54: 0 | DP54: 95.98667825 | DQ54: 0 | DR54: 0 | DS54: 0 | DT54: 0 | DU54: 0 | DV54: 0 | DW54: 0 | DX54: 0 | DY54: 0 | DZ54: 18.96188182 | EA54: 0 | EB54: 0 | EC54: 0 | ED54: 0 | EE54: 0 | EF54: 0 | EG54: 0 | EH54: 0 | EI54: 0 | EJ54: 152.3003302 | EK54: 0 | EL54: 32.45181662 | EM54: 156.1215866 | EN54: 0 | EO54: 0 | EP54: 0 | EQ54: 492.4909289 | ER54: 93.34959535 | ES54: 23.3554503 | ET54: 0 | EU54: 0 | EV54: 0 | EW54: 0 | EX54: 0 | EY54: 0 | EZ54: 0 | FA54: 0 | FB54: 0 | FC54: 0 | FD54: 0 | FE54: 0 | FF54: 0 | FG54: 0 | FH54: 0 | FI54: 0 | FJ54: 0 | FK54: 0 | FL54: 0 | FM54: 0 | FN54: 0 | FO54: 0 | FP54: 0 | FQ54: 0 | FR54: 0 | FS54: 0 | FT54: 0 | FU54: 0 | FV54: 0 | FW54: 0 | FX54: 0 | FY54: 0 | FZ54: 0 | GA54: 0 | GB54: 0 | GC54: 0 | GD54: 0 | GE54: 0 | GF54: 0 | GG54: 0 | GH54: 0 | GI54: 0 | GJ54: 0
E55: > 66 kV & < = 132 kV | F55: 3019.570588 | G55: 0 | H55: 0 | I55: 2
E56: > 132 kV | F56: 0.0001 | G56: 0 | H56: 0 | I56: 2
E57: Other | F57: 0.0001 | G57: 0 | H57: 0 | I57: 2
A58: 4 | D58: SERVICE LINES | E58: ˂ = 11 kV ; Residential ; Simple Type | F58: 0.6887728476 | G58: 64.0056407 | H58: 8.000352536 | I58: 2 | J58: 153259.2903 | K58: 107459.8179 | L58: 77289.41585 | M58: 65271.37199 | N58: 91344.64217 | O58: 51338.21969 | P58: 68191.85286 | Q58: 61493.8369 | R58: 91675.92532 | S58: 81685.49781 | T58: 64356.55461 | U58: 44067.71768 | V58: 48936.34353 | W58: 29377.32615 | X58: 13105.32433 | Y58: 24260.44263 | Z58: 18443.28456 | AA58: 13456.04804 | AB58: 12039.74553 | AC58: 18174.46181 | AD58: 20012.39807 | AE58: 16689.0441 | AF58: 15105.69717 | AG58: 21505.38197 | AH58: 30007.64 | AI58: 40601.18725 | AJ58: 37058.83042 | AK58: 54047.53626 | AL58: 45652.65131 | AM58: 39844.56988 | AN58: 39714.27324 | AO58: 39575.29945 | AP58: 36014.75319 | AQ58: 44189.88113 | AR58: 39885.96101 | AS58: 37599.30516 | AT58: 36642.24971 | AU58: 34636.98257 | AV58: 56021.08427 | AW58: 82310.54791 | AX58: 82253.29068 | AY58: 103407.9682 | AZ58: 109016.6417 | BA58: 89936.03962 | BB58: 92346.58865 | BC58: 98466.37352 | BD58: 99651.49404 | BE58: 87375.27566 | BF58: 100384.0355 | BG58: 86626.38312 | BH58: 76741.01469 | BI58: 78297.52616 | BJ58: 80087.30234 | BK58: 63538.42656 | BL58: 953.4406985 | BM58: 1056.631634 | BN58: 1002.170635 | BO58: 181.797382 | BP58: 267.893964 | BQ58: 191.948374 | BR58: 328.374723 | BS58: 92.906106 | BT58: 158.727664 | BU58: 367.913175 | BV58: 41.596463 | BW58: 0 | BX58: 73.36 | BY58: 15.01 | BZ58: 0 | CA58: 13.53 | CB58: 36.9 | CC58: 137.064831 | CD58: 399.258537 | CE58: 272.190349 | CF58: 328.22462 | CG58: 275.528736 | CH58: 341.508372 | CI58: 131.927796 | CJ58: 33.150337 | CK58: 43.11 | CL58: 34.69 | CM58: 13.08 | CN58: 0 | CO58: 0 | CP58: 0 | CQ58: 0 | CR58: 0 | CS58: 0 | CT58: 27.349298 | CU58: 0 | CV58: 65.23 | CX58: 105560.8378 | CY58: 74015.4048 | CZ58: 53234.85105 | DA58: 44957.14875 | DB58: 62915.7093 | DC58: 35360.37177 | DD58: 46968.69668 | DE58: 42355.28515 | DF58: 63143.88814 | DG58: 56262.75294 | DH58: 44327.04738 | DI58: 30352.64739 | DJ58: 33706.02468 | DK58: 20234.30458 | DL58: 9026.591556 | DM58: 16709.93415 | DN58: 12703.23363 | DO58: 9268.160529 | DP58: 8292.649812 | DQ58: 12518.07582 | DR58: 13783.99641 | DS58: 11494.96043 | DT58: 10404.39406 | DU58: 14812.32318 | DV58: 20668.44765 | DW58: 27964.99536 | DX58: 25525.11616 | DY58: 37226.47546 | DZ58: 31444.30664 | EA58: 27443.85786 | EB58: 27354.11307 | EC58: 27258.3917 | ED58: 24805.98411 | EE58: 30436.79026 | EF58: 27472.36695 | EG58: 25897.38049 | EH58: 25238.18668 | EI58: 23857.01312 | EJ58: 38585.80174 | EK58: 56693.27047 | EL58: 56653.83325 | EM58: 71224.60072 | EN58: 75087.70272 | EO58: 61945.50211 | EP58: 63605.82283 | EQ58: 67820.96449 | ER58: 68637.24332 | ES58: 60181.71743 | ET58: 69141.79795 | EU58: 59665.90058 | EV58: 52857.12721 | EW58: 53929.21006 | EX58: 55161.95929 | EY58: 43763.54299 | EZ58: 656.7040649 | FA58: 727.7791793 | FB58: 690.2679221 | FC58: 125.2171005 | FD58: 184.5180884 | FE58: 132.2088282 | FF58: 226.175593 | FG58: 63.99120319 | FH58: 109.3273051 | FI58: 253.4086052 | FJ58: 28.65051427 | FK58: 0 | FL58: 50.5283761 | FM58: 10.33848044 | FN58: 0 | FO58: 9.319096628 | FP58: 25.41571808 | FQ58: 94.40653396 | FR58: 274.9984395 | FS58: 187.4773218 | FT58: 226.0722062 | FU58: 189.7767121 | FV58: 235.2216939 | FW58: 90.86828373 | FX58: 22.83305201 | FY58: 29.69299746 | FZ58: 23.89353008 | GA58: 9.009148847 | GB58: 0 | GC58: 0 | GD58: 0 | GE58: 0 | GF58: 0 | GG58: 0 | GH58: 18.83745386 | GI58: 0 | GJ58: 44.92865285
A59: 4 | D59: SERVICE LINES | E59: ˂ = 11 kV ; Commercial & Industrial ; Simple Type | F59: 0.7213299623 | G59: 60.89680849 | H59: 7.80364072 | I59: 2 | J59: 4344.653887 | K59: 2886.432775 | L59: 2958.153973 | M59: 2931.450879 | N59: 2288.668174 | O59: 3142.910449 | P59: 2865.956059 | Q59: 3910.643589 | R59: 5522.468316 | S59: 6593.694449 | T59: 4449.271797 | U59: 2263.567434 | V59: 3217.918666 | W59: 2249.094231 | X59: 1060.749116 | Y59: 2452.510675 | Z59: 1552.219581 | AA59: 1246.196809 | AB59: 1077.166105 | AC59: 1453.738027 | AD59: 1371.935926 | AE59: 1669.977487 | AF59: 1069.350536 | AG59: 3050.295333 | AH59: 4501.535465 | AI59: 2201.915333 | AJ59: 1726.900879 | AK59: 2151.610598 | AL59: 1592.182707 | AM59: 915.8888595 | AN59: 1233.845301 | AO59: 1273.596855 | AP59: 1205.092641 | AQ59: 1512.398185 | AR59: 1002.186322 | AS59: 1590.51207 | AT59: 1418.365436 | AU59: 954.3482355 | AV59: 1253.963134 | AW59: 1965.073419 | AX59: 2010.608167 | AY59: 2314.3807 | AZ59: 2424.253186 | BA59: 2203.602149 | BB59: 2056.137101 | BC59: 2315.217733 | BD59: 1978.098721 | BE59: 2198.606574 | BF59: 2486.011051 | BG59: 2054.872414 | BH59: 2017.504511 | BI59: 2014.767949 | BJ59: 1726.735997 | BK59: 1478.941848 | BL59: 110.2398081 | BM59: 19.706379 | BN59: 12.2455845 | BO59: 9.22 | BP59: 0 | BQ59: 0 | BR59: 30.87 | BS59: 0 | BT59: 0 | BU59: 0 | BV59: 0 | BW59: 0 | BX59: 0 | BY59: 0 | BZ59: 0 | CA59: 0 | CB59: 26.6257555 | CC59: 20.2 | CD59: 14.073789 | CE59: 0 | CF59: 19.8 | CG59: 0 | CH59: 0 | CI59: 0 | CJ59: 0 | CK59: 13.6 | CL59: 0 | CM59: 0 | CN59: 0 | CO59: 0 | CP59: 0 | CQ59: 0 | CR59: 0 | CS59: 0 | CT59: 0 | CU59: 0 | CV59: 15.241696 | CX59: 3133.929025 | CY59: 2082.070445 | CZ59: 2133.805094 | DA59: 2114.543352 | DB59: 1650.884928 | DC59: 2267.075476 | DD59: 2067.299976 | DE59: 2820.864392 | DF59: 3983.521862 | DG59: 4756.229368 | DH59: 3209.393058 | DI59: 1632.779012 | DJ59: 2321.18115 | DK59: 1622.339057 | DL59: 765.1501202 | DM59: 1769.069433 | DN59: 1119.662491 | DO59: 898.9190969 | DP59: 776.9921861 | DQ59: 1048.624796 | DR59: 989.6184894 | DS59: 1204.604798 | DT59: 771.3545818 | DU59: 2200.269417 | DV59: 3247.092407 | DW59: 1588.307504 | DX59: 1245.665346 | DY59: 1552.021192 | DZ59: 1148.489092 | EA59: 660.6580765 | EB59: 890.0095848 | EC59: 918.6835714 | ED59: 869.2694291 | EE59: 1090.938126 | EF59: 722.9070221 | EG59: 1147.284011 | EH59: 1023.109487 | EI59: 688.3999767 | EJ59: 904.5211802 | EK59: 1417.466335 | EL59: 1450.311913 | EM59: 1669.432143 | EN59: 1748.686459 | EO59: 1589.524255 | EP59: 1483.153298 | EQ59: 1670.03592 | ER59: 1426.861876 | ES59: 1585.920797 | ET59: 1793.234258 | EU59: 1482.241041 | EV59: 1455.286453 | EW59: 1453.312489 | EX59: 1245.546411 | EY59: 1066.805068 | EZ59: 79.51927662 | FA59: 14.21480162 | FB59: 8.833107006 | FC59: 6.650662252 | FD59: 0 | FE59: 0 | FF59: 22.26745594 | FG59: 0 | FH59: 0 | FI59: 0 | FJ59: 0 | FK59: 0 | FL59: 0 | FM59: 0 | FN59: 0 | FO59: 0 | FP59: 19.20595521 | FQ59: 14.57086524 | FR59: 10.15184569 | FS59: 0 | FT59: 14.28233325 | FU59: 0 | FV59: 0 | FW59: 0 | FX59: 0 | FY59: 9.810087487 | FZ59: 0 | GA59: 0 | GB59: 0 | GC59: 0 | GD59: 0 | GE59: 0 | GF59: 0 | GG59: 0 | GH59: 0 | GI59: 0 | GJ59: 10.994292
E60: ˂ = 11 kV ; Residential ; Complex Type | F60: 0.4708645922 | G60: 0 | H60: 0 | I60: 2
E61: ˂ = 11 kV ; Commercial & Industrial ; Complex Type | F61: 0.5117431138 | G61: 0 | H61: 0 | I61: 2
E62: ˂ = 11 kV ; Subdivision ; Complex Type | F62: 0.0001 | G62: 0 | H62: 0 | I62: 2
E63: > 11 kV & < = 22 kV ; Commercial & Industrial | F63: 0.0001 | G63: 0 | H63: 0 | I63: 2
E64: > 11 kV & < = 22 kV ; Subdivision | F64: 0.0001 | G64: 0 | H64: 0 | I64: 2
E65: > 22 kV & < = 33 kV ; Commercial & Industrial | F65: 0.0001 | G65: 0 | H65: 0 | I65: 2
E66: > 22 kV & < = 33 kV ; Subdivision | F66: 0.0001 | G66: 0 | H66: 0 | I66: 2
E67: > 33 kV & < = 66 kV ; Commercial & Industrial | F67: 0.0001 | G67: 0 | H67: 0 | I67: 2
E68: > 33 kV & < = 66 kV ; Subdivision | F68: 0.0001 | G68: 0 | H68: 0 | I68: 2
E69: > 66 kV & < = 132 kV ; Commercial & Industrial | F69: 0.0001 | G69: 0 | H69: 0 | I69: 2
E70: > 66 kV & < = 132 kV ; Subdivision | F70: 0.0001 | G70: 0 | H70: 0 | I70: 2
E71: > 132 kV ; Commercial & Industrial | F71: 0.0001 | G71: 0 | H71: 0 | I71: 2
E72: > 132 kV ; Subdivision | F72: 0.0001 | G72: 0 | H72: 0 | I72: 2
E73: Other | F73: 0.0001 | G73: 0 | H73: 0 | I73: 2
A74: 5 | D74: TRANSFORMERS | E74: Pole Mounted ; < = 22kV ; < = 60 kVA ; Single Phase | F74: 36.95991079 | G74: 47.95589779 | H74: 6.925019696 | I74: 2 | J74: 3 | K74: 18 | L74: 1 | M74: 2 | N74: 1 | O74: 2 | P74: 1 | Q74: 11 | R74: 3 | S74: 5 | T74: 4 | U74: 8 | V74: 8 | W74: 3 | X74: 3 | Y74: 9 | Z74: 6 | AA74: 26 | AB74: 7 | AC74: 10 | AD74: 13 | AE74: 28 | AF74: 26 | AG74: 29 | AH74: 24 | AI74: 35 | AJ74: 27 | AK74: 45 | AL74: 43 | AM74: 65 | AN74: 55 | AO74: 54 | AP74: 31 | AQ74: 25 | AR74: 29 | AS74: 27 | AT74: 30 | AU74: 29 | AV74: 16 | AW74: 7 | AX74: 10 | AY74: 11 | AZ74: 11 | BA74: 7 | BB74: 2 | BC74: 2 | BD74: 1 | BE74: 5 | BF74: 2 | BG74: 4 | BH74: 1 | BI74: 5 | BJ74: 2 | BK74: 0 | BL74: 1 | BM74: 3 | BN74: 1 | BO74: 0 | BP74: 0 | BQ74: 0 | BR74: 0 | BS74: 0 | BT74: 0 | BU74: 0 | BV74: 0 | BW74: 0 | BX74: 0 | BY74: 0 | BZ74: 0 | CA74: 0 | CB74: 0 | CC74: 0 | CD74: 0 | CE74: 0 | CF74: 0 | CG74: 0 | CH74: 0 | CI74: 0 | CJ74: 0 | CK74: 0 | CL74: 0 | CM74: 0 | CN74: 0 | CO74: 0 | CP74: 0 | CQ74: 0 | CR74: 0 | CS74: 0 | CT74: 0 | CU74: 0 | CV74: 0 | CX74: 110.8797324 | CY74: 665.2783943 | CZ74: 36.95991079 | DA74: 73.91982159 | DB74: 36.95991079 | DC74: 73.91982159 | DD74: 36.95991079 | DE74: 406.5590187 | DF74: 110.8797324 | DG74: 184.799554 | DH74: 147.8396432 | DI74: 295.6792863 | DJ74: 295.6792863 | DK74: 110.8797324 | DL74: 110.8797324 | DM74: 332.6391971 | DN74: 221.7594648 | DO74: 960.9576806 | DP74: 258.7193755 | DQ74: 369.5991079 | DR74: 480.4788403 | DS74: 1034.877502 | DT74: 960.9576806 | DU74: 1071.837413 | DV74: 887.037859 | DW74: 1293.596878 | DX74: 997.9175914 | DY74: 1663.195986 | DZ74: 1589.276164 | EA74: 2402.394202 | EB74: 2032.795094 | EC74: 1995.835183 | ED74: 1145.757235 | EE74: 923.9977698 | EF74: 1071.837413 | EG74: 997.9175914 | EH74: 1108.797324 | EI74: 1071.837413 | EJ74: 591.3585727 | EK74: 258.7193755 | EL74: 369.5991079 | EM74: 406.5590187 | EN74: 406.5590187 | EO74: 258.7193755 | EP74: 73.91982159 | EQ74: 73.91982159 | ER74: 36.95991079 | ES74: 184.799554 | ET74: 73.91982159 | EU74: 147.8396432 | EV74: 36.95991079 | EW74: 184.799554 | EX74: 73.91982159 | EY74: 0 | EZ74: 36.95991079 | FA74: 110.8797324 | FB74: 36.95991079 | FC74: 0 | FD74: 0 | FE74: 0 | FF74: 0 | FG74: 0 | FH74: 0 | FI74: 0 | FJ74: 0 | FK74: 0 | FL74: 0 | FM74: 0 | FN74: 0 | FO74: 0 | FP74: 0 | FQ74: 0 | FR74: 0 | FS74: 0 | FT74: 0 | FU74: 0 | FV74: 0 | FW74: 0 | FX74: 0 | FY74: 0 | FZ74: 0 | GA74: 0 | GB74: 0 | GC74: 0 | GD74: 0 | GE74: 0 | GF74: 0 | GG74: 0 | GH74: 0 | GI74: 0 | GJ74: 0
A75: 5 | D75: TRANSFORMERS | E75: Pole Mounted ; < = 22kV ; > 60 kVA and < = 600 kVA ; Single Phase | F75: 19.86916228 | G75: 56.49690261 | H75: 7.516442151 | I75: 2 | J75: 0 | K75: 1 | L75: 0 | M75: 2 | N75: 0 | O75: 0 | P75: 0 | Q75: 0 | R75: 0 | S75: 0 | T75: 0 | U75: 0 | V75: 0 | W75: 0 | X75: 1 | Y75: 2 | Z75: 0 | AA75: 0 | AB75: 1 | AC75: 0 | AD75: 1 | AE75: 1 | AF75: 0 | AG75: 0 | AH75: 2 | AI75: 1 | AJ75: 1 | AK75: 0 | AL75: 0 | AM75: 0 | AN75: 0 | AO75: 1 | AP75: 0 | AQ75: 0 | AR75: 1 | AS75: 0 | AT75: 0 | AU75: 0 | AV75: 0 | AW75: 0 | AX75: 0 | AY75: 0 | AZ75: 0 | BA75: 0 | BB75: 0 | BC75: 0 | BD75: 0 | BE75: 0 | BF75: 0 | BG75: 0 | BH75: 0 | BI75: 0 | BJ75: 0 | BK75: 0 | BL75: 0 | BM75: 0 | BN75: 0 | BO75: 0 | BP75: 0 | BQ75: 0 | BR75: 0 | BS75: 0 | BT75: 0 | BU75: 0 | BV75: 0 | BW75: 0 | BX75: 0 | BY75: 0 | BZ75: 0 | CA75: 0 | CB75: 0 | CC75: 0 | CD75: 0 | CE75: 0 | CF75: 0 | CG75: 0 | CH75: 0 | CI75: 0 | CJ75: 0 | CK75: 0 | CL75: 0 | CM75: 0 | CN75: 0 | CO75: 0 | CP75: 0 | CQ75: 0 | CR75: 0 | CS75: 0 | CT75: 0 | CU75: 0 | CV75: 0 | CX75: 0 | CY75: 19.86916228 | CZ75: 0 | DA75: 39.73832456 | DB75: 0 | DC75: 0 | DD75: 0 | DE75: 0 | DF75: 0 | DG75: 0 | DH75: 0 | DI75: 0 | DJ75: 0 | DK75: 0 | DL75: 19.86916228 | DM75: 39.73832456 | DN75: 0 | DO75: 0 | DP75: 19.86916228 | DQ75: 0 | DR75: 19.86916228 | DS75: 19.86916228 | DT75: 0 | DU75: 0 | DV75: 39.73832456 | DW75: 19.86916228 | DX75: 19.86916228 | DY75: 0 | DZ75: 0 | EA75: 0 | EB75: 0 | EC75: 19.86916228 | ED75: 0 | EE75: 0 | EF75: 19.86916228 | EG75: 0 | EH75: 0 | EI75: 0 | EJ75: 0 | EK75: 0 | EL75: 0 | EM75: 0 | EN75: 0 | EO75: 0 | EP75: 0 | EQ75: 0 | ER75: 0 | ES75: 0 | ET75: 0 | EU75: 0 | EV75: 0 | EW75: 0 | EX75: 0 | EY75: 0 | EZ75: 0 | FA75: 0 | FB75: 0 | FC75: 0 | FD75: 0 | FE75: 0 | FF75: 0 | FG75: 0 | FH75: 0 | FI75: 0 | FJ75: 0 | FK75: 0 | FL75: 0 | FM75: 0 | FN75: 0 | FO75: 0 | FP75: 0 | FQ75: 0 | FR75: 0 | FS75: 0 | FT75: 0 | FU75: 0 | FV75: 0 | FW75: 0 | FX75: 0 | FY75: 0 | FZ75: 0 | GA75: 0 | GB75: 0 | GC75: 0 | GD75: 0 | GE75: 0 | GF75: 0 | GG75: 0 | GH75: 0 | GI75: 0 | GJ75: 0
E76: Pole Mounted ; < = 22kV ; > 600 kVA ; Single Phase | F76: 0.0001 | G76: 0 | H76: 0 | I76: 2
A77: 5 | D77: TRANSFORMERS | E77: Pole Mounted ; < = 22kV ; < = 60 kVA ; Multiple Phase | F77: 25.31310563 | G77: 57.78903523 | H77: 7.601909973 | I77: 2 | J77: 2 | K77: 7 | L77: 4 | M77: 3 | N77: 4 | O77: 5 | P77: 2 | Q77: 3 | R77: 2 | S77: 4 | T77: 7 | U77: 3 | V77: 4 | W77: 10 | X77: 8 | Y77: 13 | Z77: 12 | AA77: 12 | AB77: 13 | AC77: 6 | AD77: 11 | AE77: 8 | AF77: 4 | AG77: 6 | AH77: 13 | AI77: 14 | AJ77: 7 | AK77: 14 | AL77: 7 | AM77: 11 | AN77: 8 | AO77: 9 | AP77: 8 | AQ77: 3 | AR77: 10 | AS77: 4 | AT77: 3 | AU77: 4 | AV77: 2 | AW77: 2 | AX77: 0 | AY77: 1 | AZ77: 4 | BA77: 2 | BB77: 0 | BC77: 0 | BD77: 1 | BE77: 0 | BF77: 1 | BG77: 2 | BH77: 0 | BI77: 2 | BJ77: 2 | BK77: 1 | BL77: 0 | BM77: 1 | BN77: 1 | BO77: 0 | BP77: 0 | BQ77: 0 | BR77: 0 | BS77: 0 | BT77: 0 | BU77: 0 | BV77: 0 | BW77: 0 | BX77: 0 | BY77: 0 | BZ77: 0 | CA77: 0 | CB77: 0 | CC77: 0 | CD77: 0 | CE77: 0 | CF77: 0 | CG77: 0 | CH77: 0 | CI77: 0 | CJ77: 0 | CK77: 0 | CL77: 0 | CM77: 0 | CN77: 0 | CO77: 0 | CP77: 0 | CQ77: 0 | CR77: 0 | CS77: 0 | CT77: 0 | CU77: 0 | CV77: 0 | CX77: 50.62621125 | CY77: 177.1917394 | CZ77: 101.2524225 | DA77: 75.93931688 | DB77: 101.2524225 | DC77: 126.5655281 | DD77: 50.62621125 | DE77: 75.93931688 | DF77: 50.62621125 | DG77: 101.2524225 | DH77: 177.1917394 | DI77: 75.93931688 | DJ77: 101.2524225 | DK77: 253.1310563 | DL77: 202.504845 | DM77: 329.0703731 | DN77: 303.7572675 | DO77: 303.7572675 | DP77: 329.0703731 | DQ77: 151.8786338 | DR77: 278.4441619 | DS77: 202.504845 | DT77: 101.2524225 | DU77: 151.8786338 | DV77: 329.0703731 | DW77: 354.3834788 | DX77: 177.1917394 | DY77: 354.3834788 | DZ77: 177.1917394 | EA77: 278.4441619 | EB77: 202.504845 | EC77: 227.8179506 | ED77: 202.504845 | EE77: 75.93931688 | EF77: 253.1310563 | EG77: 101.2524225 | EH77: 75.93931688 | EI77: 101.2524225 | EJ77: 50.62621125 | EK77: 50.62621125 | EL77: 0 | EM77: 25.31310563 | EN77: 101.2524225 | EO77: 50.62621125 | EP77: 0 | EQ77: 0 | ER77: 25.31310563 | ES77: 0 | ET77: 25.31310563 | EU77: 50.62621125 | EV77: 0 | EW77: 50.62621125 | EX77: 50.62621125 | EY77: 25.31310563 | EZ77: 0 | FA77: 25.31310563 | FB77: 25.31310563 | FC77: 0 | FD77: 0 | FE77: 0 | FF77: 0 | FG77: 0 | FH77: 0 | FI77: 0 | FJ77: 0 | FK77: 0 | FL77: 0 | FM77: 0 | FN77: 0 | FO77: 0 | FP77: 0 | FQ77: 0 | FR77: 0 | FS77: 0 | FT77: 0 | FU77: 0 | FV77: 0 | FW77: 0 | FX77: 0 | FY77: 0 | FZ77: 0 | GA77: 0 | GB77: 0 | GC77: 0 | GD77: 0 | GE77: 0 | GF77: 0 | GG77: 0 | GH77: 0 | GI77: 0 | GJ77: 0
A78: 5 | D78: TRANSFORMERS | E78: Pole Mounted ; < = 22kV ; > 60 kVA and < = 600 kVA ; Multiple Phase | F78: 42.36727289 | G78: 53.92974913 | H78: 7.343687706 | I78: 2 | J78: 89 | K78: 89 | L78: 58 | M78: 73 | N78: 71 | O78: 79 | P78: 58 | Q78: 61 | R78: 51 | S78: 46 | T78: 47 | U78: 40 | V78: 50 | W78: 38 | X78: 19 | Y78: 84 | Z78: 75 | AA78: 71 | AB78: 43 | AC78: 39 | AD78: 42 | AE78: 34 | AF78: 68 | AG78: 47 | AH78: 73 | AI78: 91 | AJ78: 85 | AK78: 84 | AL78: 97 | AM78: 79 | AN78: 62 | AO78: 58 | AP78: 59 | AQ78: 37 | AR78: 46 | AS78: 36 | AT78: 81 | AU78: 53 | AV78: 41 | AW78: 41 | AX78: 40 | AY78: 43 | AZ78: 46 | BA78: 45 | BB78: 13 | BC78: 40 | BD78: 46 | BE78: 30 | BF78: 25 | BG78: 41 | BH78: 10 | BI78: 8 | BJ78: 7 | BK78: 16 | BL78: 4 | BM78: 7 | BN78: 6 | BO78: 2 | BP78: 3 | BQ78: 3 | BR78: 1 | BS78: 0 | BT78: 0 | BU78: 1 | BV78: 0 | BW78: 0 | BX78: 0 | BY78: 0 | BZ78: 0 | CA78: 0 | CB78: 0 | CC78: 0 | CD78: 0 | CE78: 0 | CF78: 0 | CG78: 0 | CH78: 1 | CI78: 0 | CJ78: 0 | CK78: 0 | CL78: 0 | CM78: 0 | CN78: 0 | CO78: 0 | CP78: 0 | CQ78: 0 | CR78: 0 | CS78: 0 | CT78: 0 | CU78: 0 | CV78: 0 | CX78: 3770.687287 | CY78: 3770.687287 | CZ78: 2457.301828 | DA78: 3092.810921 | DB78: 3008.076375 | DC78: 3347.014559 | DD78: 2457.301828 | DE78: 2584.403646 | DF78: 2160.730918 | DG78: 1948.894553 | DH78: 1991.261826 | DI78: 1694.690916 | DJ78: 2118.363645 | DK78: 1609.95637 | DL78: 804.978185 | DM78: 3558.850923 | DN78: 3177.545467 | DO78: 3008.076375 | DP78: 1821.792734 | DQ78: 1652.323643 | DR78: 1779.425461 | DS78: 1440.487278 | DT78: 2880.974557 | DU78: 1991.261826 | DV78: 3092.810921 | DW78: 3855.421833 | DX78: 3601.218196 | DY78: 3558.850923 | DZ78: 4109.625471 | EA78: 3347.014559 | EB78: 2626.770919 | EC78: 2457.301828 | ED78: 2499.669101 | EE78: 1567.589097 | EF78: 1948.894553 | EG78: 1525.221824 | EH78: 3431.749104 | EI78: 2245.465463 | EJ78: 1737.058189 | EK78: 1737.058189 | EL78: 1694.690916 | EM78: 1821.792734 | EN78: 1948.894553 | EO78: 1906.52728 | EP78: 550.7745476 | EQ78: 1694.690916 | ER78: 1948.894553 | ES78: 1271.018187 | ET78: 1059.181822 | EU78: 1737.058189 | EV78: 423.6727289 | EW78: 338.9381831 | EX78: 296.5709102 | EY78: 677.8763663 | EZ78: 169.4690916 | FA78: 296.5709102 | FB78: 254.2036374 | FC78: 84.73454579 | FD78: 127.1018187 | FE78: 127.1018187 | FF78: 42.36727289 | FG78: 0 | FH78: 0 | FI78: 42.36727289 | FJ78: 0 | FK78: 0 | FL78: 0 | FM78: 0 | FN78: 0 | FO78: 0 | FP78: 0 | FQ78: 0 | FR78: 0 | FS78: 0 | FT78: 0 | FU78: 0 | FV78: 42.36727289 | FW78: 0 | FX78: 0 | FY78: 0 | FZ78: 0 | GA78: 0 | GB78: 0 | GC78: 0 | GD78: 0 | GE78: 0 | GF78: 0 | GG78: 0 | GH78: 0 | GI78: 0 | GJ78: 0
A79: 5 | D79: TRANSFORMERS | E79: Pole Mounted ; < = 22kV ; > 600 kVA ; Multiple Phase | F79: 27.48029753 | G79: 49.52074903 | H79: 7.037098055 | I79: 2 | J79: 0 | K79: 0 | L79: 0 | M79: 0 | N79: 0 | O79: 0 | P79: 0 | Q79: 0 | R79: 0 | S79: 0 | T79: 0 | U79: 0 | V79: 0 | W79: 0 | X79: 0 | Y79: 0 | Z79: 0 | AA79: 0 | AB79: 0 | AC79: 0 | AD79: 0 | AE79: 0 | AF79: 0 | AG79: 0 | AH79: 0 | AI79: 0 | AJ79: 0 | AK79: 0 | AL79: 0 | AM79: 0 | AN79: 0 | AO79: 1 | AP79: 0 | AQ79: 0 | AR79: 0 | AS79: 0 | AT79: 0 | AU79: 0 | AV79: 0 | AW79: 0 | AX79: 0 | AY79: 1 | AZ79: 0 | BA79: 0 | BB79: 0 | BC79: 0 | BD79: 0 | BE79: 0 | BF79: 1 | BG79: 0 | BH79: 0 | BI79: 0 | BJ79: 0 | BK79: 0 | BL79: 0 | BM79: 0 | BN79: 0 | BO79: 0 | BP79: 0 | BQ79: 0 | BR79: 0 | BS79: 0 | BT79: 0 | BU79: 0 | BV79: 0 | BW79: 0 | BX79: 0 | BY79: 0 | BZ79: 0 | CA79: 0 | CB79: 0 | CC79: 0 | CD79: 0 | CE79: 0 | CF79: 0 | CG79: 0 | CH79: 0 | CI79: 0 | CJ79: 0 | CK79: 0 | CL79: 0 | CM79: 0 | CN79: 0 | CO79: 0 | CP79: 0 | CQ79: 0 | CR79: 0 | CS79: 0 | CT79: 0 | CU79: 0 | CV79: 0 | CX79: 0 | CY79: 0 | CZ79: 0 | DA79: 0 | DB79: 0 | DC79: 0 | DD79: 0 | DE79: 0 | DF79: 0 | DG79: 0 | DH79: 0 | DI79: 0 | DJ79: 0 | DK79: 0 | DL79: 0 | DM79: 0 | DN79: 0 | DO79: 0 | DP79: 0 | DQ79: 0 | DR79: 0 | DS79: 0 | DT79: 0 | DU79: 0 | DV79: 0 | DW79: 0 | DX79: 0 | DY79: 0 | DZ79: 0 | EA79: 0 | EB79: 0 | EC79: 27.48029753 | ED79: 0 | EE79: 0 | EF79: 0 | EG79: 0 | EH79: 0 | EI79: 0 | EJ79: 0 | EK79: 0 | EL79: 0 | EM79: 27.48029753 | EN79: 0 | EO79: 0 | EP79: 0 | EQ79: 0 | ER79: 0 | ES79: 0 | ET79: 27.48029753 | EU79: 0 | EV79: 0 | EW79: 0 | EX79: 0 | EY79: 0 | EZ79: 0 | FA79: 0 | FB79: 0 | FC79: 0 | FD79: 0 | FE79: 0 | FF79: 0 | FG79: 0 | FH79: 0 | FI79: 0 | FJ79: 0 | FK79: 0 | FL79: 0 | FM79: 0 | FN79: 0 | FO79: 0 | FP79: 0 | FQ79: 0 | FR79: 0 | FS79: 0 | FT79: 0 | FU79: 0 | FV79: 0 | FW79: 0 | FX79: 0 | FY79: 0 | FZ79: 0 | GA79: 0 | GB79: 0 | GC79: 0 | GD79: 0 | GE79: 0 | GF79: 0 | GG79: 0 | GH79: 0 | GI79: 0 | GJ79: 0
A80: 5 | D80: TRANSFORMERS | E80: Kiosk Mounted ; < = 22kV ; < = 60 kVA ; Single Phase | F80: 30.08150727 | G80: 56.49690261 | H80: 7.516442151 | I80: 2 | J80: 0 | K80: 0 | L80: 0 | M80: 0 | N80: 0 | O80: 0 | P80: 0 | Q80: 0 | R80: 0 | S80: 0 | T80: 0 | U80: 0 | V80: 0 | W80: 0 | X80: 0 | Y80: 0 | Z80: 0 | AA80: 1 | AB80: 4 | AC80: 0 | AD80: 0 | AE80: 0 | AF80: 0 | AG80: 0 | AH80: 0 | AI80: 0 | AJ80: 0 | AK80: 0 | AL80: 0 | AM80: 0 | AN80: 0 | AO80: 0 | AP80: 0 | AQ80: 0 | AR80: 0 | AS80: 0 | AT80: 0 | AU80: 0 | AV80: 0 | AW80: 0 | AX80: 0 | AY80: 0 | AZ80: 0 | BA80: 0 | BB80: 0 | BC80: 0 | BD80: 0 | BE80: 0 | BF80: 0 | BG80: 0 | BH80: 0 | BI80: 0 | BJ80: 0 | BK80: 0 | BL80: 0 | BM80: 0 | BN80: 0 | BO80: 0 | BP80: 0 | BQ80: 0 | BR80: 0 | BS80: 0 | BT80: 0 | BU80: 0 | BV80: 0 | BW80: 0 | BX80: 0 | BY80: 0 | BZ80: 0 | CA80: 0 | CB80: 0 | CC80: 0 | CD80: 0 | CE80: 0 | CF80: 0 | CG80: 0 | CH80: 0 | CI80: 0 | CJ80: 0 | CK80: 0 | CL80: 0 | CM80: 0 | CN80: 0 | CO80: 0 | CP80: 0 | CQ80: 0 | CR80: 0 | CS80: 0 | CT80: 0 | CU80: 0 | CV80: 0 | CX80: 0 | CY80: 0 | CZ80: 0 | DA80: 0 | DB80: 0 | DC80: 0 | DD80: 0 | DE80: 0 | DF80: 0 | DG80: 0 | DH80: 0 | DI80: 0 | DJ80: 0 | DK80: 0 | DL80: 0 | DM80: 0 | DN80: 0 | DO80: 30.08150727 | DP80: 120.3260291 | DQ80: 0 | DR80: 0 | DS80: 0 | DT80: 0 | DU80: 0 | DV80: 0 | DW80: 0 | DX80: 0 | DY80: 0 | DZ80: 0 | EA80: 0 | EB80: 0 | EC80: 0 | ED80: 0 | EE80: 0 | EF80: 0 | EG80: 0 | EH80: 0 | EI80: 0 | EJ80: 0 | EK80: 0 | EL80: 0 | EM80: 0 | EN80: 0 | EO80: 0 | EP80: 0 | EQ80: 0 | ER80: 0 | ES80: 0 | ET80: 0 | EU80: 0 | EV80: 0 | EW80: 0 | EX80: 0 | EY80: 0 | EZ80: 0 | FA80: 0 | FB80: 0 | FC80: 0 | FD80: 0 | FE80: 0 | FF80: 0 | FG80: 0 | FH80: 0 | FI80: 0 | FJ80: 0 | FK80: 0 | FL80: 0 | FM80: 0 | FN80: 0 | FO80: 0 | FP80: 0 | FQ80: 0 | FR80: 0 | FS80: 0 | FT80: 0 | FU80: 0 | FV80: 0 | FW80: 0 | FX80: 0 | FY80: 0 | FZ80: 0 | GA80: 0 | GB80: 0 | GC80: 0 | GD80: 0 | GE80: 0 | GF80: 0 | GG80: 0 | GH80: 0 | GI80: 0 | GJ80: 0
A81: 5 | D81: TRANSFORMERS | E81: Kiosk Mounted ; < = 22kV ; > 60 kVA and < = 600 kVA ; Single Phase | F81: 110.3371094 | G81: 56.49690261 | H81: 7.516442151 | I81: 2 | J81: 0 | K81: 3 | L81: 0 | M81: 0 | N81: 0 | O81: 0 | P81: 0 | Q81: 0 | R81: 0 | S81: 0 | T81: 0 | U81: 0 | V81: 0 | W81: 0 | X81: 0 | Y81: 0 | Z81: 0 | AA81: 0 | AB81: 0 | AC81: 0 | AD81: 0 | AE81: 0 | AF81: 0 | AG81: 0 | AH81: 0 | AI81: 0 | AJ81: 0 | AK81: 0 | AL81: 0 | AM81: 0 | AN81: 0 | AO81: 0 | AP81: 0 | AQ81: 0 | AR81: 0 | AS81: 0 | AT81: 0 | AU81: 0 | AV81: 0 | AW81: 0 | AX81: 0 | AY81: 0 | AZ81: 0 | BA81: 0 | BB81: 0 | BC81: 0 | BD81: 0 | BE81: 0 | BF81: 0 | BG81: 0 | BH81: 0 | BI81: 0 | BJ81: 0 | BK81: 0 | BL81: 0 | BM81: 0 | BN81: 0 | BO81: 0 | BP81: 0 | BQ81: 0 | BR81: 0 | BS81: 0 | BT81: 0 | BU81: 0 | BV81: 0 | BW81: 0 | BX81: 0 | BY81: 0 | BZ81: 0 | CA81: 0 | CB81: 0 | CC81: 0 | CD81: 0 | CE81: 0 | CF81: 0 | CG81: 0 | CH81: 0 | CI81: 0 | CJ81: 0 | CK81: 0 | CL81: 0 | CM81: 0 | CN81: 0 | CO81: 0 | CP81: 0 | CQ81: 0 | CR81: 0 | CS81: 0 | CT81: 0 | CU81: 0 | CV81: 0 | CX81: 0 | CY81: 331.0113282 | CZ81: 0 | DA81: 0 | DB81: 0 | DC81: 0 | DD81: 0 | DE81: 0 | DF81: 0 | DG81: 0 | DH81: 0 | DI81: 0 | DJ81: 0 | DK81: 0 | DL81: 0 | DM81: 0 | DN81: 0 | DO81: 0 | DP81: 0 | DQ81: 0 | DR81: 0 | DS81: 0 | DT81: 0 | DU81: 0 | DV81: 0 | DW81: 0 | DX81: 0 | DY81: 0 | DZ81: 0 | EA81: 0 | EB81: 0 | EC81: 0 | ED81: 0 | EE81: 0 | EF81: 0 | EG81: 0 | EH81: 0 | EI81: 0 | EJ81: 0 | EK81: 0 | EL81: 0 | EM81: 0 | EN81: 0 | EO81: 0 | EP81: 0 | EQ81: 0 | ER81: 0 | ES81: 0 | ET81: 0 | EU81: 0 | EV81: 0 | EW81: 0 | EX81: 0 | EY81: 0 | EZ81: 0 | FA81: 0 | FB81: 0 | FC81: 0 | FD81: 0 | FE81: 0 | FF81: 0 | FG81: 0 | FH81: 0 | FI81: 0 | FJ81: 0 | FK81: 0 | FL81: 0 | FM81: 0 | FN81: 0 | FO81: 0 | FP81: 0 | FQ81: 0 | FR81: 0 | FS81: 0 | FT81: 0 | FU81: 0 | FV81: 0 | FW81: 0 | FX81: 0 | FY81: 0 | FZ81: 0 | GA81: 0 | GB81: 0 | GC81: 0 | GD81: 0 | GE81: 0 | GF81: 0 | GG81: 0 | GH81: 0 | GI81: 0 | GJ81: 0
E82: Kiosk Mounted ; < = 22kV ; > 600 kVA ; Single Phase | F82: 0.0001 | G82: 0 | H82: 0 | I82: 2
A83: 5 | D83: TRANSFORMERS | E83: Kiosk Mounted ; < = 22kV ; < = 60 kVA ; Multiple Phase | F83: 61.27796189 | G83: 56.49690261 | H83: 7.516442151 | I83: 2 | J83: 0 | K83: 0 | L83: 0 | M83: 0 | N83: 0 | O83: 0 | P83: 0 | Q83: 0 | R83: 0 | S83: 0 | T83: 0 | U83: 3 | V83: 0 | W83: 0 | X83: 0 | Y83: 0 | Z83: 0 | AA83: 0 | AB83: 1 | AC83: 0 | AD83: 0 | AE83: 0 | AF83: 0 | AG83: 0 | AH83: 0 | AI83: 0 | AJ83: 0 | AK83: 0 | AL83: 0 | AM83: 0 | AN83: 0 | AO83: 0 | AP83: 0 | AQ83: 0 | AR83: 0 | AS83: 0 | AT83: 0 | AU83: 0 | AV83: 0 | AW83: 0 | AX83: 0 | AY83: 0 | AZ83: 0 | BA83: 0 | BB83: 0 | BC83: 0 | BD83: 0 | BE83: 0 | BF83: 0 | BG83: 0 | BH83: 0 | BI83: 0 | BJ83: 0 | BK83: 0 | BL83: 0 | BM83: 0 | BN83: 0 | BO83: 0 | BP83: 0 | BQ83: 0 | BR83: 0 | BS83: 0 | BT83: 0 | BU83: 0 | BV83: 0 | BW83: 0 | BX83: 0 | BY83: 0 | BZ83: 0 | CA83: 0 | CB83: 0 | CC83: 0 | CD83: 0 | CE83: 0 | CF83: 0 | CG83: 0 | CH83: 0 | CI83: 0 | CJ83: 0 | CK83: 0 | CL83: 0 | CM83: 0 | CN83: 0 | CO83: 0 | CP83: 0 | CQ83: 0 | CR83: 0 | CS83: 0 | CT83: 0 | CU83: 0 | CV83: 0 | CX83: 0 | CY83: 0 | CZ83: 0 | DA83: 0 | DB83: 0 | DC83: 0 | DD83: 0 | DE83: 0 | DF83: 0 | DG83: 0 | DH83: 0 | DI83: 183.8338857 | DJ83: 0 | DK83: 0 | DL83: 0 | DM83: 0 | DN83: 0 | DO83: 0 | DP83: 61.27796189 | DQ83: 0 | DR83: 0 | DS83: 0 | DT83: 0 | DU83: 0 | DV83: 0 | DW83: 0 | DX83: 0 | DY83: 0 | DZ83: 0 | EA83: 0 | EB83: 0 | EC83: 0 | ED83: 0 | EE83: 0 | EF83: 0 | EG83: 0 | EH83: 0 | EI83: 0 | EJ83: 0 | EK83: 0 | EL83: 0 | EM83: 0 | EN83: 0 | EO83: 0 | EP83: 0 | EQ83: 0 | ER83: 0 | ES83: 0 | ET83: 0 | EU83: 0 | EV83: 0 | EW83: 0 | EX83: 0 | EY83: 0 | EZ83: 0 | FA83: 0 | FB83: 0 | FC83: 0 | FD83: 0 | FE83: 0 | FF83: 0 | FG83: 0 | FH83: 0 | FI83: 0 | FJ83: 0 | FK83: 0 | FL83: 0 | FM83: 0 | FN83: 0 | FO83: 0 | FP83: 0 | FQ83: 0 | FR83: 0 | FS83: 0 | FT83: 0 | FU83: 0 | FV83: 0 | FW83: 0 | FX83: 0 | FY83: 0 | FZ83: 0 | GA83: 0 | GB83: 0 | GC83: 0 | GD83: 0 | GE83: 0 | GF83: 0 | GG83: 0 | GH83: 0 | GI83: 0 | GJ83: 0
A84: 5 | D84: TRANSFORMERS | E84: Kiosk Mounted ; < = 22kV ; > 60 kVA and < = 600 kVA ; Multiple Phase | F84: 24.99050254 | G84: 34.79237301 | H84: 5.898505998 | I84: 2 | J84: 35 | K84: 40 | L84: 32 | M84: 46 | N84: 27 | O84: 37 | P84: 47 | Q84: 34 | R84: 38 | S84: 32 | T84: 29 | U84: 43 | V84: 35 | W84: 35 | X84: 26 | Y84: 60 | Z84: 30 | AA84: 24 | AB84: 34 | AC84: 25 | AD84: 24 | AE84: 22 | AF84: 19 | AG84: 21 | AH84: 24 | AI84: 18 | AJ84: 14 | AK84: 13 | AL84: 11 | AM84: 9 | AN84: 6 | AO84: 2 | AP84: 4 | AQ84: 6 | AR84: 5 | AS84: 1 | AT84: 0 | AU84: 3 | AV84: 0 | AW84: 2 | AX84: 0 | AY84: 2 | AZ84: 0 | BA84: 0 | BB84: 1 | BC84: 1 | BD84: 0 | BE84: 0 | BF84: 0 | BG84: 0 | BH84: 0 | BI84: 0 | BJ84: 0 | BK84: 0 | BL84: 0 | BM84: 1 | BN84: 0 | BO84: 0 | BP84: 0 | BQ84: 0 | BR84: 0 | BS84: 0 | BT84: 0 | BU84: 0 | BV84: 0 | BW84: 0 | BX84: 0 | BY84: 0 | BZ84: 0 | CA84: 0 | CB84: 0 | CC84: 0 | CD84: 0 | CE84: 0 | CF84: 0 | CG84: 0 | CH84: 0 | CI84: 0 | CJ84: 0 | CK84: 0 | CL84: 0 | CM84: 0 | CN84: 0 | CO84: 0 | CP84: 0 | CQ84: 0 | CR84: 0 | CS84: 0 | CT84: 0 | CU84: 0 | CV84: 0 | CX84: 874.6675891 | CY84: 999.6201018 | CZ84: 799.6960814 | DA84: 1149.563117 | DB84: 674.7435687 | DC84: 924.6485942 | DD84: 1174.55362 | DE84: 849.6770865 | DF84: 949.6390967 | DG84: 799.6960814 | DH84: 724.7245738 | DI84: 1074.591609 | DJ84: 874.6675891 | DK84: 874.6675891 | DL84: 649.7530662 | DM84: 1499.430153 | DN84: 749.7150763 | DO84: 599.7720611 | DP84: 849.6770865 | DQ84: 624.7625636 | DR84: 599.7720611 | DS84: 549.791056 | DT84: 474.8195483 | DU84: 524.8005534 | DV84: 599.7720611 | DW84: 449.8290458 | DX84: 349.8670356 | DY84: 324.8765331 | DZ84: 274.895528 | EA84: 224.9145229 | EB84: 149.9430153 | EC84: 49.98100509 | ED84: 99.96201018 | EE84: 149.9430153 | EF84: 124.9525127 | EG84: 24.99050254 | EH84: 0 | EI84: 74.97150763 | EJ84: 0 | EK84: 49.98100509 | EL84: 0 | EM84: 49.98100509 | EN84: 0 | EO84: 0 | EP84: 24.99050254 | EQ84: 24.99050254 | ER84: 0 | ES84: 0 | ET84: 0 | EU84: 0 | EV84: 0 | EW84: 0 | EX84: 0 | EY84: 0 | EZ84: 0 | FA84: 24.99050254 | FB84: 0 | FC84: 0 | FD84: 0 | FE84: 0 | FF84: 0 | FG84: 0 | FH84: 0 | FI84: 0 | FJ84: 0 | FK84: 0 | FL84: 0 | FM84: 0 | FN84: 0 | FO84: 0 | FP84: 0 | FQ84: 0 | FR84: 0 | FS84: 0 | FT84: 0 | FU84: 0 | FV84: 0 | FW84: 0 | FX84: 0 | FY84: 0 | FZ84: 0 | GA84: 0 | GB84: 0 | GC84: 0 | GD84: 0 | GE84: 0 | GF84: 0 | GG84: 0 | GH84: 0 | GI84: 0 | GJ84: 0
A85: 5 | D85: TRANSFORMERS | E85: Kiosk Mounted ; < = 22kV ; > 600 kVA ; Multiple Phase | F85: 44.37636545 | G85: 41.28474413 | H85: 6.425320547 | I85: 2 | J85: 16 | K85: 34 | L85: 26 | M85: 27 | N85: 21 | O85: 21 | P85: 27 | Q85: 31 | R85: 24 | S85: 10 | T85: 13 | U85: 19 | V85: 17 | W85: 11 | X85: 12 | Y85: 18 | Z85: 16 | AA85: 12 | AB85: 11 | AC85: 8 | AD85: 2 | AE85: 5 | AF85: 3 | AG85: 1 | AH85: 5 | AI85: 2 | AJ85: 2 | AK85: 0 | AL85: 2 | AM85: 0 | AN85: 0 | AO85: 1 | AP85: 2 | AQ85: 0 | AR85: 2 | AS85: 1 | AT85: 0 | AU85: 0 | AV85: 0 | AW85: 0 | AX85: 0 | AY85: 1 | AZ85: 0 | BA85: 0 | BB85: 0 | BC85: 0 | BD85: 0 | BE85: 0 | BF85: 0 | BG85: 0 | BH85: 0 | BI85: 0 | BJ85: 0 | BK85: 0 | BL85: 0 | BM85: 1 | BN85: 0 | BO85: 0 | BP85: 0 | BQ85: 0 | BR85: 0 | BS85: 0 | BT85: 0 | BU85: 0 | BV85: 0 | BW85: 0 | BX85: 0 | BY85: 0 | BZ85: 0 | CA85: 0 | CB85: 0 | CC85: 0 | CD85: 0 | CE85: 0 | CF85: 0 | CG85: 0 | CH85: 0 | CI85: 0 | CJ85: 0 | CK85: 0 | CL85: 0 | CM85: 0 | CN85: 0 | CO85: 0 | CP85: 0 | CQ85: 0 | CR85: 0 | CS85: 0 | CT85: 0 | CU85: 0 | CV85: 0 | CX85: 710.0218472 | CY85: 1508.796425 | CZ85: 1153.785502 | DA85: 1198.161867 | DB85: 931.9036745 | DC85: 931.9036745 | DD85: 1198.161867 | DE85: 1375.667329 | DF85: 1065.032771 | DG85: 443.7636545 | DH85: 576.8927509 | DI85: 843.1509436 | DJ85: 754.3982127 | DK85: 488.14002 | DL85: 532.5163854 | DM85: 798.7745781 | DN85: 710.0218472 | DO85: 532.5163854 | DP85: 488.14002 | DQ85: 355.0109236 | DR85: 88.7527309 | DS85: 221.8818273 | DT85: 133.1290964 | DU85: 44.37636545 | DV85: 221.8818273 | DW85: 88.7527309 | DX85: 88.7527309 | DY85: 0 | DZ85: 88.7527309 | EA85: 0 | EB85: 0 | EC85: 44.37636545 | ED85: 88.7527309 | EE85: 0 | EF85: 88.7527309 | EG85: 44.37636545 | EH85: 0 | EI85: 0 | EJ85: 0 | EK85: 0 | EL85: 0 | EM85: 44.37636545 | EN85: 0 | EO85: 0 | EP85: 0 | EQ85: 0 | ER85: 0 | ES85: 0 | ET85: 0 | EU85: 0 | EV85: 0 | EW85: 0 | EX85: 0 | EY85: 0 | EZ85: 0 | FA85: 44.37636545 | FB85: 0 | FC85: 0 | FD85: 0 | FE85: 0 | FF85: 0 | FG85: 0 | FH85: 0 | FI85: 0 | FJ85: 0 | FK85: 0 | FL85: 0 | FM85: 0 | FN85: 0 | FO85: 0 | FP85: 0 | FQ85: 0 | FR85: 0 | FS85: 0 | FT85: 0 | FU85: 0 | FV85: 0 | FW85: 0 | FX85: 0 | FY85: 0 | FZ85: 0 | GA85: 0 | GB85: 0 | GC85: 0 | GD85: 0 | GE85: 0 | GF85: 0 | GG85: 0 | GH85: 0 | GI85: 0 | GJ85: 0
E86: Ground Outdoor / Indoor Chamber Mounted; ˂ 22 kV ; < = 60 kVA ; Single Phase | F86: 16.94501973 | G86: 0 | H86: 0 | I86: 2 | CX86: =$F86*J86 ->  | CY86: =$F86*K86 ->  | CZ86: =$F86*L86 ->  | DA86: =$F86*M86 ->  | DB86: =$F86*N86 ->  | DC86: =$F86*O86 ->  | DD86: =$F86*P86 ->  | DE86: =$F86*Q86 ->  | DF86: =$F86*R86 ->  | DG86: =$F86*S86 ->  | DH86: =$F86*T86 ->  | DI86: =$F86*U86 ->  | DJ86: =$F86*V86 ->  | DK86: =$F86*W86 ->  | DL86: =$F86*X86 ->  | DM86: =$F86*Y86 ->  | DN86: =$F86*Z86 ->  | DO86: =$F86*AA86 ->  | DP86: =$F86*AB86 ->  | DQ86: =$F86*AC86 ->  | DR86: =$F86*AD86 ->  | DS86: =$F86*AE86 ->  | DT86: =$F86*AF86 ->  | DU86: =$F86*AG86 ->  | DV86: =$F86*AH86 ->  | DW86: =$F86*AI86 ->  | DX86: =$F86*AJ86 ->  | DY86: =$F86*AK86 ->  | DZ86: =$F86*AL86 ->  | EA86: =$F86*AM86 ->  | EB86: =$F86*AN86 ->  | EC86: =$F86*AO86 ->  | ED86: =$F86*AP86 ->  | EE86: =$F86*AQ86 ->  | EF86: =$F86*AR86 ->  | EG86: =$F86*AS86 ->  | EH86: =$F86*AT86 ->  | EI86: =$F86*AU86 ->  | EJ86: =$F86*AV86 ->  | EK86: =$F86*AW86 ->  | EL86: =$F86*AX86 ->  | EM86: =$F86*AY86 ->  | EN86: =$F86*AZ86 ->  | EO86: =$F86*BA86 ->  | EP86: =$F86*BB86 ->  | EQ86: =$F86*BC86 ->  | ER86: =$F86*BD86 ->  | ES86: =$F86*BE86 ->  | ET86: =$F86*BF86 ->  | EU86: =$F86*BG86 ->  | EV86: =$F86*BH86 ->  | EW86: =$F86*BI86 ->  | EX86: =$F86*BJ86 ->  | EY86: =$F86*BK86 ->  | EZ86: =$F86*BL86 ->  | FA86: =$F86*BM86 ->  | FB86: =$F86*BN86 ->  | FC86: =$F86*BO86 ->  | FD86: =$F86*BP86 ->  | FE86: =$F86*BQ86 ->  | FF86: =$F86*BR86 ->  | FG86: =$F86*BS86 ->  | FH86: =$F86*BT86 ->  | FI86: =$F86*BU86 ->  | FJ86: =$F86*BV86 ->  | FK86: =$F86*BW86 ->  | FL86: =$F86*BX86 ->  | FM86: =$F86*BY86 ->  | FN86: =$F86*BZ86 ->  | FO86: =$F86*CA86 ->  | FP86: =$F86*CB86 ->  | FQ86: =$F86*CC86 ->  | FR86: =$F86*CD86 ->  | FS86: =$F86*CE86 ->  | FT86: =$F86*CF86 ->  | FU86: =$F86*CG86 ->  | FV86: =$F86*CH86 ->  | FW86: =$F86*CI86 ->  | FX86: =$F86*CJ86 ->  | FY86: =$F86*CK86 ->  | FZ86: =$F86*CL86 ->  | GA86: =$F86*CM86 ->  | GB86: =$F86*CN86 ->  | GC86: =$F86*CO86 ->  | GD86: =$F86*CP86 ->  | GE86: =$F86*CQ86 ->  | GF86: =$F86*CR86 ->  | GG86: =$F86*CS86 ->  | GH86: =$F86*CT86 ->  | GI86: =$F86*CU86 ->  | GJ86: =$F86*CV86 -> 
E87: Ground Outdoor / Indoor Chamber Mounted; ˂ 22 kV ; > 60 kVA and < = 600 kVA ; Single Phase | F87: 147.2963158 | G87: 0 | H87: 0 | I87: 2
E88: Ground Outdoor / Indoor Chamber Mounted; ˂ 22 kV ; > 600 kVA ; Single Phase | F88: 0.0001 | G88: 0 | H88: 0 | I88: 2
E89: Ground Outdoor / Indoor Chamber Mounted; ˂ 22 kV ; < = 60 kVA ; Multiple Phase | F89: 108.9735123 | G89: 0 | H89: 0 | I89: 2
A90: 5 | D90: TRANSFORMERS | E90: Ground Outdoor / Indoor Chamber Mounted; ˂ 22 kV ; > 60 kVA and < = 600 kVA ; Multiple Phase | F90: 69.10119907 | G90: 56.49690261 | H90: 7.516442151 | I90: 2 | J90: 0 | K90: 2 | L90: 1 | M90: 2 | N90: 0 | O90: 0 | P90: 0 | Q90: 1 | R90: 0 | S90: 0 | T90: 0 | U90: 0 | V90: 0 | W90: 0 | X90: 1 | Y90: 2 | Z90: 3 | AA90: 1 | AB90: 0 | AC90: 1 | AD90: 0 | AE90: 2 | AF90: 1 | AG90: 1 | AH90: 4 | AI90: 0 | AJ90: 5 | AK90: 2 | AL90: 8 | AM90: 1 | AN90: 0 | AO90: 3 | AP90: 4 | AQ90: 1 | AR90: 1 | AS90: 4 | AT90: 1 | AU90: 2 | AV90: 6 | AW90: 5 | AX90: 4 | AY90: 7 | AZ90: 9 | BA90: 2 | BB90: 0 | BC90: 3 | BD90: 3 | BE90: 1 | BF90: 6 | BG90: 1 | BH90: 0 | BI90: 0 | BJ90: 0 | BK90: 1 | BL90: 2 | BM90: 1 | BN90: 0 | BO90: 0 | BP90: 0 | BQ90: 1 | BR90: 0 | BS90: 0 | BT90: 0 | BU90: 0 | BV90: 0 | BW90: 0 | BX90: 0 | BY90: 1 | BZ90: 0 | CA90: 0 | CB90: 0 | CC90: 0 | CD90: 0 | CE90: 0 | CF90: 0 | CG90: 0 | CH90: 0 | CI90: 0 | CJ90: 0 | CK90: 0 | CL90: 0 | CM90: 0 | CN90: 0 | CO90: 0 | CP90: 0 | CQ90: 0 | CR90: 0 | CS90: 0 | CT90: 0 | CU90: 0 | CV90: 0 | CX90: 0 | CY90: 138.2023981 | CZ90: 69.10119907 | DA90: 138.2023981 | DB90: 0 | DC90: 0 | DD90: 0 | DE90: 69.10119907 | DF90: 0 | DG90: 0 | DH90: 0 | DI90: 0 | DJ90: 0 | DK90: 0 | DL90: 69.10119907 | DM90: 138.2023981 | DN90: 207.3035972 | DO90: 69.10119907 | DP90: 0 | DQ90: 69.10119907 | DR90: 0 | DS90: 138.2023981 | DT90: 69.10119907 | DU90: 69.10119907 | DV90: 276.4047963 | DW90: 0 | DX90: 345.5059953 | DY90: 138.2023981 | DZ90: 552.8095925 | EA90: 69.10119907 | EB90: 0 | EC90: 207.3035972 | ED90: 276.4047963 | EE90: 69.10119907 | EF90: 69.10119907 | EG90: 276.4047963 | EH90: 69.10119907 | EI90: 138.2023981 | EJ90: 414.6071944 | EK90: 345.5059953 | EL90: 276.4047963 | EM90: 483.7083935 | EN90: 621.9107916 | EO90: 138.2023981 | EP90: 0 | EQ90: 207.3035972 | ER90: 207.3035972 | ES90: 69.10119907 | ET90: 414.6071944 | EU90: 69.10119907 | EV90: 0 | EW90: 0 | EX90: 0 | EY90: 69.10119907 | EZ90: 138.2023981 | FA90: 69.10119907 | FB90: 0 | FC90: 0 | FD90: 0 | FE90: 69.10119907 | FF90: 0 | FG90: 0 | FH90: 0 | FI90: 0 | FJ90: 0 | FK90: 0 | FL90: 0 | FM90: 69.10119907 | FN90: 0 | FO90: 0 | FP90: 0 | FQ90: 0 | FR90: 0 | FS90: 0 | FT90: 0 | FU90: 0 | FV90: 0 | FW90: 0 | FX90: 0 | FY90: 0 | FZ90: 0 | GA90: 0 | GB90: 0 | GC90: 0 | GD90: 0 | GE90: 0 | GF90: 0 | GG90: 0 | GH90: 0 | GI90: 0 | GJ90: 0
A91: 5 | D91: TRANSFORMERS | E91: Ground Outdoor / Indoor Chamber Mounted; ˂ 22 kV ; > 600 kVA ; Multiple Phase | F91: 45.10869811 | G91: 58.22424828 | H91: 7.630481524 | I91: 2 | J91: 1 | K91: 1 | L91: 2 | M91: 0 | N91: 3 | O91: 1 | P91: 1 | Q91: 7 | R91: 0 | S91: 2 | T91: 1 | U91: 0 | V91: 0 | W91: 1 | X91: 0 | Y91: 5 | Z91: 2 | AA91: 8 | AB91: 1 | AC91: 1 | AD91: 1 | AE91: 5 | AF91: 2 | AG91: 3 | AH91: 3 | AI91: 2 | AJ91: 6 | AK91: 3 | AL91: 5 | AM91: 3 | AN91: 1 | AO91: 1 | AP91: 2 | AQ91: 2 | AR91: 1 | AS91: 0 | AT91: 1 | AU91: 1 | AV91: 4 | AW91: 1 | AX91: 1 | AY91: 1 | AZ91: 1 | BA91: 0 | BB91: 1 | BC91: 0 | BD91: 1 | BE91: 1 | BF91: 8 | BG91: 0 | BH91: 0 | BI91: 0 | BJ91: 0 | BK91: 2 | BL91: 5 | BM91: 1 | BN91: 0 | BO91: 0 | BP91: 2 | BQ91: 0 | BR91: 0 | BS91: 0 | BT91: 0 | BU91: 0 | BV91: 0 | BW91: 0 | BX91: 0 | BY91: 0 | BZ91: 0 | CA91: 0 | CB91: 0 | CC91: 0 | CD91: 0 | CE91: 0 | CF91: 0 | CG91: 0 | CH91: 0 | CI91: 0 | CJ91: 0 | CK91: 0 | CL91: 0 | CM91: 0 | CN91: 0 | CO91: 0 | CP91: 0 | CQ91: 0 | CR91: 0 | CS91: 0 | CT91: 0 | CU91: 0 | CV91: 0 | CX91: 45.10869811 | CY91: 45.10869811 | CZ91: 90.21739623 | DA91: 0 | DB91: 135.3260943 | DC91: 45.10869811 | DD91: 45.10869811 | DE91: 315.7608868 | DF91: 0 | DG91: 90.21739623 | DH91: 45.10869811 | DI91: 0 | DJ91: 0 | DK91: 45.10869811 | DL91: 0 | DM91: 225.5434906 | DN91: 90.21739623 | DO91: 360.8695849 | DP91: 45.10869811 | DQ91: 45.10869811 | DR91: 45.10869811 | DS91: 225.5434906 | DT91: 90.21739623 | DU91: 135.3260943 | DV91: 135.3260943 | DW91: 90.21739623 | DX91: 270.6521887 | DY91: 135.3260943 | DZ91: 225.5434906 | EA91: 135.3260943 | EB91: 45.10869811 | EC91: 45.10869811 | ED91: 90.21739623 | EE91: 90.21739623 | EF91: 45.10869811 | EG91: 0 | EH91: 45.10869811 | EI91: 45.10869811 | EJ91: 180.4347925 | EK91: 45.10869811 | EL91: 45.10869811 | EM91: 45.10869811 | EN91: 45.10869811 | EO91: 0 | EP91: 45.10869811 | EQ91: 0 | ER91: 45.10869811 | ES91: 45.10869811 | ET91: 360.8695849 | EU91: 0 | EV91: 0 | EW91: 0 | EX91: 0 | EY91: 90.21739623 | EZ91: 225.5434906 | FA91: 45.10869811 | FB91: 0 | FC91: 0 | FD91: 90.21739623 | FE91: 0 | FF91: 0 | FG91: 0 | FH91: 0 | FI91: 0 | FJ91: 0 | FK91: 0 | FL91: 0 | FM91: 0 | FN91: 0 | FO91: 0 | FP91: 0 | FQ91: 0 | FR91: 0 | FS91: 0 | FT91: 0 | FU91: 0 | FV91: 0 | FW91: 0 | FX91: 0 | FY91: 0 | FZ91: 0 | GA91: 0 | GB91: 0 | GC91: 0 | GD91: 0 | GE91: 0 | GF91: 0 | GG91: 0 | GH91: 0 | GI91: 0 | GJ91: 0
A92: 5 | D92: TRANSFORMERS | E92: Ground Outdoor / Indoor Chamber Mounted; > = 22 kV & < = 33 kV ; < = 15 MVA | F92: 47.3249053 | G92: 58.52296076 | H92: 7.650030115 | I92: 2 | J92: 2 | K92: 5 | L92: 5 | M92: 9 | N92: 2 | O92: 3 | P92: 7 | Q92: 4 | R92: 4 | S92: 3 | T92: 2 | U92: 6 | V92: 2 | W92: 8 | X92: 6 | Y92: 10 | Z92: 15 | AA92: 13 | AB92: 9 | AC92: 19 | AD92: 18 | AE92: 16 | AF92: 18 | AG92: 11 | AH92: 23 | AI92: 21 | AJ92: 29 | AK92: 19 | AL92: 19 | AM92: 15 | AN92: 23 | AO92: 14 | AP92: 11 | AQ92: 9 | AR92: 31 | AS92: 20 | AT92: 17 | AU92: 8 | AV92: 23 | AW92: 15 | AX92: 8 | AY92: 9 | AZ92: 5 | BA92: 5 | BB92: 3 | BC92: 8 | BD92: 9 | BE92: 5 | BF92: 5 | BG92: 8 | BH92: 0 | BI92: 0 | BJ92: 1 | BK92: 3 | BL92: 0 | BM92: 5 | BN92: 0 | BO92: 1 | BP92: 0 | BQ92: 0 | BR92: 0 | BS92: 1 | BT92: 0 | BU92: 1 | BV92: 0 | BW92: 0 | BX92: 0 | BY92: 0 | BZ92: 0 | CA92: 0 | CB92: 0 | CC92: 0 | CD92: 0 | CE92: 0 | CF92: 0 | CG92: 0 | CH92: 0 | CI92: 0 | CJ92: 0 | CK92: 0 | CL92: 0 | CM92: 0 | CN92: 0 | CO92: 0 | CP92: 0 | CQ92: 0 | CR92: 0 | CS92: 0 | CT92: 0 | CU92: 0 | CV92: 0 | CX92: 94.6498106 | CY92: 236.6245265 | CZ92: 236.6245265 | DA92: 425.9241477 | DB92: 94.6498106 | DC92: 141.9747159 | DD92: 331.2743371 | DE92: 189.2996212 | DF92: 189.2996212 | DG92: 141.9747159 | DH92: 94.6498106 | DI92: 283.9494318 | DJ92: 94.6498106 | DK92: 378.5992424 | DL92: 283.9494318 | DM92: 473.249053 | DN92: 709.8735795 | DO92: 615.2237689 | DP92: 425.9241477 | DQ92: 899.1732007 | DR92: 851.8482954 | DS92: 757.1984848 | DT92: 851.8482954 | DU92: 520.5739583 | DV92: 1088.472822 | DW92: 993.8230113 | DX92: 1372.422254 | DY92: 899.1732007 | DZ92: 899.1732007 | EA92: 709.8735795 | EB92: 1088.472822 | EC92: 662.5486742 | ED92: 520.5739583 | EE92: 425.9241477 | EF92: 1467.072064 | EG92: 946.498106 | EH92: 804.5233901 | EI92: 378.5992424 | EJ92: 1088.472822 | EK92: 709.8735795 | EL92: 378.5992424 | EM92: 425.9241477 | EN92: 236.6245265 | EO92: 236.6245265 | EP92: 141.9747159 | EQ92: 378.5992424 | ER92: 425.9241477 | ES92: 236.6245265 | ET92: 236.6245265 | EU92: 378.5992424 | EV92: 0 | EW92: 0 | EX92: 47.3249053 | EY92: 141.9747159 | EZ92: 0 | FA92: 236.6245265 | FB92: 0 | FC92: 47.3249053 | FD92: 0 | FE92: 0 | FF92: 0 | FG92: 47.3249053 | FH92: 0 | FI92: 47.3249053 | FJ92: 0 | FK92: 0 | FL92: 0 | FM92: 0 | FN92: 0 | FO92: 0 | FP92: 0 | FQ92: 0 | FR92: 0 | FS92: 0 | FT92: 0 | FU92: 0 | FV92: 0 | FW92: 0 | FX92: 0 | FY92: 0 | FZ92: 0 | GA92: 0 | GB92: 0 | GC92: 0 | GD92: 0 | GE92: 0 | GF92: 0 | GG92: 0 | GH92: 0 | GI92: 0 | GJ92: 0
E93: Ground Outdoor / Indoor Chamber Mounted; > = 22 kV & < = 33 kV ; > 15 MVA and < = 40 MVA | F93: 1844.005796 | G93: 0 | H93: 0 | I93: 2
E94: Ground Outdoor / Indoor Chamber Mounted; > = 22 kV & < = 33 kV ; > 40 MVA | F94: 634.3753382 | G94: 0 | H94: 0 | I94: 2
A95: 5 | D95: TRANSFORMERS | E95: Ground Outdoor / Indoor Chamber Mounted; > 33 kV & < = 66 kV ; < = 15 MVA | F95: 1236.257379 | G95: 56.49690261 | H95: 7.516442151 | I95: 2 | J95: 0 | K95: 0 | L95: 0 | M95: 0 | N95: 0 | O95: 0 | P95: 0 | Q95: 0 | R95: 0 | S95: 0 | T95: 0 | U95: 1 | V95: 0 | W95: 2 | X95: 0 | Y95: 0 | Z95: 0 | AA95: 0 | AB95: 0 | AC95: 0 | AD95: 0 | AE95: 0 | AF95: 0 | AG95: 0 | AH95: 0 | AI95: 0 | AJ95: 0 | AK95: 0 | AL95: 0 | AM95: 0 | AN95: 0 | AO95: 0 | AP95: 0 | AQ95: 0 | AR95: 0 | AS95: 0 | AT95: 1 | AU95: 0 | AV95: 0 | AW95: 0 | AX95: 0 | AY95: 0 | AZ95: 0 | BA95: 0 | BB95: 0 | BC95: 0 | BD95: 0 | BE95: 0 | BF95: 0 | BG95: 1 | BH95: 0 | BI95: 0 | BJ95: 0 | BK95: 0 | BL95: 1 | BM95: 1 | BN95: 0 | BO95: 0 | BP95: 0 | BQ95: 0 | BR95: 0 | BS95: 0 | BT95: 0 | BU95: 0 | BV95: 0 | BW95: 0 | BX95: 0 | BY95: 0 | BZ95: 0 | CA95: 0 | CB95: 0 | CC95: 0 | CD95: 0 | CE95: 0 | CF95: 0 | CG95: 0 | CH95: 0 | CI95: 0 | CJ95: 0 | CK95: 0 | CL95: 0 | CM95: 0 | CN95: 0 | CO95: 0 | CP95: 0 | CQ95: 0 | CR95: 0 | CS95: 0 | CT95: 0 | CU95: 0 | CV95: 0 | CX95: 0 | CY95: 0 | CZ95: 0 | DA95: 0 | DB95: 0 | DC95: 0 | DD95: 0 | DE95: 0 | DF95: 0 | DG95: 0 | DH95: 0 | DI95: 1236.257379 | DJ95: 0 | DK95: 2472.514757 | DL95: 0 | DM95: 0 | DN95: 0 | DO95: 0 | DP95: 0 | DQ95: 0 | DR95: 0 | DS95: 0 | DT95: 0 | DU95: 0 | DV95: 0 | DW95: 0 | DX95: 0 | DY95: 0 | DZ95: 0 | EA95: 0 | EB95: 0 | EC95: 0 | ED95: 0 | EE95: 0 | EF95: 0 | EG95: 0 | EH95: 1236.257379 | EI95: 0 | EJ95: 0 | EK95: 0 | EL95: 0 | EM95: 0 | EN95: 0 | EO95: 0 | EP95: 0 | EQ95: 0 | ER95: 0 | ES95: 0 | ET95: 0 | EU95: 1236.257379 | EV95: 0 | EW95: 0 | EX95: 0 | EY95: 0 | EZ95: 1236.257379 | FA95: 1236.257379 | FB95: 0 | FC95: 0 | FD95: 0 | FE95: 0 | FF95: 0 | FG95: 0 | FH95: 0 | FI95: 0 | FJ95: 0 | FK95: 0 | FL95: 0 | FM95: 0 | FN95: 0 | FO95: 0 | FP95: 0 | FQ95: 0 | FR95: 0 | FS95: 0 | FT95: 0 | FU95: 0 | FV95: 0 | FW95: 0 | FX95: 0 | FY95: 0 | FZ95: 0 | GA95: 0 | GB95: 0 | GC95: 0 | GD95: 0 | GE95: 0 | GF95: 0 | GG95: 0 | GH95: 0 | GI95: 0 | GJ95: 0
A96: 5 | D96: TRANSFORMERS | E96: Ground Outdoor / Indoor Chamber Mounted; > 33 kV & < = 66 kV ; > 15 MVA and < = 40 MVA | F96: 6895.073208 | G96: 63.22889106 | H96: 7.951659642 | I96: 2 | J96: 0 | K96: 2 | L96: 2 | M96: 1 | N96: 2 | O96: 0 | P96: 1 | Q96: 1 | R96: 1 | S96: 1 | T96: 0 | U96: 0 | V96: 3 | W96: 0 | X96: 0 | Y96: 0 | Z96: 0 | AA96: 0 | AB96: 1 | AC96: 0 | AD96: 0 | AE96: 0 | AF96: 0 | AG96: 0 | AH96: 1 | AI96: 0 | AJ96: 1 | AK96: 0 | AL96: 0 | AM96: 2 | AN96: 2 | AO96: 0 | AP96: 0 | AQ96: 1 | AR96: 0 | AS96: 0 | AT96: 0 | AU96: 0 | AV96: 2 | AW96: 0 | AX96: 0 | AY96: 3 | AZ96: 0 | BA96: 1 | BB96: 2 | BC96: 0 | BD96: 2 | BE96: 4 | BF96: 6 | BG96: 2 | BH96: 0 | BI96: 0 | BJ96: 1 | BK96: 0 | BL96: 0 | BM96: 0 | BN96: 1 | BO96: 1 | BP96: 0 | BQ96: 0 | BR96: 0 | BS96: 0 | BT96: 0 | BU96: 0 | BV96: 0 | BW96: 2 | BX96: 0 | BY96: 0 | BZ96: 0 | CA96: 0 | CB96: 0 | CC96: 0 | CD96: 0 | CE96: 0 | CF96: 0 | CG96: 0 | CH96: 0 | CI96: 0 | CJ96: 0 | CK96: 0 | CL96: 0 | CM96: 0 | CN96: 0 | CO96: 0 | CP96: 0 | CQ96: 0 | CR96: 0 | CS96: 0 | CT96: 0 | CU96: 0 | CV96: 0 | CX96: 0 | CY96: 13790.14642 | CZ96: 13790.14642 | DA96: 6895.073208 | DB96: 13790.14642 | DC96: 0 | DD96: 6895.073208 | DE96: 6895.073208 | DF96: 6895.073208 | DG96: 6895.073208 | DH96: 0 | DI96: 0 | DJ96: 20685.21962 | DK96: 0 | DL96: 0 | DM96: 0 | DN96: 0 | DO96: 0 | DP96: 6895.073208 | DQ96: 0 | DR96: 0 | DS96: 0 | DT96: 0 | DU96: 0 | DV96: 6895.073208 | DW96: 0 | DX96: 6895.073208 | DY96: 0 | DZ96: 0 | EA96: 13790.14642 | EB96: 13790.14642 | EC96: 0 | ED96: 0 | EE96: 6895.073208 | EF96: 0 | EG96: 0 | EH96: 0 | EI96: 0 | EJ96: 13790.14642 | EK96: 0 | EL96: 0 | EM96: 20685.21962 | EN96: 0 | EO96: 6895.073208 | EP96: 13790.14642 | EQ96: 0 | ER96: 13790.14642 | ES96: 27580.29283 | ET96: 41370.43925 | EU96: 13790.14642 | EV96: 0 | EW96: 0 | EX96: 6895.073208 | EY96: 0 | EZ96: 0 | FA96: 0 | FB96: 6895.073208 | FC96: 6895.073208 | FD96: 0 | FE96: 0 | FF96: 0 | FG96: 0 | FH96: 0 | FI96: 0 | FJ96: 0 | FK96: 13790.14642 | FL96: 0 | FM96: 0 | FN96: 0 | FO96: 0 | FP96: 0 | FQ96: 0 | FR96: 0 | FS96: 0 | FT96: 0 | FU96: 0 | FV96: 0 | FW96: 0 | FX96: 0 | FY96: 0 | FZ96: 0 | GA96: 0 | GB96: 0 | GC96: 0 | GD96: 0 | GE96: 0 | GF96: 0 | GG96: 0 | GH96: 0 | GI96: 0 | GJ96: 0
E97: Ground Outdoor / Indoor Chamber Mounted; > 33 kV & < = 66 kV ; > 40 MVA | F97: 351.1457261 | G97: 0 | H97: 0 | I97: 2
E98: Ground Outdoor / Indoor Chamber Mounted; > 66 kV & < = 132 kV ; < = 100 MVA | F98: 3122.741652 | G98: 0 | H98: 0 | I98: 2
E99: Ground Outdoor / Indoor Chamber Mounted; > 66 kV & < = 132 kV ; > 100 MVA | F99: 4267.16617 | G99: 0 | H99: 0 | I99: 2
E100: Ground Outdoor / Indoor Chamber Mounted; > 132 kV ; < = 100 MVA | F100: 0.0001 | G100: 0 | H100: 0 | I100: 2
E101: Ground Outdoor / Indoor Chamber Mounted; > 132 kV ; > 100 MVA | F101: 0.0001 | G101: 0 | H101: 0 | I101: 2
E102: Other | F102: 0.0001 | G102: 0 | H102: 0 | I102: 2
A103: 6 | D103: SWITCHGEAR | E103: ˂ = 11 kV ; Fuse | F103: 5.42384307 | G103: 56.78504017 | H103: 7.535584926 | I103: 2 | J103: 500 | K103: 660 | L103: 614 | M103: 623 | N103: 509 | O103: 555 | P103: 520 | Q103: 452 | R103: 394 | S103: 361 | T103: 277 | U103: 321 | V103: 296 | W103: 287 | X103: 279 | Y103: 417 | Z103: 272 | AA103: 286 | AB103: 191 | AC103: 141 | AD103: 182 | AE103: 191 | AF103: 181 | AG103: 172 | AH103: 229 | AI103: 256 | AJ103: 238 | AK103: 221 | AL103: 230 | AM103: 229 | AN103: 162 | AO103: 162 | AP103: 141 | AQ103: 106 | AR103: 148 | AS103: 106 | AT103: 126 | AU103: 109 | AV103: 99 | AW103: 86 | AX103: 83 | AY103: 83 | AZ103: 78 | BA103: 65 | BB103: 25 | BC103: 63 | BD103: 60 | BE103: 42 | BF103: 41 | BG103: 40 | BH103: 12 | BI103: 12 | BJ103: 8 | BK103: 20 | BL103: 12 | BM103: 16 | BN103: 2 | BO103: 4 | BP103: 2 | BQ103: 5 | BR103: 0 | BS103: 0 | BT103: 0 | BU103: 1 | BV103: 0 | BW103: 0 | BX103: 0 | BY103: 3 | BZ103: 0 | CA103: 0 | CB103: 0 | CC103: 0 | CD103: 0 | CE103: 0 | CF103: 0 | CG103: 0 | CH103: 0 | CI103: 0 | CJ103: 0 | CK103: 0 | CL103: 0 | CM103: 0 | CN103: 0 | CO103: 0 | CP103: 0 | CQ103: 0 | CR103: 0 | CS103: 0 | CT103: 0 | CU103: 0 | CV103: 0 | CX103: 2711.921535 | CY103: 3579.736426 | CZ103: 3330.239645 | DA103: 3379.054232 | DB103: 2760.736122 | DC103: 3010.232904 | DD103: 2820.398396 | DE103: 2451.577067 | DF103: 2136.994169 | DG103: 1958.007348 | DH103: 1502.40453 | DI103: 1741.053625 | DJ103: 1605.457549 | DK103: 1556.642961 | DL103: 1513.252216 | DM103: 2261.74256 | DN103: 1475.285315 | DO103: 1551.219118 | DP103: 1035.954026 | DQ103: 764.7618728 | DR103: 987.1394387 | DS103: 1035.954026 | DT103: 981.7155956 | DU103: 932.901008 | DV103: 1242.060063 | DW103: 1388.503826 | DX103: 1290.874651 | DY103: 1198.669318 | DZ103: 1247.483906 | EA103: 1242.060063 | EB103: 878.6625773 | EC103: 878.6625773 | ED103: 764.7618728 | EE103: 574.9273654 | EF103: 802.7287743 | EG103: 574.9273654 | EH103: 683.4042268 | EI103: 591.1988946 | EJ103: 536.9604639 | EK103: 466.450504 | EL103: 450.1789748 | EM103: 450.1789748 | EN103: 423.0597594 | EO103: 352.5497995 | EP103: 135.5960767 | EQ103: 341.7021134 | ER103: 325.4305842 | ES103: 227.8014089 | ET103: 222.3775659 | EU103: 216.9537228 | EV103: 65.08611684 | EW103: 65.08611684 | EX103: 43.39074456 | EY103: 108.4768614 | EZ103: 65.08611684 | FA103: 86.78148911 | FB103: 10.84768614 | FC103: 21.69537228 | FD103: 10.84768614 | FE103: 27.11921535 | FF103: 0 | FG103: 0 | FH103: 0 | FI103: 5.42384307 | FJ103: 0 | FK103: 0 | FL103: 0 | FM103: 16.27152921 | FN103: 0 | FO103: 0 | FP103: 0 | FQ103: 0 | FR103: 0 | FS103: 0 | FT103: 0 | FU103: 0 | FV103: 0 | FW103: 0 | FX103: 0 | FY103: 0 | FZ103: 0 | GA103: 0 | GB103: 0 | GC103: 0 | GD103: 0 | GE103: 0 | GF103: 0 | GG103: 0 | GH103: 0 | GI103: 0 | GJ103: 0
A104: 6 | D104: SWITCHGEAR | E104: ˂ = 11 kV ; Switch | F104: 4.7992211 | G104: 58.2241768 | H104: 7.630476839 | I104: 2 | J104: 449 | K104: 880 | L104: 752 | M104: 791 | N104: 611 | O104: 759 | P104: 586 | Q104: 614 | R104: 528 | S104: 493 | T104: 424 | U104: 461 | V104: 370 | W104: 453 | X104: 287 | Y104: 381 | Z104: 323 | AA104: 298 | AB104: 228 | AC104: 204 | AD104: 301 | AE104: 182 | AF104: 339 | AG104: 207 | AH104: 368 | AI104: 461 | AJ104: 400 | AK104: 393 | AL104: 624 | AM104: 410 | AN104: 218 | AO104: 214 | AP104: 194 | AQ104: 156 | AR104: 213 | AS104: 175 | AT104: 269 | AU104: 195 | AV104: 196 | AW104: 157 | AX104: 171 | AY104: 181 | AZ104: 215 | BA104: 162 | BB104: 64 | BC104: 132 | BD104: 142 | BE104: 94 | BF104: 111 | BG104: 117 | BH104: 36 | BI104: 27 | BJ104: 18 | BK104: 46 | BL104: 28 | BM104: 30 | BN104: 17 | BO104: 10 | BP104: 8 | BQ104: 10 | BR104: 3 | BS104: 4 | BT104: 1 | BU104: 5 | BV104: 0 | BW104: 2 | BX104: 0 | BY104: 3 | BZ104: 0 | CA104: 1 | CB104: 0 | CC104: 1 | CD104: 7 | CE104: 0 | CF104: 2 | CG104: 0 | CH104: 1 | CI104: 1 | CJ104: 1 | CK104: 1 | CL104: 0 | CM104: 0 | CN104: 1 | CO104: 0 | CP104: 0 | CQ104: 0 | CR104: 1 | CS104: 0 | CT104: 0 | CU104: 0 | CV104: 0 | CX104: 2154.850274 | CY104: 4223.314568 | CZ104: 3609.014267 | DA104: 3796.18389 | DB104: 2932.324092 | DC104: 3642.608815 | DD104: 2812.343565 | DE104: 2946.721755 | DF104: 2533.988741 | DG104: 2366.016002 | DH104: 2034.869746 | DI104: 2212.440927 | DJ104: 1775.711807 | DK104: 2174.047158 | DL104: 1377.376456 | DM104: 1828.503239 | DN104: 1550.148415 | DO104: 1430.167888 | DP104: 1094.222411 | DQ104: 979.0411044 | DR104: 1444.565551 | DS104: 873.4582402 | DT104: 1626.935953 | DU104: 993.4387677 | DV104: 1766.113365 | DW104: 2212.440927 | DX104: 1919.68844 | DY104: 1886.093892 | DZ104: 2994.713966 | EA104: 1967.680651 | EB104: 1046.2302 | EC104: 1027.033315 | ED104: 931.0488934 | EE104: 748.6784916 | EF104: 1022.234094 | EG104: 839.8636925 | EH104: 1290.990476 | EI104: 935.8481145 | EJ104: 940.6473356 | EK104: 753.4777127 | EL104: 820.6668081 | EM104: 868.6590191 | EN104: 1031.832536 | EO104: 777.4738182 | EP104: 307.1501504 | EQ104: 633.4971852 | ER104: 681.4893962 | ES104: 451.1267834 | ET104: 532.7135421 | EU104: 561.5088687 | EV104: 172.7719596 | EW104: 129.5789697 | EX104: 86.3859798 | EY104: 220.7641706 | EZ104: 134.3781908 | FA104: 143.976633 | FB104: 81.5867587 | FC104: 47.992211 | FD104: 38.3937688 | FE104: 47.992211 | FF104: 14.3976633 | FG104: 19.1968844 | FH104: 4.7992211 | FI104: 23.9961055 | FJ104: 0 | FK104: 9.5984422 | FL104: 0 | FM104: 14.3976633 | FN104: 0 | FO104: 4.7992211 | FP104: 0 | FQ104: 4.7992211 | FR104: 33.5945477 | FS104: 0 | FT104: 9.5984422 | FU104: 0 | FV104: 4.7992211 | FW104: 4.7992211 | FX104: 4.7992211 | FY104: 4.7992211 | FZ104: 0 | GA104: 0 | GB104: 4.7992211 | GC104: 0 | GD104: 0 | GE104: 0 | GF104: 4.7992211 | GG104: 0 | GH104: 0 | GI104: 0 | GJ104: 0
A105: 6 | D105: SWITCHGEAR | E105: ˂ = 11 kV ; Circuit Breaker | F105: 190.0452883 | G105: 50.35358102 | H105: 7.09602572 | I105: 2 | J105: 4 | K105: 0 | L105: 0 | M105: 32 | N105: 4 | O105: 0 | P105: 2 | Q105: 18 | R105: 0 | S105: 17 | T105: 0 | U105: 1 | V105: 0 | W105: 0 | X105: 0 | Y105: 0 | Z105: 0 | AA105: 0 | AB105: 0 | AC105: 0 | AD105: 0 | AE105: 0 | AF105: 0 | AG105: 0 | AH105: 0 | AI105: 0 | AJ105: 0 | AK105: 0 | AL105: 0 | AM105: 0 | AN105: 0 | AO105: 0 | AP105: 1 | AQ105: 0 | AR105: 0 | AS105: 0 | AT105: 2 | AU105: 0 | AV105: 1 | AW105: 2 | AX105: 0 | AY105: 0 | AZ105: 0 | BA105: 2 | BB105: 22 | BC105: 0 | BD105: 0 | BE105: 17 | BF105: 1 | BG105: 15 | BH105: 1 | BI105: 2 | BJ105: 0 | BK105: 0 | BL105: 1 | BM105: 2 | BN105: 10 | BO105: 0 | BP105: 0 | BQ105: 0 | BR105: 0 | BS105: 0 | BT105: 0 | BU105: 0 | BV105: 0 | BW105: 0 | BX105: 0 | BY105: 0 | BZ105: 0 | CA105: 0 | CB105: 0 | CC105: 0 | CD105: 0 | CE105: 0 | CF105: 0 | CG105: 0 | CH105: 0 | CI105: 0 | CJ105: 0 | CK105: 0 | CL105: 0 | CM105: 0 | CN105: 0 | CO105: 0 | CP105: 0 | CQ105: 0 | CR105: 0 | CS105: 0 | CT105: 0 | CU105: 0 | CV105: 0 | CX105: 760.1811532 | CY105: 0 | CZ105: 0 | DA105: 6081.449226 | DB105: 760.1811532 | DC105: 0 | DD105: 380.0905766 | DE105: 3420.81519 | DF105: 0 | DG105: 3230.769901 | DH105: 0 | DI105: 190.0452883 | DJ105: 0 | DK105: 0 | DL105: 0 | DM105: 0 | DN105: 0 | DO105: 0 | DP105: 0 | DQ105: 0 | DR105: 0 | DS105: 0 | DT105: 0 | DU105: 0 | DV105: 0 | DW105: 0 | DX105: 0 | DY105: 0 | DZ105: 0 | EA105: 0 | EB105: 0 | EC105: 0 | ED105: 190.0452883 | EE105: 0 | EF105: 0 | EG105: 0 | EH105: 380.0905766 | EI105: 0 | EJ105: 190.0452883 | EK105: 380.0905766 | EL105: 0 | EM105: 0 | EN105: 0 | EO105: 380.0905766 | EP105: 4180.996343 | EQ105: 0 | ER105: 0 | ES105: 3230.769901 | ET105: 190.0452883 | EU105: 2850.679325 | EV105: 190.0452883 | EW105: 380.0905766 | EX105: 0 | EY105: 0 | EZ105: 190.0452883 | FA105: 380.0905766 | FB105: 1900.452883 | FC105: 0 | FD105: 0 | FE105: 0 | FF105: 0 | FG105: 0 | FH105: 0 | FI105: 0 | FJ105: 0 | FK105: 0 | FL105: 0 | FM105: 0 | FN105: 0 | FO105: 0 | FP105: 0 | FQ105: 0 | FR105: 0 | FS105: 0 | FT105: 0 | FU105: 0 | FV105: 0 | FW105: 0 | FX105: 0 | FY105: 0 | FZ105: 0 | GA105: 0 | GB105: 0 | GC105: 0 | GD105: 0 | GE105: 0 | GF105: 0 | GG105: 0 | GH105: 0 | GI105: 0 | GJ105: 0
A106: 6 | D106: SWITCHGEAR | E106: > 11 kV & < = 22 kV ; Switch | F106: 5.061124873 | G106: 46.55892481 | H106: 6.823410057 | I106: 2 | J106: 438 | K106: 580 | L106: 576 | M106: 642 | N106: 431 | O106: 505 | P106: 445 | Q106: 419 | R106: 465 | S106: 312 | T106: 233 | U106: 370 | V106: 255 | W106: 292 | X106: 294 | Y106: 391 | Z106: 304 | AA106: 285 | AB106: 210 | AC106: 151 | AD106: 175 | AE106: 197 | AF106: 209 | AG106: 189 | AH106: 274 | AI106: 261 | AJ106: 250 | AK106: 209 | AL106: 260 | AM106: 195 | AN106: 218 | AO106: 202 | AP106: 120 | AQ106: 146 | AR106: 184 | AS106: 118 | AT106: 171 | AU106: 104 | AV106: 141 | AW106: 105 | AX106: 80 | AY106: 108 | AZ106: 88 | BA106: 77 | BB106: 47 | BC106: 88 | BD106: 84 | BE106: 116 | BF106: 86 | BG106: 81 | BH106: 31 | BI106: 30 | BJ106: 23 | BK106: 64 | BL106: 12 | BM106: 25 | BN106: 7 | BO106: 12 | BP106: 9 | BQ106: 5 | BR106: 5 | BS106: 3 | BT106: 3 | BU106: 2 | BV106: 0 | BW106: 4 | BX106: 0 | BY106: 2 | BZ106: 0 | CA106: 0 | CB106: 0 | CC106: 0 | CD106: 0 | CE106: 2 | CF106: 0 | CG106: 1 | CH106: 1 | CI106: 0 | CJ106: 2 | CK106: 0 | CL106: 0 | CM106: 1 | CN106: 0 | CO106: 0 | CP106: 0 | CQ106: 0 | CR106: 0 | CS106: 0 | CT106: 0 | CU106: 0 | CV106: 0 | CX106: 2216.772694 | CY106: 2935.452426 | CZ106: 2915.207927 | DA106: 3249.242168 | DB106: 2181.34482 | DC106: 2555.868061 | DD106: 2252.200568 | DE106: 2120.611322 | DF106: 2353.423066 | DG106: 1579.07096 | DH106: 1179.242095 | DI106: 1872.616203 | DJ106: 1290.586843 | DK106: 1477.848463 | DL106: 1487.970713 | DM106: 1978.899825 | DN106: 1538.581961 | DO106: 1442.420589 | DP106: 1062.836223 | DQ106: 764.2298558 | DR106: 885.6968527 | DS106: 997.0415999 | DT106: 1057.775098 | DU106: 956.5526009 | DV106: 1386.748215 | DW106: 1320.953592 | DX106: 1265.281218 | DY106: 1057.775098 | DZ106: 1315.892467 | EA106: 986.9193502 | EB106: 1103.325222 | EC106: 1022.347224 | ED106: 607.3349847 | EE106: 738.9242314 | EF106: 931.2469766 | EG106: 597.212735 | EH106: 865.4523532 | EI106: 526.3569867 | EJ106: 713.618607 | EK106: 531.4181116 | EL106: 404.8899898 | EM106: 546.6014862 | EN106: 445.3789888 | EO106: 389.7066152 | EP106: 237.872869 | EQ106: 445.3789888 | ER106: 425.1344893 | ES106: 587.0904852 | ET106: 435.256739 | EU106: 409.9511147 | EV106: 156.8948711 | EW106: 151.8337462 | EX106: 116.4058721 | EY106: 323.9119918 | EZ106: 60.73349847 | FA106: 126.5281218 | FB106: 35.42787411 | FC106: 60.73349847 | FD106: 45.55012385 | FE106: 25.30562436 | FF106: 25.30562436 | FG106: 15.18337462 | FH106: 15.18337462 | FI106: 10.12224975 | FJ106: 0 | FK106: 20.24449949 | FL106: 0 | FM106: 10.12224975 | FN106: 0 | FO106: 0 | FP106: 0 | FQ106: 0 | FR106: 0 | FS106: 10.12224975 | FT106: 0 | FU106: 5.061124873 | FV106: 5.061124873 | FW106: 0 | FX106: 10.12224975 | FY106: 0 | FZ106: 0 | GA106: 5.061124873 | GB106: 0 | GC106: 0 | GD106: 0 | GE106: 0 | GF106: 0 | GG106: 0 | GH106: 0 | GI106: 0 | GJ106: 0
A107: 6 | D107: SWITCHGEAR | E107: > 11 kV & < = 22 kV ; Circuit Breaker | F107: 152.20975 | G107: 51.4581083 | H107: 7.17343072 | I107: 2 | J107: 20 | K107: 13 | L107: 3 | M107: 4 | N107: 25 | O107: 11 | P107: 21 | Q107: 9 | R107: 13 | S107: 5 | T107: 4 | U107: 12 | V107: 8 | W107: 18 | X107: 12 | Y107: 3 | Z107: 1 | AA107: 0 | AB107: 5 | AC107: 0 | AD107: 1 | AE107: 0 | AF107: 1 | AG107: 2 | AH107: 0 | AI107: 1 | AJ107: 0 | AK107: 2 | AL107: 13 | AM107: 13 | AN107: 0 | AO107: 2 | AP107: 5 | AQ107: 0 | AR107: 2 | AS107: 1 | AT107: 2 | AU107: 10 | AV107: 3 | AW107: 0 | AX107: 10 | AY107: 0 | AZ107: 1 | BA107: 4 | BB107: 2 | BC107: 5 | BD107: 17 | BE107: 18 | BF107: 6 | BG107: 2 | BH107: 7 | BI107: 3 | BJ107: 1 | BK107: 0 | BL107: 0 | BM107: 0 | BN107: 0 | BO107: 0 | BP107: 0 | BQ107: 0 | BR107: 0 | BS107: 0 | BT107: 0 | BU107: 0 | BV107: 0 | BW107: 0 | BX107: 0 | BY107: 0 | BZ107: 0 | CA107: 0 | CB107: 0 | CC107: 0 | CD107: 0 | CE107: 0 | CF107: 0 | CG107: 0 | CH107: 0 | CI107: 0 | CJ107: 0 | CK107: 0 | CL107: 0 | CM107: 0 | CN107: 0 | CO107: 0 | CP107: 0 | CQ107: 0 | CR107: 0 | CS107: 0 | CT107: 0 | CU107: 0 | CV107: 0 | CX107: 3044.195 | CY107: 1978.72675 | CZ107: 456.62925 | DA107: 608.8389999 | DB107: 3805.24375 | DC107: 1674.30725 | DD107: 3196.40475 | DE107: 1369.88775 | DF107: 1978.72675 | DG107: 761.0487499 | DH107: 608.8389999 | DI107: 1826.517 | DJ107: 1217.678 | DK107: 2739.7755 | DL107: 1826.517 | DM107: 456.62925 | DN107: 152.20975 | DO107: 0 | DP107: 761.0487499 | DQ107: 0 | DR107: 152.20975 | DS107: 0 | DT107: 152.20975 | DU107: 304.4195 | DV107: 0 | DW107: 152.20975 | DX107: 0 | DY107: 304.4195 | DZ107: 1978.72675 | EA107: 1978.72675 | EB107: 0 | EC107: 304.4195 | ED107: 761.0487499 | EE107: 0 | EF107: 304.4195 | EG107: 152.20975 | EH107: 304.4195 | EI107: 1522.0975 | EJ107: 456.62925 | EK107: 0 | EL107: 1522.0975 | EM107: 0 | EN107: 152.20975 | EO107: 608.8389999 | EP107: 304.4195 | EQ107: 761.0487499 | ER107: 2587.56575 | ES107: 2739.7755 | ET107: 913.2584999 | EU107: 304.4195 | EV107: 1065.46825 | EW107: 456.62925 | EX107: 152.20975 | EY107: 0 | EZ107: 0 | FA107: 0 | FB107: 0 | FC107: 0 | FD107: 0 | FE107: 0 | FF107: 0 | FG107: 0 | FH107: 0 | FI107: 0 | FJ107: 0 | FK107: 0 | FL107: 0 | FM107: 0 | FN107: 0 | FO107: 0 | FP107: 0 | FQ107: 0 | FR107: 0 | FS107: 0 | FT107: 0 | FU107: 0 | FV107: 0 | FW107: 0 | FX107: 0 | FY107: 0 | FZ107: 0 | GA107: 0 | GB107: 0 | GC107: 0 | GD107: 0 | GE107: 0 | GF107: 0 | GG107: 0 | GH107: 0 | GI107: 0 | GJ107: 0
E108: > 22 kV & < = 33 kV ; Switch | F108: 58.72116244 | G108: 0 | H108: 0 | I108: 2
E109: > 22 kV & < = 33 kV ; Circuit Breaker | F109: 211.5176893 | G109: 0 | H109: 0 | I109: 2
A110: 6 | D110: SWITCHGEAR | E110: > 33 kV & < = 66 kV ; Switch | F110: 71.66604134 | G110: 50.18247934 | H110: 7.083959298 | I110: 2 | J110: 7 | K110: 14 | L110: 23 | M110: 10 | N110: 12 | O110: 20 | P110: 9 | Q110: 15 | R110: 19 | S110: 11 | T110: 6 | U110: 7 | V110: 11 | W110: 12 | X110: 8 | Y110: 6 | Z110: 9 | AA110: 7 | AB110: 8 | AC110: 8 | AD110: 7 | AE110: 7 | AF110: 2 | AG110: 8 | AH110: 9 | AI110: 20 | AJ110: 7 | AK110: 9 | AL110: 12 | AM110: 6 | AN110: 9 | AO110: 8 | AP110: 8 | AQ110: 0 | AR110: 2 | AS110: 4 | AT110: 2 | AU110: 3 | AV110: 1 | AW110: 10 | AX110: 1 | AY110: 4 | AZ110: 6 | BA110: 1 | BB110: 1 | BC110: 4 | BD110: 1 | BE110: 5 | BF110: 7 | BG110: 3 | BH110: 4 | BI110: 1 | BJ110: 0 | BK110: 0 | BL110: 1 | BM110: 1 | BN110: 1 | BO110: 0 | BP110: 0 | BQ110: 0 | BR110: 0 | BS110: 0 | BT110: 0 | BU110: 0 | BV110: 0 | BW110: 0 | BX110: 0 | BY110: 0 | BZ110: 0 | CA110: 0 | CB110: 0 | CC110: 0 | CD110: 0 | CE110: 0 | CF110: 0 | CG110: 0 | CH110: 0 | CI110: 0 | CJ110: 0 | CK110: 0 | CL110: 0 | CM110: 0 | CN110: 0 | CO110: 0 | CP110: 0 | CQ110: 0 | CR110: 0 | CS110: 0 | CT110: 0 | CU110: 0 | CV110: 0 | CX110: 501.6622894 | CY110: 1003.324579 | CZ110: 1648.318951 | DA110: 716.6604134 | DB110: 859.9924961 | DC110: 1433.320827 | DD110: 644.9943721 | DE110: 1074.99062 | DF110: 1361.654786 | DG110: 788.3264548 | DH110: 429.9962481 | DI110: 501.6622894 | DJ110: 788.3264548 | DK110: 859.9924961 | DL110: 573.3283307 | DM110: 429.9962481 | DN110: 644.9943721 | DO110: 501.6622894 | DP110: 573.3283307 | DQ110: 573.3283307 | DR110: 501.6622894 | DS110: 501.6622894 | DT110: 143.3320827 | DU110: 573.3283307 | DV110: 644.9943721 | DW110: 1433.320827 | DX110: 501.6622894 | DY110: 644.9943721 | DZ110: 859.9924961 | EA110: 429.9962481 | EB110: 644.9943721 | EC110: 573.3283307 | ED110: 573.3283307 | EE110: 0 | EF110: 143.3320827 | EG110: 286.6641654 | EH110: 143.3320827 | EI110: 214.998124 | EJ110: 71.66604134 | EK110: 716.6604134 | EL110: 71.66604134 | EM110: 286.6641654 | EN110: 429.9962481 | EO110: 71.66604134 | EP110: 71.66604134 | EQ110: 286.6641654 | ER110: 71.66604134 | ES110: 358.3302067 | ET110: 501.6622894 | EU110: 214.998124 | EV110: 286.6641654 | EW110: 71.66604134 | EX110: 0 | EY110: 0 | EZ110: 71.66604134 | FA110: 71.66604134 | FB110: 71.66604134 | FC110: 0 | FD110: 0 | FE110: 0 | FF110: 0 | FG110: 0 | FH110: 0 | FI110: 0 | FJ110: 0 | FK110: 0 | FL110: 0 | FM110: 0 | FN110: 0 | FO110: 0 | FP110: 0 | FQ110: 0 | FR110: 0 | FS110: 0 | FT110: 0 | FU110: 0 | FV110: 0 | FW110: 0 | FX110: 0 | FY110: 0 | FZ110: 0 | GA110: 0 | GB110: 0 | GC110: 0 | GD110: 0 | GE110: 0 | GF110: 0 | GG110: 0 | GH110: 0 | GI110: 0 | GJ110: 0
A111: 6 | D111: SWITCHGEAR | E111: > 33 kV & < = 66 kV ; Circuit Breaker | F111: 318.6331131 | G111: 40.01492396 | H111: 6.325735053 | I111: 2 | J111: 3 | K111: 2 | L111: 2 | M111: 0 | N111: 0 | O111: 1 | P111: 2 | Q111: 3 | R111: 1 | S111: 0 | T111: 5 | U111: 4 | V111: 1 | W111: 2 | X111: 0 | Y111: 0 | Z111: 1 | AA111: 0 | AB111: 0 | AC111: 0 | AD111: 6 | AE111: 1 | AF111: 0 | AG111: 1 | AH111: 1 | AI111: 0 | AJ111: 1 | AK111: 0 | AL111: 0 | AM111: 0 | AN111: 1 | AO111: 0 | AP111: 1 | AQ111: 1 | AR111: 4 | AS111: 0 | AT111: 0 | AU111: 1 | AV111: 4 | AW111: 3 | AX111: 3 | AY111: 0 | AZ111: 0 | BA111: 0 | BB111: 0 | BC111: 0 | BD111: 0 | BE111: 0 | BF111: 0 | BG111: 0 | BH111: 0 | BI111: 0 | BJ111: 0 | BK111: 0 | BL111: 0 | BM111: 0 | BN111: 0 | BO111: 0 | BP111: 0 | BQ111: 0 | BR111: 0 | BS111: 0 | BT111: 0 | BU111: 0 | BV111: 0 | BW111: 0 | BX111: 0 | BY111: 0 | BZ111: 0 | CA111: 0 | CB111: 0 | CC111: 0 | CD111: 0 | CE111: 0 | CF111: 0 | CG111: 0 | CH111: 0 | CI111: 0 | CJ111: 0 | CK111: 0 | CL111: 0 | CM111: 0 | CN111: 0 | CO111: 0 | CP111: 0 | CQ111: 0 | CR111: 0 | CS111: 0 | CT111: 0 | CU111: 0 | CV111: 0 | CX111: 955.8993394 | CY111: 637.2662263 | CZ111: 637.2662263 | DA111: 0 | DB111: 0 | DC111: 318.6331131 | DD111: 637.2662263 | DE111: 955.8993394 | DF111: 318.6331131 | DG111: 0 | DH111: 1593.165566 | DI111: 1274.532453 | DJ111: 318.6331131 | DK111: 637.2662263 | DL111: 0 | DM111: 0 | DN111: 318.6331131 | DO111: 0 | DP111: 0 | DQ111: 0 | DR111: 1911.798679 | DS111: 318.6331131 | DT111: 0 | DU111: 318.6331131 | DV111: 318.6331131 | DW111: 0 | DX111: 318.6331131 | DY111: 0 | DZ111: 0 | EA111: 0 | EB111: 318.6331131 | EC111: 0 | ED111: 318.6331131 | EE111: 318.6331131 | EF111: 1274.532453 | EG111: 0 | EH111: 0 | EI111: 318.6331131 | EJ111: 1274.532453 | EK111: 955.8993394 | EL111: 955.8993394 | EM111: 0 | EN111: 0 | EO111: 0 | EP111: 0 | EQ111: 0 | ER111: 0 | ES111: 0 | ET111: 0 | EU111: 0 | EV111: 0 | EW111: 0 | EX111: 0 | EY111: 0 | EZ111: 0 | FA111: 0 | FB111: 0 | FC111: 0 | FD111: 0 | FE111: 0 | FF111: 0 | FG111: 0 | FH111: 0 | FI111: 0 | FJ111: 0 | FK111: 0 | FL111: 0 | FM111: 0 | FN111: 0 | FO111: 0 | FP111: 0 | FQ111: 0 | FR111: 0 | FS111: 0 | FT111: 0 | FU111: 0 | FV111: 0 | FW111: 0 | FX111: 0 | FY111: 0 | FZ111: 0 | GA111: 0 | GB111: 0 | GC111: 0 | GD111: 0 | GE111: 0 | GF111: 0 | GG111: 0 | GH111: 0 | GI111: 0 | GJ111: 0
E112: > 66 kV & < = 132 kV ; Switch | F112: 152.263602 | G112: 0 | H112: 0 | I112: 2
E113: > 66 kV & < = 132 kV ; Circuit Breaker | F113: 183.0976595 | G113: 0 | H113: 0 | I113: 2
E114: > 132 kV ; Switch | F114: 0.0001 | G114: 0 | H114: 0 | I114: 2
E115: > 132 kV ; Circuit Breaker | F115: 0.0001 | G115: 0 | H115: 0 | I115: 2
E116: Other | F116: 0.0001 | G116: 0 | H116: 0 | I116: 2
E117: Luminaires ; Major Road | F117: 0.0001 | G117: 0 | H117: 0 | I117: 2
E118: Luminaires ; Minor Road | F118: 0.0001 | G118: 0 | H118: 0 | I118: 2
E119: Brackets ; Major Road | F119: 0.0001 | G119: 0 | H119: 0 | I119: 2
E120: Brackets ; Minor Road | F120: 0.0001 | G120: 0 | H120: 0 | I120: 2
E121: Lamps ; Major Road | F121: 0.0001 | G121: 0 | H121: 0 | I121: 2
E122: Lamps ; Minor Road | F122: 0.0001 | G122: 0 | H122: 0 | I122: 2
E123: Poles / Columns ; Major Road | F123: 0.0001 | G123: 0 | H123: 0 | I123: 2
E124: Poles / Columns ; Minor Road | F124: 0.0001 | G124: 0 | H124: 0 | I124: 2
E125: Other | F125: 0.0001 | G125: 0 | H125: 0 | I125: 2
E126: Field Devices | F126: 38.07440908 | G126: 0 | H126: 0 | I126: 2
E127: Local Network Wiring Assets | F127: 0.0001 | G127: 0 | H127: 0 | I127: 2
E128: Communications Network Assets | F128: 0.0001 | G128: 0 | H128: 0 | I128: 2
E129: Master Station Assets | F129: 0.0001 | G129: 0 | H129: 0 | I129: 2
E130: Communications Site Infrastructure | F130: 0.0001 | G130: 0 | H130: 0 | I130: 2
E131: Communications Linear Assets | F131: 0.0001 | G131: 0 | H131: 0 | I131: 2
E132: AFLC | F132: 0.0001 | G132: 0 | H132: 0 | I132: 2
E133: Other | F133: 0.0001 | G133: 0 | H133: 0 | I133: 2
E134: DNSP defined | F134: 0.0001 | G134: 0 | H134: 0 | I134: 2
A135: 3 | D135: UNDERGROUND CABLES | E135: LV and HV Underground Cable Termination | F135: 9.254466883 | G135: 72.62423049 | H135: 8.521985126 | I135: 2 | J135: 105 | K135: 152 | L135: 168 | M135: 203 | N135: 184 | O135: 186 | P135: 208 | Q135: 177 | R135: 156 | S135: 102 | T135: 72 | U135: 146 | V135: 143 | W135: 163 | X135: 179 | Y135: 241 | Z135: 226 | AA135: 349 | AB135: 129 | AC135: 87 | AD135: 277 | AE135: 66 | AF135: 49 | AG135: 83 | AH135: 77 | AI135: 58 | AJ135: 57 | AK135: 65 | AL135: 62 | AM135: 52 | AN135: 35 | AO135: 47 | AP135: 33 | AQ135: 28 | AR135: 63 | AS135: 32 | AT135: 33 | AU135: 39 | AV135: 40 | AW135: 55 | AX135: 44 | AY135: 32 | AZ135: 21 | BA135: 11 | BB135: 32 | BC135: 30 | BD135: 5 | BE135: 22 | BF135: 9 | BG135: 20 | BH135: 13 | BI135: 4 | BJ135: 6 | BK135: 2 | BL135: 4 | BM135: 6 | BN135: 6 | BO135: 3 | BP135: 5 | BQ135: 2 | BR135: 0 | BS135: 0 | BT135: 1 | BU135: 3 | BV135: 3 | BW135: 6 | BX135: 7 | BY135: 1 | BZ135: 4 | CA135: 3 | CB135: 0 | CC135: 8 | CD135: 0 | CE135: 0 | CF135: 0 | CG135: 0 | CH135: 5 | CI135: 0 | CJ135: 0 | CK135: 0 | CL135: 0 | CM135: 0 | CN135: 4 | CO135: 0 | CP135: 0 | CQ135: 2 | CR135: 0 | CS135: 0 | CT135: 0 | CU135: 0 | CV135: 1 | CX135: 971.7190227 | CY135: 1406.678966 | CZ135: 1554.750436 | DA135: 1878.656777 | DB135: 1702.821907 | DC135: 1721.33084 | DD135: 1924.929112 | DE135: 1638.040638 | DF135: 1443.696834 | DG135: 943.9556221 | DH135: 666.3216156 | DI135: 1351.152165 | DJ135: 1323.388764 | DK135: 1508.478102 | DL135: 1656.549572 | DM135: 2230.326519 | DN135: 2091.509516 | DO135: 3229.808942 | DP135: 1193.826228 | DQ135: 805.1386188 | DR135: 2563.487327 | DS135: 610.7948143 | DT135: 453.4688773 | DU135: 768.1207513 | DV135: 712.59395 | DW135: 536.7590792 | DX135: 527.5046123 | DY135: 601.5403474 | DZ135: 573.7769468 | EA135: 481.2322779 | EB135: 323.9063409 | EC135: 434.9599435 | ED135: 305.3974071 | EE135: 259.1250727 | EF135: 583.0314136 | EG135: 296.1429403 | EH135: 305.3974071 | EI135: 360.9242084 | EJ135: 370.1786753 | EK135: 508.9956786 | EL135: 407.1965429 | EM135: 296.1429403 | EN135: 194.3438045 | EO135: 101.7991357 | EP135: 296.1429403 | EQ135: 277.6340065 | ER135: 46.27233442 | ES135: 203.5982714 | ET135: 83.29020195 | EU135: 185.0893377 | EV135: 120.3080695 | EW135: 37.01786753 | EX135: 55.5268013 | EY135: 18.50893377 | EZ135: 37.01786753 | FA135: 55.5268013 | FB135: 55.5268013 | FC135: 27.76340065 | FD135: 46.27233442 | FE135: 18.50893377 | FF135: 0 | FG135: 0 | FH135: 9.254466883 | FI135: 27.76340065 | FJ135: 27.76340065 | FK135: 55.5268013 | FL135: 64.78126818 | FM135: 9.254466883 | FN135: 37.01786753 | FO135: 27.76340065 | FP135: 0 | FQ135: 74.03573507 | FR135: 0 | FS135: 0 | FT135: 0 | FU135: 0 | FV135: 46.27233442 | FW135: 0 | FX135: 0 | FY135: 0 | FZ135: 0 | GA135: 0 | GB135: 37.01786753 | GC135: 0 | GD135: 0 | GE135: 18.50893377 | GF135: 0 | GG135: 0 | GH135: 0 | GI135: 0 | GJ135: 9.254466883
A136: 4 | D136: SERVICE LINES | E136: Pillar to Pillar | F136: 3.684293023 | G136: 49.41331818 | H136: 7.029460732 | I136: 2 | J136: 1 | K136: 8 | L136: 15 | M136: 8 | N136: 5 | O136: 6 | P136: 9 | Q136: 6 | R136: 12 | S136: 16 | T136: 31 | U136: 72 | V136: 38 | W136: 75 | X136: 40 | Y136: 66 | Z136: 40 | AA136: 20 | AB136: 38 | AC136: 135 | AD136: 64 | AE136: 89 | AF136: 59 | AG136: 20 | AH136: 15 | AI136: 14 | AJ136: 23 | AK136: 18 | AL136: 38 | AM136: 41 | AN136: 25 | AO136: 5 | AP136: 21 | AQ136: 2 | AR136: 6 | AS136: 8 | AT136: 16 | AU136: 42 | AV136: 75 | AW136: 37 | AX136: 25 | AY136: 6 | AZ136: 0 | BA136: 2 | BB136: 0 | BC136: 0 | BD136: 0 | BE136: 0 | BF136: 0 | BG136: 0 | BH136: 0 | BI136: 0 | BJ136: 0 | BK136: 0 | BL136: 0 | BM136: 0 | BN136: 0 | BO136: 0 | BP136: 0 | BQ136: 0 | BR136: 0 | BS136: 0 | BT136: 0 | BU136: 0 | BV136: 0 | BW136: 0 | BX136: 0 | BY136: 0 | BZ136: 0 | CA136: 0 | CB136: 0 | CC136: 0 | CD136: 0 | CE136: 0 | CF136: 0 | CG136: 0 | CH136: 0 | CI136: 0 | CJ136: 0 | CK136: 0 | CL136: 0 | CM136: 0 | CN136: 0 | CO136: 0 | CP136: 0 | CQ136: 0 | CR136: 0 | CS136: 0 | CT136: 0 | CU136: 0 | CV136: 0 | CX136: 3.684293023 | CY136: 29.47434419 | CZ136: 55.26439535 | DA136: 29.47434419 | DB136: 18.42146512 | DC136: 22.10575814 | DD136: 33.15863721 | DE136: 22.10575814 | DF136: 44.21151628 | DG136: 58.94868837 | DH136: 114.2130837 | DI136: 265.2690977 | DJ136: 140.0031349 | DK136: 276.3219767 | DL136: 147.3717209 | DM136: 243.1633395 | DN136: 147.3717209 | DO136: 73.68586046 | DP136: 140.0031349 | DQ136: 497.3795581 | DR136: 235.7947535 | DS136: 327.9020791 | DT136: 217.3732884 | DU136: 73.68586046 | DV136: 55.26439535 | DW136: 51.58010232 | DX136: 84.73873953 | DY136: 66.31727442 | DZ136: 140.0031349 | EA136: 151.0560139 | EB136: 92.10732558 | EC136: 18.42146512 | ED136: 77.37015349 | EE136: 7.368586046 | EF136: 22.10575814 | EG136: 29.47434419 | EH136: 58.94868837 | EI136: 154.740307 | EJ136: 276.3219767 | EK136: 136.3188419 | EL136: 92.10732558 | EM136: 22.10575814 | EN136: 0 | EO136: 7.368586046 | EP136: 0 | EQ136: 0 | ER136: 0 | ES136: 0 | ET136: 0 | EU136: 0 | EV136: 0 | EW136: 0 | EX136: 0 | EY136: 0 | EZ136: 0 | FA136: 0 | FB136: 0 | FC136: 0 | FD136: 0 | FE136: 0 | FF136: 0 | FG136: 0 | FH136: 0 | FI136: 0 | FJ136: 0 | FK136: 0 | FL136: 0 | FM136: 0 | FN136: 0 | FO136: 0 | FP136: 0 | FQ136: 0 | FR136: 0 | FS136: 0 | FT136: 0 | FU136: 0 | FV136: 0 | FW136: 0 | FX136: 0 | FY136: 0 | FZ136: 0 | GA136: 0 | GB136: 0 | GC136: 0 | GD136: 0 | GE136: 0 | GF136: 0 | GG136: 0 | GH136: 0 | GI136: 0 | GJ136: 0
CX137: 0 | CY137: 0 | CZ137: 0 | DA137: 0 | DB137: 0 | DC137: 0 | DD137: 0 | DE137: 0 | DF137: 0 | DG137: 0 | DH137: 0 | DI137: 0 | DJ137: 0 | DK137: 0 | DL137: 0 | DM137: 0 | DN137: 0 | DO137: 0 | DP137: 0 | DQ137: 0 | DR137: 0 | DS137: 0 | DT137: 0 | DU137: 0 | DV137: 0 | DW137: 0 | DX137: 0 | DY137: 0 | DZ137: 0 | EA137: 0 | EB137: 0 | EC137: 0 | ED137: 0 | EE137: 0 | EF137: 0 | EG137: 0 | EH137: 0 | EI137: 0 | EJ137: 0 | EK137: 0 | EL137: 0 | EM137: 0 | EN137: 0 | EO137: 0 | EP137: 0 | EQ137: 0 | ER137: 0 | ES137: 0 | ET137: 0 | EU137: 0 | EV137: 0 | EW137: 0 | EX137: 0 | EY137: 0 | EZ137: 0 | FA137: 0 | FB137: 0 | FC137: 0 | FD137: 0 | FE137: 0 | FF137: 0 | FG137: 0 | FH137: 0 | FI137: 0 | FJ137: 0 | FK137: 0 | FL137: 0 | FM137: 0 | FN137: 0 | FO137: 0 | FP137: 0 | FQ137: 0 | FR137: 0 | FS137: 0 | FT137: 0 | FU137: 0 | FV137: 0 | FW137: 0 | FX137: 0 | FY137: 0 | FZ137: 0 | GA137: 0 | GB137: 0 | GC137: 0 | GD137: 0 | GE137: 0 | GF137: 0 | GG137: 0 | GH137: 0 | GI137: 0 | GJ137: 0
CX138: 0 | CY138: 0 | CZ138: 0 | DA138: 0 | DB138: 0 | DC138: 0 | DD138: 0 | DE138: 0 | DF138: 0 | DG138: 0 | DH138: 0 | DI138: 0 | DJ138: 0 | DK138: 0 | DL138: 0 | DM138: 0 | DN138: 0 | DO138: 0 | DP138: 0 | DQ138: 0 | DR138: 0 | DS138: 0 | DT138: 0 | DU138: 0 | DV138: 0 | DW138: 0 | DX138: 0 | DY138: 0 | DZ138: 0 | EA138: 0 | EB138: 0 | EC138: 0 | ED138: 0 | EE138: 0 | EF138: 0 | EG138: 0 | EH138: 0 | EI138: 0 | EJ138: 0 | EK138: 0 | EL138: 0 | EM138: 0 | EN138: 0 | EO138: 0 | EP138: 0 | EQ138: 0 | ER138: 0 | ES138: 0 | ET138: 0 | EU138: 0 | EV138: 0 | EW138: 0 | EX138: 0 | EY138: 0 | EZ138: 0 | FA138: 0 | FB138: 0 | FC138: 0 | FD138: 0 | FE138: 0 | FF138: 0 | FG138: 0 | FH138: 0 | FI138: 0 | FJ138: 0 | FK138: 0 | FL138: 0 | FM138: 0 | FN138: 0 | FO138: 0 | FP138: 0 | FQ138: 0 | FR138: 0 | FS138: 0 | FT138: 0 | FU138: 0 | FV138: 0 | FW138: 0 | FX138: 0 | FY138: 0 | FZ138: 0 | GA138: 0 | GB138: 0 | GC138: 0 | GD138: 0 | GE138: 0 | GF138: 0 | GG138: 0 | GH138: 0 | GI138: 0 | GJ138: 0
CX139: 0 | CY139: 0 | CZ139: 0 | DA139: 0 | DB139: 0 | DC139: 0 | DD139: 0 | DE139: 0 | DF139: 0 | DG139: 0 | DH139: 0 | DI139: 0 | DJ139: 0 | DK139: 0 | DL139: 0 | DM139: 0 | DN139: 0 | DO139: 0 | DP139: 0 | DQ139: 0 | DR139: 0 | DS139: 0 | DT139: 0 | DU139: 0 | DV139: 0 | DW139: 0 | DX139: 0 | DY139: 0 | DZ139: 0 | EA139: 0 | EB139: 0 | EC139: 0 | ED139: 0 | EE139: 0 | EF139: 0 | EG139: 0 | EH139: 0 | EI139: 0 | EJ139: 0 | EK139: 0 | EL139: 0 | EM139: 0 | EN139: 0 | EO139: 0 | EP139: 0 | EQ139: 0 | ER139: 0 | ES139: 0 | ET139: 0 | EU139: 0 | EV139: 0 | EW139: 0 | EX139: 0 | EY139: 0 | EZ139: 0 | FA139: 0 | FB139: 0 | FC139: 0 | FD139: 0 | FE139: 0 | FF139: 0 | FG139: 0 | FH139: 0 | FI139: 0 | FJ139: 0 | FK139: 0 | FL139: 0 | FM139: 0 | FN139: 0 | FO139: 0 | FP139: 0 | FQ139: 0 | FR139: 0 | FS139: 0 | FT139: 0 | FU139: 0 | FV139: 0 | FW139: 0 | FX139: 0 | FY139: 0 | FZ139: 0 | GA139: 0 | GB139: 0 | GC139: 0 | GD139: 0 | GE139: 0 | GF139: 0 | GG139: 0 | GH139: 0 | GI139: 0 | GJ139: 0
